Workbook

Sheet NEWS
A1: Picture 11 | G1: =COUNTA(A1:A16) -> 6 | H1: counter
A2: Picture 15 | G2: /
A3: Picture 9 | G3: ='Insertion Loss'!R1-1 -> -1 | H3: now
A4: Picture 8 | G4: =CONCATENATE(G5,G3,G2,G1) -> January 2019 -1/6
A5: Picture 2 | G5: January 2019 | H5: חודש
A6: Picture 3

Sheet INDEX (hidden)
A1: Conn. Name | B1: Right | C1: Left
A2: SP TNC | B2: Picture 2 | C2: Picture 1
A3: RP TNC | B3: Picture 4 | C3: Picture 3
A4: SJ TNC | B4: Picture 6 | C4: Picture 5
A5: BJ TNC | B5: Picture 8 | C5: Picture 7
A6: FJ TNC | B6: Picture 10 | C6: Picture 9
A7: SP SMA | B7: Picture 12 | C7: Picture 11
A8: RP SMA | B8: Picture 14 | C8: Picture 13
A9: SJ SMA | B9: Picture 16 | C9: Picture 15
A10: BJ SMA | B10: Picture 18 | C10: Picture 17
A11: FJ SMA | B11: Picture 21 | C11: Picture 20
A12: FJ BMA | B12: Picture 24 | C12: Picture 23
A13: BJ BMA | B13: Picture 26 | C13: Picture 25
A14: FJ BMA | B14: Picture 28 | C14: Picture 27
A15: SJ BMA | B15: Picture 30 | C15: Picture 29
A16: FJ BMA | B16: Picture 34 | C16: Picture 31
A17: SP N | B17: Picture 36 | C17: Picture 35
A18: RP N | B18: Picture 38 | C18: Picture 37
A19: SJ N | B19: Picture 40 | C19: Picture 39
A20: BJ N | B20: Picture 42 | C20: Picture 41
A21: FJ N | B21: Picture 44 | C21: Picture 43
A22: SP 7/16 | B22: Picture 50 | C22: Picture 45
A23: RP 7/16 | B23: Picture 52 | C23: Picture 51
A24: SJ 7/16 | B24: Picture 54 | C24: Picture 53
A25: BJ 7/16 | B25: Picture 56 | C25: Picture 55
A26: FJ 7/16 | B26: Picture 58 | C26: Picture 57
A27: SP SMP | B27: Picture 60 | C27: Picture 59
A28: RP SMP | B28: Picture 48 | C28: Picture 47

Sheet Drawing
R1: מונה שליחותS1 | S1: 27 | T1: right | U1: 0 | V1: r6 | AC1: 0
R2: תיבת בחירה: | T2: left | U2: 0 | V2: r7
R3: =ISBLANK(R6) -> TRUE | T3: =AND(R3=FALSE,R4=FALSE) -> FALSE | U3: =OR(U1=1,U2=1) -> FALSE
K4: fwsdfdsf | R4: =ISBLANK(R7) -> TRUE
K5: 3 | S5: Cable | U5: Picture 19 | AC5: Cable Name
S6: Conn. Right | T6: =RIGHT(R6,LEN(R6)-3) ->  | U6: =IF(ISERROR(VLOOKUP(R6,INDEX!A:F,2,FALSE)),"",VLOOKUP(R6,INDEX!A:F,2,FALSE)) ->  | AC6: Code N | AD6: Description
G7: Lable 1 | J7: Lable 2 | N7: Lable 3 | S7: Conn. Left | T7: =RIGHT(R7,LEN(R7)-3) ->  | U7: =IF(ISERROR(VLOOKUP(R7,INDEX!A:F,3,FALSE)),"",VLOOKUP(R7,INDEX!A:F,3,FALSE)) ->  | AC7: Name | AD7: Cable Name
R8: No | S8: Boot | U8: ="Picture "&VLOOKUP(R8,'Drawing table'!A:F,2,FALSE) -> 
R9: No | S9: Marking Sleeve | U9: ="picture" & VLOOKUP(R9,'Drawing table'!A:F,2,FALSE) ->  | AC9: Connector Shape
C10: 6 | R10: =IF(R9="Yes","Yes","No") -> No | S10: Clear Sleeve | U10: =CONCATENATE(T24,"-",U26,T26,"-",U25,T25,"-",S24,) -> EZ_118_TP-XXX-XXX-1000 mm | V10: Drawing No. | AC10: Code YY | AD10: Description
R11: =Length -> 1000 | S11: Length | U11: =CONCATENATE(L21," - " ) -> - | V11: =TEXT(TODAY(), "dd/mm/yy") -> 13/06/19 | X11: =DAY(V11) -> 13 | AC11: SP | AD11: Straight Plug
R12: BMA | S12: Last Sheet | V12: =TEXT(NOW(), "H:MM AM/PM") -> 10:02 AM | X12: =MONTH(V11) -> 6 | AC12: RP | AD12: Right angle Plug
R13: last Picture Light | V13: =CONCATENATE(CONCATENATE(V11," ",V12)) -> 13/06/19 10:02 AM | X13: =YEAR(V11) -> 2019 | AC13: SJ | AD13: Straight Jack
S14: right | U14: left | X14: =X11&"_"&X12&"_"&X13 -> 13_6_2019 | AC14: BJ | AD14: Bulkhead Jack
R15: BMA | S15: sheet | T15: BMA | U15: sheet | AC15: FJ | AD15: Flange Jack
R16: H11 | S16: H | T16: M11 | U16: M
J17: ="Cable Length: " & R11 & " mm" -> Cable Length: 1000 mm | R17: G13 | S17: G | T17: O13 | U17: O | AC17: Connector Family
AC18: Code C | AD18: Description
I19: =U10 -> EZ_118_TP-XXX-XXX-1000 mm | N19: Drawing No. | AC19: S | AD19: SMA
AC20: T | AD20: TNC
R21: =IF(S21="","",IF(S21="P","/ Plug","/ Jack")) ->  | S21: =RIGHT(LEFT(R6,2),1) ->  | T21: right | U21: סיומת הקונקטור | AC21: N | AD21: N TYPE
G22: Contact Information | R22: =IF(S22="","",IF(S22="P","/ Plug","/ Jack")) ->  | S22: =RIGHT(LEFT(R7,2),1) ->  | T22: left | AC22: B | AD22: BMA
J23: Name | L23: =T24 -> EZ_118_TP | N23: Cable Type | R23: lable color | T23: בונה את מקט הקונקטור | AC23: P | AD23: SMP
J24: Phone | M24: ='Insertion Loss'!D19 -> None | N24: Conn.Left Shape | R24: 1 | S24: =Length & " mm" -> 1000 mm | T24: EZ_118_TP | U24: שם הכבל | AC24: 7/16 | AD24: 7.16
J25: Company | M25: ='Insertion Loss'!D18 -> None | N25: Conn.Right Shape | T25: =IF(ISERROR(IF(T6="7/16","7/16",IF(T6="SMP","P",LEFT(T6,1)))),"X",IF(T6="7/16","7/16",IF(T6="SMP","P",LEFT(T6,1)))) -> X | U25: =IF(LEFT(R6,2)="","XX",LEFT(R6,2)) -> XX | V25: right
G26: Click here to visit our website | I26: units | J26: QTY | K26: Manufacturer P/N | M26: Description | O26: # | R26: 1000 | S26: cable length save | T26: =IF(ISERROR(IF(T7="7/16","7/16",IF(T7="SMP","P",LEFT(T7,1)))),"X",IF(T7="7/16","7/16",IF(T7="SMP","P",LEFT(T7,1)))) -> X | U26: =IF(LEFT(R7,2)="","XX",LEFT(R7,2)) -> XX | V26: left | AC26: Cable Length
I27: =S24 -> 1000 mm | K27: =L23 -> EZ_118_TP | M27: Cable / Wire | R27: 0 | S27: mode | AC27: Code L | AD27: Description
I28: =IF(J28>0,"Pc","") ->  | J28: =IF(ISBLANK(R7),0,1) -> 0 | M28: =R22 ->  | N28: =IF(R7="","",R7) ->  | AC28: Lenght | AD28: Cable Length
J29: =IF(ISBLANK(R6),0,1) -> 0 | M29: =R21 ->  | N29: =IF(R6="","",R6) ->  | U29: =U10 -> EZ_118_TP-XXX-XXX-1000 mm
I30: Pc | J30: 2 | M30: BOOT | O30: 4 | T30: save | AB30: Drawing No.
M31: VSWR | O31: 5 | U31: ="EIM First_"&G20&"_" & X14 & "_"& T35 -> EIM First__13_6_2019_10_2AM | AB31: Length | AD31: R. Conn. | AE31: L. Conn. | AF31: Cable
M32: Phase Match | O32: 6
M33: IL & VSWR TESTS | O33: 7 | T33: =HOUR(NOW()) -> 10 | AB33: LENGTH | AD33: YYC | AE33: YYC | AF33: Name
F34: *The connectors drawing in this illustration are not necessarily availible. They are for initial evaluation only. | S34: _ | T34: =MINUTE(NOW()) -> 2 | AB34: Name-YYC-YYC-Length mm
P35: Note: | S35: =IF(T33>12,"PM","AM") -> AM | T35: =T33&S34&T34&S35 -> 10_2AM
F38: =V13 -> 13/06/19 10:02 AM | T38: SJ
T39: RP
T40: =LEFT(T39,1) -> R
F41: Please E-mail this PDF file to the EIM First's Sales Manager to illustrate the request.
G42: rachel@eimsys.co.il

Sheet Cable Parameters (hidden)
A1: Coaxial Cable Parameters | E1: 25 | F1: טמפ' לחישוב עמודת ניחות | K1: נתוני כבלים | L1: smallest | M1: מחשב מספר תוין שנקלטו | P1: תדר נבחר | Q1: In/Outdoor | R1: הספק נבחר | S1: עובי נבחר | U1: =COLUMN() -> 21 | AC1: Coaxial Cable Parameters | CA1: 0.01 | CB1: 0.01356 | CC1: 0.03 | CD1: 0.05 | CE1: 0.1 | CF1: 0.15 | CG1: 0.4 | CH1: 0.45 | CI1: 0.5 | CJ1: 0.9 | CK1: 1 | CL1: 1.5 | CM1: 1.8 | CN1: 2 | CO1: 2.5 | CP1: 3 | CQ1: 4 | CR1: 5 | CS1: 5.8 | CT1: 6 | CU1: 8 | CV1: 10 | CW1: 11 | CX1: 12 | CY1: 13.5 | CZ1: 15 | DA1: 16 | DB1: 18 | DC1: 24 | DD1: 26.5 | DE1: 28 | DF1: 35 | DG1: 40 | DH1: 50 | DI1: 63 | DJ1: 65 | DK1: 90 | DT1: bend radius
A2: Cable Type | B2: coefficient A | C2: coefficient B | D2: CW POWER HANDLING | E2: ניחות בתדר מקסימאלי | F2: max Frequency | G2: Temperature | I2: Temp. coeff. | J2: Source | K2: thickness | L2: מספר אינדקס | M2: מקבל ערך לחיפוש Filter מ P12 | O2: מחזיר מילה שמקיימת את הקלט-מספר שורה | R2: N/A | T2: SMALL | U2: CABLE NAME | V2: FREQ | W2: THIK. | AC2: Cable Type | AD2: =COLUMN() -> 30 | AE2: =COLUMN() -> 31 | AF2: =COLUMN() -> 32 | AG2: =COLUMN() -> 33 | AH2: =COLUMN() -> 34 | AI2: =COLUMN() -> 35 | AJ2: =COLUMN() -> 36 | AK2: =COLUMN() -> 37 | AL2: =COLUMN() -> 38 | AM2: =COLUMN() -> 39 | AN2: =COLUMN() -> 40 | AO2: =COLUMN() -> 41 | AP2: =COLUMN() -> 42 | AQ2: =COLUMN() -> 43 | AR2: =COLUMN() -> 44 | AS2: =COLUMN() -> 45 | AT2: =COLUMN() -> 46 | AU2: =COLUMN() -> 47 | AV2: =COLUMN() -> 48 | AW2: =COLUMN() -> 49 | AX2: =COLUMN() -> 50 | AY2: =COLUMN() -> 51 | AZ2: =COLUMN() -> 52 | BF2: =COLUMN() -> 58 | BJ2: 61 | BN2: =COLUMN() -> 66 | BO2: =COLUMN() -> 67 | BP2: =COLUMN() -> 68 | BQ2: =COLUMN() -> 69 | BR2: connectoe list | BV2: משפחות קונקטורים | CA2: =COLUMN() -> 79 | CB2: =COLUMN() -> 80 | CC2: =COLUMN() -> 81 | CD2: =COLUMN() -> 82 | CE2: =COLUMN() -> 83 | CF2: =COLUMN() -> 84 | CG2: =COLUMN() -> 85 | CH2: =COLUMN() -> 86 | CI2: =COLUMN() -> 87 | CJ2: =COLUMN() -> 88 | CK2: =COLUMN() -> 89 | CL2: =COLUMN() -> 90 | CM2: =COLUMN() -> 91 | CN2: =COLUMN() -> 92 | CO2: =COLUMN() -> 93 | CP2: =COLUMN() -> 94 | CQ2: =COLUMN() -> 95 | CR2: =COLUMN() -> 96 | CS2: =COLUMN() -> 97 | CT2: =COLUMN() -> 98 | CU2: =COLUMN() -> 99 | CV2: =COLUMN() -> 100 | CW2: =COLUMN() -> 101 | CX2: =COLUMN() -> 102 | CY2: =COLUMN() -> 103 | CZ2: =COLUMN() -> 104 | DA2: =COLUMN() -> 105 | DB2: =COLUMN() -> 106 | DC2: =COLUMN() -> 107 | DD2: =COLUMN() -> 108 | DE2: =COLUMN() -> 109 | DF2: =COLUMN() -> 110 | DG2: =COLUMN() -> 111 | DH2: =COLUMN() -> 112 | DI2: =COLUMN() -> 113 | DJ2: =COLUMN() -> 114 | DK2: =COLUMN() -> 115 | DT2: =COLUMN() -> 124 | DU2: Cable Type | DV2: INDOOR | DW2: OUTDOOR | DX2: "" | EA2: סינון סופי לפי ניחות ועמודות לגיליון FILTER | EG2: =COLUMN() -> 137 | EH2: =COLUMN() -> 138 | EI2: =COLUMN() -> 139 | EJ2: =COLUMN() -> 140 | EK2: =COLUMN() -> 141 | EL2: =COLUMN() -> 142 | EM2: =COLUMN() -> 143 | EN2: =COLUMN() -> 144 | EO2: =COLUMN() -> 145 | EP2: =COLUMN() -> 146 | EQ2: =COLUMN() -> 147 | ER2: =COLUMN() -> 148 | ES2: =COLUMN() -> 149 | ET2: FILTER appliction column | EU2: app name
B3: nominal | C3: nominal | D3: =P2 -> 0 | E3: =P2 -> 0 | F3: [GHz] | G3: max [°C] | H3: min [°C] | I3: J [%/°C] | L3: =IF(filter!$K$26="","",filter!$K$26) ->  | M3: =IF(L3="","","*"&UPPER(L3)) ->  | N3: =LEFT(M3,1) ->  | P3: מחזיר את מספר השורה המקיימת את התדר ומעלה | Q3: מחזיר את מספר השורה המקיימת את הבחירה | R3: מחזיר את מספר השורה המקיימת את ההספק | S3: מחזיר את מספר השורה המקיימת את העובי | Z3: =Q2 -> 0 | BH3: false= מאופשר | BI3: true= לא מאופשר | BP3: אינדקס מספר השורה | BR3: מספר השורה של הכבל הנבחר | BS3: true= אין קונקטורים מתאימים false = יש קונקטור | CI3: FREQ GHZ | DT3: mm | DV3: =COLUMN() -> 126 | DW3: =COLUMN() -> 127 | DX3: 128 | EA3: עמודה T | EG3: input | EH3: avionics | EI3: space | EJ3: naval | EK3: high temp | EL3: internal box | EM3: outdoor flexible | EN3: outdoor fixed | EO3: phase/ vs/ temp | EP3: test cables | EQ3: high power | ER3: wireless | ES3: industrial
M4: =LEN(M3) -> 0 | N4: =RIGHT(M3,LEN(M3)-1) ->  | P4: מתוך עמודה O | Q4: עמודה IN/OUT | R4: מתוך עמודה Q | S4: מתוך עמודה R | T4: מתקבל מעמודה EE לאחר סינון ניחות. חזרה לעמודה T לתצוגה | X4: ניחות | Y4: power | Z4: in/outdoor | AA4: Bend Radius | AD4: TNC | AI4: SMA | AN4: N | AS4: BMA | AX4: 7.16 | BC4: SMP | BF4: SPECHIAL CONN. | BH4: TNC | BI4: SMA | BJ4: N | BK4: BMA | BL4: 716 | BM4: SMP | BP4: =ROW() -> 4 | BQ4: index | BR4: =VLOOKUP('Insertion Loss'!C9,'Cable Parameters'!A:BQ,66,FALSE) -> 0 | EA4: מספרי השורהלאחר סננים | EB4: תוצאות הניחות | EE4: מספר השורה לאחר סינון ולאחר סינון לפי ניחות. מועבר לעמודה T | EH4: מקבל ערך מעמודה A ועמודה אחרונה תהיה לאחר סינון | EM4: מסנן אפליקציה | ET4: output list
A5: Customer Spec. | D5: N/A - in development | I5: 0.2 | M5: כבלים לפי סנן APPLICTION | Q5: 1-in 2-oout | AC5: Customer Spec. | AD5: SP | AE5: RP | AF5: SJ | AG5: SJ | AH5: SJ | AI5: SP | AJ5: RP | AK5: SJ | AL5: SJ | AM5: SJ | AN5: SP | AO5: RP | AP5: SJ | AQ5: SJ | AR5: SJ | AS5: 13 | AT5: 14 | AU5: 15 | AV5: 24 | AW5: 25 | AX5: 11 | AY5: 16 | AZ5: 21 | BA5: 24 | BB5: 25 | BC5: SMP | BD5: RP | BF5: =VLOOKUP('Insertion Loss'!C9,'Cable Parameters'!A:WQ,58,FALSE) -> 1 | BP5: =ROW() -> 5 | BU5: smmalest | CA5: 0.01 | CB5: 0.01356 | CC5: 0.03 | CD5: 0.05 | CE5: 0.1 | CF5: 0.15 | CG5: 0.4 | CH5: 0.45 | CI5: 0.5 | CJ5: 0.9 | CK5: 1 | CL5: 1.5 | CM5: 1.8 | CN5: 2 | CO5: 2.5 | CP5: 3 | CQ5: 4 | CR5: 5 | CS5: 5.8 | CT5: 6 | CU5: 8 | CV5: 10 | CW5: 11 | CX5: 12 | CY5: 13.5 | CZ5: 15 | DA5: 16 | DB5: 18 | DC5: 24 | DD5: 26.5 | DE5: 28 | DF5: 35 | DG5: 40 | DH5: 50 | DI5: 63 | DJ5: 65 | DK5: 90 | DU5: Customer Spec.
A6: EZ_118_TP | B6: 0.3804 | C6: 0.00016 | D6: N/A | E6: =((B6*SQRT($E$3*1000)+C6*$E$3*1000))/30480*Length*(1+'Cable Parameters'!I6/100*('Cable Parameters'!$E$1-25))+('Insertion Loss'!$F$16+'Insertion Loss'!$F$17)*SQRT($E$3) -> 0 | F6: 40 | G6: 200 | H6: -55 | I6: 0.2 | J6: https://www.ezform.com/product/ez-118-tp/ | K6: 3 | L6: 1 | M6: =ET6 -> EZ_118_TP | N6: ביטלתי את העמודה | O6: =IF(M6="","", IF($M$4=0,ROW(), IF(ISERROR(FIND($N$4,UPPER(A6))),"",ROW()))) -> 6 | P6: =IF(O6="","",IF($P$2="",O6,IF(OR(INDEX(A:M,ROW(),6)=$P$2,INDEX(A:M,ROW(),6)>$P$2),ROW(),""))) -> 6 | Q6: =IF(P6="","",IF($Q$2="",P6,IF(INDEX(DV:DW,ROW(),$Q$2)="","",ROW()))) -> 6 | R6: =IF(Q6="","",IF($R$2="",Q6,IF(OR(INDEX(A:WQ,ROW(),4)=$R$2,INDEX(A:WQ,ROW(),4)>$R$2),ROW(),""))) -> 6 | S6: =IF(R6="","",IF($S$2="",R6,IF(OR(INDEX(A:N,ROW(),11)>$S$2+1,INDEX(A:N,ROW(),11)<$S$2-1),"",ROW()))) -> 6 | T6: =EE6 -> 6 | U6: =IF(T6="","",INDEX(A:M,T6,1)) -> EZ_118_TP | V6: =IF(T6="","",INDEX(A:N,T6,6)) -> 40 | W6: =IF(T6="","",INDEX(A:O,T6,11)) -> 3 | X6: =IF(T6="","",INDEX(A:P,T6,5)) -> 0 | Y6: =IF(T6="","",INDEX(A:R,T6,4)) -> N/A | Z6: =IF(ISERROR(IF($Q$2="",INDEX(A:WQ,T6,128),IF($Q$2=1,INDEX(A:WQ,T6,126),INDEX(A:WQ,T6,127)))),"",IF($Q$2="",INDEX(A:WQ,T6,128),IF($Q$2=1,INDEX(A:WQ,T6,126),INDEX(A:WQ,T6,127)))) -> Indoor Only | AA6: =IF(T6="","",INDEX(A:WQ,T6,124)) -> 9.52 | AC6: =A6 -> EZ_118_TP | AD6: 1 | AE6: 1 | AF6: 1 | AG6: 1 | AH6: 1 | AI6: 1 | AJ6: 1 | AK6: 1 | AL6: 1 | AM6: 1 | AN6: 1 | AO6: 1 | AP6: 1 | AQ6: 1 | AR6: 1 | AS6: 1 | AT6: 1 | AU6: 1 | AV6: 1 | AW6: 1 | AX6: 1 | AY6: 1 | AZ6: 1 | BA6: 1 | BB6: 1 | BC6: 1 | BD6: 1 | BF6: 1 | BH6: =OR(AND(AD6=0,AE6=0,AF6=0,AG6=0,AH6=0),BF6=0) -> FALSE | BI6: =OR(AND(AI6=0,AJ6=0,AK6=0,AL6=0,AM6=0),BF6=0) -> FALSE | BJ6: =OR(AND(AN6=0,AO6=0,AP6=0,AQ6=0,AR6=0),BF6=0) -> FALSE | BK6: =OR(AND(AS6=0,AT6=0,AU6=0,AV6=0,AW6=0),BF6=0) -> FALSE | BL6: =OR(AND(AX6=0,AY6=0,AZ6=0,BA6=0,BB6=0),BF6=0) -> FALSE | BM6: =OR(AND(BC6=0,BD6=0),BF6=0) -> FALSE | BP6: =ROW() -> 6 | BQ6: 6 | BR6: TNC | BS6: =INDEX(BH:BH,$BR$4) -> FALSE | BT6: =IF(BS6=FALSE,BQ6,"") -> 6 | BU6: =SMALL(BT:BT,1) -> 6 | BV6: =IF(ISERROR(INDEX(BR:BR,BU6)),"",INDEX(BR:BR,BU6)) -> TNC | CI6: 700 | CK6: 525 | CR6: 210 | CV6: 144 | DB6: 110 | DD6: 72 | DT6: 9.52 | DU6: =A6 -> EZ_118_TP | DV6: Indoor Only | DX6: =DV6 -> Indoor Only | EA6: =IF(ISERROR(SMALL($S$6:$S$250,$L6)),"",SMALL($S$6:$S$250,$L6)) -> 6 | EB6: =IF($EA6="","",IF(ISERROR(INDEX(A:EE,EA6,5)),EA6,INDEX(A:EE,EA6,5))) -> 0 | EC6: =IF(ISERROR(SMALL($EB$6:$EB$250,$L6)),"",SMALL($EB$6:$EB$250,$L6)) -> 0 | ED6: =EA6 -> 6 | EE6: =IF($P$2="",EA6,VLOOKUP(EC6,$EB:$EE,3,FALSE)) -> 6 | EG6: =A6 -> EZ_118_TP | EH6: 1 | EI6: 1 | EJ6: 0 | EK6: 0 | EL6: 1 | EM6: 0 | EN6: 1 | EO6: 0 | EP6: 0 | EQ6: 0 | ER6: 0 | ES6: 0 | ET6: =IF($ET$3="",INDEX($A:$ES,ROW(),137),IF(INDEX($A:$ES,ROW(),$ET$3)=1,INDEX($A:$ES,ROW(),137),"")) -> EZ_118_TP
A7: EZ_141_TP_M17 | B7: 0.32544 | C7: 0.001167 | D7: N/A | E7: =((B7*SQRT($E$3*1000)+C7*$E$3*1000))/30480*Length*(1+'Cable Parameters'!I7/100*('Cable Parameters'!$E$1-25))+('Insertion Loss'!$F$16+'Insertion Loss'!$F$17)*SQRT($E$3) -> 0 | F7: 26.5 | G7: 125 | H7: -55 | I7: 0.2 | J7: https://www.ezform.com/product/ez-141m17/ | K7: 3.5 | L7: 2 | M7: =ET7 -> EZ_141_TP_M17 | O7: =IF(M7="","", IF($M$4=0,ROW(), IF(ISERROR(FIND($N$4,UPPER(A7))),"",ROW()))) -> 7 | P7: 7 | Q7: 7 | R7: 7 | S7: 7 | T7: =EE7 -> 7 | U7: EZ_141_TP_M17 | V7: 26.5 | W7: 3.5 | X7: 0 | Y7: N/A | Z7: Indoor Only | AA7: 6.35 | AC7: EZ_141_TP_M17 | AD7: 1 | AE7: 1 | AF7: 1 | AG7: 1 | AH7: 1 | AI7: 1 | AJ7: 1 | AK7: 1 | AL7: 1 | AM7: 1 | AN7: 1 | AO7: 1 | AP7: 1 | AQ7: 1 | AR7: 1 | AS7: 1 | AT7: 1 | AU7: 1 | AV7: 1 | AW7: 1 | AX7: 1 | AY7: 1 | AZ7: 1 | BA7: 1 | BB7: 1 | BC7: 1 | BD7: 1 | BF7: 1 | BH7: =OR(AND(AD7=0,AE7=0,AF7=0,AG7=0,AH7=0),BF7=0) -> FALSE | BI7: =OR(AND(AI7=0,AJ7=0,AK7=0,AL7=0,AM7=0),BF7=0) -> FALSE | BJ7: =OR(AND(AN7=0,AO7=0,AP7=0,AQ7=0,AR7=0),BF7=0) -> FALSE | BK7: =OR(AND(AS7=0,AT7=0,AU7=0,AV7=0,AW7=0),BF7=0) -> FALSE | BL7: =OR(AND(AX7=0,AY7=0,AZ7=0,BA7=0,BB7=0),BF7=0) -> FALSE | BM7: =OR(AND(BC7=0,BD7=0),BF7=0) -> FALSE | BP7: =ROW() -> 7 | BQ7: 7 | BR7: SMA | BS7: =INDEX(BI:BI,$BR$4) -> FALSE | BT7: =IF(BS7=FALSE,BQ7,"") -> 7 | BU7: =SMALL(BT:BT,2) -> 7 | BV7: SMA | CI7: 600 | CK7: 450 | CR7: 180 | CV7: 120 | DB7: 73 | DD7: 70 | DT7: 6.35 | DU7: =A7 -> EZ_141_TP_M17 | DV7: Indoor Only | DX7: =DV7 -> Indoor Only | EA7: =IF(ISERROR(SMALL($S$6:$S$250,$L7)),"",SMALL($S$6:$S$250,$L7)) -> 7 | EB7: =IF($EA7="","",IF(ISERROR(INDEX(A:EE,EA7,5)),EA7,INDEX(A:EE,EA7,5))) -> 0 | EC7: =IF(ISERROR(SMALL($EB$6:$EB$250,$L7)),"",SMALL($EB$6:$EB$250,$L7)) -> 0 | ED7: =EA7 -> 7 | EE7: =IF($P$2="",EA7,VLOOKUP(EC7,$EB:$EE,3,FALSE)) -> 7 | EG7: =A7 -> EZ_141_TP_M17 | EH7: 1 | EI7: 1 | EJ7: 0 | EK7: 0 | EL7: 1 | EM7: 0 | EN7: 1 | EO7: 0 | EP7: 0 | EQ7: 0 | ER7: 0 | ES7: 0 | ET7: =IF($ET$3="",INDEX($A:$ES,ROW(),137),IF(INDEX($A:$ES,ROW(),$ET$3)=1,INDEX($A:$ES,ROW(),137),"")) -> EZ_141_TP_M17
A8: EZ_250_AL_TP | B8: 0.1863 | C8: 0.0012 | D8: N/A | E8: =((B8*SQRT($E$3*1000)+C8*$E$3*1000))/30480*Length*(1+'Cable Parameters'!I8/100*('Cable Parameters'!$E$1-25))+('Insertion Loss'!$F$16+'Insertion Loss'!$F$17)*SQRT($E$3) -> 0 | F8: 18 | G8: 200 | H8: -55 | I8: 0.2 | J8: https://www.ezform.com/product/ez-250-al-as-tp/ | K8: 6.4 | L8: 3 | M8: EZ_250_AL_TP | O8: 8 | P8: 8 | Q8: 8 | R8: 8 | S8: 8 | T8: 8 | U8: EZ_250_AL_TP | V8: 18 | W8: 6.4 | X8: 0 | Y8: N/A | Z8: Indoor Only | AA8: 19.1 | AC8: EZ_250_AL_TP | AD8: 1 | AE8: 1 | AF8: 1 | AG8: 1 | AH8: 1 | AI8: 1 | AJ8: 1 | AK8: 1 | AL8: 1 | AM8: 1 | AN8: 1 | AO8: 1 | AP8: 1 | AQ8: 1 | AR8: 1 | AS8: 1 | AT8: 1 | AU8: 1 | AV8: 1 | AW8: 1 | AX8: 1 | AY8: 1 | AZ8: 1 | BA8: 1 | BB8: 1 | BC8: 1 | BD8: 1 | BF8: 1 | BH8: FALSE | BI8: FALSE | BJ8: FALSE | BK8: FALSE | BL8: FALSE | BM8: FALSE | BP8: =ROW() -> 8 | BQ8: 8 | BR8: N | BS8: =INDEX(BJ:BJ,$BR$4) -> FALSE | BT8: 8 | BU8: =SMALL(BT:BT,3) -> 8 | BV8: N | CI8: 2100 | CK8: 1700 | CR8: 580 | CV8: 380 | DB8: 270 | DD8: 255 | DT8: 19.1 | DU8: EZ_250_AL_TP | DV8: Indoor Only | DX8: Indoor Only | EA8: 8 | EB8: 0 | EC8: 0 | ED8: 8 | EE8: 8 | EG8: EZ_250_AL_TP | EH8: 1 | EI8: 1 | EJ8: 0 | EK8: 0 | EL8: 1 | EM8: 0 | EN8: 1 | EO8: 0 | EP8: 0 | EQ8: 0 | ER8: 0 | ES8: 0 | ET8: EZ_250_AL_TP
A9: EZ_250_TP_M17 | B9: 0.1863 | C9: 0.0012 | D9: N/A | E9: =((B9*SQRT($E$3*1000)+C9*$E$3*1000))/30480*Length*(1+'Cable Parameters'!I9/100*('Cable Parameters'!$E$1-25))+('Insertion Loss'!$F$16+'Insertion Loss'!$F$17)*SQRT($E$3) -> 0 | F9: 18 | G9: 100 | H9: -55 | I9: 0.2 | J9: https://www.ezform.com/product/ez-250m17/ | K9: 6.4 | L9: 4 | M9: EZ_250_TP_M17 | O9: 9 | P9: 9 | Q9: 9 | R9: 9 | S9: 9 | T9: 9 | U9: EZ_250_TP_M17 | V9: 18 | W9: 6.4 | X9: 0 | Y9: N/A | Z9: Indoor Only | AA9: 9.25 | AC9: EZ_250_TP_M17 | AD9: 1 | AE9: 1 | AF9: 1 | AG9: 1 | AH9: 1 | AI9: 1 | AJ9: 1 | AK9: 1 | AL9: 1 | AM9: 1 | AN9: 1 | AO9: 1 | AP9: 1 | AQ9: 1 | AR9: 1 | AS9: 1 | AT9: 1 | AU9: 1 | AV9: 1 | AW9: 1 | AX9: 1 | AY9: 1 | AZ9: 1 | BA9: 1 | BB9: 1 | BC9: 1 | BD9: 1 | BF9: 1 | BH9: FALSE | BI9: FALSE | BJ9: FALSE | BK9: FALSE | BL9: FALSE | BM9: FALSE | BP9: =ROW() -> 9 | BQ9: 9 | BR9: BMA | BS9: =INDEX(BK:BK,$BR$4) -> FALSE | BT9: 9 | BU9: =SMALL(BT:BT,4) -> 9 | BV9: BMA | CI9: 1900 | CK9: 1400 | CR9: 750 | CV9: 350 | DB9: 200 | DT9: 9.25 | DU9: EZ_250_TP_M17 | DV9: Indoor Only | DX9: Indoor Only | EA9: 9 | EB9: 0 | EC9: 0 | ED9: 9 | EE9: 9 | EG9: EZ_250_TP_M17 | EH9: 1 | EI9: 1 | EJ9: 0 | EK9: 0 | EL9: 1 | EM9: 0 | EN9: 1 | EO9: 0 | EP9: 0 | EQ9: 0 | ER9: 0 | ES9: 0 | ET9: EZ_250_TP_M17
A10: EZ_47_AL_TP | B10: 0.10366 | C10: 0.03967 | D10: N/A | E10: =((B10*SQRT($E$3*1000)+C10*$E$3*1000))/30480*Length*(1+'Cable Parameters'!I10/100*('Cable Parameters'!$E$1-25))+('Insertion Loss'!$F$16+'Insertion Loss'!$F$17)*SQRT($E$3) -> 0 | F10: 90 | G10: 125 | H10: -55 | I10: 0.2 | J10: https://www.ezform.com/product/ez-47-al-tp/ | K10: 1.2 | L10: 5 | M10: EZ_47_AL_TP | O10: 10 | P10: 10 | Q10: 10 | R10: 10 | S10: 10 | T10: 10 | U10: EZ_47_AL_TP | V10: 90 | W10: 1.2 | X10: 0 | Y10: N/A | Z10: Indoor Only | AA10: 1.27 | AC10: EZ_47_AL_TP | AD10: 1 | AE10: 1 | AF10: 1 | AG10: 1 | AH10: 1 | AI10: 1 | AJ10: 1 | AK10: 1 | AL10: 1 | AM10: 1 | AN10: 1 | AO10: 1 | AP10: 1 | AQ10: 1 | AR10: 1 | AS10: 1 | AT10: 1 | AU10: 1 | AV10: 1 | AW10: 1 | AX10: 1 | AY10: 1 | AZ10: 1 | BA10: 1 | BB10: 1 | BC10: 1 | BD10: 1 | BF10: 1 | BH10: FALSE | BI10: FALSE | BJ10: FALSE | BK10: FALSE | BL10: FALSE | BM10: FALSE | BP10: =ROW() -> 10 | BQ10: 10 | BR10: 7/16 | BS10: =INDEX(BL:BL,$BR$4) -> FALSE | BT10: 10 | BU10: =SMALL(BT:BT,5) -> 10 | BV10: 7/16 | CI10: 80 | CK10: 55 | CR10: 25 | CV10: 15 | DB10: 11 | DD10: 10 | DG10: 8 | DH10: 7 | DJ10: 6 | DK10: 5 | DT10: 1.27 | DU10: EZ_47_AL_TP | DV10: Indoor Only | DX10: Indoor Only | EA10: 10 | EB10: 0 | EC10: 0 | ED10: 10 | EE10: 10 | EG10: EZ_47_AL_TP | EH10: 1 | EI10: 1 | EJ10: 0 | EK10: 0 | EL10: 1 | EM10: 0 | EN10: 1 | EO10: 0 | EP10: 0 | EQ10: 0 | ER10: 0 | ES10: 0 | ET10: EZ_47_AL_TP
A11: EZ_47_TP_M17 | B11: 0.04044 | C11: 0.03967 | D11: N/A | E11: =((B11*SQRT($E$3*1000)+C11*$E$3*1000))/30480*Length*(1+'Cable Parameters'!I11/100*('Cable Parameters'!$E$1-25))+('Insertion Loss'!$F$16+'Insertion Loss'!$F$17)*SQRT($E$3) -> 0 | F11: 90 | G11: 100 | H11: -55 | I11: 0.2 | J11: https://www.ezform.com/product/ez-47-tpm17-2/ | K11: 1.2 | L11: 6 | M11: EZ_47_TP_M17 | O11: 11 | P11: 11 | Q11: 11 | R11: 11 | S11: 11 | T11: 11 | U11: EZ_47_TP_M17 | V11: 90 | W11: 1.2 | X11: 0 | Y11: N/A | Z11: Indoor Only | AA11: 3.18 | AC11: EZ_47_TP_M17 | AD11: 1 | AE11: 1 | AF11: 1 | AG11: 1 | AH11: 1 | AI11: 1 | AJ11: 1 | AK11: 1 | AL11: 1 | AM11: 1 | AN11: 1 | AO11: 1 | AP11: 1 | AQ11: 1 | AR11: 1 | AS11: 1 | AT11: 1 | AU11: 1 | AV11: 1 | AW11: 1 | AX11: 1 | AY11: 1 | AZ11: 1 | BA11: 1 | BB11: 1 | BC11: 1 | BD11: 1 | BF11: 1 | BH11: FALSE | BI11: FALSE | BJ11: FALSE | BK11: FALSE | BL11: FALSE | BM11: FALSE | BP11: =ROW() -> 11 | BQ11: 11 | BR11: SMP | BS11: =INDEX(BM:BM,$BR$4) -> FALSE | BT11: 11 | BU11: =SMALL(BT:BT,6) -> 11 | BV11: SMP | CI11: 80 | CK11: 55 | CR11: 25 | CV11: 15 | DB11: 11 | DD11: 10 | DG11: 8 | DH11: 7 | DJ11: 6 | DK11: 5 | DT11: 3.18 | DU11: EZ_47_TP_M17 | DV11: Indoor Only | DX11: Indoor Only | EA11: 11 | EB11: 0 | EC11: 0 | ED11: 11 | EE11: 11 | EG11: EZ_47_TP_M17 | EH11: 1 | EI11: 1 | EJ11: 0 | EK11: 0 | EL11: 1 | EM11: 0 | EN11: 1 | EO11: 0 | EP11: 0 | EQ11: 0 | ER11: 0 | ES11: 0 | ET11: EZ_47_TP_M17
A12: EZ_86_AL_TP_M17 | B12: 0.61998 | C12: 0.0012 | D12: N/A | E12: =((B12*SQRT($E$3*1000)+C12*$E$3*1000))/30480*Length*(1+'Cable Parameters'!I12/100*('Cable Parameters'!$E$1-25))+('Insertion Loss'!$F$16+'Insertion Loss'!$F$17)*SQRT($E$3) -> 0 | F12: 50 | G12: 125 | H12: -55 | I12: 0.2 | J12: https://www.ezform.com/product/ez-86-al-tpm17/ | K12: 2.2 | L12: 7 | M12: EZ_86_AL_TP_M17 | O12: 12 | P12: 12 | Q12: 12 | R12: 12 | S12: 12 | T12: 12 | U12: EZ_86_AL_TP_M17 | V12: 50 | W12: 2.2 | X12: 0 | Y12: N/A | Z12: Indoor Only | AA12: 1.77 | AC12: EZ_86_AL_TP_M17 | AD12: 1 | AE12: 1 | AF12: 1 | AG12: 1 | AH12: 1 | AI12: 1 | AJ12: 1 | AK12: 1 | AL12: 1 | AM12: 1 | AN12: 1 | AO12: 1 | AP12: 1 | AQ12: 1 | AR12: 1 | AS12: 1 | AT12: 1 | AU12: 1 | AV12: 1 | AW12: 1 | AX12: 1 | AY12: 1 | AZ12: 1 | BA12: 1 | BB12: 1 | BC12: 1 | BD12: 1 | BF12: 1 | BH12: FALSE | BI12: FALSE | BJ12: FALSE | BK12: FALSE | BL12: FALSE | BM12: FALSE | BP12: =ROW() -> 12 | CI12: 180 | CK12: 130 | CR12: 54 | CV12: 35 | DB12: 20 | DT12: 1.77 | DU12: EZ_86_AL_TP_M17 | DV12: Indoor Only | DX12: Indoor Only | EA12: 12 | EB12: 0 | EC12: 0 | ED12: 12 | EE12: 12 | EG12: EZ_86_AL_TP_M17 | EH12: 1 | EI12: 1 | EJ12: 0 | EK12: 0 | EL12: 1 | EM12: 0 | EN12: 1 | EO12: 0 | EP12: 0 | EQ12: 0 | ER12: 0 | ES12: 0 | ET12: EZ_86_AL_TP_M17
A13: EZ_86_TP_M17 | B13: 0.58454 | C13: 0.0012 | D13: N/A | E13: =((B13*SQRT($E$3*1000)+C13*$E$3*1000))/30480*Length*(1+'Cable Parameters'!I13/100*('Cable Parameters'!$E$1-25))+('Insertion Loss'!$F$16+'Insertion Loss'!$F$17)*SQRT($E$3) -> 0 | F13: 50 | G13: 125 | H13: -55 | I13: 0.2 | J13: https://www.ezform.com/product/ez-86-tpm17/ | K13: 2.2 | L13: 8 | M13: EZ_86_TP_M17 | O13: 13 | P13: 13 | Q13: 13 | R13: 13 | S13: 13 | T13: 13 | U13: EZ_86_TP_M17 | V13: 50 | W13: 2.2 | X13: 0 | Y13: N/A | Z13: Indoor Only | AA13: 1.27 | AC13: EZ_86_TP_M17 | AD13: 1 | AE13: 1 | AF13: 1 | AG13: 1 | AH13: 1 | AI13: 1 | AJ13: 1 | AK13: 1 | AL13: 1 | AM13: 1 | AN13: 1 | AO13: 1 | AP13: 1 | AQ13: 1 | AR13: 1 | AS13: 1 | AT13: 1 | AU13: 1 | AV13: 1 | AW13: 1 | AX13: 1 | AY13: 1 | AZ13: 1 | BA13: 1 | BB13: 1 | BC13: 1 | BD13: 1 | BF13: 1 | BH13: FALSE | BI13: FALSE | BJ13: FALSE | BK13: FALSE | BL13: FALSE | BM13: FALSE | BP13: =ROW() -> 13 | CI13: 180 | CK13: 130 | CR13: 54 | CV13: 35 | DB13: 20 | DT13: 1.27 | DU13: EZ_86_TP_M17 | DV13: Indoor Only | DX13: Indoor Only | EA13: 13 | EB13: 0 | EC13: 0 | ED13: 13 | EE13: 13 | EG13: EZ_86_TP_M17 | EH13: 1 | EI13: 1 | EJ13: 0 | EK13: 0 | EL13: 1 | EM13: 0 | EN13: 1 | EO13: 0 | EP13: 0 | EQ13: 0 | ER13: 0 | ES13: 0 | ET13: EZ_86_TP_M17
A14: EZ141_AL_TP_M17 | B14: 0.34536 | C14: 0.0012 | D14: N/A | E14: =((B14*SQRT($E$3*1000)+C14*$E$3*1000))/30480*Length*(1+'Cable Parameters'!I14/100*('Cable Parameters'!$E$1-25))+('Insertion Loss'!$F$16+'Insertion Loss'!$F$17)*SQRT($E$3) -> 0 | F14: 26.5 | G14: 125 | H14: -55 | I14: 0.2 | J14: https://www.ezform.com/product/ez-141-al-tpm17/ | K14: 4 | L14: 9 | M14: EZ141_AL_TP_M17 | O14: 14 | P14: 14 | Q14: 14 | R14: 14 | S14: 14 | T14: 14 | U14: EZ141_AL_TP_M17 | V14: 26.5 | W14: 4 | X14: 0 | Y14: N/A | Z14: Indoor Only | AA14: 3.17 | AC14: EZ141_AL_TP_M17 | AD14: 1 | AE14: 1 | AF14: 1 | AG14: 1 | AH14: 1 | AI14: 1 | AJ14: 1 | AK14: 1 | AL14: 1 | AM14: 1 | AN14: 1 | AO14: 1 | AP14: 1 | AQ14: 1 | AR14: 1 | AS14: 1 | AT14: 1 | AU14: 1 | AV14: 1 | AW14: 1 | AX14: 1 | AY14: 1 | AZ14: 1 | BA14: 1 | BB14: 1 | BC14: 1 | BD14: 1 | BF14: 1 | BH14: FALSE | BI14: FALSE | BJ14: FALSE | BK14: FALSE | BL14: FALSE | BM14: FALSE | BP14: =ROW() -> 14 | CI14: 600 | CK14: 450 | CR14: 180 | CV14: 120 | DB14: 73 | DD14: 70 | DT14: 3.17 | DU14: EZ141_AL_TP_M17 | DV14: Indoor Only | DX14: Indoor Only | EA14: 14 | EB14: 0 | EC14: 0 | ED14: 14 | EE14: 14 | EG14: EZ141_AL_TP_M17 | EH14: 1 | EI14: 1 | EJ14: 0 | EK14: 0 | EL14: 1 | EM14: 0 | EN14: 1 | EO14: 0 | EP14: 0 | EQ14: 0 | ER14: 0 | ES14: 0 | ET14: EZ141_AL_TP_M17
A15: HF HeliFoil 090 | B15: 0.611 | C15: 0.0001356 | D15: N/A | E15: =((B15*SQRT($E$3*1000)+C15*$E$3*1000))/30480*Length*(1+'Cable Parameters'!I15/100*('Cable Parameters'!$E$1-25))+('Insertion Loss'!$F$16+'Insertion Loss'!$F$17)*SQRT($E$3) -> 0 | F15: 40 | G15: 150 | H15: -55 | I15: 0.2 | J15: http://www.eimfirst.co.il/wp-content/uploads/2018/07/HF-090-AA-11892CHF-090.pdf | K15: 2.21 | L15: 10 | M15: HF HeliFoil 090 | O15: 15 | P15: 15 | Q15: 15 | R15: 15 | S15: 15 | T15: 15 | U15: HF HeliFoil 090 | V15: 40 | W15: 2.21 | X15: 0 | Y15: N/A | Z15: In/Out door | AA15: 9.65 | AC15: HF HeliFoil 090 | AD15: 1 | AE15: 1 | AF15: 1 | AG15: 1 | AH15: 1 | AI15: 1 | AJ15: 1 | AK15: 1 | AL15: 1 | AM15: 1 | AN15: 1 | AO15: 1 | AP15: 1 | AQ15: 1 | AR15: 1 | AS15: 1 | AT15: 1 | AU15: 1 | AV15: 1 | AW15: 1 | AX15: 1 | AY15: 1 | AZ15: 1 | BA15: 1 | BB15: 1 | BC15: 1 | BD15: 1 | BF15: 1 | BH15: FALSE | BI15: FALSE | BJ15: FALSE | BK15: FALSE | BL15: FALSE | BM15: FALSE | BP15: =ROW() -> 15 | CD15: 930 | CE15: 655 | CI15: 295 | CK15: 210 | CN15: 145 | CQ15: 105 | CT15: 85 | CV15: 65 | CX15: 60 | DA15: 55 | DB15: 50 | DD15: 40 | DG15: 35 | DT15: 9.65 | DU15: HF HeliFoil 090 | DV15: In/Out door | DW15: In/Out door | DX15: In/Out door | EA15: 15 | EB15: 0 | EC15: 0 | ED15: 15 | EE15: 15 | EG15: HF HeliFoil 090 | EH15: 0 | EI15: 0 | EJ15: 0 | EK15: 0 | EL15: 0 | EM15: 1 | EN15: 0 | EO15: 0 | EP15: 0 | EQ15: 0 | ER15: 0 | ES15: 0 | ET15: HF HeliFoil 090
A16: HF HeliFoil 160 | B16: 0.353 | C16: 0.00011829 | D16: N/A | E16: =((B16*SQRT($E$3*1000)+C16*$E$3*1000))/30480*Length*(1+'Cable Parameters'!I16/100*('Cable Parameters'!$E$1-25))+('Insertion Loss'!$F$16+'Insertion Loss'!$F$17)*SQRT($E$3) -> 0 | F16: 40 | G16: 150 | H16: -55 | I16: 0.2 | J16: http://www.eimfirst.co.il/wp-content/uploads/2018/07/11594BHF-160.pdf | K16: 3.81 | L16: 11 | M16: HF HeliFoil 160 | O16: 16 | P16: 16 | Q16: 16 | R16: 16 | S16: 16 | T16: 16 | U16: HF HeliFoil 160 | V16: 40 | W16: 3.81 | X16: 0 | Y16: N/A | Z16: In/Out door | AA16: 19.05 | AC16: HF HeliFoil 160 | AD16: 1 | AE16: 1 | AF16: 1 | AG16: 1 | AH16: 1 | AI16: 1 | AJ16: 1 | AK16: 1 | AL16: 1 | AM16: 1 | AN16: 1 | AO16: 1 | AP16: 1 | AQ16: 1 | AR16: 1 | AS16: 1 | AT16: 1 | AU16: 1 | AV16: 1 | AW16: 1 | AX16: 1 | AY16: 1 | AZ16: 1 | BA16: 1 | BB16: 1 | BC16: 1 | BD16: 1 | BF16: 1 | BH16: FALSE | BI16: FALSE | BJ16: FALSE | BK16: FALSE | BL16: FALSE | BM16: FALSE | BP16: =ROW() -> 16 | CD16: 2175 | CE16: 1540 | CI16: 685 | CK16: 485 | CN16: 340 | CQ16: 240 | CT16: 195 | CV16: 150 | CX16: 135 | DA16: 120 | DB16: 110 | DD16: 90 | DG16: 75 | DT16: 19.05 | DU16: HF HeliFoil 160 | DV16: In/Out door | DW16: In/Out door | DX16: In/Out door | EA16: 16 | EB16: 0 | EC16: 0 | ED16: 16 | EE16: 16 | EG16: HF HeliFoil 160 | EH16: 0 | EI16: 0 | EJ16: 0 | EK16: 0 | EL16: 0 | EM16: 1 | EN16: 0 | EO16: 0 | EP16: 0 | EQ16: 0 | ER16: 0 | ES16: 0 | ET16: HF HeliFoil 160
A17: HF HeliFoil 190 | B17: 0.23837 | C17: 0.0001671 | D17: N/A | E17: =((B17*SQRT($E$3*1000)+C17*$E$3*1000))/30480*Length*(1+'Cable Parameters'!I17/100*('Cable Parameters'!$E$1-25))+('Insertion Loss'!$F$16+'Insertion Loss'!$F$17)*SQRT($E$3) -> 0 | F17: 26.5 | G17: 150 | H17: -55 | I17: 0.2 | J17: http://www.eimfirst.co.il/wp-content/uploads/2018/07/9185BHF-190.pdf | K17: 5 | L17: 12 | M17: HF HeliFoil 190 | O17: 17 | P17: 17 | Q17: 17 | R17: 17 | S17: 17 | T17: 17 | U17: HF HeliFoil 190 | V17: 26.5 | W17: 5 | X17: 0 | Y17: N/A | Z17: In/Out door | AA17: 25.4 | AC17: HF HeliFoil 190 | AD17: 1 | AE17: 1 | AF17: 1 | AG17: 1 | AH17: 1 | AI17: 1 | AJ17: 1 | AK17: 1 | AL17: 1 | AM17: 1 | AN17: 1 | AO17: 1 | AP17: 1 | AQ17: 1 | AR17: 1 | AS17: 1 | AT17: 1 | AU17: 1 | AV17: 1 | AW17: 1 | AX17: 1 | AY17: 1 | AZ17: 1 | BA17: 1 | BB17: 1 | BC17: 1 | BD17: 1 | BF17: 1 | BH17: FALSE | BI17: FALSE | BJ17: FALSE | BK17: FALSE | BL17: FALSE | BM17: FALSE | BP17: =ROW() -> 17 | CD17: 3765 | CE17: 2660 | CI17: 1180 | CK17: 830 | CN17: 585 | CQ17: 410 | CT17: 330 | CV17: 255 | CX17: 230 | DA17: 200 | DB17: 185 | DD17: 150 | DT17: 25.4 | DU17: HF HeliFoil 190 | DV17: In/Out door | DW17: In/Out door | DX17: In/Out door | EA17: 17 | EB17: 0 | EC17: 0 | ED17: 17 | EE17: 17 | EG17: HF HeliFoil 190 | EH17: 0 | EI17: 0 | EJ17: 0 | EK17: 0 | EL17: 0 | EM17: 1 | EN17: 0 | EO17: 0 | EP17: 0 | EQ17: 0 | ER17: 0 | ES17: 0 | ET17: HF HeliFoil 190
A18: HF HeliFoil 290 | B18: 0.13896 | C18: 0.000134 | D18: N/A | E18: =((B18*SQRT($E$3*1000)+C18*$E$3*1000))/30480*Length*(1+'Cable Parameters'!I18/100*('Cable Parameters'!$E$1-25))+('Insertion Loss'!$F$16+'Insertion Loss'!$F$17)*SQRT($E$3) -> 0 | F18: 18 | G18: 150 | H18: -55 | I18: 0.2 | J18: http://www.eimfirst.co.il/wp-content/uploads/2018/07/9186CHF-290.pdf | K18: 7.6 | L18: 13 | M18: HF HeliFoil 290 | O18: 18 | P18: 18 | Q18: 18 | R18: 18 | S18: 18 | T18: 18 | U18: HF HeliFoil 290 | V18: 18 | W18: 7.6 | X18: 0 | Y18: N/A | Z18: In/Out door | AA18: 38.1 | AC18: HF HeliFoil 290 | AD18: 1 | AE18: 1 | AF18: 1 | AG18: 1 | AH18: 1 | AI18: 1 | AJ18: 1 | AK18: 1 | AL18: 1 | AM18: 1 | AN18: 1 | AO18: 1 | AP18: 1 | AQ18: 1 | AR18: 1 | AS18: 1 | AT18: 1 | AU18: 1 | AV18: 1 | AW18: 1 | AX18: 1 | AY18: 1 | AZ18: 1 | BA18: 1 | BB18: 1 | BC18: 1 | BD18: 1 | BF18: 1 | BH18: FALSE | BI18: FALSE | BJ18: FALSE | BK18: FALSE | BL18: FALSE | BM18: FALSE | BP18: =ROW() -> 18 | CD18: 8645 | CE18: 6100 | CI18: 2700 | CK18: 1895 | CN18: 1325 | CQ18: 925 | CT18: 745 | CV18: 570 | CX18: 515 | DA18: 440 | DB18: 415 | DT18: 38.1 | DU18: HF HeliFoil 290 | DV18: In/Out door | DW18: In/Out door | DX18: In/Out door | EA18: 18 | EB18: 0 | EC18: 0 | ED18: 18 | EE18: 18 | EG18: HF HeliFoil 290 | EH18: 0 | EI18: 0 | EJ18: 0 | EK18: 0 | EL18: 0 | EM18: 1 | EN18: 0 | EO18: 0 | EP18: 0 | EQ18: 0 | ER18: 0 | ES18: 0 | ET18: HF HeliFoil 290
A19: HF HeliFoil 290PUR | B19: 0.13134 | C19: 0.0001341 | D19: N/A | E19: =((B19*SQRT($E$3*1000)+C19*$E$3*1000))/30480*Length*(1+'Cable Parameters'!I19/100*('Cable Parameters'!$E$1-25))+('Insertion Loss'!$F$16+'Insertion Loss'!$F$17)*SQRT($E$3) -> 0 | F19: 18 | G19: 85 | H19: -55 | I19: 0.2 | J19: http://www.eimfirst.co.il/wp-content/uploads/2018/07/11456BHF-290-PUR.pdf | K19: 9 | L19: 14 | M19: HF HeliFoil 290PUR | O19: 19 | P19: 19 | Q19: 19 | R19: 19 | S19: 19 | T19: 19 | U19: HF HeliFoil 290PUR | V19: 18 | W19: 9 | X19: 0 | Y19: N/A | Z19: In/Out door | AA19: 50.8 | AC19: HF HeliFoil 290PUR | AD19: 1 | AE19: 1 | AF19: 1 | AG19: 1 | AH19: 1 | AI19: 1 | AJ19: 1 | AK19: 1 | AL19: 1 | AM19: 1 | AN19: 1 | AO19: 1 | AP19: 1 | AQ19: 1 | AR19: 1 | AS19: 1 | AT19: 1 | AU19: 1 | AV19: 1 | AW19: 1 | AX19: 1 | AY19: 1 | AZ19: 1 | BA19: 1 | BB19: 1 | BC19: 1 | BD19: 1 | BF19: 1 | BH19: FALSE | BI19: FALSE | BJ19: FALSE | BK19: FALSE | BL19: FALSE | BM19: FALSE | BP19: =ROW() -> 19 | CI19: =1.69*1000 -> 1690 | CK19: =1000*1.19 -> 1190 | CN19: 830 | CP19: 670 | CQ19: 580 | CR19: 510 | CT19: 470 | CV19: 360 | CX19: 320 | DA19: 280 | DB19: 260 | DT19: 50.8 | DU19: HF HeliFoil 290PUR | DV19: In/Out door | DW19: In/Out door | DX19: In/Out door | EA19: 19 | EB19: 0 | EC19: 0 | ED19: 19 | EE19: 19 | EG19: HF HeliFoil 290PUR | EH19: 0 | EI19: 0 | EJ19: 0 | EK19: 0 | EL19: 0 | EM19: 1 | EN19: 0 | EO19: 0 | EP19: 0 | EQ19: 0 | ER19: 0 | ES19: 0 | ET19: HF HeliFoil 290PUR
A20: LLSB-1200 | B20: 0.04396 | C20: 0.00019 | D20: N/A | E20: =((B20*SQRT($E$3*1000)+C20*$E$3*1000))/30480*Length*(1+'Cable Parameters'!I20/100*('Cable Parameters'!$E$1-25))+('Insertion Loss'!$F$16+'Insertion Loss'!$F$17)*SQRT($E$3) -> 0 | F20: 2.5 | G20: 85 | H20: -40 | I20: 0.2 | J20: http://www.eimfirst.co.il/wp-content/uploads/2018/08/Qeam-Tactical-Brochure.pdf | K20: 30.48 | L20: 15 | M20: LLSB-1200 | O20: 20 | P20: 20 | Q20: 20 | R20: 20 | S20: 20 | T20: 20 | U20: LLSB-1200 | V20: 2.5 | W20: 30.48 | X20: 0 | Y20: N/A | Z20: In/Out door | AA20: 279.4 | AC20: LLSB-1200 | AD20: 1 | AE20: 1 | AF20: 1 | AG20: 1 | AH20: 1 | AI20: 1 | AJ20: 1 | AK20: 1 | AL20: 1 | AM20: 1 | AN20: 1 | AO20: 1 | AP20: 1 | AQ20: 1 | AR20: 1 | AS20: 1 | AT20: 1 | AU20: 1 | AV20: 1 | AW20: 1 | AX20: 1 | AY20: 1 | AZ20: 1 | BA20: 1 | BB20: 1 | BC20: 1 | BD20: 1 | BF20: 1 | BH20: FALSE | BI20: FALSE | BJ20: FALSE | BK20: FALSE | BL20: FALSE | BM20: FALSE | BP20: =ROW() -> 20 | CC20: 13000 | CD20: 9700 | CF20: 5500 | CH20: 3100 | CJ20: 2100 | CM20: 1400 | CO20: 1200 | DT20: 279.4 | DU20: LLSB-1200 | DV20: In/Out door | DW20: In/Out door | DX20: In/Out door | EA20: 20 | EB20: 0 | EC20: 0 | ED20: 20 | EE20: 20 | EG20: LLSB-1200 | EH20: 0 | EI20: 0 | EJ20: 1 | EK20: 0 | EL20: 0 | EM20: 0 | EN20: 0 | EO20: 0 | EP20: 0 | EQ20: 0 | ER20: 0 | ES20: 0 | ET20: LLSB-1200
A21: LLSB-400 | B21: 0.14387 | C21: 0.00031 | D21: N/A | E21: =((B21*SQRT($E$3*1000)+C21*$E$3*1000))/30480*Length*(1+'Cable Parameters'!I21/100*('Cable Parameters'!$E$1-25))+('Insertion Loss'!$F$16+'Insertion Loss'!$F$17)*SQRT($E$3) -> 0 | F21: 6 | G21: 85 | H21: -40 | I21: 0.2 | J21: http://www.eimfirst.co.il/wp-content/uploads/2018/08/Qeam-Tactical-Brochure.pdf | K21: 10.2 | L21: 16 | M21: LLSB-400 | O21: 21 | P21: 21 | Q21: 21 | R21: 21 | S21: 21 | T21: 21 | U21: LLSB-400 | V21: 6 | W21: 10.2 | X21: 0 | Y21: N/A | Z21: In/Out door | AA21: 101.6 | AC21: LLSB-400 | AD21: 1 | AE21: 1 | AF21: 1 | AG21: 1 | AH21: 1 | AI21: 1 | AJ21: 1 | AK21: 1 | AL21: 1 | AM21: 1 | AN21: 1 | AO21: 1 | AP21: 1 | AQ21: 1 | AR21: 1 | AS21: 1 | AT21: 1 | AU21: 1 | AV21: 1 | AW21: 1 | AX21: 1 | AY21: 1 | AZ21: 1 | BA21: 1 | BB21: 1 | BC21: 1 | BD21: 1 | BF21: 1 | BH21: FALSE | BI21: FALSE | BJ21: FALSE | BK21: FALSE | BL21: FALSE | BM21: FALSE | BP21: =ROW() -> 21 | CC21: 3000 | CD21: 2600 | CF21: 1500 | CH21: 800 | CJ21: 600 | CM21: 400 | CO21: 300 | CT21: 200 | DT21: 101.6 | DU21: LLSB-400 | DV21: In/Out door | DW21: In/Out door | DX21: In/Out door | EA21: 21 | EB21: 0 | EC21: 0 | ED21: 21 | EE21: 21 | EG21: LLSB-400 | EH21: 0 | EI21: 0 | EJ21: 1 | EK21: 0 | EL21: 0 | EM21: 0 | EN21: 0 | EO21: 0 | EP21: 0 | EQ21: 0 | ER21: 0 | ES21: 0 | ET21: LLSB-400
A22: LLSB-600 | B22: 0.08888 | C22: 0.00031 | D22: N/A | E22: =((B22*SQRT($E$3*1000)+C22*$E$3*1000))/30480*Length*(1+'Cable Parameters'!I22/100*('Cable Parameters'!$E$1-25))+('Insertion Loss'!$F$16+'Insertion Loss'!$F$17)*SQRT($E$3) -> 0 | F22: 6 | G22: 85 | H22: -40 | I22: 0.2 | J22: http://www.eimfirst.co.il/wp-content/uploads/2018/08/Qeam-Tactical-Brochure.pdf | K22: 15 | L22: 17 | M22: LLSB-600 | O22: 22 | P22: 22 | Q22: 22 | R22: 22 | S22: 22 | T22: 22 | U22: LLSB-600 | V22: 6 | W22: 15 | X22: 0 | Y22: N/A | Z22: In/Out door | AA22: 152.4 | AC22: LLSB-600 | AD22: 1 | AE22: 1 | AF22: 1 | AG22: 1 | AH22: 1 | AI22: 1 | AJ22: 1 | AK22: 1 | AL22: 1 | AM22: 1 | AN22: 1 | AO22: 1 | AP22: 1 | AQ22: 1 | AR22: 1 | AS22: 1 | AT22: 1 | AU22: 1 | AV22: 1 | AW22: 1 | AX22: 1 | AY22: 1 | AZ22: 1 | BA22: 1 | BB22: 1 | BC22: 1 | BD22: 1 | BF22: 1 | BH22: FALSE | BI22: FALSE | BJ22: FALSE | BK22: FALSE | BL22: FALSE | BM22: FALSE | BP22: =ROW() -> 22 | CC22: 6000 | CD22: 4200 | CF22: 2400 | CH22: 1300 | CJ22: 900 | CM22: 600 | CO22: 500 | CT22: 300 | DT22: 152.4 | DU22: LLSB-600 | DV22: In/Out door | DW22: In/Out door | DX22: In/Out door | EA22: 22 | EB22: 0 | EC22: 0 | ED22: 22 | EE22: 22 | EG22: LLSB-600 | EH22: 0 | EI22: 0 | EJ22: 1 | EK22: 0 | EL22: 0 | EM22: 0 | EN22: 0 | EO22: 0 | EP22: 0 | EQ22: 0 | ER22: 0 | ES22: 0 | ET22: LLSB-600
A23: LLSB-900 | B23: 0.06091 | C23: 0.00019 | D23: N/A | E23: =((B23*SQRT($E$3*1000)+C23*$E$3*1000))/30480*Length*(1+'Cable Parameters'!I23/100*('Cable Parameters'!$E$1-25))+('Insertion Loss'!$F$16+'Insertion Loss'!$F$17)*SQRT($E$3) -> 0 | F23: 6 | G23: 85 | H23: -40 | I23: 0.2 | J23: http://www.eimfirst.co.il/wp-content/uploads/2018/08/Qeam-Tactical-Brochure.pdf | K23: 22.1 | L23: 18 | M23: LLSB-900 | O23: 23 | P23: 23 | Q23: 23 | R23: 23 | S23: 23 | T23: 23 | U23: LLSB-900 | V23: 6 | W23: 22.1 | X23: 0 | Y23: N/A | Z23: In/Out door | AA23: 228.6 | AC23: LLSB-900 | AD23: 1 | AE23: 1 | AF23: 1 | AG23: 1 | AH23: 1 | AI23: 1 | AJ23: 1 | AK23: 1 | AL23: 1 | AM23: 1 | AN23: 1 | AO23: 1 | AP23: 1 | AQ23: 1 | AR23: 1 | AS23: 1 | AT23: 1 | AU23: 1 | AV23: 1 | AW23: 1 | AX23: 1 | AY23: 1 | AZ23: 1 | BA23: 1 | BB23: 1 | BC23: 1 | BD23: 1 | BF23: 1 | BH23: FALSE | BI23: FALSE | BJ23: FALSE | BK23: FALSE | BL23: FALSE | BM23: FALSE | BP23: =ROW() -> 23 | CC23: 9000 | CD23: 6900 | CF23: 3900 | CH23: 2200 | CJ23: 1500 | CM23: 1000 | CO23: 900 | CT23: 500 | DT23: 228.6 | DU23: LLSB-900 | DV23: In/Out door | DW23: In/Out door | DX23: In/Out door | EA23: 23 | EB23: 0 | EC23: 0 | ED23: 23 | EE23: 23 | EG23: LLSB-900 | EH23: 0 | EI23: 0 | EJ23: 1 | EK23: 0 | EL23: 0 | EM23: 0 | EN23: 0 | EO23: 0 | EP23: 0 | EQ23: 0 | ER23: 0 | ES23: 0 | ET23: LLSB-900
A24: LMR 400 | B24: 0.12229 | C24: 0.00026 | D24: N/A | E24: =((B24*SQRT($E$3*1000)+C24*$E$3*1000))/30480*Length*(1+'Cable Parameters'!I24/100*('Cable Parameters'!$E$1-25))+('Insertion Loss'!$F$16+'Insertion Loss'!$F$17)*SQRT($E$3) -> 0 | F24: 6 | G24: 85 | H24: -40 | I24: 0.2 | J24: http://www.eimfirst.co.il/wp-content/uploads/2018/09/TCOM-400-600.pdf | K24: 10 | L24: 19 | M24: LMR 400 | O24: 24 | P24: 24 | Q24: 24 | R24: 24 | S24: 24 | T24: 24 | U24: LMR 400 | V24: 6 | W24: 10 | X24: 0 | Y24: N/A | Z24: In/Out door | AA24: 101.6 | AC24: LMR 400 | AD24: 1 | AE24: 1 | AF24: 1 | AG24: 1 | AH24: 1 | AI24: 1 | AJ24: 1 | AK24: 1 | AL24: 1 | AM24: 1 | AN24: 1 | AO24: 1 | AP24: 1 | AQ24: 1 | AR24: 1 | AS24: 1 | AT24: 1 | AU24: 1 | AV24: 1 | AW24: 1 | AX24: 1 | AY24: 1 | AZ24: 1 | BA24: 1 | BB24: 1 | BC24: 1 | BD24: 1 | BF24: 1 | BH24: FALSE | BI24: FALSE | BJ24: FALSE | BK24: FALSE | BL24: FALSE | BM24: FALSE | BP24: =ROW() -> 24 | CC24: 3300 | CD24: 2600 | CF24: 1500 | CH24: 800 | CJ24: 600 | CM24: 400 | CO24: 300 | CT24: 200 | DT24: 101.6 | DU24: LMR 400 | DV24: In/Out door | DW24: In/Out door | DX24: In/Out door | EA24: 24 | EB24: 0 | EC24: 0 | ED24: 24 | EE24: 24 | EG24: LMR 400 | EH24: 0 | EI24: 0 | EJ24: 0 | EK24: 0 | EL24: 1 | EM24: 1 | EN24: 1 | EO24: 0 | EP24: 0 | EQ24: 0 | ER24: 1 | ES24: 1 | ET24: LMR 400
A25: LMR 400 UF | B25: 0.13767 | C25: 0.00037 | D25: N/A | E25: =((B25*SQRT($E$3*1000)+C25*$E$3*1000))/30480*Length*(1+'Cable Parameters'!I25/100*('Cable Parameters'!$E$1-25))+('Insertion Loss'!$F$16+'Insertion Loss'!$F$17)*SQRT($E$3) -> 0 | F25: 6 | G25: 85 | H25: -40 | I25: 0.2 | J25: http://www.eimfirst.co.il/wp-content/uploads/2018/09/TCOM-400-600.pdf | K25: 10 | L25: 20 | M25: LMR 400 UF | O25: 25 | P25: 25 | Q25: 25 | R25: 25 | S25: 25 | T25: 25 | U25: LMR 400 UF | V25: 6 | W25: 10 | X25: 0 | Y25: N/A | Z25: In/Out door | AA25: 101.6 | AC25: LMR 400 UF | AD25: 1 | AE25: 1 | AF25: 1 | AG25: 1 | AH25: 1 | AI25: 1 | AJ25: 1 | AK25: 1 | AL25: 1 | AM25: 1 | AN25: 1 | AO25: 1 | AP25: 1 | AQ25: 1 | AR25: 1 | AS25: 1 | AT25: 1 | AU25: 1 | AV25: 1 | AW25: 1 | AX25: 1 | AY25: 1 | AZ25: 1 | BA25: 1 | BB25: 1 | BC25: 1 | BD25: 1 | BF25: 1 | BH25: FALSE | BI25: FALSE | BJ25: FALSE | BK25: FALSE | BL25: FALSE | BM25: FALSE | BP25: =ROW() -> 25 | CC25: 2900 | CD25: 2300 | CF25: 1300 | CH25: 700 | CJ25: 500 | CM25: 300 | CO25: 300 | CT25: 300 | DT25: 101.6 | DU25: LMR 400 UF | DV25: In/Out door | DW25: In/Out door | DX25: In/Out door | EA25: 25 | EB25: 0 | EC25: 0 | ED25: 25 | EE25: 25 | EG25: LMR 400 UF | EH25: 0 | EI25: 0 | EJ25: 0 | EK25: 0 | EL25: 1 | EM25: 1 | EN25: 1 | EO25: 0 | EP25: 0 | EQ25: 0 | ER25: 1 | ES25: 1 | ET25: LMR 400 UF
A26: LMR 600 | B26: 0.07555 | C26: 0.00026 | D26: N/A | E26: =((B26*SQRT($E$3*1000)+C26*$E$3*1000))/30480*Length*(1+'Cable Parameters'!I26/100*('Cable Parameters'!$E$1-25))+('Insertion Loss'!$F$16+'Insertion Loss'!$F$17)*SQRT($E$3) -> 0 | F26: 6 | G26: 85 | H26: -40 | I26: 0.2 | J26: http://www.eimfirst.co.il/wp-content/uploads/2018/09/TCOM-400-600.pdf | K26: 15 | L26: 21 | M26: LMR 600 | O26: 26 | P26: 26 | Q26: 26 | R26: 26 | S26: 26 | T26: 26 | U26: LMR 600 | V26: 6 | W26: 15 | X26: 0 | Y26: N/A | Z26: In/Out door | AA26: 152.4 | AC26: LMR 600 | AD26: 1 | AE26: 1 | AF26: 1 | AG26: 1 | AH26: 1 | AI26: 1 | AJ26: 1 | AK26: 1 | AL26: 1 | AM26: 1 | AN26: 1 | AO26: 1 | AP26: 1 | AQ26: 1 | AR26: 1 | AS26: 1 | AT26: 1 | AU26: 1 | AV26: 1 | AW26: 1 | AX26: 1 | AY26: 1 | AZ26: 1 | BA26: 1 | BB26: 1 | BC26: 1 | BD26: 1 | BF26: 1 | BH26: FALSE | BI26: FALSE | BJ26: FALSE | BK26: FALSE | BL26: FALSE | BM26: FALSE | BP26: =ROW() -> 26 | CC26: 5500 | CD26: 4200 | CF26: 2400 | CH26: 1300 | CJ26: 900 | CM26: 600 | CO26: 500 | CT26: 300 | DT26: 152.4 | DU26: LMR 600 | DV26: In/Out door | DW26: In/Out door | DX26: In/Out door | EA26: 26 | EB26: 0 | EC26: 0 | ED26: 26 | EE26: 26 | EG26: LMR 600 | EH26: 0 | EI26: 0 | EJ26: 0 | EK26: 0 | EL26: 1 | EM26: 1 | EN26: 1 | EO26: 0 | EP26: 0 | EQ26: 0 | ER26: 1 | ES26: 1 | ET26: LMR 600
A27: LMR 600 UF | B27: 0.09066 | C27: 0.00031 | D27: N/A | E27: =((B27*SQRT($E$3*1000)+C27*$E$3*1000))/30480*Length*(1+'Cable Parameters'!I27/100*('Cable Parameters'!$E$1-25))+('Insertion Loss'!$F$16+'Insertion Loss'!$F$17)*SQRT($E$3) -> 0 | F27: 6 | G27: 85 | H27: -40 | I27: 0.2 | J27: http://www.eimfirst.co.il/wp-content/uploads/2018/09/TCOM-400-600.pdf | K27: 15 | L27: 22 | M27: LMR 600 UF | O27: 27 | P27: 27 | Q27: 27 | R27: 27 | S27: 27 | T27: 27 | U27: LMR 600 UF | V27: 6 | W27: 15 | X27: 0 | Y27: N/A | Z27: In/Out door | AA27: 152.4 | AC27: LMR 600 UF | AD27: 1 | AE27: 1 | AF27: 1 | AG27: 1 | AH27: 1 | AI27: 1 | AJ27: 1 | AK27: 1 | AL27: 1 | AM27: 1 | AN27: 1 | AO27: 1 | AP27: 1 | AQ27: 1 | AR27: 1 | AS27: 1 | AT27: 1 | AU27: 1 | AV27: 1 | AW27: 1 | AX27: 1 | AY27: 1 | AZ27: 1 | BA27: 1 | BB27: 1 | BC27: 1 | BD27: 1 | BF27: 1 | BH27: FALSE | BI27: FALSE | BJ27: FALSE | BK27: FALSE | BL27: FALSE | BM27: FALSE | BP27: =ROW() -> 27 | CC27: 4600 | CD27: 3500 | CF27: 2000 | CH27: 1100 | CJ27: 800 | CM27: 500 | CO27: 400 | CT27: 300 | DT27: 152.4 | DU27: LMR 600 UF | DV27: In/Out door | DW27: In/Out door | DX27: In/Out door | EA27: 27 | EB27: 0 | EC27: 0 | ED27: 27 | EE27: 27 | EG27: LMR 600 UF | EH27: 0 | EI27: 0 | EJ27: 0 | EK27: 0 | EL27: 1 | EM27: 1 | EN27: 1 | EO27: 0 | EP27: 0 | EQ27: 0 | ER27: 1 | ES27: 1 | ET27: LMR 600 UF
A28: LMR 900 | B28: 0.05177 | C28: 0.00016 | D28: N/A | E28: =((B28*SQRT($E$3*1000)+C28*$E$3*1000))/30480*Length*(1+'Cable Parameters'!I28/100*('Cable Parameters'!$E$1-25))+('Insertion Loss'!$F$16+'Insertion Loss'!$F$17)*SQRT($E$3) -> 0 | F28: 6 | G28: 85 | H28: -40 | I28: 0.2 | J28: http://www.eimfirst.co.il/wp-content/uploads/2018/09/TCOM-400-600.pdf | K28: 22 | L28: 23 | M28: LMR 900 | O28: 28 | P28: 28 | Q28: 28 | R28: 28 | S28: 28 | T28: 28 | U28: LMR 900 | V28: 6 | W28: 22 | X28: 0 | Y28: N/A | Z28: In/Out door | AA28: 228.6 | AC28: LMR 900 | AD28: 1 | AE28: 1 | AF28: 1 | AG28: 1 | AH28: 1 | AI28: 1 | AJ28: 1 | AK28: 1 | AL28: 1 | AM28: 1 | AN28: 1 | AO28: 1 | AP28: 1 | AQ28: 1 | AR28: 1 | AS28: 1 | AT28: 1 | AU28: 1 | AV28: 1 | AW28: 1 | AX28: 1 | AY28: 1 | AZ28: 1 | BA28: 1 | BB28: 1 | BC28: 1 | BD28: 1 | BF28: 1 | BH28: FALSE | BI28: FALSE | BJ28: FALSE | BK28: FALSE | BL28: FALSE | BM28: FALSE | BP28: =ROW() -> 28 | CC28: 8900 | CD28: 6900 | CF28: 3900 | CH28: 2200 | CJ28: 1500 | CM28: 1000 | CO28: 900 | DT28: 228.6 | DU28: LMR 900 | DV28: In/Out door | DW28: In/Out door | DX28: In/Out door | EA28: 28 | EB28: 0 | EC28: 0 | ED28: 28 | EE28: 28 | EG28: LMR 900 | EH28: 0 | EI28: 0 | EJ28: 0 | EK28: 0 | EL28: 1 | EM28: 1 | EN28: 1 | EO28: 0 | EP28: 0 | EQ28: 0 | ER28: 1 | ES28: 1 | ET28: LMR 900
A29: LMR 1200 | B29: 0.03737 | C29: 0.00016 | D29: N/A | E29: =((B29*SQRT($E$3*1000)+C29*$E$3*1000))/30480*Length*(1+'Cable Parameters'!I29/100*('Cable Parameters'!$E$1-25))+('Insertion Loss'!$F$16+'Insertion Loss'!$F$17)*SQRT($E$3) -> 0 | F29: 2.5 | G29: 85 | H29: -40 | I29: 0.2 | J29: http://www.eimfirst.co.il/wp-content/uploads/2018/09/TCOM-400-600.pdf | K29: 30 | L29: 24 | M29: LMR 1200 | O29: 29 | P29: 29 | Q29: 29 | R29: 29 | S29: 29 | T29: 29 | U29: LMR 1200 | V29: 2.5 | W29: 30 | X29: 0 | Y29: N/A | Z29: In/Out door | AA29: 279.4 | AC29: LMR 1200 | AD29: 1 | AE29: 1 | AF29: 1 | AG29: 1 | AH29: 1 | AI29: 1 | AJ29: 1 | AK29: 1 | AL29: 1 | AM29: 1 | AN29: 1 | AO29: 1 | AP29: 1 | AQ29: 1 | AR29: 1 | AS29: 1 | AT29: 1 | AU29: 1 | AV29: 1 | AW29: 1 | AX29: 1 | AY29: 1 | AZ29: 1 | BA29: 1 | BB29: 1 | BC29: 1 | BD29: 1 | BF29: 1 | BH29: FALSE | BI29: FALSE | BJ29: FALSE | BK29: FALSE | BL29: FALSE | BM29: FALSE | BP29: =ROW() -> 29 | CC29: 13000 | CD29: 9700 | CF29: 5500 | CH29: 3100 | CJ29: 2100 | CM29: 1400 | CO29: 1200 | CT29: 200 | DT29: 279.4 | DU29: LMR 1200 | DV29: In/Out door | DW29: In/Out door | DX29: In/Out door | EA29: 29 | EB29: 0 | EC29: 0 | ED29: 29 | EE29: 29 | EG29: LMR 1200 | EH29: 0 | EI29: 0 | EJ29: 0 | EK29: 0 | EL29: 1 | EM29: 1 | EN29: 1 | EO29: 0 | EP29: 0 | EQ29: 0 | ER29: 1 | ES29: 1 | ET29: LMR 1200
A30: LMR-400-FR | B30: 0.1241 | C30: 0.000245 | D30: N/A | E30: =((B30*SQRT($E$3*1000)+C30*$E$3*1000))/30480*Length*(1+'Cable Parameters'!I30/100*('Cable Parameters'!$E$1-25))+('Insertion Loss'!$F$16+'Insertion Loss'!$F$17)*SQRT($E$3) -> 0 | F30: 3 | G30: 85 | H30: -40 | I30: 0.2 | J30: http://www.eimfirst.co.il/wp-content/uploads/2018/09/LMR-FR.pdf | K30: 10.29 | L30: 25 | M30: LMR-400-FR | O30: 30 | P30: 30 | Q30: 30 | R30: 30 | S30: 30 | T30: 30 | U30: LMR-400-FR | V30: 3 | W30: 10.29 | X30: 0 | Y30: N/A | Z30: In/Out door | AA30: 25.4 | AC30: LMR-400-FR | AD30: 1 | AE30: 1 | AF30: 1 | AG30: 1 | AH30: 1 | AI30: 1 | AJ30: 1 | AK30: 1 | AL30: 1 | AM30: 1 | AN30: 1 | AO30: 1 | AP30: 1 | AQ30: 1 | AR30: 1 | AS30: 1 | AT30: 1 | AU30: 1 | AV30: 1 | AW30: 1 | AX30: 1 | AY30: 1 | AZ30: 1 | BA30: 1 | BB30: 1 | BC30: 1 | BD30: 1 | BF30: 1 | BH30: FALSE | BI30: FALSE | BJ30: FALSE | BK30: FALSE | BL30: FALSE | BM30: FALSE | BP30: =ROW() -> 30 | CB30: 12611 | CD30: 6527 | CE30: 4591 | CK30: 1398 | CL30: 1128 | CN30: 967 | CO30: 958 | CP30: 777 | DT30: 25.4 | DU30: LMR-400-FR | DV30: In/Out door | DW30: In/Out door | DX30: In/Out door | EA30: 30 | EB30: 0 | EC30: 0 | ED30: 30 | EE30: 30 | EG30: LMR-400-FR | EH30: 0 | EI30: 0 | EJ30: 1 | EK30: 0 | EL30: 1 | EM30: 1 | EN30: 1 | EO30: 0 | EP30: 0 | EQ30: 1 | ER30: 1 | ES30: 1 | ET30: LMR-400-FR
A31: LMR-500-FR | B31: 0.09564 | C31: 0.000259 | D31: N/A | E31: =((B31*SQRT($E$3*1000)+C31*$E$3*1000))/30480*Length*(1+'Cable Parameters'!I31/100*('Cable Parameters'!$E$1-25))+('Insertion Loss'!$F$16+'Insertion Loss'!$F$17)*SQRT($E$3) -> 0 | F31: 3 | G31: 85 | H31: -40 | I31: 0.2 | J31: http://www.eimfirst.co.il/wp-content/uploads/2018/09/LMR-FR.pdf | K31: 12.7 | L31: 26 | M31: LMR-500-FR | O31: 31 | P31: 31 | Q31: 31 | R31: 31 | S31: 31 | T31: 31 | U31: LMR-500-FR | V31: 3 | W31: 12.7 | X31: 0 | Y31: N/A | Z31: In/Out door | AA31: 31.8 | AC31: LMR-500-FR | AD31: 1 | AE31: 1 | AF31: 1 | AG31: 1 | AH31: 1 | AI31: 1 | AJ31: 1 | AK31: 1 | AL31: 1 | AM31: 1 | AN31: 1 | AO31: 1 | AP31: 1 | AQ31: 1 | AR31: 1 | AS31: 1 | AT31: 1 | AU31: 1 | AV31: 1 | AW31: 1 | AX31: 1 | AY31: 1 | AZ31: 1 | BA31: 1 | BB31: 1 | BC31: 1 | BD31: 1 | BF31: 1 | BH31: FALSE | BI31: FALSE | BJ31: FALSE | BK31: FALSE | BL31: FALSE | BM31: FALSE | BP31: =ROW() -> 31 | CB31: 18784 | CD31: 9703 | CE31: 6813 | CK31: 2050 | CL31: 1648 | CN31: 1408 | CO31: 1246 | CP31: 1126 | DT31: 31.8 | DU31: LMR-500-FR | DV31: In/Out door | DW31: In/Out door | DX31: In/Out door | EA31: 31 | EB31: 0 | EC31: 0 | ED31: 31 | EE31: 31 | EG31: LMR-500-FR | EH31: 0 | EI31: 0 | EJ31: 1 | EK31: 0 | EL31: 1 | EM31: 1 | EN31: 1 | EO31: 0 | EP31: 0 | EQ31: 1 | ER31: 1 | ES31: 1 | ET31: LMR-500-FR
A32: LMR-600-FR | B32: 0.07799 | C32: 0.000224 | D32: N/A | E32: =((B32*SQRT($E$3*1000)+C32*$E$3*1000))/30480*Length*(1+'Cable Parameters'!I32/100*('Cable Parameters'!$E$1-25))+('Insertion Loss'!$F$16+'Insertion Loss'!$F$17)*SQRT($E$3) -> 0 | F32: 3 | G32: 85 | H32: -40 | I32: 0.2 | J32: http://www.eimfirst.co.il/wp-content/uploads/2018/09/LMR-FR.pdf | K32: 15 | L32: 27 | M32: LMR-600-FR | O32: 32 | P32: 32 | Q32: 32 | R32: 32 | S32: 32 | T32: 32 | U32: LMR-600-FR | V32: 3 | W32: 15 | X32: 0 | Y32: N/A | Z32: In/Out door | AA32: 38.1 | AC32: LMR-600-FR | AD32: 1 | AE32: 1 | AF32: 1 | AG32: 1 | AH32: 1 | AI32: 1 | AJ32: 1 | AK32: 1 | AL32: 1 | AM32: 1 | AN32: 1 | AO32: 1 | AP32: 1 | AQ32: 1 | AR32: 1 | AS32: 1 | AT32: 1 | AU32: 1 | AV32: 1 | AW32: 1 | AX32: 1 | AY32: 1 | AZ32: 1 | BA32: 1 | BB32: 1 | BC32: 1 | BD32: 1 | BF32: 1 | BH32: FALSE | BI32: FALSE | BJ32: FALSE | BK32: FALSE | BL32: FALSE | BM32: FALSE | BP32: =ROW() -> 32 | CB32: 26034 | CD32: 13433 | CE32: 9423 | CK32: 2816 | CL32: 2259 | CN32: 1928 | CO32: 1702 | CP32: 1537 | DT32: 38.1 | DU32: LMR-600-FR | DV32: In/Out door | DW32: In/Out door | DX32: In/Out door | EA32: 32 | EB32: 0 | EC32: 0 | ED32: 32 | EE32: 32 | EG32: LMR-600-FR | EH32: 0 | EI32: 0 | EJ32: 1 | EK32: 0 | EL32: 1 | EM32: 1 | EN32: 1 | EO32: 0 | EP32: 0 | EQ32: 1 | ER32: 1 | ES32: 1 | ET32: LMR-600-FR
A33: LMR-900-FR | B33: 0.051869 | C33: 0.000198 | D33: N/A | E33: =((B33*SQRT($E$3*1000)+C33*$E$3*1000))/30480*Length*(1+'Cable Parameters'!I33/100*('Cable Parameters'!$E$1-25))+('Insertion Loss'!$F$16+'Insertion Loss'!$F$17)*SQRT($E$3) -> 0 | F33: 3 | G33: 85 | H33: -40 | I33: 0.2 | J33: http://www.eimfirst.co.il/wp-content/uploads/2018/09/LMR-FR.pdf | K33: 22.1 | L33: 28 | M33: LMR-900-FR | O33: 33 | P33: 33 | Q33: 33 | R33: 33 | S33: 33 | T33: 33 | U33: LMR-900-FR | V33: 3 | W33: 22.1 | X33: 0 | Y33: N/A | Z33: In/Out door | AA33: 76.2 | AC33: LMR-900-FR | AD33: 1 | AE33: 1 | AF33: 1 | AG33: 1 | AH33: 1 | AI33: 1 | AJ33: 1 | AK33: 1 | AL33: 1 | AM33: 1 | AN33: 1 | AO33: 1 | AP33: 1 | AQ33: 1 | AR33: 1 | AS33: 1 | AT33: 1 | AU33: 1 | AV33: 1 | AW33: 1 | AX33: 1 | AY33: 1 | AZ33: 1 | BA33: 1 | BB33: 1 | BC33: 1 | BD33: 1 | BF33: 1 | BH33: FALSE | BI33: FALSE | BJ33: FALSE | BK33: FALSE | BL33: FALSE | BM33: FALSE | BP33: =ROW() -> 33 | CB33: 49886 | CD33: 25658 | CE33: 17951 | CK33: 5267 | CL33: 4202 | CN33: 3570 | CO33: 3140 | CP33: 2825 | DT33: 76.2 | DU33: LMR-900-FR | DV33: In/Out door | DW33: In/Out door | DX33: In/Out door | EA33: 33 | EB33: 0 | EC33: 0 | ED33: 33 | EE33: 33 | EG33: LMR-900-FR | EH33: 0 | EI33: 0 | EJ33: 1 | EK33: 0 | EL33: 1 | EM33: 1 | EN33: 1 | EO33: 0 | EP33: 0 | EQ33: 1 | ER33: 1 | ES33: 1 | ET33: LMR-900-FR
A34: LMR-1200-FR | B34: 0.037474 | C34: 0.000155 | D34: N/A | E34: =((B34*SQRT($E$3*1000)+C34*$E$3*1000))/30480*Length*(1+'Cable Parameters'!I34/100*('Cable Parameters'!$E$1-25))+('Insertion Loss'!$F$16+'Insertion Loss'!$F$17)*SQRT($E$3) -> 0 | F34: 3 | G34: 85 | H34: -40 | I34: 0.2 | J34: http://www.eimfirst.co.il/wp-content/uploads/2018/09/LMR-FR.pdf | K34: 30.48 | L34: 29 | M34: LMR-1200-FR | O34: 34 | P34: 34 | Q34: 34 | R34: 34 | S34: 34 | T34: 34 | U34: LMR-1200-FR | V34: 3 | W34: 30.48 | X34: 0 | Y34: N/A | Z34: In/Out door | AA34: 165.1 | AC34: LMR-1200-FR | AD34: 1 | AE34: 1 | AF34: 1 | AG34: 1 | AH34: 1 | AI34: 1 | AJ34: 1 | AK34: 1 | AL34: 1 | AM34: 1 | AN34: 1 | AO34: 1 | AP34: 1 | AQ34: 1 | AR34: 1 | AS34: 1 | AT34: 1 | AU34: 1 | AV34: 1 | AW34: 1 | AX34: 1 | AY34: 1 | AZ34: 1 | BA34: 1 | BB34: 1 | BC34: 1 | BD34: 1 | BF34: 1 | BH34: FALSE | BI34: FALSE | BJ34: FALSE | BK34: FALSE | BL34: FALSE | BM34: FALSE | BP34: =ROW() -> 34 | CB34: 81747 | CD34: 41991 | CE34: 29346 | CK34: 8547 | CL34: 6803 | CN34: 5769 | CO34: 5067 | CP34: 4552 | DT34: 165.1 | DU34: LMR-1200-FR | DV34: In/Out door | DW34: In/Out door | DX34: In/Out door | EA34: 34 | EB34: 0 | EC34: 0 | ED34: 34 | EE34: 34 | EG34: LMR-1200-FR | EH34: 0 | EI34: 0 | EJ34: 1 | EK34: 0 | EL34: 1 | EM34: 1 | EN34: 1 | EO34: 0 | EP34: 0 | EQ34: 1 | ER34: 1 | ES34: 1 | ET34: LMR-1200-FR
A35: LMR-400-LLPL | B35: 0.127694 | C35: 0.000177 | D35: N/A | E35: =((B35*SQRT($E$3*1000)+C35*$E$3*1000))/30480*Length*(1+'Cable Parameters'!I35/100*('Cable Parameters'!$E$1-25))+('Insertion Loss'!$F$16+'Insertion Loss'!$F$17)*SQRT($E$3) -> 0 | F35: 3 | G35: 75 | H35: -5 | I35: 0.2 | J35: http://www.eimfirst.co.il/wp-content/uploads/2018/09/LMR-LLPL.pdf | K35: 10.28 | L35: 30 | M35: LMR-400-LLPL | O35: 35 | P35: 35 | Q35: 35 | R35: 35 | S35: 35 | T35: 35 | U35: LMR-400-LLPL | V35: 3 | W35: 10.28 | X35: 0 | Y35: N/A | Z35: In/Out door | AA35: 101.6 | AC35: LMR-400-LLPL | AD35: 1 | AE35: 1 | AF35: 1 | AG35: 1 | AH35: 1 | AI35: 1 | AJ35: 1 | AK35: 1 | AL35: 1 | AM35: 1 | AN35: 1 | AO35: 1 | AP35: 1 | AQ35: 1 | AR35: 1 | AS35: 1 | AT35: 1 | AU35: 1 | AV35: 1 | AW35: 1 | AX35: 1 | AY35: 1 | AZ35: 1 | BA35: 1 | BB35: 1 | BC35: 1 | BD35: 1 | BF35: 1 | BH35: FALSE | BI35: FALSE | BJ35: FALSE | BK35: FALSE | BL35: FALSE | BM35: FALSE | BP35: =ROW() -> 35 | CB35: 10052 | CD35: 5212 | CE35: 3672 | CK35: 1131 | CL35: 915 | CN35: 787 | CO35: 700 | CP35: 635 | DT35: 101.6 | DU35: LMR-400-LLPL | DV35: In/Out door | DW35: In/Out door | DX35: In/Out door | EA35: 35 | EB35: 0 | EC35: 0 | ED35: 35 | EE35: 35 | EG35: LMR-400-LLPL | EH35: 0 | EI35: 0 | EJ35: 0 | EK35: 0 | EL35: 1 | EM35: 1 | EN35: 1 | EO35: 0 | EP35: 0 | EQ35: 1 | ER35: 1 | ES35: 1 | ET35: LMR-400-LLPL
A36: LMR-500-LLPL | B36: 0.1031 | C36: 0.000185 | D36: N/A | E36: =((B36*SQRT($E$3*1000)+C36*$E$3*1000))/30480*Length*(1+'Cable Parameters'!I36/100*('Cable Parameters'!$E$1-25))+('Insertion Loss'!$F$16+'Insertion Loss'!$F$17)*SQRT($E$3) -> 0 | F36: 3 | G36: 75 | H36: -5 | I36: 0.2 | J36: http://www.eimfirst.co.il/wp-content/uploads/2018/09/LMR-LLPL.pdf | K36: 12.7 | L36: 31 | M36: LMR-500-LLPL | O36: 36 | P36: 36 | Q36: 36 | R36: 36 | S36: 36 | T36: 36 | U36: LMR-500-LLPL | V36: 3 | W36: 12.7 | X36: 0 | Y36: N/A | Z36: In/Out door | AA36: 127 | AC36: LMR-500-LLPL | AD36: 1 | AE36: 1 | AF36: 1 | AG36: 1 | AH36: 1 | AI36: 1 | AJ36: 1 | AK36: 1 | AL36: 1 | AM36: 1 | AN36: 1 | AO36: 1 | AP36: 1 | AQ36: 1 | AR36: 1 | AS36: 1 | AT36: 1 | AU36: 1 | AV36: 1 | AW36: 1 | AX36: 1 | AY36: 1 | AZ36: 1 | BA36: 1 | BB36: 1 | BC36: 1 | BD36: 1 | BF36: 1 | BH36: FALSE | BI36: FALSE | BJ36: FALSE | BK36: FALSE | BL36: FALSE | BM36: FALSE | BP36: =ROW() -> 36 | CB36: 14391 | CD36: 7452 | CE36: 5244 | CK36: 1602 | CL36: 1294 | CN36: 1110 | CO36: 985 | CP36: 893 | DT36: 127 | DU36: LMR-500-LLPL | DV36: In/Out door | DW36: In/Out door | DX36: In/Out door | EA36: 36 | EB36: 0 | EC36: 0 | ED36: 36 | EE36: 36 | EG36: LMR-500-LLPL | EH36: 0 | EI36: 0 | EJ36: 0 | EK36: 0 | EL36: 1 | EM36: 1 | EN36: 1 | EO36: 0 | EP36: 0 | EQ36: 1 | ER36: 1 | ES36: 1 | ET36: LMR-500-LLPL
A37: LMR-600-LLPL | B37: 0.08625 | C37: 0.000183 | D37: N/A | E37: =((B37*SQRT($E$3*1000)+C37*$E$3*1000))/30480*Length*(1+'Cable Parameters'!I37/100*('Cable Parameters'!$E$1-25))+('Insertion Loss'!$F$16+'Insertion Loss'!$F$17)*SQRT($E$3) -> 0 | F37: 3 | G37: 75 | H37: -5 | I37: 0.2 | J37: http://www.eimfirst.co.il/wp-content/uploads/2018/09/LMR-LLPL.pdf | K37: 15 | L37: 32 | M37: LMR-600-LLPL | O37: 37 | P37: 37 | Q37: 37 | R37: 37 | S37: 37 | T37: 37 | U37: LMR-600-LLPL | V37: 3 | W37: 15 | X37: 0 | Y37: N/A | Z37: In/Out door | AA37: 152.4 | AC37: LMR-600-LLPL | AD37: 1 | AE37: 1 | AF37: 1 | AG37: 1 | AH37: 1 | AI37: 1 | AJ37: 1 | AK37: 1 | AL37: 1 | AM37: 1 | AN37: 1 | AO37: 1 | AP37: 1 | AQ37: 1 | AR37: 1 | AS37: 1 | AT37: 1 | AU37: 1 | AV37: 1 | AW37: 1 | AX37: 1 | AY37: 1 | AZ37: 1 | BA37: 1 | BB37: 1 | BC37: 1 | BD37: 1 | BF37: 1 | BH37: FALSE | BI37: FALSE | BJ37: FALSE | BK37: FALSE | BL37: FALSE | BM37: FALSE | BP37: =ROW() -> 37 | CB37: 19407 | CD37: 10038 | CE37: 7057 | CK37: 2140 | CL37: 1725 | CN37: 1477 | CO37: 1309 | CP37: 1184 | DT37: 152.4 | DU37: LMR-600-LLPL | DV37: In/Out door | DW37: In/Out door | DX37: In/Out door | EA37: 37 | EB37: 0 | EC37: 0 | ED37: 37 | EE37: 37 | EG37: LMR-600-LLPL | EH37: 0 | EI37: 0 | EJ37: 0 | EK37: 0 | EL37: 1 | EM37: 1 | EN37: 1 | EO37: 0 | EP37: 0 | EQ37: 1 | ER37: 1 | ES37: 1 | ET37: LMR-600-LLPL
A38: LMR-900-LLPL | B38: 0.05493 | C38: 0.000183 | D38: N/A | E38: =((B38*SQRT($E$3*1000)+C38*$E$3*1000))/30480*Length*(1+'Cable Parameters'!I38/100*('Cable Parameters'!$E$1-25))+('Insertion Loss'!$F$16+'Insertion Loss'!$F$17)*SQRT($E$3) -> 0 | F38: 3 | G38: 75 | H38: -5 | I38: 0.2 | J38: http://www.eimfirst.co.il/wp-content/uploads/2018/09/LMR-LLPL.pdf | K38: 22.1 | L38: 33 | M38: LMR-900-LLPL | O38: 38 | P38: =IF(O38="","",IF($P$2="",O38,IF(OR(INDEX(A:M,ROW(),6)=$P$2,INDEX(A:M,ROW(),6)>$P$2),ROW(),""))) -> 38 | Q38: =IF(P38="","",IF($Q$2="",P38,IF(INDEX(DV:DW,ROW(),$Q$2)="","",ROW()))) -> 38 | R38: =IF(Q38="","",IF($R$2="",Q38,IF(OR(INDEX(A:WQ,ROW(),4)=$R$2,INDEX(A:WQ,ROW(),4)>$R$2),ROW(),""))) -> 38 | S38: =IF(R38="","",IF($S$2="",R38,IF(OR(INDEX(A:N,ROW(),11)>$S$2+1,INDEX(A:N,ROW(),11)<$S$2-1),"",ROW()))) -> 38 | T38: 38 | U38: =IF(T38="","",INDEX(A:M,T38,1)) -> LMR-900-LLPL | V38: =IF(T38="","",INDEX(A:N,T38,6)) -> 3 | W38: =IF(T38="","",INDEX(A:O,T38,11)) -> 22.1 | X38: =IF(T38="","",INDEX(A:P,T38,5)) -> 0 | Y38: =IF(T38="","",INDEX(A:R,T38,4)) -> N/A | Z38: =IF(ISERROR(IF($Q$2="",INDEX(A:WQ,T38,128),IF($Q$2=1,INDEX(A:WQ,T38,126),INDEX(A:WQ,T38,127)))),"",IF($Q$2="",INDEX(A:WQ,T38,128),IF($Q$2=1,INDEX(A:WQ,T38,126),INDEX(A:WQ,T38,127)))) -> In/Out door | AA38: =IF(T38="","",INDEX(A:WQ,T38,124)) -> 228.6 | AC38: LMR-900-LLPL | AD38: 1 | AE38: 1 | AF38: 1 | AG38: 1 | AH38: 1 | AI38: 1 | AJ38: 1 | AK38: 1 | AL38: 1 | AM38: 1 | AN38: 1 | AO38: 1 | AP38: 1 | AQ38: 1 | AR38: 1 | AS38: 1 | AT38: 1 | AU38: 1 | AV38: 1 | AW38: 1 | AX38: 1 | AY38: 1 | AZ38: 1 | BA38: 1 | BB38: 1 | BC38: 1 | BD38: 1 | BF38: 1 | BH38: FALSE | BI38: FALSE | BJ38: FALSE | BK38: FALSE | BL38: FALSE | BM38: FALSE | BP38: =ROW() -> 38 | CB38: 38959 | CD38: 20069 | CE38: 14060 | CK38: 4163 | CL38: 3330 | CN38: 2835 | CO38: 2499 | CP38: 2251 | DT38: 228.6 | DU38: LMR-900-LLPL | DV38: In/Out door | DW38: In/Out door | DX38: In/Out door | EA38: 38 | EB38: 0 | EC38: 0 | ED38: 38 | EE38: 38 | EG38: LMR-900-LLPL | EH38: 0 | EI38: 0 | EJ38: 0 | EK38: 0 | EL38: 1 | EM38: 1 | EN38: 1 | EO38: 0 | EP38: 0 | EQ38: 1 | ER38: 1 | ES38: 1 | ET38: LMR-900-LLPL
A39: LMR-1200-LLPL | B39: 0.042798 | C39: 0.000155 | D39: N/A | E39: =((B39*SQRT($E$3*1000)+C39*$E$3*1000))/30480*Length*(1+'Cable Parameters'!I39/100*('Cable Parameters'!$E$1-25))+('Insertion Loss'!$F$16+'Insertion Loss'!$F$17)*SQRT($E$3) -> 0 | F39: 3 | G39: 75 | H39: -5 | I39: 0.2 | J39: http://www.eimfirst.co.il/wp-content/uploads/2018/09/LMR-LLPL.pdf | K39: 30 | L39: 34 | M39: LMR-1200-LLPL | O39: 39 | P39: 39 | Q39: 39 | R39: 39 | S39: 39 | T39: 39 | U39: LMR-1200-LLPL | V39: 3 | W39: 30 | X39: 0 | Y39: N/A | Z39: In/Out door | AA39: 304.8 | AC39: LMR-1200-LLPL | AD39: 1 | AE39: 1 | AF39: 1 | AG39: 1 | AH39: 1 | AI39: 1 | AJ39: 1 | AK39: 1 | AL39: 1 | AM39: 1 | AN39: 1 | AO39: 1 | AP39: 1 | AQ39: 1 | AR39: 1 | AS39: 1 | AT39: 1 | AU39: 1 | AV39: 1 | AW39: 1 | AX39: 1 | AY39: 1 | AZ39: 1 | BA39: 1 | BB39: 1 | BC39: 1 | BD39: 1 | BF39: 1 | BH39: FALSE | BI39: FALSE | BJ39: FALSE | BK39: FALSE | BL39: FALSE | BM39: FALSE | BP39: =ROW() -> 39 | CB39: 58185 | CD39: 29945 | CE39: 20962 | CK39: 6172 | CL39: 4929 | CN39: 4191 | CO39: 3689 | CP39: 3320 | DT39: 304.8 | DU39: LMR-1200-LLPL | DV39: In/Out door | DW39: In/Out door | DX39: In/Out door | EA39: 39 | EB39: 0 | EC39: 0 | ED39: 39 | EE39: 39 | EG39: LMR-1200-LLPL | EH39: 0 | EI39: 0 | EJ39: 0 | EK39: 0 | EL39: 1 | EM39: 1 | EN39: 1 | EO39: 0 | EP39: 0 | EQ39: 1 | ER39: 1 | ES39: 1 | ET39: LMR-1200-LLPL
A40: LMR-1700-DB-TPV | B40: 0.026741 | C40: 0.00015 | D40: N/A | E40: =((B40*SQRT($E$3*1000)+C40*$E$3*1000))/30480*Length*(1+'Cable Parameters'!I40/100*('Cable Parameters'!$E$1-25))+('Insertion Loss'!$F$16+'Insertion Loss'!$F$17)*SQRT($E$3) -> 0 | F40: 3 | G40: 105 | H40: -50 | I40: 0.2 | J40: http://www.eimfirst.co.il/wp-content/uploads/2018/09/Some-Other-Cables-2.pdf | K40: 40.64 | L40: 35 | M40: LMR-1700-DB-TPV | O40: 40 | P40: 40 | Q40: 40 | R40: 40 | S40: 40 | T40: 40 | U40: LMR-1700-DB-TPV | V40: 3 | W40: 40.64 | X40: 0 | Y40: N/A | Z40: In/Out door | AA40: 342.9 | AC40: LMR-1700-DB-TPV | AD40: 1 | AE40: 1 | AF40: 1 | AG40: 1 | AH40: 1 | AI40: 1 | AJ40: 1 | AK40: 1 | AL40: 1 | AM40: 1 | AN40: 1 | AO40: 1 | AP40: 1 | AQ40: 1 | AR40: 1 | AS40: 1 | AT40: 1 | AU40: 1 | AV40: 1 | AW40: 1 | AX40: 1 | AY40: 1 | AZ40: 1 | BA40: 1 | BB40: 1 | BC40: 1 | BD40: 1 | BF40: 1 | BH40: FALSE | BI40: FALSE | BJ40: FALSE | BK40: FALSE | BL40: FALSE | BM40: FALSE | BP40: =ROW() -> 40 | CB40: 81965 | CD40: 41916 | CE40: 29185 | CK40: 8293 | CL40: 6553 | CN40: 5525 | CO40: 4830 | CP40: 4320 | DT40: 342.9 | DU40: LMR-1700-DB-TPV | DV40: In/Out door | DW40: In/Out door | DX40: In/Out door | EA40: 40 | EB40: 0 | EC40: 0 | ED40: 40 | EE40: 40 | EG40: LMR-1700-DB-TPV | EH40: 0 | EI40: 0 | EJ40: 0 | EK40: 0 | EL40: 1 | EM40: 1 | EN40: 1 | EO40: 0 | EP40: 0 | EQ40: 0 | ER40: 1 | ES40: 1 | ET40: LMR-1700-DB-TPV
A41: MaxGain160 | B41: 0.3696 | C41: 0.0001341 | D41: N/A | E41: =((B41*SQRT($E$3*1000)+C41*$E$3*1000))/30480*Length*(1+'Cable Parameters'!I41/100*('Cable Parameters'!$E$1-25))+('Insertion Loss'!$F$16+'Insertion Loss'!$F$17)*SQRT($E$3) -> 0 | F41: 40 | G41: 150 | H41: -55 | I41: 0.2 | J41: http://www.eimfirst.co.il/wp-content/uploads/2018/09/Maxgain-Brochure-1.pdf | K41: 4 | L41: 36 | M41: MaxGain160 | O41: 41 | P41: 41 | Q41: 41 | R41: 41 | S41: 41 | T41: 41 | U41: MaxGain160 | V41: 40 | W41: 4 | X41: 0 | Y41: N/A | Z41: In/Out door | AA41: 19 | AC41: MaxGain160 | AD41: 1 | AE41: 1 | AF41: 1 | AG41: 1 | AH41: 1 | AI41: 1 | AJ41: 1 | AK41: 1 | AL41: 1 | AM41: 1 | AN41: 1 | AO41: 1 | AP41: 1 | AQ41: 1 | AR41: 1 | AS41: 1 | AT41: 1 | AU41: 1 | AV41: 1 | AW41: 1 | AX41: 1 | AY41: 1 | AZ41: 1 | BA41: 1 | BB41: 1 | BC41: 1 | BD41: 1 | BF41: 1 | BH41: FALSE | BI41: FALSE | BJ41: FALSE | BK41: FALSE | BL41: FALSE | BM41: FALSE | BP41: =ROW() -> 41 | DT41: 19 | DU41: MaxGain160 | DV41: In/Out door | DW41: In/Out door | DX41: In/Out door | EA41: 41 | EB41: 0 | EC41: 0 | ED41: 41 | EE41: 41 | EG41: MaxGain160 | EH41: 1 | EI41: 0 | EJ41: 0 | EK41: 0 | EL41: 0 | EM41: 0 | EN41: 1 | EO41: 0 | EP41: 0 | EQ41: 0 | ER41: 0 | ES41: 0 | ET41: MaxGain160
A42: MaxGain200 | B42: 0.2287 | C42: 0.0001321 | D42: N/A | E42: =((B42*SQRT($E$3*1000)+C42*$E$3*1000))/30480*Length*(1+'Cable Parameters'!I42/100*('Cable Parameters'!$E$1-25))+('Insertion Loss'!$F$16+'Insertion Loss'!$F$17)*SQRT($E$3) -> 0 | F42: 18 | G42: 150 | H42: -65 | I42: 0.2 | J42: http://www.eimfirst.co.il/wp-content/uploads/2018/09/Maxgain-Brochure-1.pdf | K42: 5 | L42: 37 | M42: MaxGain200 | O42: 42 | P42: 42 | Q42: 42 | R42: 42 | S42: 42 | T42: 42 | U42: MaxGain200 | V42: 18 | W42: 5 | X42: 0 | Y42: N/A | Z42: In/Out door | AA42: 31.75 | AC42: MaxGain200 | AD42: 1 | AE42: 1 | AF42: 1 | AG42: 1 | AH42: 1 | AI42: 1 | AJ42: 1 | AK42: 1 | AL42: 1 | AM42: 1 | AN42: 1 | AO42: 1 | AP42: 1 | AQ42: 1 | AR42: 1 | AS42: 1 | AT42: 1 | AU42: 1 | AV42: 1 | AW42: 1 | AX42: 1 | AY42: 1 | AZ42: 1 | BA42: 1 | BB42: 1 | BC42: 1 | BD42: 1 | BF42: 1 | BH42: FALSE | BI42: FALSE | BJ42: FALSE | BK42: FALSE | BL42: FALSE | BM42: FALSE | BP42: =ROW() -> 42 | DT42: 31.75 | DU42: MaxGain200 | DV42: In/Out door | DW42: In/Out door | DX42: In/Out door | EA42: 42 | EB42: 0 | EC42: 0 | ED42: 42 | EE42: 42 | EG42: MaxGain200 | EH42: 1 | EI42: 0 | EJ42: 0 | EK42: 0 | EL42: 0 | EM42: 0 | EN42: 1 | EO42: 0 | EP42: 0 | EQ42: 0 | ER42: 0 | ES42: 0 | ET42: MaxGain200
A43: MaxGain300 | B43: 0.13256 | C43: 0.0001259 | D43: N/A | E43: =((B43*SQRT($E$3*1000)+C43*$E$3*1000))/30480*Length*(1+'Cable Parameters'!I43/100*('Cable Parameters'!$E$1-25))+('Insertion Loss'!$F$16+'Insertion Loss'!$F$17)*SQRT($E$3) -> 0 | F43: 18 | G43: 150 | H43: -65 | I43: 0.2 | J43: http://www.eimfirst.co.il/wp-content/uploads/2018/09/Maxgain-Brochure-1.pdf | K43: 7.6 | L43: 38 | M43: MaxGain300 | O43: 43 | P43: 43 | Q43: 43 | R43: 43 | S43: 43 | T43: 43 | U43: MaxGain300 | V43: 18 | W43: 7.6 | X43: 0 | Y43: N/A | Z43: In/Out door | AA43: 44.45 | AC43: MaxGain300 | AD43: 1 | AE43: 1 | AF43: 1 | AG43: 1 | AH43: 1 | AI43: 1 | AJ43: 1 | AK43: 1 | AL43: 1 | AM43: 1 | AN43: 1 | AO43: 1 | AP43: 1 | AQ43: 1 | AR43: 1 | AS43: 1 | AT43: 1 | AU43: 1 | AV43: 1 | AW43: 1 | AX43: 1 | AY43: 1 | AZ43: 1 | BA43: 1 | BB43: 1 | BC43: 1 | BD43: 1 | BF43: 1 | BH43: FALSE | BI43: FALSE | BJ43: FALSE | BK43: FALSE | BL43: FALSE | BM43: FALSE | BP43: =ROW() -> 43 | DT43: 44.45 | DU43: MaxGain300 | DV43: In/Out door | DW43: In/Out door | DX43: In/Out door | EA43: 43 | EB43: 0 | EC43: 0 | ED43: 43 | EE43: 43 | EG43: MaxGain300 | EH43: 1 | EI43: 0 | EJ43: 0 | EK43: 0 | EL43: 0 | EM43: 0 | EN43: 1 | EO43: 0 | EP43: 0 | EQ43: 0 | ER43: 0 | ES43: 0 | ET43: MaxGain300
A44: MaxGain300S | B44: 0.1715 | C44: 0.0001373 | D44: N/A | E44: =((B44*SQRT($E$3*1000)+C44*$E$3*1000))/30480*Length*(1+'Cable Parameters'!I44/100*('Cable Parameters'!$E$1-25))+('Insertion Loss'!$F$16+'Insertion Loss'!$F$17)*SQRT($E$3) -> 0 | F44: 18 | G44: 150 | H44: -65 | I44: 0.2 | J44: http://www.eimfirst.co.il/wp-content/uploads/2018/09/Maxgain-Brochure-1.pdf | K44: 7.6 | L44: 39 | M44: MaxGain300S | O44: 44 | P44: 44 | Q44: 44 | R44: 44 | S44: 44 | T44: 44 | U44: MaxGain300S | V44: 18 | W44: 7.6 | X44: 0 | Y44: N/A | Z44: In/Out door | AA44: 44.45 | AC44: MaxGain300S | AD44: 1 | AE44: 1 | AF44: 1 | AG44: 1 | AH44: 1 | AI44: 1 | AJ44: 1 | AK44: 1 | AL44: 1 | AM44: 1 | AN44: 1 | AO44: 1 | AP44: 1 | AQ44: 1 | AR44: 1 | AS44: 1 | AT44: 1 | AU44: 1 | AV44: 1 | AW44: 1 | AX44: 1 | AY44: 1 | AZ44: 1 | BA44: 1 | BB44: 1 | BC44: 1 | BD44: 1 | BF44: 1 | BH44: FALSE | BI44: FALSE | BJ44: FALSE | BK44: FALSE | BL44: FALSE | BM44: FALSE | BP44: =ROW() -> 44 | DT44: 44.45 | DU44: MaxGain300S | DV44: In/Out door | DW44: In/Out door | DX44: In/Out door | EA44: 44 | EB44: 0 | EC44: 0 | ED44: 44 | EE44: 44 | EG44: MaxGain300S | EH44: 1 | EI44: 0 | EJ44: 0 | EK44: 0 | EL44: 0 | EM44: 1 | EN44: 1 | EO44: 0 | EP44: 0 | EQ44: 0 | ER44: 0 | ES44: 0 | ET44: MaxGain300S
A45: MilTech 160 | B45: 0.4296 | C45: 0.0001341 | D45: N/A | E45: =((B45*SQRT($E$3*1000)+C45*$E$3*1000))/30480*Length*(1+'Cable Parameters'!I45/100*('Cable Parameters'!$E$1-25))+('Insertion Loss'!$F$16+'Insertion Loss'!$F$17)*SQRT($E$3) -> 0 | F45: 40 | G45: 150 | H45: -55 | I45: 0.2 | J45: http://www.eimfirst.co.il/wp-content/uploads/2018/07/MT160webC.pdf | K45: 4 | L45: 40 | M45: MilTech 160 | O45: 45 | P45: 45 | Q45: 45 | R45: 45 | S45: 45 | T45: 45 | U45: MilTech 160 | V45: 40 | W45: 4 | X45: 0 | Y45: N/A | Z45: In/Out door | AA45: 19.05 | AC45: MilTech 160 | AD45: 1 | AE45: 1 | AF45: 1 | AG45: 1 | AH45: 1 | AI45: 1 | AJ45: 1 | AK45: 1 | AL45: 1 | AM45: 1 | AN45: 1 | AO45: 1 | AP45: 1 | AQ45: 1 | AR45: 1 | AS45: 1 | AT45: 1 | AU45: 1 | AV45: 1 | AW45: 1 | AX45: 1 | AY45: 1 | AZ45: 1 | BA45: 1 | BB45: 1 | BC45: 1 | BD45: 1 | BF45: 1 | BH45: FALSE | BI45: FALSE | BJ45: FALSE | BK45: FALSE | BL45: FALSE | BM45: FALSE | BP45: =ROW() -> 45 | DT45: 19.05 | DU45: MilTech 160 | DV45: In/Out door | DW45: In/Out door | DX45: In/Out door | EA45: 45 | EB45: 0 | EC45: 0 | ED45: 45 | EE45: 45 | EG45: MilTech 160 | EH45: 1 | EI45: 0 | EJ45: 1 | EK45: 0 | EL45: 0 | EM45: 1 | EN45: 1 | EO45: 0 | EP45: 0 | EQ45: 1 | ER45: 0 | ES45: 0 | ET45: MilTech 160
A46: MilTech 210 | B46: 0.3343 | C46: 0.00015 | D46: N/A | E46: =((B46*SQRT($E$3*1000)+C46*$E$3*1000))/30480*Length*(1+'Cable Parameters'!I46/100*('Cable Parameters'!$E$1-25))+('Insertion Loss'!$F$16+'Insertion Loss'!$F$17)*SQRT($E$3) -> 0 | F46: 18 | G46: 150 | H46: -65 | I46: 0.2 | J46: http://www.eimfirst.co.il/wp-content/uploads/2018/07/MT210WEBB.pdf | K46: 5.3 | L46: 41 | M46: MilTech 210 | O46: 46 | P46: 46 | Q46: 46 | R46: 46 | S46: 46 | T46: 46 | U46: MilTech 210 | V46: 18 | W46: 5.3 | X46: 0 | Y46: N/A | Z46: In/Out door | AA46: 28.575 | AC46: MilTech 210 | AD46: 1 | AE46: 1 | AF46: 1 | AG46: 1 | AH46: 1 | AI46: 1 | AJ46: 1 | AK46: 1 | AL46: 1 | AM46: 1 | AN46: 1 | AO46: 1 | AP46: 1 | AQ46: 1 | AR46: 1 | AS46: 1 | AT46: 1 | AU46: 1 | AV46: 1 | AW46: 1 | AX46: 1 | AY46: 1 | AZ46: 1 | BA46: 1 | BB46: 1 | BC46: 1 | BD46: 1 | BF46: 1 | BH46: FALSE | BI46: FALSE | BJ46: FALSE | BK46: FALSE | BL46: FALSE | BM46: FALSE | BP46: =ROW() -> 46 | DT46: 28.575 | DU46: MilTech 210 | DV46: In/Out door | DW46: In/Out door | DX46: In/Out door | EA46: 46 | EB46: 0 | EC46: 0 | ED46: 46 | EE46: 46 | EG46: MilTech 210 | EH46: 1 | EI46: 0 | EJ46: 1 | EK46: 0 | EL46: 0 | EM46: 1 | EN46: 1 | EO46: 0 | EP46: 0 | EQ46: 1 | ER46: 0 | ES46: 0 | ET46: MilTech 210
A47: MilTech 230 | B47: 0.2462 | C47: 0.00014 | D47: N/A | E47: =((B47*SQRT($E$3*1000)+C47*$E$3*1000))/30480*Length*(1+'Cable Parameters'!I47/100*('Cable Parameters'!$E$1-25))+('Insertion Loss'!$F$16+'Insertion Loss'!$F$17)*SQRT($E$3) -> 0 | F47: 18 | G47: 150 | H47: -65 | I47: 0.2 | J47: http://www.eimfirst.co.il/wp-content/uploads/2018/07/MT230WEBB.pdf | K47: 5.8 | L47: 42 | M47: MilTech 230 | O47: 47 | P47: 47 | Q47: 47 | R47: 47 | S47: 47 | T47: 47 | U47: MilTech 230 | V47: 18 | W47: 5.8 | X47: 0 | Y47: N/A | Z47: In/Out door | AA47: 28.575 | AC47: MilTech 230 | AD47: 1 | AE47: 1 | AF47: 1 | AG47: 1 | AH47: 1 | AI47: 1 | AJ47: 1 | AK47: 1 | AL47: 1 | AM47: 1 | AN47: 1 | AO47: 1 | AP47: 1 | AQ47: 1 | AR47: 1 | AS47: 1 | AT47: 1 | AU47: 1 | AV47: 1 | AW47: 1 | AX47: 1 | AY47: 1 | AZ47: 1 | BA47: 1 | BB47: 1 | BC47: 1 | BD47: 1 | BF47: 1 | BH47: FALSE | BI47: FALSE | BJ47: FALSE | BK47: FALSE | BL47: FALSE | BM47: FALSE | BP47: =ROW() -> 47 | DT47: 28.575 | DU47: MilTech 230 | DV47: In/Out door | DW47: In/Out door | DX47: In/Out door | EA47: 47 | EB47: 0 | EC47: 0 | ED47: 47 | EE47: 47 | EG47: MilTech 230 | EH47: 1 | EI47: 0 | EJ47: 1 | EK47: 0 | EL47: 0 | EM47: 1 | EN47: 1 | EO47: 0 | EP47: 0 | EQ47: 1 | ER47: 0 | ES47: 0 | ET47: MilTech 230
A48: MilTech 265 | B48: 0.2147 | C48: 0.00015 | D48: N/A | E48: =((B48*SQRT($E$3*1000)+C48*$E$3*1000))/30480*Length*(1+'Cable Parameters'!I48/100*('Cable Parameters'!$E$1-25))+('Insertion Loss'!$F$16+'Insertion Loss'!$F$17)*SQRT($E$3) -> 0 | F48: 18 | G48: 150 | H48: -65 | I48: 0.2 | J48: http://www.eimfirst.co.il/wp-content/uploads/2018/07/MT265WEBB.pdf | K48: 6.7 | L48: 43 | M48: MilTech 265 | O48: 48 | P48: 48 | Q48: 48 | R48: 48 | S48: 48 | T48: 48 | U48: MilTech 265 | V48: 18 | W48: 6.7 | X48: 0 | Y48: N/A | Z48: In/Out door | AA48: 33.32 | AC48: MilTech 265 | AD48: 1 | AE48: 1 | AF48: 1 | AG48: 1 | AH48: 1 | AI48: 1 | AJ48: 1 | AK48: 1 | AL48: 1 | AM48: 1 | AN48: 1 | AO48: 1 | AP48: 1 | AQ48: 1 | AR48: 1 | AS48: 1 | AT48: 1 | AU48: 1 | AV48: 1 | AW48: 1 | AX48: 1 | AY48: 1 | AZ48: 1 | BA48: 1 | BB48: 1 | BC48: 1 | BD48: 1 | BF48: 1 | BH48: FALSE | BI48: FALSE | BJ48: FALSE | BK48: FALSE | BL48: FALSE | BM48: FALSE | BP48: =ROW() -> 48 | DT48: 33.32 | DU48: MilTech 265 | DV48: In/Out door | DW48: In/Out door | DX48: In/Out door | EA48: 48 | EB48: 0 | EC48: 0 | ED48: 48 | EE48: 48 | EG48: MilTech 265 | EH48: 1 | EI48: 0 | EJ48: 1 | EK48: 0 | EL48: 0 | EM48: 1 | EN48: 1 | EO48: 0 | EP48: 0 | EQ48: 1 | ER48: 0 | ES48: 0 | ET48: MilTech 265
A49: MilTech 300 | B49: =0.1644 -> 0.1644 | C49: 0.00015 | D49: N/A | E49: =((B49*SQRT($E$3*1000)+C49*$E$3*1000))/30480*Length*(1+'Cable Parameters'!I49/100*('Cable Parameters'!$E$1-25))+('Insertion Loss'!$F$16+'Insertion Loss'!$F$17)*SQRT($E$3) -> 0 | F49: 18 | G49: 150 | H49: -65 | I49: 0.2 | J49: http://www.eimfirst.co.il/wp-content/uploads/2018/07/MT300webB.pdf | K49: 7.9 | L49: 44 | M49: MilTech 300 | O49: 49 | P49: 49 | Q49: 49 | R49: 49 | S49: 49 | T49: 49 | U49: MilTech 300 | V49: 18 | W49: 7.9 | X49: 0 | Y49: N/A | Z49: In/Out door | AA49: 44.45 | AC49: MilTech 300 | AD49: 1 | AE49: 1 | AF49: 1 | AG49: 1 | AH49: 1 | AI49: 1 | AJ49: 1 | AK49: 1 | AL49: 1 | AM49: 1 | AN49: 1 | AO49: 1 | AP49: 1 | AQ49: 1 | AR49: 1 | AS49: 1 | AT49: 1 | AU49: 1 | AV49: 1 | AW49: 1 | AX49: 1 | AY49: 1 | AZ49: 1 | BA49: 1 | BB49: 1 | BC49: 1 | BD49: 1 | BF49: 1 | BH49: FALSE | BI49: FALSE | BJ49: FALSE | BK49: FALSE | BL49: FALSE | BM49: FALSE | BP49: =ROW() -> 49 | DT49: 44.45 | DU49: MilTech 300 | DV49: In/Out door | DW49: In/Out door | DX49: In/Out door | EA49: 49 | EB49: 0 | EC49: 0 | ED49: 49 | EE49: 49 | EG49: MilTech 300 | EH49: 1 | EI49: 0 | EJ49: 1 | EK49: 0 | EL49: 0 | EM49: 1 | EN49: 1 | EO49: 0 | EP49: 0 | EQ49: 1 | ER49: 0 | ES49: 0 | ET49: MilTech 300
A50: MilTech 340 | B50: 0.1414 | C50: 0.00014 | D50: N/A | E50: =((B50*SQRT($E$3*1000)+C50*$E$3*1000))/30480*Length*(1+'Cable Parameters'!I50/100*('Cable Parameters'!$E$1-25))+('Insertion Loss'!$F$16+'Insertion Loss'!$F$17)*SQRT($E$3) -> 0 | F50: 18 | G50: 150 | H50: -65 | I50: 0.2 | J50: http://www.eimfirst.co.il/wp-content/uploads/2018/07/MT340webB.pdf | K50: 8.6 | L50: 45 | M50: MilTech 340 | O50: 50 | P50: 50 | Q50: 50 | R50: 50 | S50: 50 | T50: 50 | U50: MilTech 340 | V50: 18 | W50: 8.6 | X50: 0 | Y50: N/A | Z50: In/Out door | AA50: 44.45 | AC50: MilTech 340 | AD50: 1 | AE50: 1 | AF50: 1 | AG50: 1 | AH50: 1 | AI50: 1 | AJ50: 1 | AK50: 1 | AL50: 1 | AM50: 1 | AN50: 1 | AO50: 1 | AP50: 1 | AQ50: 1 | AR50: 1 | AS50: 1 | AT50: 1 | AU50: 1 | AV50: 1 | AW50: 1 | AX50: 1 | AY50: 1 | AZ50: 1 | BA50: 1 | BB50: 1 | BC50: 1 | BD50: 1 | BF50: 1 | BH50: FALSE | BI50: FALSE | BJ50: FALSE | BK50: FALSE | BL50: FALSE | BM50: FALSE | BP50: =ROW() -> 50 | DT50: 44.45 | DU50: MilTech 340 | DV50: In/Out door | DW50: In/Out door | DX50: In/Out door | EA50: 50 | EB50: 0 | EC50: 0 | ED50: 50 | EE50: 50 | EG50: MilTech 340 | EH50: 1 | EI50: 0 | EJ50: 1 | EK50: 0 | EL50: 0 | EM50: 1 | EN50: 1 | EO50: 0 | EP50: 0 | EQ50: 1 | ER50: 0 | ES50: 0 | ET50: MilTech 340
A51: MilTech 340EL | B51: 0.1414 | C51: 0.00014 | D51: N/A | E51: =((B51*SQRT($E$3*1000)+C51*$E$3*1000))/30480*Length*(1+'Cable Parameters'!I51/100*('Cable Parameters'!$E$1-25))+('Insertion Loss'!$F$16+'Insertion Loss'!$F$17)*SQRT($E$3) -> 0 | F51: 18 | G51: 200 | H51: -55 | I51: 0.2 | J51: http://www.eimfirst.co.il/wp-content/uploads/2018/09/sorry.jpg | K51: 8.6 | L51: 46 | M51: MilTech 340EL | O51: 51 | P51: 51 | Q51: 51 | R51: 51 | S51: 51 | T51: 51 | U51: MilTech 340EL | V51: 18 | W51: 8.6 | X51: 0 | Y51: N/A | Z51: In/Out door | AA51: N/A | AC51: MilTech 340EL | AD51: 1 | AE51: 1 | AF51: 1 | AG51: 1 | AH51: 1 | AI51: 1 | AJ51: 1 | AK51: 1 | AL51: 1 | AM51: 1 | AN51: 1 | AO51: 1 | AP51: 1 | AQ51: 1 | AR51: 1 | AS51: 1 | AT51: 1 | AU51: 1 | AV51: 1 | AW51: 1 | AX51: 1 | AY51: 1 | AZ51: 1 | BA51: 1 | BB51: 1 | BC51: 1 | BD51: 1 | BF51: 1 | BH51: FALSE | BI51: FALSE | BJ51: FALSE | BK51: FALSE | BL51: FALSE | BM51: FALSE | BP51: =ROW() -> 51 | DT51: N/A | DU51: MilTech 340EL | DV51: In/Out door | DW51: In/Out door | DX51: In/Out door | EA51: 51 | EB51: 0 | EC51: 0 | ED51: 51 | EE51: 51 | EG51: MilTech 340EL | EH51: 1 | EI51: 0 | EJ51: 1 | EK51: 0 | EL51: 0 | EM51: 1 | EN51: 1 | EO51: 0 | EP51: 0 | EQ51: 1 | ER51: 0 | ES51: 0 | ET51: MilTech 340EL
A52: MilTech 340XL | B52: 0.1414 | C52: 0.00014 | D52: N/A | E52: =((B52*SQRT($E$3*1000)+C52*$E$3*1000))/30480*Length*(1+'Cable Parameters'!I52/100*('Cable Parameters'!$E$1-25))+('Insertion Loss'!$F$16+'Insertion Loss'!$F$17)*SQRT($E$3) -> 0 | F52: 18 | G52: 200 | H52: -55 | I52: 0.2 | J52: http://www.eimfirst.co.il/wp-content/uploads/2018/09/sorry.jpg | K52: 8.6 | L52: 47 | M52: MilTech 340XL | O52: 52 | P52: 52 | Q52: 52 | R52: 52 | S52: 52 | T52: 52 | U52: MilTech 340XL | V52: 18 | W52: 8.6 | X52: 0 | Y52: N/A | Z52: In/Out door | AA52: N/A | AC52: MilTech 340XL | AD52: 1 | AE52: 1 | AF52: 1 | AG52: 1 | AH52: 1 | AI52: 1 | AJ52: 1 | AK52: 1 | AL52: 1 | AM52: 1 | AN52: 1 | AO52: 1 | AP52: 1 | AQ52: 1 | AR52: 1 | AS52: 1 | AT52: 1 | AU52: 1 | AV52: 1 | AW52: 1 | AX52: 1 | AY52: 1 | AZ52: 1 | BA52: 1 | BB52: 1 | BC52: 1 | BD52: 1 | BF52: 1 | BH52: FALSE | BI52: FALSE | BJ52: FALSE | BK52: FALSE | BL52: FALSE | BM52: FALSE | BP52: =ROW() -> 52 | DT52: N/A | DU52: MilTech 340XL | DV52: In/Out door | DW52: In/Out door | DX52: In/Out door | EA52: 52 | EB52: 0 | EC52: 0 | ED52: 52 | EE52: 52 | EG52: MilTech 340XL | EH52: 1 | EI52: 0 | EJ52: 1 | EK52: 0 | EL52: 0 | EM52: 1 | EN52: 1 | EO52: 0 | EP52: 0 | EQ52: 1 | ER52: 0 | ES52: 0 | ET52: MilTech 340XL
A53: MilTech 480 | B53: 0.1136 | C53: 0.00015 | D53: N/A | E53: =((B53*SQRT($E$3*1000)+C53*$E$3*1000))/30480*Length*(1+'Cable Parameters'!I53/100*('Cable Parameters'!$E$1-25))+('Insertion Loss'!$F$16+'Insertion Loss'!$F$17)*SQRT($E$3) -> 0 | F53: 10 | G53: 150 | H53: -65 | I53: 0.2 | J53: http://www.eimfirst.co.il/wp-content/uploads/2018/07/MT480webB.pdf | K53: 12.32 | L53: 48 | M53: MilTech 480 | O53: 53 | P53: 53 | Q53: 53 | R53: 53 | S53: 53 | T53: 53 | U53: MilTech 480 | V53: 10 | W53: 12.32 | X53: 0 | Y53: N/A | Z53: In/Out door | AA53: 60.32 | AC53: MilTech 480 | AD53: 1 | AE53: 1 | AF53: 1 | AG53: 1 | AH53: 1 | AI53: 1 | AJ53: 1 | AK53: 1 | AL53: 1 | AM53: 1 | AN53: 1 | AO53: 1 | AP53: 1 | AQ53: 1 | AR53: 1 | AS53: 1 | AT53: 1 | AU53: 1 | AV53: 1 | AW53: 1 | AX53: 1 | AY53: 1 | AZ53: 1 | BA53: 1 | BB53: 1 | BC53: 1 | BD53: 1 | BF53: 1 | BH53: FALSE | BI53: FALSE | BJ53: FALSE | BK53: FALSE | BL53: FALSE | BM53: FALSE | BP53: =ROW() -> 53 | DT53: 60.32 | DU53: MilTech 480 | DV53: In/Out door | DW53: In/Out door | DX53: In/Out door | EA53: 53 | EB53: 0 | EC53: 0 | ED53: 53 | EE53: 53 | EG53: MilTech 480 | EH53: 1 | EI53: 0 | EJ53: 1 | EK53: 0 | EL53: 0 | EM53: 1 | EN53: 1 | EO53: 0 | EP53: 0 | EQ53: 1 | ER53: 0 | ES53: 0 | ET53: MilTech 480
A54: MilTech 650 | B54: 0.08435 | C54: 0.0001444 | D54: N/A | E54: =((B54*SQRT($E$3*1000)+C54*$E$3*1000))/30480*Length*(1+'Cable Parameters'!I54/100*('Cable Parameters'!$E$1-25))+('Insertion Loss'!$F$16+'Insertion Loss'!$F$17)*SQRT($E$3) -> 0 | F54: 8.5 | G54: 150 | H54: -65 | I54: 0.2 | J54: http://www.eimfirst.co.il/wp-content/uploads/2018/07/MT650webB.pdf | K54: 16.64 | L54: 49 | M54: MilTech 650 | O54: 54 | P54: 54 | Q54: 54 | R54: 54 | S54: 54 | T54: 54 | U54: MilTech 650 | V54: 8.5 | W54: 16.64 | X54: 0 | Y54: N/A | Z54: In/Out door | AA54: 101.6 | AC54: MilTech 650 | AD54: 1 | AE54: 1 | AF54: 1 | AG54: 1 | AH54: 1 | AI54: 1 | AJ54: 1 | AK54: 1 | AL54: 1 | AM54: 1 | AN54: 1 | AO54: 1 | AP54: 1 | AQ54: 1 | AR54: 1 | AS54: 1 | AT54: 1 | AU54: 1 | AV54: 1 | AW54: 1 | AX54: 1 | AY54: 1 | AZ54: 1 | BA54: 1 | BB54: 1 | BC54: 1 | BD54: 1 | BF54: 1 | BH54: FALSE | BI54: FALSE | BJ54: FALSE | BK54: FALSE | BL54: FALSE | BM54: FALSE | BP54: =ROW() -> 54 | DT54: 101.6 | DU54: MilTech 650 | DV54: In/Out door | DW54: In/Out door | DX54: In/Out door | EA54: 54 | EB54: 0 | EC54: 0 | ED54: 54 | EE54: 54 | EG54: MilTech 650 | EH54: 1 | EI54: 0 | EJ54: 1 | EK54: 0 | EL54: 0 | EM54: 1 | EN54: 1 | EO54: 0 | EP54: 0 | EQ54: 1 | ER54: 0 | ES54: 0 | ET54: MilTech 650
A55: MilTech light MTL210 | B55: 0.3072 | C55: 0.00013 | D55: N/A | E55: =((B55*SQRT($E$3*1000)+C55*$E$3*1000))/30480*Length*(1+'Cable Parameters'!I55/100*('Cable Parameters'!$E$1-25))+('Insertion Loss'!$F$16+'Insertion Loss'!$F$17)*SQRT($E$3) -> 0 | F55: 18 | G55: 150 | H55: -65 | I55: 0.2 | J55: http://www.eimfirst.co.il/wp-content/uploads/2018/07/MTL210webB.pdf | K55: 5.3 | L55: 50 | M55: MilTech light MTL210 | O55: 55 | P55: 55 | Q55: 55 | R55: 55 | S55: 55 | T55: 55 | U55: MilTech light MTL210 | V55: 18 | W55: 5.3 | X55: 0 | Y55: N/A | Z55: In/Out door | AA55: 25.4 | AC55: MilTech light MTL210 | AD55: 1 | AE55: 1 | AF55: 1 | AG55: 1 | AH55: 1 | AI55: 1 | AJ55: 1 | AK55: 1 | AL55: 1 | AM55: 1 | AN55: 1 | AO55: 1 | AP55: 1 | AQ55: 1 | AR55: 1 | AS55: 1 | AT55: 1 | AU55: 1 | AV55: 1 | AW55: 1 | AX55: 1 | AY55: 1 | AZ55: 1 | BA55: 1 | BB55: 1 | BC55: 1 | BD55: 1 | BF55: 1 | BH55: FALSE | BI55: FALSE | BJ55: FALSE | BK55: FALSE | BL55: FALSE | BM55: FALSE | BP55: =ROW() -> 55 | DT55: 25.4 | DU55: MilTech light MTL210 | DV55: In/Out door | DW55: In/Out door | DX55: In/Out door | EA55: 55 | EB55: 0 | EC55: 0 | ED55: 55 | EE55: 55 | EG55: MilTech light MTL210 | EH55: 1 | EI55: 0 | EJ55: 1 | EK55: 0 | EL55: 0 | EM55: 1 | EN55: 1 | EO55: 0 | EP55: 0 | EQ55: 0 | ER55: 0 | ES55: 0 | ET55: MilTech light MTL210
A56: MilTech light MTL230 | B56: 0.2462 | C56: 0.00013 | D56: N/A | E56: =((B56*SQRT($E$3*1000)+C56*$E$3*1000))/30480*Length*(1+'Cable Parameters'!I56/100*('Cable Parameters'!$E$1-25))+('Insertion Loss'!$F$16+'Insertion Loss'!$F$17)*SQRT($E$3) -> 0 | F56: 18 | G56: 150 | H56: -65 | I56: 0.2 | J56: http://www.eimfirst.co.il/wp-content/uploads/2018/07/MTL230webB.pdf | K56: 5.8 | L56: 51 | M56: MilTech light MTL230 | O56: 56 | P56: 56 | Q56: 56 | R56: 56 | S56: 56 | T56: 56 | U56: MilTech light MTL230 | V56: 18 | W56: 5.8 | X56: 0 | Y56: N/A | Z56: In/Out door | AA56: 28.575 | AC56: MilTech light MTL230 | AD56: 1 | AE56: 1 | AF56: 1 | AG56: 1 | AH56: 1 | AI56: 1 | AJ56: 1 | AK56: 1 | AL56: 1 | AM56: 1 | AN56: 1 | AO56: 1 | AP56: 1 | AQ56: 1 | AR56: 1 | AS56: 1 | AT56: 1 | AU56: 1 | AV56: 1 | AW56: 1 | AX56: 1 | AY56: 1 | AZ56: 1 | BA56: 1 | BB56: 1 | BC56: 1 | BD56: 1 | BF56: 1 | BH56: FALSE | BI56: FALSE | BJ56: FALSE | BK56: FALSE | BL56: FALSE | BM56: FALSE | BP56: =ROW() -> 56 | DT56: 28.575 | DU56: MilTech light MTL230 | DV56: In/Out door | DW56: In/Out door | DX56: In/Out door | EA56: 56 | EB56: 0 | EC56: 0 | ED56: 56 | EE56: 56 | EG56: MilTech light MTL230 | EH56: 1 | EI56: 0 | EJ56: 1 | EK56: 0 | EL56: 0 | EM56: 1 | EN56: 1 | EO56: 0 | EP56: 0 | EQ56: 0 | ER56: 0 | ES56: 0 | ET56: MilTech light MTL230
A57: MilTech light MTL270 | B57: 0.1901 | C57: 0.00013 | D57: N/A | E57: =((B57*SQRT($E$3*1000)+C57*$E$3*1000))/30480*Length*(1+'Cable Parameters'!I57/100*('Cable Parameters'!$E$1-25))+('Insertion Loss'!$F$16+'Insertion Loss'!$F$17)*SQRT($E$3) -> 0 | F57: 18 | G57: 150 | H57: -65 | I57: 0.2 | J57: http://www.eimfirst.co.il/wp-content/uploads/2018/07/MTL270webB.pdf | K57: 6.9 | L57: 52 | M57: MilTech light MTL270 | O57: 57 | P57: 57 | Q57: 57 | R57: 57 | S57: 57 | T57: 57 | U57: MilTech light MTL270 | V57: 18 | W57: 6.9 | X57: 0 | Y57: N/A | Z57: In/Out door | AA57: 31.75 | AC57: MilTech light MTL270 | AD57: 1 | AE57: 1 | AF57: 1 | AG57: 1 | AH57: 1 | AI57: 1 | AJ57: 1 | AK57: 1 | AL57: 1 | AM57: 1 | AN57: 1 | AO57: 1 | AP57: 1 | AQ57: 1 | AR57: 1 | AS57: 1 | AT57: 1 | AU57: 1 | AV57: 1 | AW57: 1 | AX57: 1 | AY57: 1 | AZ57: 1 | BA57: 1 | BB57: 1 | BC57: 1 | BD57: 1 | BF57: 1 | BH57: FALSE | BI57: FALSE | BJ57: FALSE | BK57: FALSE | BL57: FALSE | BM57: FALSE | BP57: =ROW() -> 57 | DT57: 31.75 | DU57: MilTech light MTL270 | DV57: In/Out door | DW57: In/Out door | DX57: In/Out door | EA57: 57 | EB57: 0 | EC57: 0 | ED57: 57 | EE57: 57 | EG57: MilTech light MTL270 | EH57: 1 | EI57: 0 | EJ57: 1 | EK57: 0 | EL57: 0 | EM57: 1 | EN57: 1 | EO57: 0 | EP57: 0 | EQ57: 0 | ER57: 0 | ES57: 0 | ET57: MilTech light MTL270
A58: MilTech light MTL330 | B58: 0.1414 | C58: 0.00014 | D58: N/A | E58: =((B58*SQRT($E$3*1000)+C58*$E$3*1000))/30480*Length*(1+'Cable Parameters'!I58/100*('Cable Parameters'!$E$1-25))+('Insertion Loss'!$F$16+'Insertion Loss'!$F$17)*SQRT($E$3) -> 0 | F58: 18 | G58: 150 | H58: -65 | I58: 0.2 | J58: http://www.eimfirst.co.il/wp-content/uploads/2018/07/MTL330webB.pdf | K58: 8.6 | L58: 53 | M58: MilTech light MTL330 | O58: 58 | P58: 58 | Q58: 58 | R58: 58 | S58: 58 | T58: 58 | U58: MilTech light MTL330 | V58: 18 | W58: 8.6 | X58: 0 | Y58: N/A | Z58: In/Out door | AA58: 44.45 | AC58: MilTech light MTL330 | AD58: 1 | AE58: 1 | AF58: 1 | AG58: 1 | AH58: 1 | AI58: 1 | AJ58: 1 | AK58: 1 | AL58: 1 | AM58: 1 | AN58: 1 | AO58: 1 | AP58: 1 | AQ58: 1 | AR58: 1 | AS58: 1 | AT58: 1 | AU58: 1 | AV58: 1 | AW58: 1 | AX58: 1 | AY58: 1 | AZ58: 1 | BA58: 1 | BB58: 1 | BC58: 1 | BD58: 1 | BF58: 1 | BH58: FALSE | BI58: FALSE | BJ58: FALSE | BK58: FALSE | BL58: FALSE | BM58: FALSE | BP58: =ROW() -> 58 | DT58: 44.45 | DU58: MilTech light MTL330 | DV58: In/Out door | DW58: In/Out door | DX58: In/Out door | EA58: 58 | EB58: 0 | EC58: 0 | ED58: 58 | EE58: 58 | EG58: MilTech light MTL330 | EH58: 1 | EI58: 0 | EJ58: 1 | EK58: 0 | EL58: 0 | EM58: 1 | EN58: 1 | EO58: 0 | EP58: 0 | EQ58: 0 | ER58: 0 | ES58: 0 | ET58: MilTech light MTL330
A59: MilTech light MTL440 | B59: 0.1118 | C59: 0.00015 | D59: N/A | E59: =((B59*SQRT($E$3*1000)+C59*$E$3*1000))/30480*Length*(1+'Cable Parameters'!I59/100*('Cable Parameters'!$E$1-25))+('Insertion Loss'!$F$16+'Insertion Loss'!$F$17)*SQRT($E$3) -> 0 | F59: 12 | G59: 150 | H59: -65 | I59: 0.2 | J59: http://www.eimfirst.co.il/wp-content/uploads/2018/07/MTL440webB.pdf | K59: 11 | L59: 54 | M59: MilTech light MTL440 | O59: 59 | P59: 59 | Q59: 59 | R59: 59 | S59: 59 | T59: 59 | U59: MilTech light MTL440 | V59: 12 | W59: 11 | X59: 0 | Y59: N/A | Z59: In/Out door | AA59: 63.5 | AC59: MilTech light MTL440 | AD59: 1 | AE59: 1 | AF59: 1 | AG59: 1 | AH59: 1 | AI59: 1 | AJ59: 1 | AK59: 1 | AL59: 1 | AM59: 1 | AN59: 1 | AO59: 1 | AP59: 1 | AQ59: 1 | AR59: 1 | AS59: 1 | AT59: 1 | AU59: 1 | AV59: 1 | AW59: 1 | AX59: 1 | AY59: 1 | AZ59: 1 | BA59: 1 | BB59: 1 | BC59: 1 | BD59: 1 | BF59: 1 | BH59: FALSE | BI59: FALSE | BJ59: FALSE | BK59: FALSE | BL59: FALSE | BM59: FALSE | BP59: =ROW() -> 59 | DT59: 63.5 | DU59: MilTech light MTL440 | DV59: In/Out door | DW59: In/Out door | DX59: In/Out door | EA59: 59 | EB59: 0 | EC59: 0 | ED59: 59 | EE59: 59 | EG59: MilTech light MTL440 | EH59: 1 | EI59: 0 | EJ59: 1 | EK59: 0 | EL59: 0 | EM59: 1 | EN59: 1 | EO59: 0 | EP59: 0 | EQ59: 0 | ER59: 0 | ES59: 0 | ET59: MilTech light MTL440
A60: MilTech 340-LS/ZHAL | B60: 0.1414 | C60: 0.00014 | D60: N/A | E60: =((B60*SQRT($E$3*1000)+C60*$E$3*1000))/30480*Length*(1+'Cable Parameters'!I60/100*('Cable Parameters'!$E$1-25))+('Insertion Loss'!$F$16+'Insertion Loss'!$F$17)*SQRT($E$3) -> 0 | F60: 18 | G60: 85 | H60: -30 | I60: 0.2 | J60: http://www.eimfirst.co.il/wp-content/uploads/2018/09/MT340LS.pdf | K60: 8.8 | L60: 55 | M60: MilTech 340-LS/ZHAL | O60: 60 | P60: 60 | Q60: 60 | R60: 60 | S60: 60 | T60: 60 | U60: MilTech 340-LS/ZHAL | V60: 18 | W60: 8.8 | X60: 0 | Y60: N/A | Z60: In/Out door | AA60: 44.45 | AC60: MilTech 340-LS/ZHAL | AD60: 1 | AE60: 1 | AF60: 1 | AG60: 1 | AH60: 1 | AI60: 1 | AJ60: 1 | AK60: 1 | AL60: 1 | AM60: 1 | AN60: 1 | AO60: 1 | AP60: 1 | AQ60: 1 | AR60: 1 | AS60: 1 | AT60: 1 | AU60: 1 | AV60: 1 | AW60: 1 | AX60: 1 | AY60: 1 | AZ60: 1 | BA60: 1 | BB60: 1 | BC60: 1 | BD60: 1 | BF60: 1 | BH60: FALSE | BI60: FALSE | BJ60: FALSE | BK60: FALSE | BL60: FALSE | BM60: FALSE | BP60: =ROW() -> 60 | DT60: 44.45 | DU60: MilTech 340-LS/ZHAL | DV60: In/Out door | DW60: In/Out door | DX60: In/Out door | EA60: 60 | EB60: 0 | EC60: 0 | ED60: 60 | EE60: 60 | EG60: MilTech 340-LS/ZHAL | EH60: 1 | EI60: 0 | EJ60: 1 | EK60: 0 | EL60: 0 | EM60: 1 | EN60: 1 | EO60: 0 | EP60: 0 | EQ60: 0 | ER60: 0 | ES60: 0 | ET60: MilTech 340-LS/ZHAL
A61: PhaseTrack SR PTSRB047 | B61: 1.17249 | C61: 0.00091751 | D61: N/A | E61: =((B61*SQRT($E$3*1000)+C61*$E$3*1000))/30480*Length*(1+'Cable Parameters'!I61/100*('Cable Parameters'!$E$1-25))+('Insertion Loss'!$F$16+'Insertion Loss'!$F$17)*SQRT($E$3) -> 0 | F61: 138.5 | G61: 125 | H61: -55 | I61: 0.2 | J61: http://www.eimfirst.co.il/wp-content/uploads/2018/09/ptsrb047-141.pdf | K61: 1.19 | L61: 56 | M61: PhaseTrack SR PTSRB047 | O61: 61 | P61: 61 | Q61: 61 | R61: 61 | S61: 61 | T61: 61 | U61: PhaseTrack SR PTSRB047 | V61: 138.5 | W61: 1.19 | X61: 0 | Y61: N/A | Z61: In/Out door | AA61: 3.81 | AC61: PhaseTrack SR PTSRB047 | AD61: 1 | AE61: 1 | AF61: 1 | AG61: 1 | AH61: 1 | AI61: 1 | AJ61: 1 | AK61: 1 | AL61: 1 | AM61: 1 | AN61: 1 | AO61: 1 | AP61: 1 | AQ61: 1 | AR61: 1 | AS61: 1 | AT61: 1 | AU61: 1 | AV61: 1 | AW61: 1 | AX61: 1 | AY61: 1 | AZ61: 1 | BA61: 1 | BB61: 1 | BC61: 1 | BD61: 1 | BF61: 1 | BH61: FALSE | BI61: FALSE | BJ61: FALSE | BK61: FALSE | BL61: FALSE | BM61: FALSE | BP61: =ROW() -> 61 | CA61: 0.01 | CB61: 0.1356 | CC61: 0.03 | CD61: 0.05 | CE61: 0.1 | CF61: 0.15 | CG61: 0.4 | CH61: 0.45 | CI61: 0.5 | CJ61: 0.9 | CK61: 1 | CL61: 1.5 | CM61: 1.8 | CN61: 2 | CO61: 2.5 | CP61: 3 | CQ61: 4 | CR61: 5 | CS61: 5.8 | CT61: 6 | CU61: 8 | CV61: 10 | CW61: 11 | CX61: 12 | CY61: 13.5 | CZ61: 15 | DA61: 16 | DB61: 18 | DC61: 24 | DD61: 26.5 | DE61: 28 | DF61: 35 | DG61: 40 | DH61: 50 | DI61: 63 | DJ61: 65 | DK61: 90 | DT61: 3.81 | DU61: PhaseTrack SR PTSRB047 | DV61: In/Out door | DW61: In/Out door | DX61: In/Out door | EA61: 61 | EB61: 0 | EC61: 0 | ED61: 61 | EE61: 61 | EG61: PhaseTrack SR PTSRB047 | EH61: 1 | EI61: 1 | EJ61: 0 | EK61: 0 | EL61: 1 | EM61: 1 | EN61: 1 | EO61: 1 | EP61: 0 | EQ61: 0 | ER61: 0 | ES61: 0 | ET61: PhaseTrack SR PTSRB047
A62: PhaseTrack SR PTSRB085 | B62: 0.63712 | C62: 0.0009676 | D62: N/A | E62: =((B62*SQRT($E$3*1000)+C62*$E$3*1000))/30480*Length*(1+'Cable Parameters'!I62/100*('Cable Parameters'!$E$1-25))+('Insertion Loss'!$F$16+'Insertion Loss'!$F$17)*SQRT($E$3) -> 0 | F62: 80.2 | G62: 125 | H62: -55 | I62: 0.2 | J62: http://www.eimfirst.co.il/wp-content/uploads/2018/09/ptsrb047-141.pdf | K62: 2.16 | L62: 57 | M62: PhaseTrack SR PTSRB085 | O62: 62 | P62: 62 | Q62: 62 | R62: 62 | S62: 62 | T62: 62 | U62: PhaseTrack SR PTSRB085 | V62: 80.2 | W62: 2.16 | X62: 0 | Y62: N/A | Z62: In/Out door | AA62: 6.35 | AC62: PhaseTrack SR PTSRB085 | AD62: 1 | AE62: 1 | AF62: 1 | AG62: 1 | AH62: 1 | AI62: 1 | AJ62: 1 | AK62: 1 | AL62: 1 | AM62: 1 | AN62: 1 | AO62: 1 | AP62: 1 | AQ62: 1 | AR62: 1 | AS62: 1 | AT62: 1 | AU62: 1 | AV62: 1 | AW62: 1 | AX62: 1 | AY62: 1 | AZ62: 1 | BA62: 1 | BB62: 1 | BC62: 1 | BD62: 1 | BF62: 1 | BH62: FALSE | BI62: FALSE | BJ62: FALSE | BK62: FALSE | BL62: FALSE | BM62: FALSE | BP62: =ROW() -> 62 | DT62: 6.35 | DU62: PhaseTrack SR PTSRB085 | DV62: In/Out door | DW62: In/Out door | DX62: In/Out door | EA62: 62 | EB62: 0 | EC62: 0 | ED62: 62 | EE62: 62 | EG62: PhaseTrack SR PTSRB085 | EH62: 1 | EI62: 1 | EJ62: 0 | EK62: 0 | EL62: 1 | EM62: 1 | EN62: 1 | EO62: 1 | EP62: 0 | EQ62: 0 | ER62: 0 | ES62: 0 | ET62: PhaseTrack SR PTSRB085
A63: PhaseTrack SR PTSRB141 | B63: 0.30382 | C63: 0.00077836 | D63: N/A | E63: =((B63*SQRT($E$3*1000)+C63*$E$3*1000))/30480*Length*(1+'Cable Parameters'!I63/100*('Cable Parameters'!$E$1-25))+('Insertion Loss'!$F$16+'Insertion Loss'!$F$17)*SQRT($E$3) -> 0 | F63: 38.4 | G63: 125 | H63: -55 | I63: 0.2 | J63: http://www.eimfirst.co.il/wp-content/uploads/2018/09/ptsrb047-141.pdf | K63: 3.58 | L63: 58 | M63: PhaseTrack SR PTSRB141 | O63: 63 | P63: 63 | Q63: 63 | R63: 63 | S63: 63 | T63: 63 | U63: PhaseTrack SR PTSRB141 | V63: 38.4 | W63: 3.58 | X63: 0 | Y63: N/A | Z63: In/Out door | AA63: 10.795 | AC63: PhaseTrack SR PTSRB141 | AD63: 1 | AE63: 1 | AF63: 1 | AG63: 1 | AH63: 1 | AI63: 1 | AJ63: 1 | AK63: 1 | AL63: 1 | AM63: 1 | AN63: 1 | AO63: 1 | AP63: 1 | AQ63: 1 | AR63: 1 | AS63: 1 | AT63: 1 | AU63: 1 | AV63: 1 | AW63: 1 | AX63: 1 | AY63: 1 | AZ63: 1 | BA63: 1 | BB63: 1 | BC63: 1 | BD63: 1 | BF63: 1 | BH63: FALSE | BI63: FALSE | BJ63: FALSE | BK63: FALSE | BL63: FALSE | BM63: FALSE | BP63: =ROW() -> 63 | DT63: 10.795 | DU63: PhaseTrack SR PTSRB141 | DV63: In/Out door | DW63: In/Out door | DX63: In/Out door | EA63: 63 | EB63: 0 | EC63: 0 | ED63: 63 | EE63: 63 | EG63: PhaseTrack SR PTSRB141 | EH63: 1 | EI63: 1 | EJ63: 0 | EK63: 0 | EL63: 1 | EM63: 1 | EN63: 1 | EO63: 1 | EP63: 0 | EQ63: 0 | ER63: 0 | ES63: 0 | ET63: PhaseTrack SR PTSRB141
A64: PhaseTrack PF 047 | B64: 1.24487 | C64: 0.0010516 | D64: N/A | E64: =((B64*SQRT($E$3*1000)+C64*$E$3*1000))/30480*Length*(1+'Cable Parameters'!I64/100*('Cable Parameters'!$E$1-25))+('Insertion Loss'!$F$16+'Insertion Loss'!$F$17)*SQRT($E$3) -> 0 | F64: 142.3 | G64: 125 | H64: -55 | I64: 0.2 | J64: http://www.eimfirst.co.il/wp-content/uploads/2018/09/pf047-402.pdf | K64: 1.62 | L64: 59 | M64: PhaseTrack PF 047 | O64: 64 | P64: 64 | Q64: 64 | R64: 64 | S64: 64 | T64: 64 | U64: PhaseTrack PF 047 | V64: 142.3 | W64: 1.62 | X64: 0 | Y64: N/A | Z64: In/Out door | AA64: 6.35 | AC64: PhaseTrack PF 047 | AD64: 1 | AE64: 1 | AF64: 1 | AG64: 1 | AH64: 1 | AI64: 1 | AJ64: 1 | AK64: 1 | AL64: 1 | AM64: 1 | AN64: 1 | AO64: 1 | AP64: 1 | AQ64: 1 | AR64: 1 | AS64: 1 | AT64: 1 | AU64: 1 | AV64: 1 | AW64: 1 | AX64: 1 | AY64: 1 | AZ64: 1 | BA64: 1 | BB64: 1 | BC64: 1 | BD64: 1 | BF64: 1 | BH64: FALSE | BI64: FALSE | BJ64: FALSE | BK64: FALSE | BL64: FALSE | BM64: FALSE | BP64: =ROW() -> 64 | DT64: 6.35 | DU64: PhaseTrack PF 047 | DV64: In/Out door | DW64: In/Out door | DX64: In/Out door | EA64: 64 | EB64: 0 | EC64: 0 | ED64: 64 | EE64: 64 | EG64: PhaseTrack PF 047 | EH64: 1 | EI64: 1 | EJ64: 1 | EK64: 0 | EL64: 0 | EM64: 1 | EN64: 1 | EO64: 1 | EP64: 0 | EQ64: 0 | ER64: 0 | ES64: 0 | ET64: PhaseTrack PF 047
A65: PhaseTrack PF 130 | B65: 0.43043 | C65: 0.00077 | D65: N/A | E65: =((B65*SQRT($E$3*1000)+C65*$E$3*1000))/30480*Length*(1+'Cable Parameters'!I65/100*('Cable Parameters'!$E$1-25))+('Insertion Loss'!$F$16+'Insertion Loss'!$F$17)*SQRT($E$3) -> 0 | F65: 52.3 | G65: 125 | H65: -55 | I65: 0.2 | J65: http://www.eimfirst.co.il/wp-content/uploads/2018/09/pf047-402.pdf | K65: 3.3 | L65: 60 | M65: PhaseTrack PF 130 | O65: 65 | P65: 65 | Q65: 65 | R65: 65 | S65: 65 | T65: 65 | U65: PhaseTrack PF 130 | V65: 52.3 | W65: 3.3 | X65: 0 | Y65: N/A | Z65: In/Out door | AA65: 15.875 | AC65: PhaseTrack PF 130 | AD65: 1 | AE65: 1 | AF65: 1 | AG65: 1 | AH65: 1 | AI65: 1 | AJ65: 1 | AK65: 1 | AL65: 1 | AM65: 1 | AN65: 1 | AO65: 1 | AP65: 1 | AQ65: 1 | AR65: 1 | AS65: 1 | AT65: 1 | AU65: 1 | AV65: 1 | AW65: 1 | AX65: 1 | AY65: 1 | AZ65: 1 | BA65: 1 | BB65: 1 | BC65: 1 | BD65: 1 | BF65: 1 | BH65: FALSE | BI65: FALSE | BJ65: FALSE | BK65: FALSE | BL65: FALSE | BM65: FALSE | BP65: =ROW() -> 65 | DT65: 15.875 | DU65: PhaseTrack PF 130 | DV65: In/Out door | DW65: In/Out door | DX65: In/Out door | EA65: 65 | EB65: 0 | EC65: 0 | ED65: 65 | EE65: 65 | EG65: PhaseTrack PF 130 | EH65: 1 | EI65: 1 | EJ65: 1 | EK65: 0 | EL65: 0 | EM65: 1 | EN65: 1 | EO65: 1 | EP65: 0 | EQ65: 0 | ER65: 0 | ES65: 0 | ET65: PhaseTrack PF 130
A66: PhaseTrack PF 402 | B66: 0.3399 | C66: 0.0007645 | D66: N/A | E66: =((B66*SQRT($E$3*1000)+C66*$E$3*1000))/30480*Length*(1+'Cable Parameters'!I66/100*('Cable Parameters'!$E$1-25))+('Insertion Loss'!$F$16+'Insertion Loss'!$F$17)*SQRT($E$3) -> 0 | F66: 38.7 | G66: 125 | H66: -55 | I66: 0.2 | J66: http://www.eimfirst.co.il/wp-content/uploads/2018/09/pf047-402.pdf | K66: 4 | L66: 61 | M66: PhaseTrack PF 402 | O66: 66 | P66: 66 | Q66: 66 | R66: 66 | S66: 66 | T66: 66 | U66: PhaseTrack PF 402 | V66: 38.7 | W66: 4 | X66: 0 | Y66: N/A | Z66: In/Out door | AA66: 19.05 | AC66: PhaseTrack PF 402 | AD66: 1 | AE66: 1 | AF66: 1 | AG66: 1 | AH66: 1 | AI66: 1 | AJ66: 1 | AK66: 1 | AL66: 1 | AM66: 1 | AN66: 1 | AO66: 1 | AP66: 1 | AQ66: 1 | AR66: 1 | AS66: 1 | AT66: 1 | AU66: 1 | AV66: 1 | AW66: 1 | AX66: 1 | AY66: 1 | AZ66: 1 | BA66: 1 | BB66: 1 | BC66: 1 | BD66: 1 | BF66: 1 | BH66: FALSE | BI66: FALSE | BJ66: FALSE | BK66: FALSE | BL66: FALSE | BM66: FALSE | BP66: =ROW() -> 66 | DT66: 19.05 | DU66: PhaseTrack PF 402 | DV66: In/Out door | DW66: In/Out door | DX66: In/Out door | EA66: 66 | EB66: 0 | EC66: 0 | ED66: 66 | EE66: 66 | EG66: PhaseTrack PF 402 | EH66: 1 | EI66: 1 | EJ66: 1 | EK66: 0 | EL66: 0 | EM66: 1 | EN66: 1 | EO66: 1 | EP66: 0 | EQ66: 0 | ER66: 0 | ES66: 0 | ET66: PhaseTrack PF 402
A67: PhaseTrack PF 405 | B67: 0.69102 | C67: 0.0009697 | D67: N/A | E67: =((B67*SQRT($E$3*1000)+C67*$E$3*1000))/30480*Length*(1+'Cable Parameters'!I67/100*('Cable Parameters'!$E$1-25))+('Insertion Loss'!$F$16+'Insertion Loss'!$F$17)*SQRT($E$3) -> 0 | F67: 79.9 | G67: 125 | H67: -55 | I67: 0.2 | J67: http://www.eimfirst.co.il/wp-content/uploads/2018/09/pf047-402.pdf | K67: 2.38 | L67: 62 | M67: PhaseTrack PF 405 | O67: 67 | P67: 67 | Q67: 67 | R67: 67 | S67: 67 | T67: 67 | U67: PhaseTrack PF 405 | V67: 79.9 | W67: 2.38 | X67: 0 | Y67: N/A | Z67: In/Out door | AA67: 12.7 | AC67: PhaseTrack PF 405 | AD67: 1 | AE67: 1 | AF67: 1 | AG67: 1 | AH67: 1 | AI67: 1 | AJ67: 1 | AK67: 1 | AL67: 1 | AM67: 1 | AN67: 1 | AO67: 1 | AP67: 1 | AQ67: 1 | AR67: 1 | AS67: 1 | AT67: 1 | AU67: 1 | AV67: 1 | AW67: 1 | AX67: 1 | AY67: 1 | AZ67: 1 | BA67: 1 | BB67: 1 | BC67: 1 | BD67: 1 | BF67: 1 | BH67: FALSE | BI67: FALSE | BJ67: FALSE | BK67: FALSE | BL67: FALSE | BM67: FALSE | BP67: =ROW() -> 67 | DT67: 12.7 | DU67: PhaseTrack PF 405 | DV67: In/Out door | DW67: In/Out door | DX67: In/Out door | EA67: 67 | EB67: 0 | EC67: 0 | ED67: 67 | EE67: 67 | EG67: PhaseTrack PF 405 | EH67: 1 | EI67: 1 | EJ67: 1 | EK67: 0 | EL67: 0 | EM67: 1 | EN67: 1 | EO67: 1 | EP67: 0 | EQ67: 0 | ER67: 0 | ES67: 0 | ET67: PhaseTrack PF 405
A68: PhaseTrack PT 318 | B68: 0.15565 | C68: 0.00076725 | D68: N/A | E68: =((B68*SQRT($E$3*1000)+C68*$E$3*1000))/30480*Length*(1+'Cable Parameters'!I68/100*('Cable Parameters'!$E$1-25))+('Insertion Loss'!$F$16+'Insertion Loss'!$F$17)*SQRT($E$3) -> 0 | F68: 18.9 | G68: 150 | H68: -55 | I68: 0.2 | J68: http://www.eimfirst.co.il/wp-content/uploads/2018/09/pt11o-318.pdf | K68: 8 | L68: 63 | M68: PhaseTrack PT 318 | O68: 68 | P68: 68 | Q68: 68 | R68: 68 | S68: 68 | T68: 68 | U68: PhaseTrack PT 318 | V68: 18.9 | W68: 8 | X68: 0 | Y68: N/A | Z68: In/Out door | AA68: 44.45 | AC68: PhaseTrack PT 318 | AD68: 1 | AE68: 1 | AF68: 1 | AG68: 1 | AH68: 1 | AI68: 1 | AJ68: 1 | AK68: 1 | AL68: 1 | AM68: 1 | AN68: 1 | AO68: 1 | AP68: 1 | AQ68: 1 | AR68: 1 | AS68: 1 | AT68: 1 | AU68: 1 | AV68: 1 | AW68: 1 | AX68: 1 | AY68: 1 | AZ68: 1 | BA68: 1 | BB68: 1 | BC68: 1 | BD68: 1 | BF68: 1 | BH68: FALSE | BI68: FALSE | BJ68: FALSE | BK68: FALSE | BL68: FALSE | BM68: FALSE | BP68: =ROW() -> 68 | DT68: 44.45 | DU68: PhaseTrack PT 318 | DV68: In/Out door | DW68: In/Out door | DX68: In/Out door | EA68: 68 | EB68: 0 | EC68: 0 | ED68: 68 | EE68: 68 | EG68: PhaseTrack PT 318 | EH68: 1 | EI68: 1 | EJ68: 0 | EK68: 0 | EL68: 0 | EM68: 1 | EN68: 0 | EO68: 1 | EP68: 0 | EQ68: 0 | ER68: 0 | ES68: 0 | ET68: PhaseTrack PT 318
A69: PhaseTrack PT110 | B69: 0.72391 | C69: 0.0013239 | D69: N/A | E69: =((B69*SQRT($E$3*1000)+C69*$E$3*1000))/30480*Length*(1+'Cable Parameters'!I69/100*('Cable Parameters'!$E$1-25))+('Insertion Loss'!$F$16+'Insertion Loss'!$F$17)*SQRT($E$3) -> 0 | F69: 80 | G69: 150 | H69: -55 | I69: 0.2 | J69: http://www.eimfirst.co.il/wp-content/uploads/2018/09/pt11o-318.pdf | K69: 2.74 | L69: 64 | M69: PhaseTrack PT110 | O69: 69 | P69: 69 | Q69: 69 | R69: 69 | S69: 69 | T69: 69 | U69: PhaseTrack PT110 | V69: 80 | W69: 2.74 | X69: 0 | Y69: N/A | Z69: In/Out door | AA69: 13.97 | AC69: PhaseTrack PT110 | AD69: 1 | AE69: 1 | AF69: 1 | AG69: 1 | AH69: 1 | AI69: 1 | AJ69: 1 | AK69: 1 | AL69: 1 | AM69: 1 | AN69: 1 | AO69: 1 | AP69: 1 | AQ69: 1 | AR69: 1 | AS69: 1 | AT69: 1 | AU69: 1 | AV69: 1 | AW69: 1 | AX69: 1 | AY69: 1 | AZ69: 1 | BA69: 1 | BB69: 1 | BC69: 1 | BD69: 1 | BF69: 1 | BH69: FALSE | BI69: FALSE | BJ69: FALSE | BK69: FALSE | BL69: FALSE | BM69: FALSE | BP69: =ROW() -> 69 | DT69: 13.97 | DU69: PhaseTrack PT110 | DV69: In/Out door | DW69: In/Out door | DX69: In/Out door | EA69: 69 | EB69: 0 | EC69: 0 | ED69: 69 | EE69: 69 | EG69: PhaseTrack PT110 | EH69: 1 | EI69: 1 | EJ69: 0 | EK69: 0 | EL69: 0 | EM69: 1 | EN69: 0 | EO69: 1 | EP69: 0 | EQ69: 0 | ER69: 0 | ES69: 0 | ET69: PhaseTrack PT110
A70: PhaseTrack PT130 | B70: 0.4532 | C70: 0.00055605 | D70: N/A | E70: =((B70*SQRT($E$3*1000)+C70*$E$3*1000))/30480*Length*(1+'Cable Parameters'!I70/100*('Cable Parameters'!$E$1-25))+('Insertion Loss'!$F$16+'Insertion Loss'!$F$17)*SQRT($E$3) -> 0 | F70: 52.4 | G70: 150 | H70: -55 | I70: 0.2 | J70: https://www.eimfirst.co.il/wp-content/uploads/2018/07/PhaseTrack_Brochure.pdf | K70: 3.68 | L70: 65 | M70: PhaseTrack PT130 | O70: 70 | P70: =IF(O70="","",IF($P$2="",O70,IF(OR(INDEX(A:M,ROW(),6)=$P$2,INDEX(A:M,ROW(),6)>$P$2),ROW(),""))) -> 70 | Q70: =IF(P70="","",IF($Q$2="",P70,IF(INDEX(DV:DW,ROW(),$Q$2)="","",ROW()))) -> 70 | R70: =IF(Q70="","",IF($R$2="",Q70,IF(OR(INDEX(A:WQ,ROW(),4)=$R$2,INDEX(A:WQ,ROW(),4)>$R$2),ROW(),""))) -> 70 | S70: =IF(R70="","",IF($S$2="",R70,IF(OR(INDEX(A:N,ROW(),11)>$S$2+1,INDEX(A:N,ROW(),11)<$S$2-1),"",ROW()))) -> 70 | T70: =EE70 -> 70 | U70: =IF(T70="","",INDEX(A:M,T70,1)) -> PhaseTrack PT130 | V70: =IF(T70="","",INDEX(A:N,T70,6)) -> 52.4 | W70: =IF(T70="","",INDEX(A:O,T70,11)) -> 3.68 | X70: =IF(T70="","",INDEX(A:P,T70,5)) -> 0 | Y70: =IF(T70="","",INDEX(A:R,T70,4)) -> N/A | Z70: =IF(ISERROR(IF($Q$2="",INDEX(A:WQ,T70,128),IF($Q$2=1,INDEX(A:WQ,T70,126),INDEX(A:WQ,T70,127)))),"",IF($Q$2="",INDEX(A:WQ,T70,128),IF($Q$2=1,INDEX(A:WQ,T70,126),INDEX(A:WQ,T70,127)))) -> In/Out door | AA70: =IF(T70="","",INDEX(A:WQ,T70,124)) -> 19.05 | AC70: PhaseTrack PT130 | AD70: 1 | AE70: 1 | AF70: 1 | AG70: 1 | AH70: 1 | AI70: 1 | AJ70: 1 | AK70: 1 | AL70: 1 | AM70: 1 | AN70: 1 | AO70: 1 | AP70: 1 | AQ70: 1 | AR70: 1 | AS70: 1 | AT70: 1 | AU70: 1 | AV70: 1 | AW70: 1 | AX70: 1 | AY70: 1 | AZ70: 1 | BA70: 1 | BB70: 1 | BC70: 1 | BD70: 1 | BF70: 1 | BH70: =OR(AND(AD70=0,AE70=0,AF70=0,AG70=0,AH70=0),BF70=0) -> FALSE | BI70: =OR(AND(AI70=0,AJ70=0,AK70=0,AL70=0,AM70=0),BF70=0) -> FALSE | BJ70: =OR(AND(AN70=0,AO70=0,AP70=0,AQ70=0,AR70=0),BF70=0) -> FALSE | BK70: =OR(AND(AS70=0,AT70=0,AU70=0,AV70=0,AW70=0),BF70=0) -> FALSE | BL70: =OR(AND(AX70=0,AY70=0,AZ70=0,BA70=0,BB70=0),BF70=0) -> FALSE | BM70: =OR(AND(BC70=0,BD70=0),BF70=0) -> FALSE | BP70: =ROW() -> 70 | DT70: 19.05 | DU70: PhaseTrack PT130 | DV70: In/Out door | DW70: In/Out door | DX70: =DV70 -> In/Out door | EA70: 70 | EB70: 0 | EC70: 0 | ED70: 70 | EE70: 70 | EG70: PhaseTrack PT130 | EH70: 1 | EI70: 1 | EJ70: 0 | EK70: 0 | EL70: 0 | EM70: 1 | EN70: 0 | EO70: 1 | EP70: 0 | EQ70: 0 | ER70: 0 | ES70: 0 | ET70: PhaseTrack PT130
A71: PhaseTrack PT150 | B71: 0.4532 | C71: 0.00055605 | D71: N/A | E71: =((B71*SQRT($E$3*1000)+C71*$E$3*1000))/30480*Length*(1+'Cable Parameters'!I71/100*('Cable Parameters'!$E$1-25))+('Insertion Loss'!$F$16+'Insertion Loss'!$F$17)*SQRT($E$3) -> 0 | F71: 52.4 | G71: 150 | H71: -55 | I71: 0.2 | J71: http://www.eimfirst.co.il/wp-content/uploads/2018/09/pt11o-318.pdf | K71: 3.68 | L71: 66 | M71: =ET71 -> PhaseTrack PT150 | O71: =IF(M71="","", IF($M$4=0,ROW(), IF(ISERROR(FIND($N$4,UPPER(A71))),"",ROW()))) -> 71 | P71: =IF(O71="","",IF($P$2="",O71,IF(OR(INDEX(A:M,ROW(),6)=$P$2,INDEX(A:M,ROW(),6)>$P$2),ROW(),""))) -> 71 | Q71: =IF(P71="","",IF($Q$2="",P71,IF(INDEX(DV:DW,ROW(),$Q$2)="","",ROW()))) -> 71 | R71: 71 | S71: =IF(R71="","",IF($S$2="",R71,IF(OR(INDEX(A:N,ROW(),11)>$S$2+1,INDEX(A:N,ROW(),11)<$S$2-1),"",ROW()))) -> 71 | T71: 71 | U71: =IF(T71="","",INDEX(A:M,T71,1)) -> PhaseTrack PT150 | V71: =IF(T71="","",INDEX(A:N,T71,6)) -> 52.4 | W71: =IF(T71="","",INDEX(A:O,T71,11)) -> 3.68 | X71: =IF(T71="","",INDEX(A:P,T71,5)) -> 0 | Y71: =IF(T71="","",INDEX(A:R,T71,4)) -> N/A | Z71: In/Out door | AA71: 19.05 | AC71: =A71 -> PhaseTrack PT150 | AD71: 1 | AE71: 1 | AF71: 1 | AG71: 1 | AH71: 1 | AI71: 1 | AJ71: 1 | AK71: 1 | AL71: 1 | AM71: 1 | AN71: 1 | AO71: 1 | AP71: 1 | AQ71: 1 | AR71: 1 | AS71: 1 | AT71: 1 | AU71: 1 | AV71: 1 | AW71: 1 | AX71: 1 | AY71: 1 | AZ71: 1 | BA71: 1 | BB71: 1 | BC71: 1 | BD71: 1 | BF71: 1 | BH71: FALSE | BI71: FALSE | BJ71: FALSE | BK71: FALSE | BL71: FALSE | BM71: FALSE | BP71: =ROW() -> 71 | DT71: 19.05 | DU71: PhaseTrack PT150 | DV71: In/Out door | DW71: In/Out door | DX71: In/Out door | EA71: =IF(ISERROR(SMALL($S$6:$S$250,$L71)),"",SMALL($S$6:$S$250,$L71)) -> 71 | EB71: =IF($EA71="","",IF(ISERROR(INDEX(A:EE,EA71,5)),EA71,INDEX(A:EE,EA71,5))) -> 0 | EC71: =IF(ISERROR(SMALL($EB$6:$EB$250,$L71)),"",SMALL($EB$6:$EB$250,$L71)) -> 0 | ED71: =EA71 -> 71 | EE71: =IF($P$2="",EA71,VLOOKUP(EC71,$EB:$EE,3,FALSE)) -> 71 | EG71: =A71 -> PhaseTrack PT150 | EH71: 1 | EI71: 1 | EJ71: 0 | EK71: 0 | EL71: 0 | EM71: 1 | EN71: 0 | EO71: 1 | EP71: 0 | EQ71: 0 | ER71: 0 | ES71: 0 | ET71: =IF($ET$3="",INDEX($A:$ES,ROW(),137),IF(INDEX($A:$ES,ROW(),$ET$3)=1,INDEX($A:$ES,ROW(),137),"")) -> PhaseTrack PT150
A72: PhaseTrack PT180 | B72: 0.33627 | C72: 0.00074129 | D72: N/A | E72: =((B72*SQRT($E$3*1000)+C72*$E$3*1000))/30480*Length*(1+'Cable Parameters'!I72/100*('Cable Parameters'!$E$1-25))+('Insertion Loss'!$F$16+'Insertion Loss'!$F$17)*SQRT($E$3) -> 0 | F72: 38.7 | G72: 150 | H72: -55 | I72: 0.2 | J72: http://www.eimfirst.co.il/wp-content/uploads/2018/09/pt11o-318.pdf | K72: 4.57 | L72: 67 | M72: PhaseTrack PT180 | O72: 72 | P72: 72 | Q72: 72 | R72: 72 | S72: 72 | T72: =EE72 -> 72 | U72: PhaseTrack PT180 | V72: 38.7 | W72: 4.57 | X72: 0 | Y72: N/A | Z72: In/Out door | AA72: 25.4 | AC72: PhaseTrack PT180 | AD72: 1 | AE72: 1 | AF72: 1 | AG72: 1 | AH72: 1 | AI72: 1 | AJ72: 1 | AK72: 1 | AL72: 1 | AM72: 1 | AN72: 1 | AO72: 1 | AP72: 1 | AQ72: 1 | AR72: 1 | AS72: 1 | AT72: 1 | AU72: 1 | AV72: 1 | AW72: 1 | AX72: 1 | AY72: 1 | AZ72: 1 | BA72: 1 | BB72: 1 | BC72: 1 | BD72: 1 | BF72: 1 | BH72: =OR(AND(AD72=0,AE72=0,AF72=0,AG72=0,AH72=0),BF72=0) -> FALSE | BI72: =OR(AND(AI72=0,AJ72=0,AK72=0,AL72=0,AM72=0),BF72=0) -> FALSE | BJ72: =OR(AND(AN72=0,AO72=0,AP72=0,AQ72=0,AR72=0),BF72=0) -> FALSE | BK72: =OR(AND(AS72=0,AT72=0,AU72=0,AV72=0,AW72=0),BF72=0) -> FALSE | BL72: =OR(AND(AX72=0,AY72=0,AZ72=0,BA72=0,BB72=0),BF72=0) -> FALSE | BM72: =OR(AND(BC72=0,BD72=0),BF72=0) -> FALSE | BP72: =ROW() -> 72 | DT72: 25.4 | DU72: =A72 -> PhaseTrack PT180 | DV72: In/Out door | DW72: In/Out door | DX72: =DV72 -> In/Out door | EA72: 72 | EB72: 0 | EC72: 0 | ED72: 72 | EE72: 72 | EG72: PhaseTrack PT180 | EH72: 1 | EI72: 1 | EJ72: 0 | EK72: 0 | EL72: 0 | EM72: 1 | EN72: 0 | EO72: 1 | EP72: 0 | EQ72: 0 | ER72: 0 | ES72: 0 | ET72: PhaseTrack PT180
A73: PhaseTrack PT210 | B73: 0.25971 | C73: 0.00075526 | D73: N/A | E73: =((B73*SQRT($E$3*1000)+C73*$E$3*1000))/30480*Length*(1+'Cable Parameters'!I73/100*('Cable Parameters'!$E$1-25))+('Insertion Loss'!$F$16+'Insertion Loss'!$F$17)*SQRT($E$3) -> 0 | F73: 29 | G73: 150 | H73: -55 | I73: 0.2 | J73: http://www.eimfirst.co.il/wp-content/uploads/2018/09/pt11o-318.pdf | K73: 5.58 | L73: 68 | M73: PhaseTrack PT210 | O73: 73 | P73: 73 | Q73: 73 | R73: 73 | S73: 73 | T73: 73 | U73: PhaseTrack PT210 | V73: 29 | W73: 5.58 | X73: 0 | Y73: N/A | Z73: In/Out door | AA73: 28.575 | AC73: PhaseTrack PT210 | AD73: 1 | AE73: 1 | AF73: 1 | AG73: 1 | AH73: 1 | AI73: 1 | AJ73: 1 | AK73: 1 | AL73: 1 | AM73: 1 | AN73: 1 | AO73: 1 | AP73: 1 | AQ73: 1 | AR73: 1 | AS73: 1 | AT73: 1 | AU73: 1 | AV73: 1 | AW73: 1 | AX73: 1 | AY73: 1 | AZ73: 1 | BA73: 1 | BB73: 1 | BC73: 1 | BD73: 1 | BF73: 1 | BH73: FALSE | BI73: FALSE | BJ73: FALSE | BK73: FALSE | BL73: FALSE | BM73: FALSE | BP73: =ROW() -> 73 | DT73: 28.575 | DU73: PhaseTrack PT210 | DV73: In/Out door | DW73: In/Out door | DX73: In/Out door | EA73: 73 | EB73: 0 | EC73: 0 | ED73: 73 | EE73: 73 | EG73: PhaseTrack PT210 | EH73: 1 | EI73: 1 | EJ73: 0 | EK73: 0 | EL73: 0 | EM73: 1 | EN73: 0 | EO73: 1 | EP73: 0 | EQ73: 0 | ER73: 0 | ES73: 0 | ET73: PhaseTrack PT210
A74: PhaseTrack PTLS 400 | B74: 0.150138 | C74: 0.000262 | D74: N/A | E74: =((B74*SQRT($E$3*1000)+C74*$E$3*1000))/30480*Length*(1+'Cable Parameters'!I74/100*('Cable Parameters'!$E$1-25))+('Insertion Loss'!$F$16+'Insertion Loss'!$F$17)*SQRT($E$3) -> 0 | F74: 16.2 | G74: 85 | H74: -40 | I74: 0.2 | J74: http://www.eimfirst.co.il/wp-content/uploads/2018/09/ptls400-600.pdf | K74: 10.16 | L74: 69 | M74: PhaseTrack PTLS 400 | O74: 74 | P74: 74 | Q74: 74 | R74: 74 | S74: 74 | T74: 74 | U74: PhaseTrack PTLS 400 | V74: 16.2 | W74: 10.16 | X74: 0 | Y74: N/A | Z74: In/Out door | AA74: 101.6 | AC74: PhaseTrack PTLS 400 | AD74: 1 | AE74: 1 | AF74: 1 | AG74: 1 | AH74: 1 | AI74: 1 | AJ74: 1 | AK74: 1 | AL74: 1 | AM74: 1 | AN74: 1 | AO74: 1 | AP74: 1 | AQ74: 1 | AR74: 1 | AS74: 1 | AT74: 1 | AU74: 1 | AV74: 1 | AW74: 1 | AX74: 1 | AY74: 1 | AZ74: 1 | BA74: 1 | BB74: 1 | BC74: 1 | BD74: 1 | BF74: 1 | BH74: FALSE | BI74: FALSE | BJ74: FALSE | BK74: FALSE | BL74: FALSE | BM74: FALSE | BP74: =ROW() -> 74 | DT74: 101.6 | DU74: PhaseTrack PTLS 400 | DV74: In/Out door | DW74: In/Out door | DX74: In/Out door | EA74: 74 | EB74: 0 | EC74: 0 | ED74: 74 | EE74: 74 | EG74: PhaseTrack PTLS 400 | EH74: 1 | EI74: 1 | EJ74: 1 | EK74: 0 | EL74: 0 | EM74: 1 | EN74: 1 | EO74: 1 | EP74: 0 | EQ74: 0 | ER74: 0 | ES74: 0 | ET74: PhaseTrack PTLS 400
A75: PhaseTrack PTLS 600 | B75: 0.092086 | C75: 0.000256 | D75: N/A | E75: =((B75*SQRT($E$3*1000)+C75*$E$3*1000))/30480*Length*(1+'Cable Parameters'!I75/100*('Cable Parameters'!$E$1-25))+('Insertion Loss'!$F$16+'Insertion Loss'!$F$17)*SQRT($E$3) -> 0 | F75: 10 | G75: 85 | H75: -40 | I75: 0.2 | J75: http://www.eimfirst.co.il/wp-content/uploads/2018/09/ptls400-600.pdf | K75: 15.24 | L75: 70 | M75: PhaseTrack PTLS 600 | O75: 75 | P75: 75 | Q75: 75 | R75: 75 | S75: 75 | T75: 75 | U75: PhaseTrack PTLS 600 | V75: 10 | W75: 15.24 | X75: 0 | Y75: N/A | Z75: In/Out door | AA75: 152.4 | AC75: PhaseTrack PTLS 600 | AD75: 1 | AE75: 1 | AF75: 1 | AG75: 1 | AH75: 1 | AI75: 1 | AJ75: 1 | AK75: 1 | AL75: 1 | AM75: 1 | AN75: 1 | AO75: 1 | AP75: 1 | AQ75: 1 | AR75: 1 | AS75: 1 | AT75: 1 | AU75: 1 | AV75: 1 | AW75: 1 | AX75: 1 | AY75: 1 | AZ75: 1 | BA75: 1 | BB75: 1 | BC75: 1 | BD75: 1 | BF75: 1 | BH75: FALSE | BI75: FALSE | BJ75: FALSE | BK75: FALSE | BL75: FALSE | BM75: FALSE | BP75: =ROW() -> 75 | DT75: 152.4 | DU75: PhaseTrack PTLS 600 | DV75: In/Out door | DW75: In/Out door | DX75: In/Out door | EA75: 75 | EB75: 0 | EC75: 0 | ED75: 75 | EE75: 75 | EG75: PhaseTrack PTLS 600 | EH75: 1 | EI75: 1 | EJ75: 1 | EK75: 0 | EL75: 0 | EM75: 1 | EN75: 1 | EO75: 1 | EP75: 0 | EQ75: 0 | ER75: 0 | ES75: 0 | ET75: PhaseTrack PTLS 600
A76: SiO2-090 | B76: 0.439557 | C76: 0.0012 | D76: N/A | E76: =((B76*SQRT($E$3*1000)+C76*$E$3*1000))/30480*Length*(1+'Cable Parameters'!I76/100*('Cable Parameters'!$E$1-25))+('Insertion Loss'!$F$16+'Insertion Loss'!$F$17)*SQRT($E$3) -> 0 | F76: 60 | G76: 1000 | H76: -273 | I76: 0.2 | J76: http://www.eimfirst.co.il/wp-content/uploads/2018/09/sio2.pdf | K76: 2.28 | L76: 71 | M76: SiO2-090 | O76: 76 | P76: 76 | Q76: 76 | R76: 76 | S76: 76 | T76: 76 | U76: SiO2-090 | V76: 60 | W76: 2.28 | X76: 0 | Y76: N/A | Z76: Indoor Only | AA76: 7.62 | AC76: SiO2-090 | AD76: 1 | AE76: 1 | AF76: 1 | AG76: 1 | AH76: 1 | AI76: 1 | AJ76: 1 | AK76: 1 | AL76: 1 | AM76: 1 | AN76: 1 | AO76: 1 | AP76: 1 | AQ76: 1 | AR76: 1 | AS76: 1 | AT76: 1 | AU76: 1 | AV76: 1 | AW76: 1 | AX76: 1 | AY76: 1 | AZ76: 1 | BA76: 1 | BB76: 1 | BC76: 1 | BD76: 1 | BF76: 1 | BH76: FALSE | BI76: FALSE | BJ76: FALSE | BK76: FALSE | BL76: FALSE | BM76: FALSE | BP76: =ROW() -> 76 | DT76: 7.62 | DU76: SiO2-090 | DV76: Indoor Only | DX76: Indoor Only | EA76: 76 | EB76: 0 | EC76: 0 | ED76: 76 | EE76: 76 | EG76: SiO2-090 | EH76: 1 | EI76: 1 | EJ76: 1 | EK76: 1 | EL76: 1 | EM76: 0 | EN76: 1 | EO76: 0 | EP76: 0 | EQ76: 0 | ER76: 0 | ES76: 0 | ET76: SiO2-090
A77: SiO2-141 | B77: 0.259307 | C77: 0.0012 | D77: N/A | E77: =((B77*SQRT($E$3*1000)+C77*$E$3*1000))/30480*Length*(1+'Cable Parameters'!I77/100*('Cable Parameters'!$E$1-25))+('Insertion Loss'!$F$16+'Insertion Loss'!$F$17)*SQRT($E$3) -> 0 | F77: 50 | G77: 1000 | H77: -273 | I77: 0.2 | J77: http://www.eimfirst.co.il/wp-content/uploads/2018/09/sio2.pdf | K77: 3.58 | L77: 72 | M77: SiO2-141 | O77: 77 | P77: 77 | Q77: 77 | R77: 77 | S77: 77 | T77: 77 | U77: SiO2-141 | V77: 50 | W77: 3.58 | X77: 0 | Y77: N/A | Z77: Indoor Only | AA77: 11.43 | AC77: SiO2-141 | AD77: 1 | AE77: 1 | AF77: 1 | AG77: 1 | AH77: 1 | AI77: 1 | AJ77: 1 | AK77: 1 | AL77: 1 | AM77: 1 | AN77: 1 | AO77: 1 | AP77: 1 | AQ77: 1 | AR77: 1 | AS77: 1 | AT77: 1 | AU77: 1 | AV77: 1 | AW77: 1 | AX77: 1 | AY77: 1 | AZ77: 1 | BA77: 1 | BB77: 1 | BC77: 1 | BD77: 1 | BF77: 1 | BH77: FALSE | BI77: FALSE | BJ77: FALSE | BK77: FALSE | BL77: FALSE | BM77: FALSE | BP77: =ROW() -> 77 | DT77: 11.43 | DU77: SiO2-141 | DV77: Indoor Only | DX77: Indoor Only | EA77: 77 | EB77: 0 | EC77: 0 | ED77: 77 | EE77: 77 | EG77: SiO2-141 | EH77: 1 | EI77: 1 | EJ77: 1 | EK77: 1 | EL77: 1 | EM77: 0 | EN77: 1 | EO77: 0 | EP77: 0 | EQ77: 0 | ER77: 0 | ES77: 0 | ET77: SiO2-141
A78: SiO2-200 | B78: =B77*0.79 -> 0.20485253 | C78: 0.0012 | D78: N/A | E78: =((B78*SQRT($E$3*1000)+C78*$E$3*1000))/30480*Length*(1+'Cable Parameters'!I78/100*('Cable Parameters'!$E$1-25))+('Insertion Loss'!$F$16+'Insertion Loss'!$F$17)*SQRT($E$3) -> 0 | F78: 25 | G78: 1000 | H78: -273 | I78: 0.2 | J78: http://www.eimfirst.co.il/wp-content/uploads/2018/09/sio2_single_pages.pdf | K78: 5.08 | L78: 73 | M78: SiO2-200 | O78: 78 | P78: 78 | Q78: 78 | R78: 78 | S78: 78 | T78: 78 | U78: SiO2-200 | V78: 25 | W78: 5.08 | X78: 0 | Y78: N/A | Z78: Indoor Only | AA78: 17.78 | AC78: SiO2-200 | AD78: 1 | AE78: 1 | AF78: 1 | AG78: 1 | AH78: 1 | AI78: 1 | AJ78: 1 | AK78: 1 | AL78: 1 | AM78: 1 | AN78: 1 | AO78: 1 | AP78: 1 | AQ78: 1 | AR78: 1 | AS78: 1 | AT78: 1 | AU78: 1 | AV78: 1 | AW78: 1 | AX78: 1 | AY78: 1 | AZ78: 1 | BA78: 1 | BB78: 1 | BC78: 1 | BD78: 1 | BF78: 1 | BH78: FALSE | BI78: FALSE | BJ78: FALSE | BK78: FALSE | BL78: FALSE | BM78: FALSE | BP78: =ROW() -> 78 | DT78: 17.78 | DU78: SiO2-200 | DV78: Indoor Only | DX78: Indoor Only | EA78: 78 | EB78: 0 | EC78: 0 | ED78: 78 | EE78: 78 | EG78: SiO2-200 | EH78: 1 | EI78: 1 | EJ78: 1 | EK78: 1 | EL78: 1 | EM78: 0 | EN78: 1 | EO78: 0 | EP78: 0 | EQ78: 0 | ER78: 0 | ES78: 0 | ET78: SiO2-200
A79: SiO2-270 | B79: 0.098031 | C79: 0.0012 | D79: N/A | E79: =((B79*SQRT($E$3*1000)+C79*$E$3*1000))/30480*Length*(1+'Cable Parameters'!I79/100*('Cable Parameters'!$E$1-25))+('Insertion Loss'!$F$16+'Insertion Loss'!$F$17)*SQRT($E$3) -> 0 | F79: 18 | G79: 1000 | H79: -273 | I79: 0.2 | J79: http://www.eimfirst.co.il/wp-content/uploads/2018/09/sio2.pdf | K79: 6.86 | L79: 74 | M79: SiO2-270 | O79: 79 | P79: 79 | Q79: 79 | R79: 79 | S79: 79 | T79: 79 | U79: SiO2-270 | V79: 18 | W79: 6.86 | X79: 0 | Y79: N/A | Z79: Indoor Only | AA79: 25.4 | AC79: SiO2-270 | AD79: 1 | AE79: 1 | AF79: 1 | AG79: 1 | AH79: 1 | AI79: 1 | AJ79: 1 | AK79: 1 | AL79: 1 | AM79: 1 | AN79: 1 | AO79: 1 | AP79: 1 | AQ79: 1 | AR79: 1 | AS79: 1 | AT79: 1 | AU79: 1 | AV79: 1 | AW79: 1 | AX79: 1 | AY79: 1 | AZ79: 1 | BA79: 1 | BB79: 1 | BC79: 1 | BD79: 1 | BF79: 1 | BH79: FALSE | BI79: FALSE | BJ79: FALSE | BK79: FALSE | BL79: FALSE | BM79: FALSE | BP79: =ROW() -> 79 | CA79: 0.01 | CB79: 0.1356 | CC79: 0.03 | CD79: 0.05 | CE79: 0.1 | CF79: 0.15 | CG79: 0.4 | CH79: 0.45 | CI79: 0.5 | CJ79: 0.9 | CK79: 1 | CL79: 1.5 | CM79: 1.8 | CN79: 2 | CO79: 2.5 | CP79: 3 | CQ79: 4 | CR79: 5 | CS79: 5.8 | CT79: 6 | CU79: 8 | CV79: 10 | CW79: 11 | CX79: 12 | CY79: 13.5 | CZ79: 15 | DA79: 16 | DB79: 18 | DC79: 24 | DD79: 26.5 | DE79: 28 | DF79: 35 | DG79: 40 | DH79: 50 | DI79: 63 | DJ79: 65 | DK79: 90 | DT79: 25.4 | DU79: SiO2-270 | DV79: Indoor Only | DX79: Indoor Only | EA79: 79 | EB79: 0 | EC79: 0 | ED79: 79 | EE79: 79 | EG79: SiO2-270 | EH79: 1 | EI79: 1 | EJ79: 1 | EK79: 1 | EL79: 1 | EM79: 0 | EN79: 1 | EO79: 0 | EP79: 0 | EQ79: 0 | ER79: 0 | ES79: 0 | ET79: SiO2-270
A80: QEAM 400 | B80: 0.1895 | C80: 0.00015 | D80: N/A | E80: =((B80*SQRT($E$3*1000)+C80*$E$3*1000))/30480*Length*(1+'Cable Parameters'!I80/100*('Cable Parameters'!$E$1-25))+('Insertion Loss'!$F$16+'Insertion Loss'!$F$17)*SQRT($E$3) -> 0 | F80: 18 | G80: 90 | H80: -40 | I80: 0.2 | J80: http://www.eimfirst.co.il/wp-content/uploads/2018/08/Qeam-Tactical-Brochure.pdf | K80: 12 | L80: 75 | M80: QEAM 400 | O80: 80 | P80: 80 | Q80: 80 | R80: 80 | S80: 80 | T80: 80 | U80: QEAM 400 | V80: 18 | W80: 12 | X80: 0 | Y80: N/A | Z80: In/Out door | AA80: 127 | AC80: QEAM 400 | AD80: 1 | AE80: 1 | AF80: 1 | AG80: 1 | AH80: 1 | AI80: 1 | AJ80: 1 | AK80: 1 | AL80: 1 | AM80: 1 | AN80: 1 | AO80: 1 | AP80: 1 | AQ80: 1 | AR80: 1 | AS80: 1 | AT80: 1 | AU80: 1 | AV80: 1 | AW80: 1 | AX80: 1 | AY80: 1 | AZ80: 1 | BA80: 1 | BB80: 1 | BC80: 1 | BD80: 1 | BF80: 1 | BH80: FALSE | BI80: FALSE | BJ80: FALSE | BK80: FALSE | BL80: FALSE | BM80: FALSE | BP80: =ROW() -> 80 | CC80: 4000 | CD80: 2800 | CF80: 1600 | CH80: 900 | CJ80: 700 | CM80: 500 | CO80: 400 | CT80: 200 | CV80: 200 | DA80: 100 | DB80: 100 | DT80: 127 | DU80: QEAM 400 | DV80: In/Out door | DW80: In/Out door | DX80: In/Out door | EA80: 80 | EB80: 0 | EC80: 0 | ED80: 80 | EE80: 80 | EG80: QEAM 400 | EH80: 0 | EI80: 0 | EJ80: 0 | EK80: 0 | EL80: 0 | EM80: 1 | EN80: 0 | EO80: 0 | EP80: 0 | EQ80: 0 | ER80: 0 | ES80: 0 | ET80: QEAM 400
A81: QEAM 500 | B81: 0.11644 | C81: 0.00014 | D81: N/A | E81: =((B81*SQRT($E$3*1000)+C81*$E$3*1000))/30480*Length*(1+'Cable Parameters'!I81/100*('Cable Parameters'!$E$1-25))+('Insertion Loss'!$F$16+'Insertion Loss'!$F$17)*SQRT($E$3) -> 0 | F81: 10 | G81: 90 | H81: -40 | I81: 0.2 | J81: http://www.eimfirst.co.il/wp-content/uploads/2018/08/Qeam-Tactical-Brochure.pdf | K81: 12.7 | L81: 76 | M81: QEAM 500 | O81: 81 | P81: 81 | Q81: 81 | R81: 81 | S81: 81 | T81: 81 | U81: QEAM 500 | V81: 10 | W81: 12.7 | X81: 0 | Y81: N/A | Z81: In/Out door | AA81: 127 | AC81: QEAM 500 | AD81: 1 | AE81: 1 | AF81: 1 | AG81: 1 | AH81: 1 | AI81: 1 | AJ81: 1 | AK81: 1 | AL81: 1 | AM81: 1 | AN81: 1 | AO81: 1 | AP81: 1 | AQ81: 1 | AR81: 1 | AS81: 1 | AT81: 1 | AU81: 1 | AV81: 1 | AW81: 1 | AX81: 1 | AY81: 1 | AZ81: 1 | BA81: 1 | BB81: 1 | BC81: 1 | BD81: 1 | BF81: 1 | BH81: FALSE | BI81: FALSE | BJ81: FALSE | BK81: FALSE | BL81: FALSE | BM81: FALSE | BP81: =ROW() -> 81 | CC81: 6000 | CD81: 4900 | CF81: 2800 | CH81: 1600 | CJ81: 1100 | CM81: 800 | CO81: 700 | CT81: 400 | CV81: 300 | DT81: 127 | DU81: QEAM 500 | DV81: In/Out door | DW81: In/Out door | DX81: In/Out door | EA81: 81 | EB81: 0 | EC81: 0 | ED81: 81 | EE81: 81 | EG81: QEAM 500 | EH81: 0 | EI81: 0 | EJ81: 0 | EK81: 0 | EL81: 0 | EM81: 1 | EN81: 0 | EO81: 0 | EP81: 0 | EQ81: 0 | ER81: 0 | ES81: 0 | ET81: QEAM 500
A82: QEAM 810 | B82: 0.06926 | C82: 0.00014 | D82: N/A | E82: =((B82*SQRT($E$3*1000)+C82*$E$3*1000))/30480*Length*(1+'Cable Parameters'!I82/100*('Cable Parameters'!$E$1-25))+('Insertion Loss'!$F$16+'Insertion Loss'!$F$17)*SQRT($E$3) -> 0 | F82: 6 | G82: 90 | H82: -40 | I82: 0.2 | J82: http://www.eimfirst.co.il/wp-content/uploads/2018/08/Qeam-Tactical-Brochure.pdf | K82: 20.57 | L82: 77 | M82: QEAM 810 | O82: 82 | P82: 82 | Q82: 82 | R82: 82 | S82: 82 | T82: 82 | U82: QEAM 810 | V82: 6 | W82: 20.57 | X82: 0 | Y82: N/A | Z82: In/Out door | AA82: 203.2 | AC82: QEAM 810 | AD82: 1 | AE82: 1 | AF82: 1 | AG82: 1 | AH82: 1 | AI82: 1 | AJ82: 1 | AK82: 1 | AL82: 1 | AM82: 1 | AN82: 1 | AO82: 1 | AP82: 1 | AQ82: 1 | AR82: 1 | AS82: 1 | AT82: 1 | AU82: 1 | AV82: 1 | AW82: 1 | AX82: 1 | AY82: 1 | AZ82: 1 | BA82: 1 | BB82: 1 | BC82: 1 | BD82: 1 | BF82: 1 | BH82: FALSE | BI82: FALSE | BJ82: FALSE | BK82: FALSE | BL82: FALSE | BM82: FALSE | BP82: =ROW() -> 82 | CC82: 14000 | CD82: 11200 | CF82: 6400 | CH82: 3600 | CJ82: 2500 | CM82: 1700 | CO82: 1400 | CT82: 900 | DT82: 203.2 | DU82: QEAM 810 | DV82: In/Out door | DW82: In/Out door | DX82: In/Out door | EA82: 82 | EB82: 0 | EC82: 0 | ED82: 82 | EE82: 82 | EG82: QEAM 810 | EH82: 0 | EI82: 0 | EJ82: 0 | EK82: 0 | EL82: 0 | EM82: 1 | EN82: 0 | EO82: 0 | EP82: 0 | EQ82: 0 | ER82: 0 | ES82: 0 | ET82: QEAM 810
A83: SFT 142 | B83: 0.31533 | C83: 0.00018 | D83: N/A | E83: =((B83*SQRT($E$3*1000)+C83*$E$3*1000))/30480*Length*(1+'Cable Parameters'!I83/100*('Cable Parameters'!$E$1-25))+('Insertion Loss'!$F$16+'Insertion Loss'!$F$17)*SQRT($E$3) -> 0 | F83: 35 | G83: 200 | H83: -55 | I83: 0.2 | J83: http://www.eimfirst.co.il/wp-content/uploads/2018/09/SFT205-316.pdf | K83: 4.57 | L83: 78 | M83: SFT 142 | O83: 83 | P83: 83 | Q83: 83 | R83: 83 | S83: 83 | T83: 83 | U83: SFT 142 | V83: 35 | W83: 4.57 | X83: 0 | Y83: N/A | Z83: In/Out door | AA83: 19.05 | AC83: SFT 142 | AD83: 1 | AE83: 1 | AF83: 1 | AG83: 1 | AH83: 1 | AI83: 1 | AJ83: 1 | AK83: 1 | AL83: 1 | AM83: 1 | AN83: 1 | AO83: 1 | AP83: 1 | AQ83: 1 | AR83: 1 | AS83: 1 | AT83: 1 | AU83: 1 | AV83: 1 | AW83: 1 | AX83: 1 | AY83: 1 | AZ83: 1 | BA83: 1 | BB83: 1 | BC83: 1 | BD83: 1 | BF83: 1 | BH83: FALSE | BI83: FALSE | BJ83: FALSE | BK83: FALSE | BL83: FALSE | BM83: FALSE | BP83: =ROW() -> 83 | CB83: 5040 | CC83: 3382 | CE83: 1843 | CF83: 1501 | CG83: 912 | CJ83: 601 | CK83: 569 | CL83: 461 | CN83: 397 | CP83: 320 | CQ83: 275 | CR83: 244 | CT83: 221 | CU83: 189 | CV83: 167 | CX83: 151 | CY83: 141 | CZ83: 133 | DB83: 120 | DC83: 101 | DE83: 92 | DF83: 81 | DT83: 19.05 | DU83: SFT 142 | DV83: In/Out door | DW83: In/Out door | DX83: In/Out door | EA83: 83 | EB83: 0 | EC83: 0 | ED83: 83 | EE83: 83 | EG83: SFT 142 | EH83: 1 | EI83: 0 | EJ83: 1 | EK83: 0 | EL83: 1 | EM83: 1 | EN83: 1 | EO83: 0 | EP83: 0 | EQ83: 1 | ER83: 0 | ES83: 0 | ET83: SFT 142
A84: SFT 205 | B84: 0.26098 | C84: 0.00018 | D84: N/A | E84: =((B84*SQRT($E$3*1000)+C84*$E$3*1000))/30480*Length*(1+'Cable Parameters'!I84/100*('Cable Parameters'!$E$1-25))+('Insertion Loss'!$F$16+'Insertion Loss'!$F$17)*SQRT($E$3) -> 0 | F84: 28 | G84: 200 | H84: -55 | I84: 0.2 | J84: http://www.eimfirst.co.il/wp-content/uploads/2018/09/SFT205-316.pdf | K84: 5.2 | L84: 79 | M84: SFT 205 | O84: 84 | P84: 84 | Q84: 84 | R84: 84 | S84: 84 | T84: 84 | U84: SFT 205 | V84: 28 | W84: 5.2 | X84: 0 | Y84: N/A | Z84: In/Out door | AA84: 25.4 | AC84: SFT 205 | AD84: 1 | AE84: 1 | AF84: 1 | AG84: 1 | AH84: 1 | AI84: 1 | AJ84: 1 | AK84: 1 | AL84: 1 | AM84: 1 | AN84: 1 | AO84: 1 | AP84: 1 | AQ84: 1 | AR84: 1 | AS84: 1 | AT84: 1 | AU84: 1 | AV84: 1 | AW84: 1 | AX84: 1 | AY84: 1 | AZ84: 1 | BA84: 1 | BB84: 1 | BC84: 1 | BD84: 1 | BF84: 1 | BH84: FALSE | BI84: FALSE | BJ84: FALSE | BK84: FALSE | BL84: FALSE | BM84: FALSE | BP84: =ROW() -> 84 | CB84: 6648 | CC84: 4461 | CE84: 2431 | CF84: 1980 | CG84: 1202 | CJ84: 792 | CK84: 750 | CL84: 608 | CN84: 523 | CP84: 422 | CQ84: 362 | CR84: 321 | CT84: 291 | CU84: 249 | CV84: 220 | CX84: 198 | CZ84: 186 | DB84: 157 | DC84: 133 | DE84: 122 | DT84: 25.4 | DU84: SFT 205 | DV84: In/Out door | DW84: In/Out door | DX84: In/Out door | EA84: 84 | EB84: 0 | EC84: 0 | ED84: 84 | EE84: 84 | EG84: SFT 205 | EH84: 1 | EI84: 0 | EJ84: 1 | EK84: 0 | EL84: 1 | EM84: 1 | EN84: 1 | EO84: 0 | EP84: 0 | EQ84: 1 | ER84: 0 | ES84: 0 | ET84: SFT 205
A85: SFT 226 | B85: 0.12183 | C85: 0.00018 | D85: N/A | E85: =((B85*SQRT($E$3*1000)+C85*$E$3*1000))/30480*Length*(1+'Cable Parameters'!I85/100*('Cable Parameters'!$E$1-25))+('Insertion Loss'!$F$16+'Insertion Loss'!$F$17)*SQRT($E$3) -> 0 | F85: 10 | G85: 200 | H85: -55 | I85: 0.2 | J85: http://www.eimfirst.co.il/wp-content/uploads/2018/09/SFT393-600.pdf | K85: 12.3 | L85: 80 | M85: SFT 226 | O85: 85 | P85: 85 | Q85: 85 | R85: 85 | S85: 85 | T85: 85 | U85: SFT 226 | V85: 10 | W85: 12.3 | X85: 0 | Y85: N/A | Z85: In/Out door | AA85: 63.5 | AC85: SFT 226 | AD85: 1 | AE85: 1 | AF85: 1 | AG85: 1 | AH85: 1 | AI85: 1 | AJ85: 1 | AK85: 1 | AL85: 1 | AM85: 1 | AN85: 1 | AO85: 1 | AP85: 1 | AQ85: 1 | AR85: 1 | AS85: 1 | AT85: 1 | AU85: 1 | AV85: 1 | AW85: 1 | AX85: 1 | AY85: 1 | AZ85: 1 | BA85: 1 | BB85: 1 | BC85: 1 | BD85: 1 | BF85: 1 | BH85: FALSE | BI85: FALSE | BJ85: FALSE | BK85: FALSE | BL85: FALSE | BM85: FALSE | BP85: =ROW() -> 85 | CB85: 37095 | CD85: 19241 | CE85: 16558 | CK85: 4182 | CL85: 3388 | CN85: 2915 | CO85: 2592 | CP85: 2354 | DT85: 63.5 | DU85: SFT 226 | DV85: In/Out door | DW85: In/Out door | DX85: In/Out door | EA85: 85 | EB85: 0 | EC85: 0 | ED85: 85 | EE85: 85 | EG85: SFT 226 | EH85: 1 | EI85: 0 | EJ85: 1 | EK85: 0 | EL85: 1 | EM85: 1 | EN85: 1 | EO85: 0 | EP85: 0 | EQ85: 1 | ER85: 0 | ES85: 0 | ET85: SFT 226
A86: SFT 304 | B86: 0.2081 | C86: 0.00018 | D86: N/A | E86: =((B86*SQRT($E$3*1000)+C86*$E$3*1000))/30480*Length*(1+'Cable Parameters'!I86/100*('Cable Parameters'!$E$1-25))+('Insertion Loss'!$F$16+'Insertion Loss'!$F$17)*SQRT($E$3) -> 0 | F86: 24 | G86: 200 | H86: -55 | I86: 0.2 | J86: http://www.eimfirst.co.il/wp-content/uploads/2018/09/SFT304-320.pdf | K86: 6.35 | L86: 81 | M86: SFT 304 | O86: 86 | P86: 86 | Q86: 86 | R86: 86 | S86: 86 | T86: 86 | U86: SFT 304 | V86: 24 | W86: 6.35 | X86: 0 | Y86: N/A | Z86: In/Out door | AA86: 31.75 | AC86: SFT 304 | AD86: 1 | AE86: 1 | AF86: 1 | AG86: 1 | AH86: 1 | AI86: 1 | AJ86: 1 | AK86: 1 | AL86: 1 | AM86: 1 | AN86: 1 | AO86: 1 | AP86: 1 | AQ86: 1 | AR86: 1 | AS86: 1 | AT86: 1 | AU86: 1 | AV86: 1 | AW86: 1 | AX86: 1 | AY86: 1 | AZ86: 1 | BA86: 1 | BB86: 1 | BC86: 1 | BD86: 1 | BF86: 1 | BH86: FALSE | BI86: FALSE | BJ86: FALSE | BK86: FALSE | BL86: FALSE | BM86: FALSE | BP86: =ROW() -> 86 | CB86: 9057 | CC86: 6076 | CE86: 3310 | CF86: 2695 | CG86: 1635 | CJ86: 1077 | CK86: 1020 | CL86: 826 | CN86: 710 | CP86: 573 | CQ86: 491 | CR86: 435 | CT86: 394 | CU86: 336 | CV86: 297 | CX86: 268 | CY86: 251 | CZ86: 236 | DB86: 213 | DC86: 180 | DT86: 31.75 | DU86: SFT 304 | DV86: In/Out door | DW86: In/Out door | DX86: In/Out door | EA86: 86 | EB86: 0 | EC86: 0 | ED86: 86 | EE86: 86 | EG86: SFT 304 | EH86: 1 | EI86: 0 | EJ86: 1 | EK86: 0 | EL86: 1 | EM86: 1 | EN86: 1 | EO86: 0 | EP86: 0 | EQ86: 1 | ER86: 0 | ES86: 0 | ET86: SFT 304
A87: SFT 304 PUR | B87: 0.2105 | C87: 0.000146 | D87: N/A | E87: =((B87*SQRT($E$3*1000)+C87*$E$3*1000))/30480*Length*(1+'Cable Parameters'!I87/100*('Cable Parameters'!$E$1-25))+('Insertion Loss'!$F$16+'Insertion Loss'!$F$17)*SQRT($E$3) -> 0 | F87: 18 | G87: 200 | H87: -55 | I87: 0.2 | J87: http://www.eimfirst.co.il/wp-content/uploads/2018/09/sorry.jpg | K87: 6.5 | L87: 82 | M87: SFT 304 PUR | O87: 87 | P87: 87 | Q87: 87 | R87: 87 | S87: 87 | T87: 87 | U87: SFT 304 PUR | V87: 18 | W87: 6.5 | X87: 0 | Y87: N/A | Z87: In/Out door | AA87: 31.75 | AC87: SFT 304 PUR | AD87: 1 | AE87: 1 | AF87: 1 | AG87: 1 | AH87: 1 | AI87: 1 | AJ87: 1 | AK87: 1 | AL87: 1 | AM87: 1 | AN87: 1 | AO87: 1 | AP87: 1 | AQ87: 1 | AR87: 1 | AS87: 1 | AT87: 1 | AU87: 1 | AV87: 1 | AW87: 1 | AX87: 1 | AY87: 1 | AZ87: 1 | BA87: 1 | BB87: 1 | BC87: 1 | BD87: 1 | BF87: 1 | BH87: FALSE | BI87: FALSE | BJ87: FALSE | BK87: FALSE | BL87: FALSE | BM87: FALSE | BP87: =ROW() -> 87 | DT87: 31.75 | DU87: SFT 304 PUR | DV87: In/Out door | DW87: In/Out door | DX87: In/Out door | EA87: 87 | EB87: 0 | EC87: 0 | ED87: 87 | EE87: 87 | EG87: SFT 304 PUR | EH87: 1 | EI87: 0 | EJ87: 1 | EK87: 0 | EL87: 1 | EM87: 1 | EN87: 1 | EO87: 0 | EP87: 0 | EQ87: 1 | ER87: 0 | ES87: 0 | ET87: SFT 304 PUR
A88: SFT 316 | B88: 0.55168 | C88: 0.00018 | D88: N/A | E88: =((B88*SQRT($E$3*1000)+C88*$E$3*1000))/30480*Length*(1+'Cable Parameters'!I88/100*('Cable Parameters'!$E$1-25))+('Insertion Loss'!$F$16+'Insertion Loss'!$F$17)*SQRT($E$3) -> 0 | F88: 63 | G88: 200 | H88: -55 | I88: 0.2 | J88: http://www.eimfirst.co.il/wp-content/uploads/2018/09/SFT205-316.pdf | K88: 3.05 | L88: 83 | M88: SFT 316 | O88: 88 | P88: 88 | Q88: 88 | R88: 88 | S88: 88 | T88: 88 | U88: SFT 316 | V88: 63 | W88: 3.05 | X88: 0 | Y88: N/A | Z88: In/Out door | AA88: 12.7 | AC88: SFT 316 | AD88: 1 | AE88: 1 | AF88: 1 | AG88: 1 | AH88: 1 | AI88: 1 | AJ88: 1 | AK88: 1 | AL88: 1 | AM88: 1 | AN88: 1 | AO88: 1 | AP88: 1 | AQ88: 1 | AR88: 1 | AS88: 1 | AT88: 1 | AU88: 1 | AV88: 1 | AW88: 1 | AX88: 1 | AY88: 1 | AZ88: 1 | BA88: 1 | BB88: 1 | BC88: 1 | BD88: 1 | BF88: 1 | BH88: FALSE | BI88: FALSE | BJ88: FALSE | BK88: FALSE | BL88: FALSE | BM88: FALSE | BP88: =ROW() -> 88 | CB88: 4044 | CC88: 2713 | CE88: 1478 | CF88: 1203 | CG88: 730 | CJ88: 481 | CK88: 455 | CL88: 368 | CN88: 316 | CP88: 255 | CQ88: 219 | CR88: 194 | CT88: 175 | CU88: 149 | CV88: 132 | CX88: 119 | CY88: 111 | CZ88: 105 | DB88: 94 | DC88: 79 | DE88: 72 | DF88: 63 | DI88: 43 | DT88: 12.7 | DU88: SFT 316 | DV88: In/Out door | DW88: In/Out door | DX88: In/Out door | EA88: 88 | EB88: 0 | EC88: 0 | ED88: 88 | EE88: 88 | EG88: SFT 316 | EH88: 1 | EI88: 0 | EJ88: 1 | EK88: 0 | EL88: 1 | EM88: 1 | EN88: 1 | EO88: 0 | EP88: 0 | EQ88: 1 | ER88: 0 | ES88: 0 | ET88: SFT 316
A89: SFT 318 | B89: 0.192356 | C89: 0.000146 | D89: N/A | E89: =((B89*SQRT($E$3*1000)+C89*$E$3*1000))/30480*Length*(1+'Cable Parameters'!I89/100*('Cable Parameters'!$E$1-25))+('Insertion Loss'!$F$16+'Insertion Loss'!$F$17)*SQRT($E$3) -> 0 | F89: 18 | G89: 200 | H89: -55 | I89: 0.2 | J89: http://www.eimfirst.co.il/wp-content/uploads/2018/09/SFT304-320.pdf | K89: 7.39 | L89: 84 | M89: SFT 318 | O89: 89 | P89: 89 | Q89: 89 | R89: 89 | S89: 89 | T89: 89 | U89: SFT 318 | V89: 18 | W89: 7.39 | X89: 0 | Y89: N/A | Z89: In/Out door | AA89: 44.45 | AC89: SFT 318 | AD89: 1 | AE89: 1 | AF89: 1 | AG89: 1 | AH89: 1 | AI89: 1 | AJ89: 1 | AK89: 1 | AL89: 1 | AM89: 1 | AN89: 1 | AO89: 1 | AP89: 1 | AQ89: 1 | AR89: 1 | AS89: 1 | AT89: 1 | AU89: 1 | AV89: 1 | AW89: 1 | AX89: 1 | AY89: 1 | AZ89: 1 | BA89: 1 | BB89: 1 | BC89: 1 | BD89: 1 | BF89: 1 | BH89: FALSE | BI89: FALSE | BJ89: FALSE | BK89: FALSE | BL89: FALSE | BM89: FALSE | BP89: =ROW() -> 89 | CB89: 10800 | CC89: 7240 | CE89: 3950 | CF89: 3220 | CG89: 1950 | CJ89: 1290 | CK89: 1220 | CL89: 990 | CN89: 850 | CP89: 690 | CQ89: 590 | CR89: 520 | CT89: 470 | CU89: 410 | CV89: 360 | CX89: 320 | CY89: 300 | CZ89: 290 | DB89: 260 | DT89: 44.45 | DU89: SFT 318 | DV89: In/Out door | DW89: In/Out door | DX89: In/Out door | EA89: 89 | EB89: 0 | EC89: 0 | ED89: 89 | EE89: 89 | EG89: SFT 318 | EH89: 1 | EI89: 0 | EJ89: 1 | EK89: 0 | EL89: 1 | EM89: 1 | EN89: 1 | EO89: 0 | EP89: 0 | EQ89: 1 | ER89: 0 | ES89: 0 | ET89: SFT 318
A90: SFT 320 | B90: 0.154065 | C90: 0.000183 | D90: N/A | E90: =((B90*SQRT($E$3*1000)+C90*$E$3*1000))/30480*Length*(1+'Cable Parameters'!I90/100*('Cable Parameters'!$E$1-25))+('Insertion Loss'!$F$16+'Insertion Loss'!$F$17)*SQRT($E$3) -> 0 | F90: 12 | G90: 200 | H90: -55 | I90: 0.2 | J90: http://www.eimfirst.co.il/wp-content/uploads/2018/09/SFT304-320.pdf | K90: 8.18 | L90: 85 | M90: SFT 320 | O90: 90 | P90: 90 | Q90: 90 | R90: 90 | S90: 90 | T90: 90 | U90: SFT 320 | V90: 12 | W90: 8.18 | X90: 0 | Y90: N/A | Z90: In/Out door | AA90: 47.24 | AC90: SFT 320 | AD90: 1 | AE90: 1 | AF90: 1 | AG90: 1 | AH90: 1 | AI90: 1 | AJ90: 1 | AK90: 1 | AL90: 1 | AM90: 1 | AN90: 1 | AO90: 1 | AP90: 1 | AQ90: 1 | AR90: 1 | AS90: 1 | AT90: 1 | AU90: 1 | AV90: 1 | AW90: 1 | AX90: 1 | AY90: 1 | AZ90: 1 | BA90: 1 | BB90: 1 | BC90: 1 | BD90: 1 | BF90: 1 | BH90: FALSE | BI90: FALSE | BJ90: FALSE | BK90: FALSE | BL90: FALSE | BM90: FALSE | BP90: =ROW() -> 90 | CB90: 13800 | CC90: 9200 | CE90: 5000 | CF90: 4100 | CG90: 2500 | CJ90: 1600 | CK90: 1500 | CL90: 1200 | CN90: 1100 | CP90: 860 | CQ90: 730 | CR90: 650 | CT90: 590 | CU90: 500 | CV90: 440 | CX90: 400 | DT90: 47.24 | DU90: SFT 320 | DV90: In/Out door | DW90: In/Out door | DX90: In/Out door | EA90: 90 | EB90: 0 | EC90: 0 | ED90: 90 | EE90: 90 | EG90: SFT 320 | EH90: 1 | EI90: 0 | EJ90: 1 | EK90: 0 | EL90: 1 | EM90: 1 | EN90: 1 | EO90: 0 | EP90: 0 | EQ90: 1 | ER90: 0 | ES90: 0 | ET90: SFT 320
A91: SFT 393 | B91: 0.13593 | C91: 0.00018 | D91: N/A | E91: =((B91*SQRT($E$3*1000)+C91*$E$3*1000))/30480*Length*(1+'Cable Parameters'!I91/100*('Cable Parameters'!$E$1-25))+('Insertion Loss'!$F$16+'Insertion Loss'!$F$17)*SQRT($E$3) -> 0 | F91: 15 | G91: 200 | H91: -55 | I91: 0.2 | J91: http://www.eimfirst.co.il/wp-content/uploads/2018/09/SFT393-600.pdf | K91: 9.91 | L91: 86 | M91: SFT 393 | O91: 91 | P91: 91 | Q91: 91 | R91: 91 | S91: 91 | T91: 91 | U91: SFT 393 | V91: 15 | W91: 9.91 | X91: 0 | Y91: N/A | Z91: In/Out door | AA91: 50.8 | AC91: SFT 393 | AD91: 1 | AE91: 1 | AF91: 1 | AG91: 1 | AH91: 1 | AI91: 1 | AJ91: 1 | AK91: 1 | AL91: 1 | AM91: 1 | AN91: 1 | AO91: 1 | AP91: 1 | AQ91: 1 | AR91: 1 | AS91: 1 | AT91: 1 | AU91: 1 | AV91: 1 | AW91: 1 | AX91: 1 | AY91: 1 | AZ91: 1 | BA91: 1 | BB91: 1 | BC91: 1 | BD91: 1 | BF91: 1 | BH91: FALSE | BI91: FALSE | BJ91: FALSE | BK91: FALSE | BL91: FALSE | BM91: FALSE | BP91: =ROW() -> 91 | CB91: 27605 | CD91: 14319 | CE91: 10090 | CK91: 3113 | CL91: 2522 | CN91: 2169 | CO91: 1929 | CP91: 1752 | DT91: 50.8 | DU91: SFT 393 | DV91: In/Out door | DW91: In/Out door | DX91: In/Out door | EA91: 91 | EB91: 0 | EC91: 0 | ED91: 91 | EE91: 91 | EG91: SFT 393 | EH91: 1 | EI91: 0 | EJ91: 1 | EK91: 0 | EL91: 1 | EM91: 1 | EN91: 1 | EO91: 0 | EP91: 0 | EQ91: 1 | ER91: 0 | ES91: 0 | ET91: SFT 393
A92: SFT 500 | B92: 0.117433 | C92: 0.000183 | D92: N/A | E92: =((B92*SQRT($E$3*1000)+C92*$E$3*1000))/30480*Length*(1+'Cable Parameters'!I92/100*('Cable Parameters'!$E$1-25))+('Insertion Loss'!$F$16+'Insertion Loss'!$F$17)*SQRT($E$3) -> 0 | F92: 3 | G92: 200 | H92: -55 | I92: 0.2 | J92: http://www.eimfirst.co.il/wp-content/uploads/2018/09/sft-500.pdf | K92: 12.45 | L92: 87 | M92: SFT 500 | O92: 92 | P92: 92 | Q92: 92 | R92: 92 | S92: 92 | T92: 92 | U92: SFT 500 | V92: 3 | W92: 12.45 | X92: 0 | Y92: N/A | Z92: In/Out door | AA92: 63.5 | AC92: SFT 500 | AD92: 1 | AE92: 1 | AF92: 1 | AG92: 1 | AH92: 1 | AI92: 1 | AJ92: 1 | AK92: 1 | AL92: 1 | AM92: 1 | AN92: 1 | AO92: 1 | AP92: 1 | AQ92: 1 | AR92: 1 | AS92: 1 | AT92: 1 | AU92: 1 | AV92: 1 | AW92: 1 | AX92: 1 | AY92: 1 | AZ92: 1 | BA92: 1 | BB92: 1 | BC92: 1 | BD92: 1 | BF92: 1 | BH92: FALSE | BI92: FALSE | BJ92: FALSE | BK92: FALSE | BL92: FALSE | BM92: FALSE | BP92: =ROW() -> 92 | CB92: 42102 | CD92: 21820 | CE92: 15366 | CK92: 4717 | CL92: 3815 | CN92: 3278 | CO92: 2912 | CP92: 2642 | DT92: 63.5 | DU92: SFT 500 | DV92: In/Out door | DW92: In/Out door | DX92: In/Out door | EA92: 92 | EB92: 0 | EC92: 0 | ED92: 92 | EE92: 92 | EG92: SFT 500 | EH92: 1 | EI92: 0 | EJ92: 1 | EK92: 0 | EL92: 1 | EM92: 1 | EN92: 1 | EO92: 0 | EP92: 0 | EQ92: 1 | ER92: 0 | ES92: 0 | ET92: SFT 500
A93: SFT 600 | B93: 0.101373 | C93: 0.00018 | D93: N/A | E93: =((B93*SQRT($E$3*1000)+C93*$E$3*1000))/30480*Length*(1+'Cable Parameters'!I93/100*('Cable Parameters'!$E$1-25))+('Insertion Loss'!$F$16+'Insertion Loss'!$F$17)*SQRT($E$3) -> 0 | F93: 8 | G93: 200 | H93: -55 | I93: 0.2 | J93: http://www.eimfirst.co.il/wp-content/uploads/2018/09/SFT393-600.pdf | K93: 14.35 | L93: 88 | M93: SFT 600 | O93: 93 | P93: 93 | Q93: 93 | R93: 93 | S93: 93 | T93: 93 | U93: SFT 600 | V93: 8 | W93: 14.35 | X93: 0 | Y93: N/A | Z93: In/Out door | AA93: 69.9 | AC93: SFT 600 | AD93: 1 | AE93: 1 | AF93: 1 | AG93: 1 | AH93: 1 | AI93: 1 | AJ93: 1 | AK93: 1 | AL93: 1 | AM93: 1 | AN93: 1 | AO93: 1 | AP93: 1 | AQ93: 1 | AR93: 1 | AS93: 1 | AT93: 1 | AU93: 1 | AV93: 1 | AW93: 1 | AX93: 1 | AY93: 1 | AZ93: 1 | BA93: 1 | BB93: 1 | BC93: 1 | BD93: 1 | BF93: 1 | BH93: FALSE | BI93: FALSE | BJ93: FALSE | BK93: FALSE | BL93: FALSE | BM93: FALSE | BP93: =ROW() -> 93 | CB93: 51888 | CD93: 26900 | CE93: 18948 | CK93: 5826 | CL93: 4715 | CN93: 4053 | CO93: 3601 | CP93: 3268 | DT93: 69.9 | DU93: SFT 600 | DV93: In/Out door | DW93: In/Out door | DX93: In/Out door | EA93: 93 | EB93: 0 | EC93: 0 | ED93: 93 | EE93: 93 | EG93: SFT 600 | EH93: 1 | EI93: 0 | EJ93: 1 | EK93: 0 | EL93: 1 | EM93: 1 | EN93: 1 | EO93: 0 | EP93: 0 | EQ93: 1 | ER93: 0 | ES93: 0 | ET93: SFT 600
A94: SFT-600-BCCAL | B94: 0.086948 | C94: 0.000183 | D94: N/A | E94: =((B94*SQRT($E$3*1000)+C94*$E$3*1000))/30480*Length*(1+'Cable Parameters'!I94/100*('Cable Parameters'!$E$1-25))+('Insertion Loss'!$F$16+'Insertion Loss'!$F$17)*SQRT($E$3) -> 0 | F94: 3 | G94: 200 | H94: -55 | I94: 0.2 | J94: http://www.eimfirst.co.il/wp-content/uploads/2018/09/Some-Other-Cables-2.pdf | K94: 14.22 | L94: 89 | M94: SFT-600-BCCAL | O94: 94 | P94: 94 | Q94: 94 | R94: 94 | S94: 94 | T94: 94 | U94: SFT-600-BCCAL | V94: 3 | W94: 14.22 | X94: 0 | Y94: N/A | Z94: In/Out door | AA94: 63.5 | AC94: SFT-600-BCCAL | AD94: 1 | AE94: 1 | AF94: 1 | AG94: 1 | AH94: 1 | AI94: 1 | AJ94: 1 | AK94: 1 | AL94: 1 | AM94: 1 | AN94: 1 | AO94: 1 | AP94: 1 | AQ94: 1 | AR94: 1 | AS94: 1 | AT94: 1 | AU94: 1 | AV94: 1 | AW94: 1 | AX94: 1 | AY94: 1 | AZ94: 1 | BA94: 1 | BB94: 1 | BC94: 1 | BD94: 1 | BF94: 1 | BH94: FALSE | BI94: FALSE | BJ94: FALSE | BK94: FALSE | BL94: FALSE | BM94: FALSE | BP94: =ROW() -> 94 | CB94: 61389 | CD94: 31756 | CE94: 22326 | CK94: 6775 | CL94: 5460 | CN94: 4677 | CO94: 4144 | CP94: 3751 | DT94: 63.5 | DU94: SFT-600-BCCAL | DV94: In/Out door | DW94: In/Out door | DX94: In/Out door | EA94: 94 | EB94: 0 | EC94: 0 | ED94: 94 | EE94: 94 | EG94: SFT-600-BCCAL | EH94: 1 | EI94: 0 | EJ94: 1 | EK94: 0 | EL94: 1 | EM94: 1 | EN94: 1 | EO94: 0 | EP94: 0 | EQ94: 1 | ER94: 0 | ES94: 0 | ET94: SFT-600-BCCAL
A95: SFT-600-BCCAL-PUR | B95: 0.086948 | C95: 0.000183 | D95: N/A | E95: =((B95*SQRT($E$3*1000)+C95*$E$3*1000))/30480*Length*(1+'Cable Parameters'!I95/100*('Cable Parameters'!$E$1-25))+('Insertion Loss'!$F$16+'Insertion Loss'!$F$17)*SQRT($E$3) -> 0 | F95: 3 | G95: 90 | H95: -55 | I95: 0.2 | J95: http://www.eimfirst.co.il/wp-content/uploads/2018/09/Some-Other-Cables-1.pdf | K95: 14.22 | L95: 90 | M95: SFT-600-BCCAL-PUR | O95: 95 | P95: 95 | Q95: 95 | R95: 95 | S95: 95 | T95: 95 | U95: SFT-600-BCCAL-PUR | V95: 3 | W95: 14.22 | X95: 0 | Y95: N/A | Z95: In/Out door | AA95: 63.5 | AC95: SFT-600-BCCAL-PUR | AD95: 1 | AE95: 1 | AF95: 1 | AG95: 1 | AH95: 1 | AI95: 1 | AJ95: 1 | AK95: 1 | AL95: 1 | AM95: 1 | AN95: 1 | AO95: 1 | AP95: 1 | AQ95: 1 | AR95: 1 | AS95: 1 | AT95: 1 | AU95: 1 | AV95: 1 | AW95: 1 | AX95: 1 | AY95: 1 | AZ95: 1 | BA95: 1 | BB95: 1 | BC95: 1 | BD95: 1 | BF95: 1 | BH95: FALSE | BI95: FALSE | BJ95: FALSE | BK95: FALSE | BL95: FALSE | BM95: FALSE | BP95: =ROW() -> 95 | CB95: 24515 | CD95: 12681 | CE95: 8916 | CK95: 2706 | CL95: 2180 | CN95: 1868 | CO95: 1655 | CP95: 1498 | DT95: 63.5 | DU95: SFT-600-BCCAL-PUR | DV95: In/Out door | DW95: In/Out door | DX95: In/Out door | EA95: 95 | EB95: 0 | EC95: 0 | ED95: 95 | EE95: 95 | EG95: SFT-600-BCCAL-PUR | EH95: 1 | EI95: 0 | EJ95: 1 | EK95: 0 | EL95: 1 | EM95: 1 | EN95: 1 | EO95: 0 | EP95: 0 | EQ95: 1 | ER95: 0 | ES95: 0 | ET95: SFT-600-BCCAL-PUR
A96: TCOM 400-UF | B96: 0.12229 | C96: 0.00026 | D96: N/A | E96: =((B96*SQRT($E$3*1000)+C96*$E$3*1000))/30480*Length*(1+'Cable Parameters'!I96/100*('Cable Parameters'!$E$1-25))+('Insertion Loss'!$F$16+'Insertion Loss'!$F$17)*SQRT($E$3) -> 0 | F96: 16 | G96: 90 | H96: -40 | I96: 0.2 | J96: http://www.eimfirst.co.il/wp-content/uploads/2018/09/TCOM-400-600.pdf | K96: 10.2 | L96: 91 | M96: TCOM 400-UF | O96: 96 | P96: 96 | Q96: 96 | R96: 96 | S96: 96 | T96: 96 | U96: TCOM 400-UF | V96: 16 | W96: 10.2 | X96: 0 | Y96: N/A | Z96: In/Out door | AA96: 101.6 | AC96: TCOM 400-UF | AD96: 1 | AE96: 1 | AF96: 1 | AG96: 1 | AH96: 1 | AI96: 1 | AJ96: 1 | AK96: 1 | AL96: 1 | AM96: 1 | AN96: 1 | AO96: 1 | AP96: 1 | AQ96: 1 | AR96: 1 | AS96: 1 | AT96: 1 | AU96: 1 | AV96: 1 | AW96: 1 | AX96: 1 | AY96: 1 | AZ96: 1 | BA96: 1 | BB96: 1 | BC96: 1 | BD96: 1 | BF96: 1 | BH96: FALSE | BI96: FALSE | BJ96: FALSE | BK96: FALSE | BL96: FALSE | BM96: FALSE | BP96: =ROW() -> 96 | CC96: 3000 | CD96: 2600 | CF96: 1500 | CH96: 800 | CJ96: 580 | CM96: 400 | CO96: 330 | CT96: 200 | CV96: 150 | DA96: 110 | DT96: 101.6 | DU96: TCOM 400-UF | DV96: In/Out door | DW96: In/Out door | DX96: In/Out door | EA96: 96 | EB96: 0 | EC96: 0 | ED96: 96 | EE96: 96 | EG96: TCOM 400-UF | EH96: 0 | EI96: 0 | EJ96: 0 | EK96: 0 | EL96: 0 | EM96: 1 | EN96: 0 | EO96: 0 | EP96: 0 | EQ96: 0 | ER96: 1 | ES96: 0 | ET96: TCOM 400-UF
A97: TCOM 400-FS | B97: 0.14369 | C97: 0.00031 | D97: N/A | E97: =((B97*SQRT($E$3*1000)+C97*$E$3*1000))/30480*Length*(1+'Cable Parameters'!I97/100*('Cable Parameters'!$E$1-25))+('Insertion Loss'!$F$16+'Insertion Loss'!$F$17)*SQRT($E$3) -> 0 | F97: 16 | G97: 90 | H97: -40 | I97: 0.2 | J97: http://www.eimfirst.co.il/wp-content/uploads/2018/09/TCOM-400-600.pdf | K97: 10 | L97: 92 | M97: TCOM 400-FS | O97: 97 | P97: 97 | Q97: 97 | R97: 97 | S97: 97 | T97: 97 | U97: TCOM 400-FS | V97: 16 | W97: 10 | X97: 0 | Y97: N/A | Z97: In/Out door | AA97: 101.6 | AC97: TCOM 400-FS | AD97: 1 | AE97: 1 | AF97: 1 | AG97: 1 | AH97: 1 | AI97: 1 | AJ97: 1 | AK97: 1 | AL97: 1 | AM97: 1 | AN97: 1 | AO97: 1 | AP97: 1 | AQ97: 1 | AR97: 1 | AS97: 1 | AT97: 1 | AU97: 1 | AV97: 1 | AW97: 1 | AX97: 1 | AY97: 1 | AZ97: 1 | BA97: 1 | BB97: 1 | BC97: 1 | BD97: 1 | BF97: 1 | BH97: FALSE | BI97: FALSE | BJ97: FALSE | BK97: FALSE | BL97: FALSE | BM97: FALSE | BP97: =ROW() -> 97 | CC97: 2900 | CD97: 2200 | CF97: 1300 | CH97: 730 | CJ97: 500 | CM97: 350 | CO97: 290 | CT97: 310 | CV97: 130 | DA97: 100 | DT97: 101.6 | DU97: TCOM 400-FS | DV97: In/Out door | DW97: In/Out door | DX97: In/Out door | EA97: 97 | EB97: 0 | EC97: 0 | ED97: 97 | EE97: 97 | EG97: TCOM 400-FS | EH97: 0 | EI97: 0 | EJ97: 0 | EK97: 0 | EL97: 0 | EM97: 1 | EN97: 0 | EO97: 0 | EP97: 0 | EQ97: 0 | ER97: 1 | ES97: 0 | ET97: TCOM 400-FS
A98: TCOM 600-UF | B98: 0.07555 | C98: 0.00026 | D98: N/A | E98: =((B98*SQRT($E$3*1000)+C98*$E$3*1000))/30480*Length*(1+'Cable Parameters'!I98/100*('Cable Parameters'!$E$1-25))+('Insertion Loss'!$F$16+'Insertion Loss'!$F$17)*SQRT($E$3) -> 0 | F98: 10 | G98: 90 | H98: -40 | I98: 0.2 | J98: http://www.eimfirst.co.il/wp-content/uploads/2018/09/TCOM-400-600.pdf | K98: 15 | L98: 93 | M98: TCOM 600-UF | O98: 98 | P98: 98 | Q98: 98 | R98: 98 | S98: 98 | T98: 98 | U98: TCOM 600-UF | V98: 10 | W98: 15 | X98: 0 | Y98: N/A | Z98: In/Out door | AA98: 152.4 | AC98: TCOM 600-UF | AD98: 1 | AE98: 1 | AF98: 1 | AG98: 1 | AH98: 1 | AI98: 1 | AJ98: 1 | AK98: 1 | AL98: 1 | AM98: 1 | AN98: 1 | AO98: 1 | AP98: 1 | AQ98: 1 | AR98: 1 | AS98: 1 | AT98: 1 | AU98: 1 | AV98: 1 | AW98: 1 | AX98: 1 | AY98: 1 | AZ98: 1 | BA98: 1 | BB98: 1 | BC98: 1 | BD98: 1 | BF98: 1 | BH98: FALSE | BI98: FALSE | BJ98: FALSE | BK98: FALSE | BL98: FALSE | BM98: FALSE | BP98: =ROW() -> 98 | CC98: 5500 | CD98: 4200 | CF98: 2400 | CH98: 1300 | CJ98: 930 | CM98: 630 | CO98: 520 | CT98: 310 | CV98: 230 | DT98: 152.4 | DU98: TCOM 600-UF | DV98: In/Out door | DW98: In/Out door | DX98: In/Out door | EA98: 98 | EB98: 0 | EC98: 0 | ED98: 98 | EE98: 98 | EG98: TCOM 600-UF | EH98: 0 | EI98: 0 | EJ98: 0 | EK98: 0 | EL98: 0 | EM98: 1 | EN98: 0 | EO98: 0 | EP98: 0 | EQ98: 0 | ER98: 1 | ES98: 0 | ET98: TCOM 600-UF
A99: TCOM 600-FS | B99: 0.0888 | C99: 0.00031 | D99: N/A | E99: =((B99*SQRT($E$3*1000)+C99*$E$3*1000))/30480*Length*(1+'Cable Parameters'!I99/100*('Cable Parameters'!$E$1-25))+('Insertion Loss'!$F$16+'Insertion Loss'!$F$17)*SQRT($E$3) -> 0 | F99: 10 | G99: 90 | H99: -40 | I99: 0.2 | J99: http://www.eimfirst.co.il/wp-content/uploads/2018/09/TCOM-400-600.pdf | K99: 15 | L99: 94 | M99: TCOM 600-FS | O99: 99 | P99: 99 | Q99: 99 | R99: 99 | S99: 99 | T99: 99 | U99: TCOM 600-FS | V99: 10 | W99: 15 | X99: 0 | Y99: N/A | Z99: In/Out door | AA99: 152.4 | AC99: TCOM 600-FS | AD99: 1 | AE99: 1 | AF99: 1 | AG99: 1 | AH99: 1 | AI99: 1 | AJ99: 1 | AK99: 1 | AL99: 1 | AM99: 1 | AN99: 1 | AO99: 1 | AP99: 1 | AQ99: 1 | AR99: 1 | AS99: 1 | AT99: 1 | AU99: 1 | AV99: 1 | AW99: 1 | AX99: 1 | AY99: 1 | AZ99: 1 | BA99: 1 | BB99: 1 | BC99: 1 | BD99: 1 | BF99: 1 | BH99: FALSE | BI99: FALSE | BJ99: FALSE | BK99: FALSE | BL99: FALSE | BM99: FALSE | BP99: =ROW() -> 99 | CC99: 5000 | CD99: 3600 | CF99: 2000 | CH99: 1100 | CJ99: 800 | CM99: 530 | CO99: 440 | CT99: 260 | CV99: 190 | DT99: 152.4 | DU99: TCOM 600-FS | DV99: In/Out door | DW99: In/Out door | DX99: In/Out door | EA99: 99 | EB99: 0 | EC99: 0 | ED99: 99 | EE99: 99 | EG99: TCOM 600-FS | EH99: 0 | EI99: 0 | EJ99: 0 | EK99: 0 | EL99: 0 | EM99: 1 | EN99: 0 | EO99: 0 | EP99: 0 | EQ99: 0 | ER99: 1 | ES99: 0 | ET99: TCOM 600-FS
A100: TFlex 401 | B100: 0.21 | C100: 0.0012 | D100: N/A | E100: =((B100*SQRT($E$3*1000)+C100*$E$3*1000))/30480*Length*(1+'Cable Parameters'!I100/100*('Cable Parameters'!$E$1-25))+('Insertion Loss'!$F$16+'Insertion Loss'!$F$17)*SQRT($E$3) -> 0 | F100: 19 | G100: 125 | H100: -65 | I100: 0.2 | J100: http://www.eimfirst.co.il/wp-content/uploads/2018/07/TFlex.pdf | K100: 6.9 | L100: 95 | M100: TFlex 401 | O100: 100 | P100: 100 | Q100: 100 | R100: 100 | S100: 100 | T100: 100 | U100: TFlex 401 | V100: 19 | W100: 6.9 | X100: 0 | Y100: N/A | Z100: Indoor Only | AA100: 28.575 | AC100: TFlex 401 | AD100: 1 | AE100: 1 | AF100: 1 | AG100: 1 | AH100: 1 | AI100: 1 | AJ100: 1 | AK100: 1 | AL100: 1 | AM100: 1 | AN100: 1 | AO100: 1 | AP100: 1 | AQ100: 1 | AR100: 1 | AS100: 1 | AT100: 1 | AU100: 1 | AV100: 1 | AW100: 1 | AX100: 1 | AY100: 1 | AZ100: 1 | BA100: 1 | BB100: 1 | BC100: 1 | BD100: 1 | BF100: 1 | BH100: FALSE | BI100: FALSE | BJ100: FALSE | BK100: FALSE | BL100: FALSE | BM100: FALSE | BP100: =ROW() -> 100 | CD100: 3010 | CE100: 2095 | CI100: 885 | CK100: 595 | CN100: 394 | CQ100: 257 | CT100: 198 | CV100: 136 | CX100: 120 | DA100: 102 | DB100: 88 | DT100: 28.575 | DU100: TFlex 401 | DV100: Indoor Only | DX100: Indoor Only | EA100: 100 | EB100: 0 | EC100: 0 | ED100: 100 | EE100: 100 | EG100: TFlex 401 | EH100: 0 | EI100: 0 | EJ100: 0 | EK100: 0 | EL100: 1 | EM100: 0 | EN100: 0 | EO100: 0 | EP100: 0 | EQ100: 0 | ER100: 0 | ES100: 0 | ET100: TFlex 401
A101: TFlex 402 | B101: 0.33 | C101: 0.0012 | D101: N/A | E101: =((B101*SQRT($E$3*1000)+C101*$E$3*1000))/30480*Length*(1+'Cable Parameters'!I101/100*('Cable Parameters'!$E$1-25))+('Insertion Loss'!$F$16+'Insertion Loss'!$F$17)*SQRT($E$3) -> 0 | F101: 34 | G101: 125 | H101: -65 | I101: 0.2 | J101: http://www.eimfirst.co.il/wp-content/uploads/2018/07/TFlex.pdf | K101: 4.06 | L101: 96 | M101: TFlex 402 | O101: 101 | P101: 101 | Q101: 101 | R101: 101 | S101: 101 | T101: 101 | U101: TFlex 402 | V101: 34 | W101: 4.06 | X101: 0 | Y101: N/A | Z101: Indoor Only | AA101: 12.7 | AC101: TFlex 402 | AD101: 1 | AE101: 1 | AF101: 1 | AG101: 1 | AH101: 1 | AI101: 1 | AJ101: 1 | AK101: 1 | AL101: 1 | AM101: 1 | AN101: 1 | AO101: 1 | AP101: 1 | AQ101: 1 | AR101: 1 | AS101: 1 | AT101: 1 | AU101: 1 | AV101: 1 | AW101: 1 | AX101: 1 | AY101: 1 | AZ101: 1 | BA101: 1 | BB101: 1 | BC101: 1 | BD101: 1 | BF101: 1 | BH101: FALSE | BI101: FALSE | BJ101: FALSE | BK101: FALSE | BL101: FALSE | BM101: FALSE | BP101: =ROW() -> 101 | CD101: 1386 | CE101: 980 | CI101: 418 | CK101: 290 | CN101: 198 | CQ101: 132 | CT101: 105 | CV101: 78 | CX101: 69 | DA101: 58 | DB101: 54 | DD101: 41 | DT101: 12.7 | DU101: TFlex 402 | DV101: Indoor Only | DX101: Indoor Only | EA101: 101 | EB101: 0 | EC101: 0 | ED101: 101 | EE101: 101 | EG101: TFlex 402 | EH101: 0 | EI101: 0 | EJ101: 0 | EK101: 0 | EL101: 1 | EM101: 0 | EN101: 0 | EO101: 0 | EP101: 0 | EQ101: 0 | ER101: 0 | ES101: 0 | ET101: TFlex 402
A102: TFlex 405 | B102: 0.63 | C102: 0.0012 | D102: N/A | E102: =((B102*SQRT($E$3*1000)+C102*$E$3*1000))/30480*Length*(1+'Cable Parameters'!I102/100*('Cable Parameters'!$E$1-25))+('Insertion Loss'!$F$16+'Insertion Loss'!$F$17)*SQRT($E$3) -> 0 | F102: 60 | G102: 125 | H102: -65 | I102: 0.2 | J102: http://www.eimfirst.co.il/wp-content/uploads/2018/07/TFlex.pdf | K102: 2.64 | L102: 97 | M102: TFlex 405 | O102: 102 | P102: 102 | Q102: 102 | R102: =IF(Q102="","",IF($R$2="",Q102,IF(OR(INDEX(A:WQ,ROW(),4)=$R$2,INDEX(A:WQ,ROW(),4)>$R$2),ROW(),""))) -> 102 | S102: 102 | T102: 102 | U102: TFlex 405 | V102: 60 | W102: 2.64 | X102: 0 | Y102: N/A | Z102: =IF(ISERROR(IF($Q$2="",INDEX(A:WQ,T102,128),IF($Q$2=1,INDEX(A:WQ,T102,126),INDEX(A:WQ,T102,127)))),"",IF($Q$2="",INDEX(A:WQ,T102,128),IF($Q$2=1,INDEX(A:WQ,T102,126),INDEX(A:WQ,T102,127)))) -> Indoor Only | AA102: =IF(T102="","",INDEX(A:WQ,T102,124)) -> 6.35 | AC102: TFlex 405 | AD102: 1 | AE102: 1 | AF102: 1 | AG102: 1 | AH102: 1 | AI102: 1 | AJ102: 1 | AK102: 1 | AL102: 1 | AM102: 1 | AN102: 1 | AO102: 1 | AP102: 1 | AQ102: 1 | AR102: 1 | AS102: 1 | AT102: 1 | AU102: 1 | AV102: 1 | AW102: 1 | AX102: 1 | AY102: 1 | AZ102: 1 | BA102: 1 | BB102: 1 | BC102: 1 | BD102: 1 | BF102: 1 | BH102: FALSE | BI102: FALSE | BJ102: FALSE | BK102: FALSE | BL102: FALSE | BM102: FALSE | BP102: =ROW() -> 102 | CD102: 560 | CE102: 390 | CI102: 173 | CK102: 121 | CN102: 85 | CQ102: 59 | CT102: 47 | CV102: 36 | CX102: 33 | DA102: 28 | DB102: 26 | DD102: 21 | DG102: 17 | DT102: 6.35 | DU102: TFlex 405 | DV102: Indoor Only | DX102: Indoor Only | EA102: 102 | EB102: 0 | EC102: 0 | ED102: 102 | EE102: 102 | EG102: TFlex 405 | EH102: 0 | EI102: 0 | EJ102: 0 | EK102: 0 | EL102: 1 | EM102: 0 | EN102: 0 | EO102: 0 | EP102: 0 | EQ102: 0 | ER102: 0 | ES102: 0 | ET102: TFlex 405
A103: FBT 195 | B103: 0.34082 | C103: 0.000183 | D103: N/A | E103: =((B103*SQRT($E$3*1000)+C103*$E$3*1000))/30480*Length*(1+'Cable Parameters'!I103/100*('Cable Parameters'!$E$1-25))+('Insertion Loss'!$F$16+'Insertion Loss'!$F$17)*SQRT($E$3) -> 0 | F103: 5.8 | G103: 150 | H103: -55 | I103: 0.2 | J103: http://www.eimfirst.co.il/wp-content/uploads/2018/09/FBT-195-600.pdf | K103: 4.4 | L103: 98 | M103: FBT 195 | O103: 103 | P103: =IF(O103="","",IF($P$2="",O103,IF(OR(INDEX(A:M,ROW(),6)=$P$2,INDEX(A:M,ROW(),6)>$P$2),ROW(),""))) -> 103 | Q103: =IF(P103="","",IF($Q$2="",P103,IF(INDEX(DV:DW,ROW(),$Q$2)="","",ROW()))) -> 103 | R103: 103 | S103: =IF(R103="","",IF($S$2="",R103,IF(OR(INDEX(A:N,ROW(),11)>$S$2+1,INDEX(A:N,ROW(),11)<$S$2-1),"",ROW()))) -> 103 | T103: 103 | U103: =IF(T103="","",INDEX(A:M,T103,1)) -> FBT 195 | V103: =IF(T103="","",INDEX(A:N,T103,6)) -> 5.8 | W103: =IF(T103="","",INDEX(A:O,T103,11)) -> 4.4 | X103: =IF(T103="","",INDEX(A:P,T103,5)) -> 0 | Y103: =IF(T103="","",INDEX(A:R,T103,4)) -> N/A | Z103: In/Out door | AA103: 22.22 | AC103: FBT 195 | AD103: 1 | AE103: 1 | AF103: 1 | AG103: 1 | AH103: 1 | AI103: 1 | AJ103: 1 | AK103: 1 | AL103: 1 | AM103: 1 | AN103: 1 | AO103: 1 | AP103: 1 | AQ103: 1 | AR103: 1 | AS103: 1 | AT103: 1 | AU103: 1 | AV103: 1 | AW103: 1 | AX103: 1 | AY103: 1 | AZ103: 1 | BA103: 1 | BB103: 1 | BC103: 1 | BD103: 1 | BF103: 1 | BH103: FALSE | BI103: FALSE | BJ103: FALSE | BK103: FALSE | BL103: FALSE | BM103: FALSE | BP103: =ROW() -> 103 | CC103: 1600 | CD103: 1250 | CF103: 720 | CH103: 410 | CJ103: 290 | CK103: 270 | CL103: 220 | CN103: 190 | CO103: 170 | CS103: 110 | DT103: 22.22 | DU103: FBT 195 | DV103: In/Out door | DW103: In/Out door | DX103: In/Out door | EA103: 103 | EB103: 0 | EC103: 0 | ED103: 103 | EE103: 103 | EG103: FBT 195 | EH103: 1 | EI103: 0 | EJ103: 0 | EK103: 0 | EL103: 0 | EM103: 0 | EN103: 0 | EO103: 0 | EP103: 0 | EQ103: 1 | ER103: 1 | ES103: 1 | ET103: FBT 195
A104: FBT 200 | B104: 0.329075 | C104: 0.000183 | D104: N/A | E104: =((B104*SQRT($E$3*1000)+C104*$E$3*1000))/30480*Length*(1+'Cable Parameters'!I104/100*('Cable Parameters'!$E$1-25))+('Insertion Loss'!$F$16+'Insertion Loss'!$F$17)*SQRT($E$3) -> 0 | F104: 5.8 | G104: 150 | H104: -55 | I104: 0.2 | J104: http://www.eimfirst.co.il/wp-content/uploads/2018/09/FBT-195-600.pdf | K104: 4.4 | L104: 99 | M104: FBT 200 | O104: 104 | P104: 104 | Q104: 104 | R104: 104 | S104: 104 | T104: 104 | U104: FBT 200 | V104: 5.8 | W104: 4.4 | X104: 0 | Y104: N/A | Z104: In/Out door | AA104: 22.22 | AC104: FBT 200 | AD104: 1 | AE104: 1 | AF104: 1 | AG104: 1 | AH104: 1 | AI104: 1 | AJ104: 1 | AK104: 1 | AL104: 1 | AM104: 1 | AN104: 1 | AO104: 1 | AP104: 1 | AQ104: 1 | AR104: 1 | AS104: 1 | AT104: 1 | AU104: 1 | AV104: 1 | AW104: 1 | AX104: 1 | AY104: 1 | AZ104: 1 | BA104: 1 | BB104: 1 | BC104: 1 | BD104: 1 | BF104: 1 | BH104: FALSE | BI104: FALSE | BJ104: FALSE | BK104: FALSE | BL104: FALSE | BM104: FALSE | BP104: =ROW() -> 104 | CC104: 1700 | CD104: 1300 | CF104: 760 | CH104: 430 | CJ104: 300 | CK104: 290 | CL104: 230 | CN104: 200 | CO104: 180 | CS104: 110 | DT104: 22.22 | DU104: FBT 200 | DV104: In/Out door | DW104: In/Out door | DX104: In/Out door | EA104: 104 | EB104: 0 | EC104: 0 | ED104: 104 | EE104: 104 | EG104: FBT 200 | EH104: 1 | EI104: 0 | EJ104: 0 | EK104: 0 | EL104: 0 | EM104: 0 | EN104: 0 | EO104: 0 | EP104: 0 | EQ104: 1 | ER104: 1 | ES104: 1 | ET104: FBT 200
A105: FBT 240 | B105: 0.248515 | C105: 0.000183 | D105: N/A | E105: =((B105*SQRT($E$3*1000)+C105*$E$3*1000))/30480*Length*(1+'Cable Parameters'!I105/100*('Cable Parameters'!$E$1-25))+('Insertion Loss'!$F$16+'Insertion Loss'!$F$17)*SQRT($E$3) -> 0 | F105: 5.8 | G105: 150 | H105: -55 | I105: 0.2 | J105: http://www.eimfirst.co.il/wp-content/uploads/2018/09/FBT-195-600.pdf | K105: 5.2 | L105: 100 | M105: FBT 240 | O105: 105 | P105: 105 | Q105: 105 | R105: 105 | S105: 105 | T105: 105 | U105: FBT 240 | V105: 5.8 | W105: 5.2 | X105: 0 | Y105: N/A | Z105: In/Out door | AA105: 25.4 | AC105: FBT 240 | AD105: 1 | AE105: 1 | AF105: 1 | AG105: 1 | AH105: 1 | AI105: 1 | AJ105: 1 | AK105: 1 | AL105: 1 | AM105: 1 | AN105: 1 | AO105: 1 | AP105: 1 | AQ105: 1 | AR105: 1 | AS105: 1 | AT105: 1 | AU105: 1 | AV105: 1 | AW105: 1 | AX105: 1 | AY105: 1 | AZ105: 1 | BA105: 1 | BB105: 1 | BC105: 1 | BD105: 1 | BF105: 1 | BH105: FALSE | BI105: FALSE | BJ105: FALSE | BK105: FALSE | BL105: FALSE | BM105: FALSE | BP105: =ROW() -> 105 | CC105: 2500 | CD105: 1900 | CF105: 1100 | CH105: 630 | CJ105: 440 | CK105: 420 | CL105: 340 | CN105: 290 | CO105: 260 | CS105: 160 | DT105: 25.4 | DU105: FBT 240 | DV105: In/Out door | DW105: In/Out door | DX105: In/Out door | EA105: 105 | EB105: 0 | EC105: 0 | ED105: 105 | EE105: 105 | EG105: FBT 240 | EH105: 1 | EI105: 0 | EJ105: 0 | EK105: 0 | EL105: 0 | EM105: 0 | EN105: 0 | EO105: 0 | EP105: 0 | EQ105: 1 | ER105: 1 | ES105: 1 | ET105: FBT 240
A106: FBT 300 | B106: 0.200179 | C106: 0.000183 | D106: N/A | E106: =((B106*SQRT($E$3*1000)+C106*$E$3*1000))/30480*Length*(1+'Cable Parameters'!I106/100*('Cable Parameters'!$E$1-25))+('Insertion Loss'!$F$16+'Insertion Loss'!$F$17)*SQRT($E$3) -> 0 | F106: 5.8 | G106: 150 | H106: -55 | I106: 0.2 | J106: http://www.eimfirst.co.il/wp-content/uploads/2018/09/FBT-195-600.pdf | K106: 6.6 | L106: 101 | M106: FBT 300 | O106: 106 | P106: 106 | Q106: 106 | R106: 106 | S106: 106 | T106: 106 | U106: FBT 300 | V106: 5.8 | W106: 6.6 | X106: 0 | Y106: N/A | Z106: In/Out door | AA106: 31.75 | AC106: FBT 300 | AD106: 1 | AE106: 1 | AF106: 1 | AG106: 1 | AH106: 1 | AI106: 1 | AJ106: 1 | AK106: 1 | AL106: 1 | AM106: 1 | AN106: 1 | AO106: 1 | AP106: 1 | AQ106: 1 | AR106: 1 | AS106: 1 | AT106: 1 | AU106: 1 | AV106: 1 | AW106: 1 | AX106: 1 | AY106: 1 | AZ106: 1 | BA106: 1 | BB106: 1 | BC106: 1 | BD106: 1 | BF106: 1 | BH106: FALSE | BI106: FALSE | BJ106: FALSE | BK106: FALSE | BL106: FALSE | BM106: FALSE | BP106: =ROW() -> 106 | CC106: 3400 | CD106: 2600 | CF106: 1500 | CH106: 850 | CJ106: 600 | CK106: 570 | CL106: 460 | CN106: 390 | CO106: 350 | CS106: 220 | DT106: 31.75 | DU106: FBT 300 | DV106: In/Out door | DW106: In/Out door | DX106: In/Out door | EA106: 106 | EB106: 0 | EC106: 0 | ED106: 106 | EE106: 106 | EG106: FBT 300 | EH106: 1 | EI106: 0 | EJ106: 0 | EK106: 0 | EL106: 0 | EM106: 0 | EN106: 0 | EO106: 0 | EP106: 0 | EQ106: 1 | ER106: 1 | ES106: 1 | ET106: FBT 300
A107: FBT 400 | B107: 0.129138 | C107: 0.000146 | D107: N/A | E107: =((B107*SQRT($E$3*1000)+C107*$E$3*1000))/30480*Length*(1+'Cable Parameters'!I107/100*('Cable Parameters'!$E$1-25))+('Insertion Loss'!$F$16+'Insertion Loss'!$F$17)*SQRT($E$3) -> 0 | F107: 5.8 | G107: 150 | H107: -55 | I107: 0.2 | J107: http://www.eimfirst.co.il/wp-content/uploads/2018/09/fbt400-600.pdf | K107: 9.4 | L107: 102 | M107: FBT 400 | O107: 107 | P107: 107 | Q107: 107 | R107: 107 | S107: 107 | T107: 107 | U107: FBT 400 | V107: 5.8 | W107: 9.4 | X107: 0 | Y107: N/A | Z107: In/Out door | AA107: 44.45 | AC107: FBT 400 | AD107: 1 | AE107: 1 | AF107: 1 | AG107: 1 | AH107: 1 | AI107: 1 | AJ107: 1 | AK107: 1 | AL107: 1 | AM107: 1 | AN107: 1 | AO107: 1 | AP107: 1 | AQ107: 1 | AR107: 1 | AS107: 1 | AT107: 1 | AU107: 1 | AV107: 1 | AW107: 1 | AX107: 1 | AY107: 1 | AZ107: 1 | BA107: 1 | BB107: 1 | BC107: 1 | BD107: 1 | BF107: 1 | BH107: FALSE | BI107: FALSE | BJ107: FALSE | BK107: FALSE | BL107: FALSE | BM107: FALSE | BP107: =ROW() -> 107 | CC107: 6200 | CD107: 4800 | CF107: 2800 | CH107: 1600 | CJ107: 1100 | CK107: 1000 | CL107: 840 | CN107: 730 | CO107: 650 | CS107: 410 | DT107: 44.45 | DU107: FBT 400 | DV107: In/Out door | DW107: In/Out door | DX107: In/Out door | EA107: 107 | EB107: 0 | EC107: 0 | ED107: 107 | EE107: 107 | EG107: FBT 400 | EH107: 1 | EI107: 0 | EJ107: 0 | EK107: 0 | EL107: 0 | EM107: 0 | EN107: 0 | EO107: 0 | EP107: 0 | EQ107: 1 | ER107: 1 | ES107: 1 | ET107: FBT 400
A108: FBT 500 | B108: 0.100255 | C108: 0.000146 | D108: N/A | E108: =((B108*SQRT($E$3*1000)+C108*$E$3*1000))/30480*Length*(1+'Cable Parameters'!I108/100*('Cable Parameters'!$E$1-25))+('Insertion Loss'!$F$16+'Insertion Loss'!$F$17)*SQRT($E$3) -> 0 | F108: 5.8 | G108: 150 | H108: -55 | I108: 0.2 | J108: http://www.eimfirst.co.il/wp-content/uploads/2018/09/fbt400-600.pdf | K108: 11.8 | L108: 103 | M108: FBT 500 | O108: 108 | P108: 108 | Q108: 108 | R108: 108 | S108: 108 | T108: 108 | U108: FBT 500 | V108: 5.8 | W108: 11.8 | X108: 0 | Y108: N/A | Z108: In/Out door | AA108: 57.15 | AC108: FBT 500 | AD108: 1 | AE108: 1 | AF108: 1 | AG108: 1 | AH108: 1 | AI108: 1 | AJ108: 1 | AK108: 1 | AL108: 1 | AM108: 1 | AN108: 1 | AO108: 1 | AP108: 1 | AQ108: 1 | AR108: 1 | AS108: 1 | AT108: 1 | AU108: 1 | AV108: 1 | AW108: 1 | AX108: 1 | AY108: 1 | AZ108: 1 | BA108: 1 | BB108: 1 | BC108: 1 | BD108: 1 | BF108: 1 | BH108: FALSE | BI108: FALSE | BJ108: FALSE | BK108: FALSE | BL108: FALSE | BM108: FALSE | BP108: =ROW() -> 108 | CC108: 8900 | CD108: 6900 | CF108: 3900 | CH108: 2200 | CJ108: 1600 | CK108: 1500 | CL108: 1200 | CN108: 1000 | CO108: 900 | CS108: 600 | DT108: 57.15 | DU108: FBT 500 | DV108: In/Out door | DW108: In/Out door | DX108: In/Out door | EA108: 108 | EB108: 0 | EC108: 0 | ED108: 108 | EE108: 108 | EG108: FBT 500 | EH108: 1 | EI108: 0 | EJ108: 0 | EK108: 0 | EL108: 0 | EM108: 0 | EN108: 0 | EO108: 0 | EP108: 0 | EQ108: 1 | ER108: 1 | ES108: 1 | ET108: FBT 500
A109: FBT 600 | B109: 0.081389 | C109: 0.000146 | D109: N/A | E109: =((B109*SQRT($E$3*1000)+C109*$E$3*1000))/30480*Length*(1+'Cable Parameters'!I109/100*('Cable Parameters'!$E$1-25))+('Insertion Loss'!$F$16+'Insertion Loss'!$F$17)*SQRT($E$3) -> 0 | F109: 5.8 | G109: 150 | H109: -55 | I109: 0.2 | J109: http://www.eimfirst.co.il/wp-content/uploads/2018/09/fbt400-600.pdf | K109: 14.35 | L109: 104 | M109: FBT 600 | O109: 109 | P109: 109 | Q109: 109 | R109: 109 | S109: 109 | T109: 109 | U109: FBT 600 | V109: 5.8 | W109: 14.35 | X109: 0 | Y109: N/A | Z109: In/Out door | AA109: 69.85 | AC109: FBT 600 | AD109: 1 | AE109: 1 | AF109: 1 | AG109: 1 | AH109: 1 | AI109: 1 | AJ109: 1 | AK109: 1 | AL109: 1 | AM109: 1 | AN109: 1 | AO109: 1 | AP109: 1 | AQ109: 1 | AR109: 1 | AS109: 1 | AT109: 1 | AU109: 1 | AV109: 1 | AW109: 1 | AX109: 1 | AY109: 1 | AZ109: 1 | BA109: 1 | BB109: 1 | BC109: 1 | BD109: 1 | BF109: 1 | BH109: FALSE | BI109: FALSE | BJ109: FALSE | BK109: FALSE | BL109: FALSE | BM109: FALSE | BP109: =ROW() -> 109 | CC109: 11800 | CD109: 9100 | CF109: 5200 | CH109: 3000 | CJ109: 2100 | CK109: 1900 | CL109: 1600 | CN109: 1300 | CO109: 1200 | CS109: 700 | DT109: 69.85 | DU109: FBT 600 | DV109: In/Out door | DW109: In/Out door | DX109: In/Out door | EA109: 109 | EB109: 0 | EC109: 0 | ED109: 109 | EE109: 109 | EG109: FBT 600 | EH109: 1 | EI109: 0 | EJ109: 0 | EK109: 0 | EL109: 0 | EM109: 0 | EN109: 0 | EO109: 0 | EP109: 0 | EQ109: 1 | ER109: 1 | ES109: 1 | ET109: FBT 600
A110: M17/180 (LSRG-6) | B110: 0.256 | C110: 0.00126 | D110: N/A | E110: =((B110*SQRT($E$3*1000)+C110*$E$3*1000))/30480*Length*(1+'Cable Parameters'!I110/100*('Cable Parameters'!$E$1-25))+('Insertion Loss'!$F$16+'Insertion Loss'!$F$17)*SQRT($E$3) -> 0 | F110: 1 | G110: 85 | H110: -30 | I110: 0.2 | J110: http://www.eimfirst.co.il/wp-content/uploads/2018/09/low-smoke-shipbord-6-223.pdf | K110: 8.43 | L110: 105 | M110: M17/180 (LSRG-6) | O110: 110 | P110: 110 | Q110: 110 | R110: 110 | S110: 110 | T110: 110 | U110: M17/180 (LSRG-6) | V110: 1 | W110: 8.43 | X110: 0 | Y110: N/A | Z110: Indoor Only | AA110: N/A | AC110: M17/180 (LSRG-6) | AD110: 1 | AE110: 1 | AF110: 1 | AG110: 1 | AH110: 1 | AI110: 1 | AJ110: 1 | AK110: 1 | AL110: 1 | AM110: 1 | AN110: 1 | AO110: 1 | AP110: 1 | AQ110: 1 | AR110: 1 | AS110: 1 | AT110: 1 | AU110: 1 | AV110: 1 | AW110: 1 | AX110: 1 | AY110: 1 | AZ110: 1 | BA110: 1 | BB110: 1 | BC110: 1 | BD110: 1 | BF110: 1 | BH110: FALSE | BI110: FALSE | BJ110: FALSE | BK110: FALSE | BL110: FALSE | BM110: FALSE | BP110: =ROW() -> 110 | CB110: 16686 | CD110: 8196 | CE110: 5525 | CK110: 1302 | CL110: 981 | CN110: 799 | CO110: 678 | CP110: 593 | DT110: N/A | DU110: M17/180 (LSRG-6) | DV110: Indoor Only | DX110: Indoor Only | EA110: 110 | EB110: 0 | EC110: 0 | ED110: 110 | EE110: 110 | EG110: M17/180 (LSRG-6) | EH110: 1 | EI110: 0 | EJ110: 1 | EK110: 0 | EL110: 1 | EM110: 0 | EN110: 0 | EO110: 0 | EP110: 0 | EQ110: 1 | ER110: 1 | ES110: 1 | ET110: M17/180 (LSRG-6)
A111: M17/181 (LSRG-11) | B111: 0.203 | C111: 0.00126 | D111: N/A | E111: =((B111*SQRT($E$3*1000)+C111*$E$3*1000))/30480*Length*(1+'Cable Parameters'!I111/100*('Cable Parameters'!$E$1-25))+('Insertion Loss'!$F$16+'Insertion Loss'!$F$17)*SQRT($E$3) -> 0 | F111: 1 | G111: 85 | H111: -30 | I111: 0.2 | J111: http://www.eimfirst.co.il/wp-content/uploads/2018/09/low-smoke-shipbord-6-223.pdf | K111: 10.29 | L111: 106 | M111: M17/181 (LSRG-11) | O111: 111 | P111: 111 | Q111: 111 | R111: 111 | S111: 111 | T111: 111 | U111: M17/181 (LSRG-11) | V111: 1 | W111: 10.29 | X111: 0 | Y111: N/A | Z111: Indoor Only | AA111: N/A | AC111: M17/181 (LSRG-11) | AD111: 1 | AE111: 1 | AF111: 1 | AG111: 1 | AH111: 1 | AI111: 1 | AJ111: 1 | AK111: 1 | AL111: 1 | AM111: 1 | AN111: 1 | AO111: 1 | AP111: 1 | AQ111: 1 | AR111: 1 | AS111: 1 | AT111: 1 | AU111: 1 | AV111: 1 | AW111: 1 | AX111: 1 | AY111: 1 | AZ111: 1 | BA111: 1 | BB111: 1 | BC111: 1 | BD111: 1 | BF111: 1 | BH111: FALSE | BI111: FALSE | BJ111: FALSE | BK111: FALSE | BL111: FALSE | BM111: FALSE | BP111: =ROW() -> 111 | CB111: 7230 | CD111: 3704 | CE111: 2582 | CK111: 741 | CL111: 588 | CN111: 497 | CO111: 435 | CP111: 390 | DT111: N/A | DU111: M17/181 (LSRG-11) | DV111: Indoor Only | DX111: Indoor Only | EA111: 111 | EB111: 0 | EC111: 0 | ED111: 111 | EE111: 111 | EG111: M17/181 (LSRG-11) | EH111: 1 | EI111: 0 | EJ111: 1 | EK111: 0 | EL111: 1 | EM111: 0 | EN111: 0 | EO111: 0 | EP111: 0 | EQ111: 1 | ER111: 1 | ES111: 1 | ET111: M17/181 (LSRG-11)
A112: M17/183 (LSRG-58) | B112: 0.444 | C112: 0.00126 | D112: N/A | E112: =((B112*SQRT($E$3*1000)+C112*$E$3*1000))/30480*Length*(1+'Cable Parameters'!I112/100*('Cable Parameters'!$E$1-25))+('Insertion Loss'!$F$16+'Insertion Loss'!$F$17)*SQRT($E$3) -> 0 | F112: 1 | G112: 85 | H112: -30 | I112: 0.2 | J112: http://www.eimfirst.co.il/wp-content/uploads/2018/09/low-smoke-shipbord-6-223.pdf | K112: 4.95 | L112: 107 | M112: M17/183 (LSRG-58) | O112: 112 | P112: 112 | Q112: 112 | R112: 112 | S112: 112 | T112: 112 | U112: M17/183 (LSRG-58) | V112: 1 | W112: 4.95 | X112: 0 | Y112: N/A | Z112: Indoor Only | AA112: 30 | AC112: M17/183 (LSRG-58) | AD112: 1 | AE112: 1 | AF112: 1 | AG112: 1 | AH112: 1 | AI112: 1 | AJ112: 1 | AK112: 1 | AL112: 1 | AM112: 1 | AN112: 1 | AO112: 1 | AP112: 1 | AQ112: 1 | AR112: 1 | AS112: 1 | AT112: 1 | AU112: 1 | AV112: 1 | AW112: 1 | AX112: 1 | AY112: 1 | AZ112: 1 | BA112: 1 | BB112: 1 | BC112: 1 | BD112: 1 | BF112: 1 | BH112: FALSE | BI112: FALSE | BJ112: FALSE | BK112: FALSE | BL112: FALSE | BM112: FALSE | BP112: =ROW() -> 112 | CB112: 16888 | CD112: 8295 | CE112: 5592 | CK112: 1317 | CL112: 993 | CN112: 808 | CO112: 687 | CP112: 600 | DT112: 30 | DU112: M17/183 (LSRG-58) | DV112: Indoor Only | DX112: Indoor Only | EA112: 112 | EB112: 0 | EC112: 0 | ED112: 112 | EE112: 112 | EG112: M17/183 (LSRG-58) | EH112: 1 | EI112: 0 | EJ112: 1 | EK112: 0 | EL112: 1 | EM112: 0 | EN112: 0 | EO112: 0 | EP112: 0 | EQ112: 1 | ER112: 1 | ES112: 1 | ET112: M17/183 (LSRG-58)
A113: M17/190 (LSRG-214) | B113: 0.19 | C113: 0.00126 | D113: N/A | E113: =((B113*SQRT($E$3*1000)+C113*$E$3*1000))/30480*Length*(1+'Cable Parameters'!I113/100*('Cable Parameters'!$E$1-25))+('Insertion Loss'!$F$16+'Insertion Loss'!$F$17)*SQRT($E$3) -> 0 | F113: 11 | G113: 85 | H113: -30 | I113: 0.2 | J113: http://www.eimfirst.co.il/wp-content/uploads/2018/09/low-smoke-shipbord-6-223.pdf | K113: 10.8 | L113: 108 | M113: M17/190 (LSRG-214) | O113: 113 | P113: 113 | Q113: 113 | R113: 113 | S113: 113 | T113: 113 | U113: M17/190 (LSRG-214) | V113: 11 | W113: 10.8 | X113: 0 | Y113: N/A | Z113: Indoor Only | AA113: 55 | AC113: M17/190 (LSRG-214) | AD113: 1 | AE113: 1 | AF113: 1 | AG113: 1 | AH113: 1 | AI113: 1 | AJ113: 1 | AK113: 1 | AL113: 1 | AM113: 1 | AN113: 1 | AO113: 1 | AP113: 1 | AQ113: 1 | AR113: 1 | AS113: 1 | AT113: 1 | AU113: 1 | AV113: 1 | AW113: 1 | AX113: 1 | AY113: 1 | AZ113: 1 | BA113: 1 | BB113: 1 | BC113: 1 | BD113: 1 | BF113: 1 | BH113: FALSE | BI113: FALSE | BJ113: FALSE | BK113: FALSE | BL113: FALSE | BM113: FALSE | BP113: =ROW() -> 113 | CB113: 28800 | CD113: 14061 | CE113: 9434 | CK113: 2168 | CL113: 1625 | CN113: 1317 | CO113: 1115 | CP113: 971 | DT113: 55 | DU113: M17/190 (LSRG-214) | DV113: Indoor Only | DX113: Indoor Only | EA113: 113 | EB113: 0 | EC113: 0 | ED113: 113 | EE113: 113 | EG113: M17/190 (LSRG-214) | EH113: 1 | EI113: 0 | EJ113: 1 | EK113: 0 | EL113: 1 | EM113: 0 | EN113: 0 | EO113: 0 | EP113: 0 | EQ113: 1 | ER113: 1 | ES113: 1 | ET113: M17/190 (LSRG-214)
A114: M17/194 (LSRG-223) | B114: 0.384 | C114: 0.00126 | D114: N/A | E114: =((B114*SQRT($E$3*1000)+C114*$E$3*1000))/30480*Length*(1+'Cable Parameters'!I114/100*('Cable Parameters'!$E$1-25))+('Insertion Loss'!$F$16+'Insertion Loss'!$F$17)*SQRT($E$3) -> 0 | F114: 11 | G114: 85 | H114: -30 | I114: 0.2 | J114: http://www.eimfirst.co.il/wp-content/uploads/2018/09/low-smoke-shipbord-6-223.pdf | K114: 5.38 | L114: 109 | M114: M17/194 (LSRG-223) | O114: 114 | P114: 114 | Q114: 114 | R114: 114 | S114: 114 | T114: 114 | U114: M17/194 (LSRG-223) | V114: 11 | W114: 5.38 | X114: 0 | Y114: N/A | Z114: Indoor Only | AA114: 30 | AC114: M17/194 (LSRG-223) | AD114: 1 | AE114: 1 | AF114: 1 | AG114: 1 | AH114: 1 | AI114: 1 | AJ114: 1 | AK114: 1 | AL114: 1 | AM114: 1 | AN114: 1 | AO114: 1 | AP114: 1 | AQ114: 1 | AR114: 1 | AS114: 1 | AT114: 1 | AU114: 1 | AV114: 1 | AW114: 1 | AX114: 1 | AY114: 1 | AZ114: 1 | BA114: 1 | BB114: 1 | BC114: 1 | BD114: 1 | BF114: 1 | BH114: FALSE | BI114: FALSE | BJ114: FALSE | BK114: FALSE | BL114: FALSE | BM114: FALSE | BP114: =ROW() -> 114 | CB114: 19909 | CD114: 10158 | CE114: 7060 | CK114: 1985 | CL114: 1564 | CN114: 1317 | CO114: 1149 | CP114: 1027 | DT114: 30 | DU114: M17/194 (LSRG-223) | DV114: Indoor Only | DX114: Indoor Only | EA114: 114 | EB114: 0 | EC114: 0 | ED114: 114 | EE114: 114 | EG114: M17/194 (LSRG-223) | EH114: 1 | EI114: 0 | EJ114: 1 | EK114: 0 | EL114: 1 | EM114: 0 | EN114: 0 | EO114: 0 | EP114: 0 | EQ114: 1 | ER114: 1 | ES114: 1 | ET114: M17/194 (LSRG-223)
A115: M17/220 (LLSB-200) | B115: 0.37753 | C115: 0.00038 | D115: N/A | E115: =((B115*SQRT($E$3*1000)+C115*$E$3*1000))/30480*Length*(1+'Cable Parameters'!I115/100*('Cable Parameters'!$E$1-25))+('Insertion Loss'!$F$16+'Insertion Loss'!$F$17)*SQRT($E$3) -> 0 | F115: 3 | G115: 85 | H115: -30 | I115: 0.2 | J115: http://www.eimfirst.co.il/wp-content/uploads/2018/09/low-smoke-shipbord-200-1200.pdf | K115: 4.95 | L115: 110 | M115: M17/220 (LLSB-200) | O115: 115 | P115: 115 | Q115: 115 | R115: 115 | S115: 115 | T115: 115 | U115: M17/220 (LLSB-200) | V115: 3 | W115: 4.95 | X115: 0 | Y115: N/A | Z115: Indoor Only | AA115: 25.4 | AC115: M17/220 (LLSB-200) | AD115: 1 | AE115: 1 | AF115: 1 | AG115: 1 | AH115: 1 | AI115: 1 | AJ115: 1 | AK115: 1 | AL115: 1 | AM115: 1 | AN115: 1 | AO115: 1 | AP115: 1 | AQ115: 1 | AR115: 1 | AS115: 1 | AT115: 1 | AU115: 1 | AV115: 1 | AW115: 1 | AX115: 1 | AY115: 1 | AZ115: 1 | BA115: 1 | BB115: 1 | BC115: 1 | BD115: 1 | BF115: 1 | BH115: FALSE | BI115: FALSE | BJ115: FALSE | BK115: FALSE | BL115: FALSE | BM115: FALSE | BP115: =ROW() -> 115 | CA115: 1718 | CC115: 980 | CD115: 753 | CE115: 525 | CG115: 250 | CK115: 149 | DT115: 25.4 | DU115: M17/220 (LLSB-200) | DV115: Indoor Only | DX115: Indoor Only | EA115: 115 | EB115: 0 | EC115: 0 | ED115: 115 | EE115: 115 | EG115: M17/220 (LLSB-200) | EH115: 1 | EI115: 0 | EJ115: 1 | EK115: 0 | EL115: 1 | EM115: 0 | EN115: 0 | EO115: 0 | EP115: 0 | EQ115: 1 | ER115: 1 | ES115: 1 | ET115: M17/220 (LLSB-200)
A116: M17/221 (LLSB-240) | B116: 0.2848 | C116: 0.00038 | D116: N/A | E116: =((B116*SQRT($E$3*1000)+C116*$E$3*1000))/30480*Length*(1+'Cable Parameters'!I116/100*('Cable Parameters'!$E$1-25))+('Insertion Loss'!$F$16+'Insertion Loss'!$F$17)*SQRT($E$3) -> 0 | F116: 3 | G116: 85 | H116: -30 | I116: 0.2 | J116: http://www.eimfirst.co.il/wp-content/uploads/2018/09/low-smoke-shipbord-200-1200.pdf | K116: 6.15 | L116: 111 | M116: M17/221 (LLSB-240) | O116: 116 | P116: 116 | Q116: 116 | R116: 116 | S116: 116 | T116: 116 | U116: M17/221 (LLSB-240) | V116: 3 | W116: 6.15 | X116: 0 | Y116: N/A | Z116: Indoor Only | AA116: 31.8 | AC116: M17/221 (LLSB-240) | AD116: 1 | AE116: 1 | AF116: 1 | AG116: 1 | AH116: 1 | AI116: 1 | AJ116: 1 | AK116: 1 | AL116: 1 | AM116: 1 | AN116: 1 | AO116: 1 | AP116: 1 | AQ116: 1 | AR116: 1 | AS116: 1 | AT116: 1 | AU116: 1 | AV116: 1 | AW116: 1 | AX116: 1 | AY116: 1 | AZ116: 1 | BA116: 1 | BB116: 1 | BC116: 1 | BD116: 1 | BF116: 1 | BH116: FALSE | BI116: FALSE | BJ116: FALSE | BK116: FALSE | BL116: FALSE | BM116: FALSE | BP116: =ROW() -> 116 | CA116: 2477 | CC116: 1409 | CD116: 1081 | CE116: 751 | CG116: 353 | CK116: 209 | DT116: 31.8 | DU116: M17/221 (LLSB-240) | DV116: Indoor Only | DX116: Indoor Only | EA116: 116 | EB116: 0 | EC116: 0 | ED116: 116 | EE116: 116 | EG116: M17/221 (LLSB-240) | EH116: 1 | EI116: 0 | EJ116: 1 | EK116: 0 | EL116: 1 | EM116: 0 | EN116: 0 | EO116: 0 | EP116: 0 | EQ116: 1 | ER116: 1 | ES116: 1 | ET116: M17/221 (LLSB-240)
A117: M17/223 (LLSB-400) | B117: 0.14387 | C117: 0.000306 | D117: N/A | E117: =((B117*SQRT($E$3*1000)+C117*$E$3*1000))/30480*Length*(1+'Cable Parameters'!I117/100*('Cable Parameters'!$E$1-25))+('Insertion Loss'!$F$16+'Insertion Loss'!$F$17)*SQRT($E$3) -> 0 | F117: 3 | G117: 85 | H117: -30 | I117: 0.2 | J117: http://www.eimfirst.co.il/wp-content/uploads/2018/09/low-smoke-shipbord-200-1200.pdf | K117: 10.29 | L117: 112 | M117: M17/223 (LLSB-400) | O117: 117 | P117: 117 | Q117: 117 | R117: 117 | S117: 117 | T117: 117 | U117: M17/223 (LLSB-400) | V117: 3 | W117: 10.29 | X117: 0 | Y117: N/A | Z117: Indoor Only | AA117: 50.8 | AC117: M17/223 (LLSB-400) | AD117: 1 | AE117: 1 | AF117: 1 | AG117: 1 | AH117: 1 | AI117: 1 | AJ117: 1 | AK117: 1 | AL117: 1 | AM117: 1 | AN117: 1 | AO117: 1 | AP117: 1 | AQ117: 1 | AR117: 1 | AS117: 1 | AT117: 1 | AU117: 1 | AV117: 1 | AW117: 1 | AX117: 1 | AY117: 1 | AZ117: 1 | BA117: 1 | BB117: 1 | BC117: 1 | BD117: 1 | BF117: 1 | BH117: FALSE | BI117: FALSE | BJ117: FALSE | BK117: FALSE | BL117: FALSE | BM117: FALSE | BP117: =ROW() -> 117 | CA117: 1436 | CC117: 822 | CD117: 634 | CE117: 444 | CG117: 215 | CK117: 131 | DT117: 50.8 | DU117: M17/223 (LLSB-400) | DV117: Indoor Only | DX117: Indoor Only | EA117: 117 | EB117: 0 | EC117: 0 | ED117: 117 | EE117: 117 | EG117: M17/223 (LLSB-400) | EH117: 1 | EI117: 0 | EJ117: 1 | EK117: 0 | EL117: 1 | EM117: 0 | EN117: 0 | EO117: 0 | EP117: 0 | EQ117: 1 | ER117: 1 | ES117: 1 | ET117: M17/223 (LLSB-400)
A118: M17/225 (LLSB-600) | B118: 0.08888 | C118: 0.000306 | D118: N/A | E118: =((B118*SQRT($E$3*1000)+C118*$E$3*1000))/30480*Length*(1+'Cable Parameters'!I118/100*('Cable Parameters'!$E$1-25))+('Insertion Loss'!$F$16+'Insertion Loss'!$F$17)*SQRT($E$3) -> 0 | F118: 3 | G118: 85 | H118: -30 | I118: 0.2 | J118: http://www.eimfirst.co.il/wp-content/uploads/2018/09/low-smoke-shipbord-200-1200.pdf | K118: 14.99 | L118: 113 | M118: M17/225 (LLSB-600) | O118: 118 | P118: 118 | Q118: 118 | R118: 118 | S118: 118 | T118: 118 | U118: M17/225 (LLSB-600) | V118: 3 | W118: 14.99 | X118: 0 | Y118: N/A | Z118: Indoor Only | AA118: 76.2 | AC118: M17/225 (LLSB-600) | AD118: 1 | AE118: 1 | AF118: 1 | AG118: 1 | AH118: 1 | AI118: 1 | AJ118: 1 | AK118: 1 | AL118: 1 | AM118: 1 | AN118: 1 | AO118: 1 | AP118: 1 | AQ118: 1 | AR118: 1 | AS118: 1 | AT118: 1 | AU118: 1 | AV118: 1 | AW118: 1 | AX118: 1 | AY118: 1 | AZ118: 1 | BA118: 1 | BB118: 1 | BC118: 1 | BD118: 1 | BF118: 1 | BH118: FALSE | BI118: FALSE | BJ118: FALSE | BK118: FALSE | BL118: FALSE | BM118: FALSE | BP118: =ROW() -> 118 | CA118: 3611 | CC118: 2053 | CD118: 1573 | CE118: 1091 | CG118: 512 | CK118: 302 | DT118: 76.2 | DU118: M17/225 (LLSB-600) | DV118: Indoor Only | DX118: Indoor Only | EA118: 118 | EB118: 0 | EC118: 0 | ED118: 118 | EE118: 118 | EG118: M17/225 (LLSB-600) | EH118: 1 | EI118: 0 | EJ118: 1 | EK118: 0 | EL118: 1 | EM118: 0 | EN118: 0 | EO118: 0 | EP118: 0 | EQ118: 1 | ER118: 1 | ES118: 1 | ET118: M17/225 (LLSB-600)
A119: M17/226 (LLSB-900) | B119: 0.06091 | C119: 0.000188 | D119: N/A | E119: =((B119*SQRT($E$3*1000)+C119*$E$3*1000))/30480*Length*(1+'Cable Parameters'!I119/100*('Cable Parameters'!$E$1-25))+('Insertion Loss'!$F$16+'Insertion Loss'!$F$17)*SQRT($E$3) -> 0 | F119: 3 | G119: 85 | H119: -30 | I119: 0.2 | J119: http://www.eimfirst.co.il/wp-content/uploads/2018/09/low-smoke-shipbord-200-1200.pdf | K119: 22.1 | L119: 114 | M119: M17/226 (LLSB-900) | O119: 119 | P119: 119 | Q119: 119 | R119: 119 | S119: 119 | T119: 119 | U119: M17/226 (LLSB-900) | V119: 3 | W119: 22.1 | X119: 0 | Y119: N/A | Z119: Indoor Only | AA119: 114.3 | AC119: M17/226 (LLSB-900) | AD119: 1 | AE119: 1 | AF119: 1 | AG119: 1 | AH119: 1 | AI119: 1 | AJ119: 1 | AK119: 1 | AL119: 1 | AM119: 1 | AN119: 1 | AO119: 1 | AP119: 1 | AQ119: 1 | AR119: 1 | AS119: 1 | AT119: 1 | AU119: 1 | AV119: 1 | AW119: 1 | AX119: 1 | AY119: 1 | AZ119: 1 | BA119: 1 | BB119: 1 | BC119: 1 | BD119: 1 | BF119: 1 | BH119: FALSE | BI119: FALSE | BJ119: FALSE | BK119: FALSE | BL119: FALSE | BM119: FALSE | BP119: =ROW() -> 119 | CA119: 1568 | CC119: 898 | CD119: 691 | CE119: 483 | CG119: 233 | CK119: 141 | CL119: 113 | CN119: 95 | CO119: 84 | CP119: 75 | CW119: 33 | DT119: 114.3 | DU119: M17/226 (LLSB-900) | DV119: Indoor Only | DX119: Indoor Only | EA119: 119 | EB119: 0 | EC119: 0 | ED119: 119 | EE119: 119 | EG119: M17/226 (LLSB-900) | EH119: 1 | EI119: 0 | EJ119: 1 | EK119: 0 | EL119: 1 | EM119: 0 | EN119: 0 | EO119: 0 | EP119: 0 | EQ119: 1 | ER119: 1 | ES119: 1 | ET119: M17/226 (LLSB-900)
A120: M17/227 (LLSB-1200) | B120: 0.04396 | C120: 0.000188 | D120: N/A | E120: =((B120*SQRT($E$3*1000)+C120*$E$3*1000))/30480*Length*(1+'Cable Parameters'!I120/100*('Cable Parameters'!$E$1-25))+('Insertion Loss'!$F$16+'Insertion Loss'!$F$17)*SQRT($E$3) -> 0 | F120: 3 | G120: 85 | H120: -30 | I120: 0.2 | J120: http://www.eimfirst.co.il/wp-content/uploads/2018/09/low-smoke-shipbord-200-1200.pdf | K120: 30.48 | L120: 115 | M120: M17/227 (LLSB-1200) | O120: 120 | P120: 120 | Q120: 120 | R120: 120 | S120: 120 | T120: 120 | U120: M17/227 (LLSB-1200) | V120: 3 | W120: 30.48 | X120: 0 | Y120: N/A | Z120: Indoor Only | AA120: 152.4 | AC120: M17/227 (LLSB-1200) | AD120: 1 | AE120: 1 | AF120: 1 | AG120: 1 | AH120: 1 | AI120: 1 | AJ120: 1 | AK120: 1 | AL120: 1 | AM120: 1 | AN120: 1 | AO120: 1 | AP120: 1 | AQ120: 1 | AR120: 1 | AS120: 1 | AT120: 1 | AU120: 1 | AV120: 1 | AW120: 1 | AX120: 1 | AY120: 1 | AZ120: 1 | BA120: 1 | BB120: 1 | BC120: 1 | BD120: 1 | BF120: 1 | BH120: FALSE | BI120: FALSE | BJ120: FALSE | BK120: FALSE | BL120: FALSE | BM120: FALSE | BP120: =ROW() -> 120 | CA120: 1459 | CC120: 840 | CD120: 649 | CE120: 457 | CG120: 225 | CK120: 140 | CL120: 113 | CN120: 97 | CO120: 86 | CP120: 78 | DT120: 152.4 | DU120: M17/227 (LLSB-1200) | DV120: Indoor Only | DX120: Indoor Only | EA120: 120 | EB120: 0 | EC120: 0 | ED120: 120 | EE120: 120 | EG120: M17/227 (LLSB-1200) | EH120: 1 | EI120: 0 | EJ120: 1 | EK120: 0 | EL120: 1 | EM120: 0 | EN120: 0 | EO120: 0 | EP120: 0 | EQ120: 1 | ER120: 1 | ES120: 1 | ET120: M17/227 (LLSB-1200)
A121: TCOM-200-LS | B121: 0.37753 | C121: 0.00038 | D121: N/A | E121: =((B121*SQRT($E$3*1000)+C121*$E$3*1000))/30480*Length*(1+'Cable Parameters'!I121/100*('Cable Parameters'!$E$1-25))+('Insertion Loss'!$F$16+'Insertion Loss'!$F$17)*SQRT($E$3) -> 0 | F121: 10 | G121: 100 | H121: -30 | I121: 0.2 | J121: http://www.eimfirst.co.il/wp-content/uploads/2018/09/tcom-low-smoke.pdf | K121: 4.95 | L121: 116 | M121: TCOM-200-LS | O121: 121 | P121: 121 | Q121: 121 | R121: 121 | S121: 121 | T121: 121 | U121: TCOM-200-LS | V121: 10 | W121: 4.95 | X121: 0 | Y121: N/A | Z121: In/Out door | AA121: 12.7 | AC121: TCOM-200-LS | AD121: 1 | AE121: 1 | AF121: 1 | AG121: 1 | AH121: 1 | AI121: 1 | AJ121: 1 | AK121: 1 | AL121: 1 | AM121: 1 | AN121: 1 | AO121: 1 | AP121: 1 | AQ121: 1 | AR121: 1 | AS121: 1 | AT121: 1 | AU121: 1 | AV121: 1 | AW121: 1 | AX121: 1 | AY121: 1 | AZ121: 1 | BA121: 1 | BB121: 1 | BC121: 1 | BD121: 1 | BF121: 1 | BH121: FALSE | BI121: FALSE | BJ121: FALSE | BK121: FALSE | BL121: FALSE | BM121: FALSE | BP121: =ROW() -> 121 | CA121: 2205 | CC121: 1268 | CD121: 979 | CE121: 689 | CG121: 339 | CK121: 210 | CL121: 169 | CN121: 145 | CO121: 129 | CP121: 117 | DT121: 12.7 | DU121: TCOM-200-LS | DV121: In/Out door | DW121: In/Out door | DX121: In/Out door | EA121: 121 | EB121: 0 | EC121: 0 | ED121: 121 | EE121: 121 | EG121: TCOM-200-LS | EH121: 0 | EI121: 0 | EJ121: 0 | EK121: 0 | EL121: 0 | EM121: 1 | EN121: 0 | EO121: 0 | EP121: 0 | EQ121: 0 | ER121: 1 | ES121: 0 | ET121: TCOM-200-LS
A122: TCOM-240-LS | B122: 0.2848 | C122: 0.00038 | D122: N/A | E122: =((B122*SQRT($E$3*1000)+C122*$E$3*1000))/30480*Length*(1+'Cable Parameters'!I122/100*('Cable Parameters'!$E$1-25))+('Insertion Loss'!$F$16+'Insertion Loss'!$F$17)*SQRT($E$3) -> 0 | F122: 10 | G122: 100 | H122: -30 | I122: 0.2 | J122: http://www.eimfirst.co.il/wp-content/uploads/2018/09/tcom-low-smoke.pdf | K122: 6.1 | L122: 117 | M122: TCOM-240-LS | O122: 122 | P122: 122 | Q122: 122 | R122: 122 | S122: 122 | T122: 122 | U122: TCOM-240-LS | V122: 10 | W122: 6.1 | X122: 0 | Y122: N/A | Z122: In/Out door | AA122: 19.1 | AC122: TCOM-240-LS | AD122: 1 | AE122: 1 | AF122: 1 | AG122: 1 | AH122: 1 | AI122: 1 | AJ122: 1 | AK122: 1 | AL122: 1 | AM122: 1 | AN122: 1 | AO122: 1 | AP122: 1 | AQ122: 1 | AR122: 1 | AS122: 1 | AT122: 1 | AU122: 1 | AV122: 1 | AW122: 1 | AX122: 1 | AY122: 1 | AZ122: 1 | BA122: 1 | BB122: 1 | BC122: 1 | BD122: 1 | BF122: 1 | BH122: FALSE | BI122: FALSE | BJ122: FALSE | BK122: FALSE | BL122: FALSE | BM122: FALSE | BP122: =ROW() -> 122 | CA122: 4927 | CC122: 2830 | CD122: 2184 | CE122: 1534 | CG122: 750 | CK122: 462 | CL122: 371 | CN122: 318 | CO122: 281 | CP122: 254 | DT122: 19.1 | DU122: TCOM-240-LS | DV122: In/Out door | DW122: In/Out door | DX122: In/Out door | EA122: 122 | EB122: 0 | EC122: 0 | ED122: 122 | EE122: 122 | EG122: TCOM-240-LS | EH122: 0 | EI122: 0 | EJ122: 0 | EK122: 0 | EL122: 0 | EM122: 1 | EN122: 0 | EO122: 0 | EP122: 0 | EQ122: 0 | ER122: 1 | ES122: 0 | ET122: TCOM-240-LS
A123: TCOM-300-LS | B123: 0.2258 | C123: 0.00044 | D123: N/A | E123: =((B123*SQRT($E$3*1000)+C123*$E$3*1000))/30480*Length*(1+'Cable Parameters'!I123/100*('Cable Parameters'!$E$1-25))+('Insertion Loss'!$F$16+'Insertion Loss'!$F$17)*SQRT($E$3) -> 0 | F123: 10 | G123: 100 | H123: -30 | I123: 0.2 | J123: http://www.eimfirst.co.il/wp-content/uploads/2018/09/tcom-low-smoke.pdf | K123: 7.62 | L123: 118 | M123: TCOM-300-LS | O123: 123 | P123: 123 | Q123: 123 | R123: 123 | S123: 123 | T123: 123 | U123: TCOM-300-LS | V123: 10 | W123: 7.62 | X123: 0 | Y123: N/A | Z123: In/Out door | AA123: 22.2 | AC123: TCOM-300-LS | AD123: 1 | AE123: 1 | AF123: 1 | AG123: 1 | AH123: 1 | AI123: 1 | AJ123: 1 | AK123: 1 | AL123: 1 | AM123: 1 | AN123: 1 | AO123: 1 | AP123: 1 | AQ123: 1 | AR123: 1 | AS123: 1 | AT123: 1 | AU123: 1 | AV123: 1 | AW123: 1 | AX123: 1 | AY123: 1 | AZ123: 1 | BA123: 1 | BB123: 1 | BC123: 1 | BD123: 1 | BF123: 1 | BH123: FALSE | BI123: FALSE | BJ123: FALSE | BK123: FALSE | BL123: FALSE | BM123: FALSE | BP123: =ROW() -> 123 | CA123: 8172 | CC123: 4680 | CD123: 3605 | CE123: 2523 | CG123: 1219 | CK123: 742 | CL123: 592 | CN123: 503 | CO123: 443 | CP123: 398 | DT123: 22.2 | DU123: TCOM-300-LS | DV123: In/Out door | DW123: In/Out door | DX123: In/Out door | EA123: 123 | EB123: 0 | EC123: 0 | ED123: 123 | EE123: 123 | EG123: TCOM-300-LS | EH123: 0 | EI123: 0 | EJ123: 0 | EK123: 0 | EL123: 0 | EM123: 1 | EN123: 0 | EO123: 0 | EP123: 0 | EQ123: 0 | ER123: 1 | ES123: 0 | ET123: TCOM-300-LS
A124: TCOM-400-LS | B124: 0.14387 | C124: 0.00031 | D124: N/A | E124: =((B124*SQRT($E$3*1000)+C124*$E$3*1000))/30480*Length*(1+'Cable Parameters'!I124/100*('Cable Parameters'!$E$1-25))+('Insertion Loss'!$F$16+'Insertion Loss'!$F$17)*SQRT($E$3) -> 0 | F124: 10 | G124: 100 | H124: -30 | I124: 0.2 | J124: http://www.eimfirst.co.il/wp-content/uploads/2018/09/tcom-low-smoke.pdf | K124: 10.29 | L124: 119 | M124: TCOM-400-LS | O124: 124 | P124: 124 | Q124: 124 | R124: 124 | S124: 124 | T124: 124 | U124: TCOM-400-LS | V124: 10 | W124: 10.29 | X124: 0 | Y124: N/A | Z124: In/Out door | AA124: 25.4 | AC124: TCOM-400-LS | AD124: 1 | AE124: 1 | AF124: 1 | AG124: 1 | AH124: 1 | AI124: 1 | AJ124: 1 | AK124: 1 | AL124: 1 | AM124: 1 | AN124: 1 | AO124: 1 | AP124: 1 | AQ124: 1 | AR124: 1 | AS124: 1 | AT124: 1 | AU124: 1 | AV124: 1 | AW124: 1 | AX124: 1 | AY124: 1 | AZ124: 1 | BA124: 1 | BB124: 1 | BC124: 1 | BD124: 1 | BF124: 1 | BH124: FALSE | BI124: FALSE | BJ124: FALSE | BK124: FALSE | BL124: FALSE | BM124: FALSE | BP124: =ROW() -> 124 | CA124: 13044 | CC124: 7477 | CD124: 5763 | CE124: 4038 | CG124: 1959 | CK124: 1197 | CL124: 958 | CN124: 815 | CO124: 718 | CP124: 647 | DT124: 25.4 | DU124: TCOM-400-LS | DV124: In/Out door | DW124: In/Out door | DX124: In/Out door | EA124: 124 | EB124: 0 | EC124: 0 | ED124: 124 | EE124: 124 | EG124: TCOM-400-LS | EH124: 0 | EI124: 0 | EJ124: 0 | EK124: 0 | EL124: 0 | EM124: 1 | EN124: 0 | EO124: 0 | EP124: 0 | EQ124: 0 | ER124: 1 | ES124: 0 | ET124: TCOM-400-LS
A125: TCOM-500-LS | B125: 0.1364 | C125: 0.00031 | D125: N/A | E125: =((B125*SQRT($E$3*1000)+C125*$E$3*1000))/30480*Length*(1+'Cable Parameters'!I125/100*('Cable Parameters'!$E$1-25))+('Insertion Loss'!$F$16+'Insertion Loss'!$F$17)*SQRT($E$3) -> 0 | F125: 10 | G125: 100 | H125: -30 | I125: 0.2 | J125: http://www.eimfirst.co.il/wp-content/uploads/2018/09/tcom-low-smoke.pdf | K125: 12.7 | L125: 120 | M125: TCOM-500-LS | O125: 125 | P125: 125 | Q125: 125 | R125: 125 | S125: 125 | T125: 125 | U125: TCOM-500-LS | V125: 10 | W125: 12.7 | X125: 0 | Y125: N/A | Z125: In/Out door | AA125: 31.8 | AC125: TCOM-500-LS | AD125: 1 | AE125: 1 | AF125: 1 | AG125: 1 | AH125: 1 | AI125: 1 | AJ125: 1 | AK125: 1 | AL125: 1 | AM125: 1 | AN125: 1 | AO125: 1 | AP125: 1 | AQ125: 1 | AR125: 1 | AS125: 1 | AT125: 1 | AU125: 1 | AV125: 1 | AW125: 1 | AX125: 1 | AY125: 1 | AZ125: 1 | BA125: 1 | BB125: 1 | BC125: 1 | BD125: 1 | BF125: 1 | BH125: FALSE | BI125: FALSE | BJ125: FALSE | BK125: FALSE | BL125: FALSE | BM125: FALSE | BP125: =ROW() -> 125 | CA125: 18953 | CC125: 10835 | CD125: 8337 | CE125: 5823 | CG125: 2795 | CK125: 1689 | CL125: 1342 | CN125: 1137 | CO125: 998 | CP125: 895 | DT125: 31.8 | DU125: TCOM-500-LS | DV125: In/Out door | DW125: In/Out door | DX125: In/Out door | EA125: 125 | EB125: 0 | EC125: 0 | ED125: 125 | EE125: 125 | EG125: TCOM-500-LS | EH125: 0 | EI125: 0 | EJ125: 0 | EK125: 0 | EL125: 0 | EM125: 1 | EN125: 0 | EO125: 0 | EP125: 0 | EQ125: 0 | ER125: 1 | ES125: 0 | ET125: TCOM-500-LS
A126: TCOM-600-LS | B126: 0.08888 | C126: 0.00031 | D126: N/A | E126: =((B126*SQRT($E$3*1000)+C126*$E$3*1000))/30480*Length*(1+'Cable Parameters'!I126/100*('Cable Parameters'!$E$1-25))+('Insertion Loss'!$F$16+'Insertion Loss'!$F$17)*SQRT($E$3) -> 0 | F126: 10 | G126: 100 | H126: -30 | I126: 0.2 | J126: http://www.eimfirst.co.il/wp-content/uploads/2018/09/tcom-low-smoke.pdf | K126: 14.99 | L126: 121 | M126: TCOM-600-LS | O126: 126 | P126: 126 | Q126: 126 | R126: 126 | S126: 126 | T126: 126 | U126: TCOM-600-LS | V126: 10 | W126: 14.99 | X126: 0 | Y126: N/A | Z126: In/Out door | AA126: 38.1 | AC126: TCOM-600-LS | AD126: 1 | AE126: 1 | AF126: 1 | AG126: 1 | AH126: 1 | AI126: 1 | AJ126: 1 | AK126: 1 | AL126: 1 | AM126: 1 | AN126: 1 | AO126: 1 | AP126: 1 | AQ126: 1 | AR126: 1 | AS126: 1 | AT126: 1 | AU126: 1 | AV126: 1 | AW126: 1 | AX126: 1 | AY126: 1 | AZ126: 1 | BA126: 1 | BB126: 1 | BC126: 1 | BD126: 1 | BF126: 1 | BH126: FALSE | BI126: FALSE | BJ126: FALSE | BK126: FALSE | BL126: FALSE | BM126: FALSE | BP126: =ROW() -> 126 | CC126: 869 | CD126: 671 | CF126: 385 | CH126: 219 | CJ126: 153 | CN126: 100 | CR126: 61 | CV126: 41 | DT126: 38.1 | DU126: TCOM-600-LS | DV126: In/Out door | DW126: In/Out door | DX126: In/Out door | EA126: 126 | EB126: 0 | EC126: 0 | ED126: 126 | EE126: 126 | EG126: TCOM-600-LS | EH126: 0 | EI126: 0 | EJ126: 0 | EK126: 0 | EL126: 0 | EM126: 1 | EN126: 0 | EO126: 0 | EP126: 0 | EQ126: 0 | ER126: 1 | ES126: 0 | ET126: TCOM-600-LS
A127: SPFLT 130 | B127: 0.4363 | C127: 0.00015 | D127: N/A | E127: =((B127*SQRT($E$3*1000)+C127*$E$3*1000))/30480*Length*(1+'Cable Parameters'!I127/100*('Cable Parameters'!$E$1-25))+('Insertion Loss'!$F$16+'Insertion Loss'!$F$17)*SQRT($E$3) -> 0 | F127: 40 | G127: 200 | H127: -65 | I127: 0.2 | J127: http://www.eimfirst.co.il/wp-content/uploads/2018/09/spflt-tm.pdf | K127: 3.3 | L127: 122 | M127: SPFLT 130 | O127: 127 | P127: 127 | Q127: 127 | R127: 127 | S127: 127 | T127: 127 | U127: SPFLT 130 | V127: 40 | W127: 3.3 | X127: 0 | Y127: N/A | Z127: In/Out door | AA127: 19.05 | AC127: SPFLT 130 | AD127: 1 | AE127: 1 | AF127: 1 | AG127: 1 | AH127: 1 | AI127: 1 | AJ127: 1 | AK127: 1 | AL127: 1 | AM127: 1 | AN127: 1 | AO127: 1 | AP127: 1 | AQ127: 1 | AR127: 1 | AS127: 1 | AT127: 1 | AU127: 1 | AV127: 1 | AW127: 1 | AX127: 1 | AY127: 1 | AZ127: 1 | BA127: 1 | BB127: 1 | BC127: 1 | BD127: 1 | BF127: 1 | BH127: FALSE | BI127: FALSE | BJ127: FALSE | BK127: FALSE | BL127: FALSE | BM127: FALSE | BP127: =ROW() -> 127 | CC127: 1268 | CD127: 979 | CF127: 561 | CH127: 319 | CJ127: 222 | CN127: 145 | CR127: 88 | CV127: 59 | DT127: 19.05 | DU127: SPFLT 130 | DV127: In/Out door | DW127: In/Out door | DX127: In/Out door | EA127: 127 | EB127: 0 | EC127: 0 | ED127: 127 | EE127: 127 | EG127: SPFLT 130 | EH127: 0 | EI127: 1 | EJ127: 0 | EK127: 0 | EL127: 0 | EM127: 0 | EN127: 0 | EO127: 0 | EP127: 0 | EQ127: 0 | ER127: 0 | ES127: 0 | ET127: SPFLT 130
A128: SPFLT 200 | B128: 0.2426 | C128: 0.00013 | D128: N/A | E128: =((B128*SQRT($E$3*1000)+C128*$E$3*1000))/30480*Length*(1+'Cable Parameters'!I128/100*('Cable Parameters'!$E$1-25))+('Insertion Loss'!$F$16+'Insertion Loss'!$F$17)*SQRT($E$3) -> 0 | F128: 30 | G128: 200 | H128: -65 | I128: 0.2 | J128: http://www.eimfirst.co.il/wp-content/uploads/2018/09/spflt-tm.pdf | K128: 5.1 | L128: 123 | M128: SPFLT 200 | O128: 128 | P128: 128 | Q128: 128 | R128: 128 | S128: 128 | T128: 128 | U128: SPFLT 200 | V128: 30 | W128: 5.1 | X128: 0 | Y128: N/A | Z128: In/Out door | AA128: 25.4 | AC128: SPFLT 200 | AD128: 1 | AE128: 1 | AF128: 1 | AG128: 1 | AH128: 1 | AI128: 1 | AJ128: 1 | AK128: 1 | AL128: 1 | AM128: 1 | AN128: 1 | AO128: 1 | AP128: 1 | AQ128: 1 | AR128: 1 | AS128: 1 | AT128: 1 | AU128: 1 | AV128: 1 | AW128: 1 | AX128: 1 | AY128: 1 | AZ128: 1 | BA128: 1 | BB128: 1 | BC128: 1 | BD128: 1 | BF128: 1 | BH128: FALSE | BI128: FALSE | BJ128: FALSE | BK128: FALSE | BL128: FALSE | BM128: FALSE | BP128: =ROW() -> 128 | CC128: 1777 | CD128: 1371 | CF128: 783 | CH128: 443 | CJ128: 307 | CN128: 200 | CR128: 120 | CV128: 80 | DT128: 25.4 | DU128: SPFLT 200 | DV128: In/Out door | DW128: In/Out door | DX128: In/Out door | EA128: 128 | EB128: 0 | EC128: 0 | ED128: 128 | EE128: 128 | EG128: SPFLT 200 | EH128: 0 | EI128: 1 | EJ128: 0 | EK128: 0 | EL128: 0 | EM128: 0 | EN128: 0 | EO128: 0 | EP128: 0 | EQ128: 0 | ER128: 0 | ES128: 0 | ET128: SPFLT 200
A129: SPFLT 305 | B129: 0.1316 | C129: 0.0001193 | D129: N/A | E129: =((B129*SQRT($E$3*1000)+C129*$E$3*1000))/30480*Length*(1+'Cable Parameters'!I129/100*('Cable Parameters'!$E$1-25))+('Insertion Loss'!$F$16+'Insertion Loss'!$F$17)*SQRT($E$3) -> 0 | F129: 18.5 | G129: 200 | H129: -65 | I129: 0.2 | J129: http://www.eimfirst.co.il/wp-content/uploads/2018/09/spflt-tm.pdf | K129: 7.8 | L129: 124 | M129: SPFLT 305 | O129: 129 | P129: 129 | Q129: 129 | R129: 129 | S129: 129 | T129: 129 | U129: SPFLT 305 | V129: 18.5 | W129: 7.8 | X129: 0 | Y129: N/A | Z129: In/Out door | AA129: 38.1 | AC129: SPFLT 305 | AD129: 1 | AE129: 1 | AF129: 1 | AG129: 1 | AH129: 1 | AI129: 1 | AJ129: 1 | AK129: 1 | AL129: 1 | AM129: 1 | AN129: 1 | AO129: 1 | AP129: 1 | AQ129: 1 | AR129: 1 | AS129: 1 | AT129: 1 | AU129: 1 | AV129: 1 | AW129: 1 | AX129: 1 | AY129: 1 | AZ129: 1 | BA129: 1 | BB129: 1 | BC129: 1 | BD129: 1 | BF129: 1 | BH129: FALSE | BI129: FALSE | BJ129: FALSE | BK129: FALSE | BL129: FALSE | BM129: FALSE | BP129: =ROW() -> 129 | CC129: 2830 | CD129: 2184 | CF129: 1246 | CH129: 705 | CJ129: 489 | CN129: 318 | CR129: 190 | CV129: 126 | DT129: 38.1 | DU129: SPFLT 305 | DV129: In/Out door | DW129: In/Out door | DX129: In/Out door | EA129: 129 | EB129: 0 | EC129: 0 | ED129: 129 | EE129: 129 | EG129: SPFLT 305 | EH129: 0 | EI129: 1 | EJ129: 0 | EK129: 0 | EL129: 0 | EM129: 0 | EN129: 0 | EO129: 0 | EP129: 0 | EQ129: 0 | ER129: 0 | ES129: 0 | ET129: SPFLT 305
A130: HP-393 | B130: 0.200595 | C130: 0.0013 | D130: N/A | E130: =((B130*SQRT($E$3*1000)+C130*$E$3*1000))/30480*Length*(1+'Cable Parameters'!I130/100*('Cable Parameters'!$E$1-25))+('Insertion Loss'!$F$16+'Insertion Loss'!$F$17)*SQRT($E$3) -> 0 | F130: 3 | G130: 200 | H130: -55 | I130: 0.2 | J130: http://www.eimfirst.co.il/wp-content/uploads/2018/09/hp-cables.pdf | K130: 9.91 | L130: 125 | M130: HP-393 | O130: 130 | P130: 130 | Q130: 130 | R130: 130 | S130: 130 | T130: 130 | U130: HP-393 | V130: 3 | W130: 9.91 | X130: 0 | Y130: N/A | Z130: In/Out door | AA130: 50.8 | AC130: HP-393 | AD130: 1 | AE130: 1 | AF130: 1 | AG130: 1 | AH130: 1 | AI130: 1 | AJ130: 1 | AK130: 1 | AL130: 1 | AM130: 1 | AN130: 1 | AO130: 1 | AP130: 1 | AQ130: 1 | AR130: 1 | AS130: 1 | AT130: 1 | AU130: 1 | AV130: 1 | AW130: 1 | AX130: 1 | AY130: 1 | AZ130: 1 | BA130: 1 | BB130: 1 | BC130: 1 | BD130: 1 | BF130: 1 | BH130: FALSE | BI130: FALSE | BJ130: FALSE | BK130: FALSE | BL130: FALSE | BM130: FALSE | BP130: =ROW() -> 130 | CC130: 3752 | CD130: 2893 | CF130: 1647 | CH130: 928 | CJ130: 641 | CN130: 413 | CR130: 245 | CV130: 161 | DT130: 50.8 | DU130: HP-393 | DV130: In/Out door | DW130: In/Out door | DX130: In/Out door | EA130: 130 | EB130: 0 | EC130: 0 | ED130: 130 | EE130: 130 | EG130: HP-393 | EH130: 0 | EI130: 0 | EJ130: 0 | EK130: 0 | EL130: 0 | EM130: 0 | EN130: 0 | EO130: 0 | EP130: 0 | EQ130: 1 | ER130: 0 | ES130: 1 | ET130: HP-393
A131: HP-226 | B131: 0.1617 | C131: 0.000783 | D131: N/A | E131: =((B131*SQRT($E$3*1000)+C131*$E$3*1000))/30480*Length*(1+'Cable Parameters'!I131/100*('Cable Parameters'!$E$1-25))+('Insertion Loss'!$F$16+'Insertion Loss'!$F$17)*SQRT($E$3) -> 0 | F131: 3 | G131: 200 | H131: -55 | I131: 0.2 | J131: http://www.eimfirst.co.il/wp-content/uploads/2018/09/hp-cables.pdf | K131: 12.32 | L131: 126 | M131: HP-226 | O131: 131 | P131: 131 | Q131: 131 | R131: 131 | S131: 131 | T131: 131 | U131: HP-226 | V131: 3 | W131: 12.32 | X131: 0 | Y131: N/A | Z131: In/Out door | AA131: 127 | AC131: HP-226 | AD131: 1 | AE131: 1 | AF131: 1 | AG131: 1 | AH131: 1 | AI131: 1 | AJ131: 1 | AK131: 1 | AL131: 1 | AM131: 1 | AN131: 1 | AO131: 1 | AP131: 1 | AQ131: 1 | AR131: 1 | AS131: 1 | AT131: 1 | AU131: 1 | AV131: 1 | AW131: 1 | AX131: 1 | AY131: 1 | AZ131: 1 | BA131: 1 | BB131: 1 | BC131: 1 | BD131: 1 | BF131: 1 | BH131: FALSE | BI131: FALSE | BJ131: FALSE | BK131: FALSE | BL131: FALSE | BM131: FALSE | BP131: =ROW() -> 131 | CC131: 4680 | CD131: 3605 | CF131: 2044 | CH131: 1145 | CJ131: 786 | CN131: 503 | CR131: 294 | CV131: 191 | DT131: 127 | DU131: HP-226 | DV131: In/Out door | DW131: In/Out door | DX131: In/Out door | EA131: 131 | EB131: 0 | EC131: 0 | ED131: 131 | EE131: 131 | EG131: HP-226 | EH131: 0 | EI131: 0 | EJ131: 0 | EK131: 0 | EL131: 0 | EM131: 0 | EN131: 0 | EO131: 0 | EP131: 0 | EQ131: 1 | ER131: 0 | ES131: 1 | ET131: HP-226
A132: HP-600A | B132: 0.131 | C132: 0.00117 | D132: N/A | E132: =((B132*SQRT($E$3*1000)+C132*$E$3*1000))/30480*Length*(1+'Cable Parameters'!I132/100*('Cable Parameters'!$E$1-25))+('Insertion Loss'!$F$16+'Insertion Loss'!$F$17)*SQRT($E$3) -> 0 | F132: 3 | G132: 200 | H132: -55 | I132: 0.2 | J132: http://www.eimfirst.co.il/wp-content/uploads/2018/09/hp-cables.pdf | K132: 14.99 | L132: 127 | M132: HP-600A | O132: 132 | P132: 132 | Q132: 132 | R132: 132 | S132: 132 | T132: 132 | U132: HP-600A | V132: 3 | W132: 14.99 | X132: 0 | Y132: N/A | Z132: In/Out door | AA132: 69.9 | AC132: HP-600A | AD132: 1 | AE132: 1 | AF132: 1 | AG132: 1 | AH132: 1 | AI132: 1 | AJ132: 1 | AK132: 1 | AL132: 1 | AM132: 1 | AN132: 1 | AO132: 1 | AP132: 1 | AQ132: 1 | AR132: 1 | AS132: 1 | AT132: 1 | AU132: 1 | AV132: 1 | AW132: 1 | AX132: 1 | AY132: 1 | AZ132: 1 | BA132: 1 | BB132: 1 | BC132: 1 | BD132: 1 | BF132: 1 | BH132: FALSE | BI132: FALSE | BJ132: FALSE | BK132: FALSE | BL132: FALSE | BM132: FALSE | BP132: =ROW() -> 132 | DT132: 69.9 | DU132: HP-600A | DV132: In/Out door | DW132: In/Out door | DX132: In/Out door | EA132: 132 | EB132: 0 | EC132: 0 | ED132: 132 | EE132: 132 | EG132: HP-600A | EH132: 0 | EI132: 0 | EJ132: 0 | EK132: 0 | EL132: 0 | EM132: 0 | EN132: 0 | EO132: 0 | EP132: 0 | EQ132: 1 | ER132: 0 | ES132: 1 | ET132: HP-600A
A133: HP-218 | B133: 0.0914 | C133: 0.000183 | D133: N/A | E133: =((B133*SQRT($E$3*1000)+C133*$E$3*1000))/30480*Length*(1+'Cable Parameters'!I133/100*('Cable Parameters'!$E$1-25))+('Insertion Loss'!$F$16+'Insertion Loss'!$F$17)*SQRT($E$3) -> 0 | F133: 3 | G133: 200 | H133: -55 | I133: 0.2 | J133: http://www.eimfirst.co.il/wp-content/uploads/2018/09/hp-cables.pdf | K133: 19.94 | L133: 128 | M133: HP-218 | O133: 133 | P133: 133 | Q133: 133 | R133: 133 | S133: 133 | T133: 133 | U133: HP-218 | V133: 3 | W133: 19.94 | X133: 0 | Y133: N/A | Z133: In/Out door | AA133: 203 | AC133: HP-218 | AD133: 1 | AE133: 1 | AF133: 1 | AG133: 1 | AH133: 1 | AI133: 1 | AJ133: 1 | AK133: 1 | AL133: 1 | AM133: 1 | AN133: 1 | AO133: 1 | AP133: 1 | AQ133: 1 | AR133: 1 | AS133: 1 | AT133: 1 | AU133: 1 | AV133: 1 | AW133: 1 | AX133: 1 | AY133: 1 | AZ133: 1 | BA133: 1 | BB133: 1 | BC133: 1 | BD133: 1 | BF133: 1 | BH133: FALSE | BI133: FALSE | BJ133: FALSE | BK133: FALSE | BL133: FALSE | BM133: FALSE | BP133: =ROW() -> 133 | DT133: 203 | DU133: HP-218 | DV133: In/Out door | DW133: In/Out door | DX133: In/Out door | EA133: 133 | EB133: 0 | EC133: 0 | ED133: 133 | EE133: 133 | EG133: HP-218 | EH133: 0 | EI133: 0 | EJ133: 0 | EK133: 0 | EL133: 0 | EM133: 0 | EN133: 0 | EO133: 0 | EP133: 0 | EQ133: 1 | ER133: 0 | ES133: 1 | ET133: HP-218
A134: HP-900 | B134: 0.05722 | C134: 0.000183 | D134: N/A | E134: =((B134*SQRT($E$3*1000)+C134*$E$3*1000))/30480*Length*(1+'Cable Parameters'!I134/100*('Cable Parameters'!$E$1-25))+('Insertion Loss'!$F$16+'Insertion Loss'!$F$17)*SQRT($E$3) -> 0 | F134: 3 | G134: 200 | H134: -55 | I134: 0.2 | J134: http://www.eimfirst.co.il/wp-content/uploads/2018/09/hp-cables.pdf | K134: 19.69 | L134: 129 | M134: HP-900 | O134: 134 | P134: 134 | Q134: 134 | R134: =IF(Q134="","",IF($R$2="",Q134,IF(OR(INDEX(A:WQ,ROW(),4)=$R$2,INDEX(A:WQ,ROW(),4)>$R$2),ROW(),""))) -> 134 | S134: 134 | T134: 134 | U134: HP-900 | V134: 3 | W134: 19.69 | X134: 0 | Y134: N/A | Z134: =IF(ISERROR(IF($Q$2="",INDEX(A:WQ,T134,128),IF($Q$2=1,INDEX(A:WQ,T134,126),INDEX(A:WQ,T134,127)))),"",IF($Q$2="",INDEX(A:WQ,T134,128),IF($Q$2=1,INDEX(A:WQ,T134,126),INDEX(A:WQ,T134,127)))) -> In/Out door | AA134: =IF(T134="","",INDEX(A:WQ,T134,124)) -> 101.6 | AC134: HP-900 | AD134: 1 | AE134: 1 | AF134: 1 | AG134: 1 | AH134: 1 | AI134: 1 | AJ134: 1 | AK134: 1 | AL134: 1 | AM134: 1 | AN134: 1 | AO134: 1 | AP134: 1 | AQ134: 1 | AR134: 1 | AS134: 1 | AT134: 1 | AU134: 1 | AV134: 1 | AW134: 1 | AX134: 1 | AY134: 1 | AZ134: 1 | BA134: 1 | BB134: 1 | BC134: 1 | BD134: 1 | BF134: 1 | BH134: FALSE | BI134: FALSE | BJ134: FALSE | BK134: FALSE | BL134: FALSE | BM134: FALSE | BP134: =ROW() -> 134 | DT134: 101.6 | DU134: HP-900 | DV134: In/Out door | DW134: In/Out door | DX134: In/Out door | EA134: 134 | EB134: 0 | EC134: 0 | ED134: 134 | EE134: 134 | EG134: HP-900 | EH134: 0 | EI134: 0 | EJ134: 0 | EK134: 0 | EL134: 0 | EM134: 0 | EN134: 0 | EO134: 0 | EP134: 0 | EQ134: 1 | ER134: 0 | ES134: 1 | ET134: HP-900
A135: HP-1200 | B135: 0.0419 | C135: 0.00018 | D135: N/A | E135: =((B135*SQRT($E$3*1000)+C135*$E$3*1000))/30480*Length*(1+'Cable Parameters'!I135/100*('Cable Parameters'!$E$1-25))+('Insertion Loss'!$F$16+'Insertion Loss'!$F$17)*SQRT($E$3) -> 0 | F135: 3 | G135: 125 | H135: -40 | I135: 0.2 | J135: http://www.eimfirst.co.il/wp-content/uploads/2018/09/hp-cables.pdf | K135: 26.67 | L135: 130 | M135: =ET135 -> HP-1200 | O135: =IF(M135="","", IF($M$4=0,ROW(), IF(ISERROR(FIND($N$4,UPPER(A135))),"",ROW()))) -> 135 | P135: =IF(O135="","",IF($P$2="",O135,IF(OR(INDEX(A:M,ROW(),6)=$P$2,INDEX(A:M,ROW(),6)>$P$2),ROW(),""))) -> 135 | Q135: =IF(P135="","",IF($Q$2="",P135,IF(INDEX(DV:DW,ROW(),$Q$2)="","",ROW()))) -> 135 | R135: 135 | S135: =IF(R135="","",IF($S$2="",R135,IF(OR(INDEX(A:N,ROW(),11)>$S$2+1,INDEX(A:N,ROW(),11)<$S$2-1),"",ROW()))) -> 135 | T135: 135 | U135: =IF(T135="","",INDEX(A:M,T135,1)) -> HP-1200 | V135: =IF(T135="","",INDEX(A:N,T135,6)) -> 3 | W135: =IF(T135="","",INDEX(A:O,T135,11)) -> 26.67 | X135: =IF(T135="","",INDEX(A:P,T135,5)) -> 0 | Y135: =IF(T135="","",INDEX(A:R,T135,4)) -> N/A | Z135: In/Out door | AA135: 203.2 | AC135: =A135 -> HP-1200 | AD135: 1 | AE135: 1 | AF135: 1 | AG135: 1 | AH135: 1 | AI135: 1 | AJ135: 1 | AK135: 1 | AL135: 1 | AM135: 1 | AN135: 1 | AO135: 1 | AP135: 1 | AQ135: 1 | AR135: 1 | AS135: 1 | AT135: 1 | AU135: 1 | AV135: 1 | AW135: 1 | AX135: 1 | AY135: 1 | AZ135: 1 | BA135: 1 | BB135: 1 | BC135: 1 | BD135: 1 | BF135: 1 | BH135: FALSE | BI135: FALSE | BJ135: FALSE | BK135: FALSE | BL135: FALSE | BM135: FALSE | BP135: =ROW() -> 135 | CB135: 18401 | CD135: 9389 | CE135: 6526 | CK135: 1836 | CL135: 1447 | CN135: 1218 | CO135: 1064 | CP135: 951 | DT135: 203.2 | DU135: HP-1200 | DV135: In/Out door | DW135: In/Out door | DX135: In/Out door | EA135: =IF(ISERROR(SMALL($S$6:$S$250,$L135)),"",SMALL($S$6:$S$250,$L135)) -> 135 | EB135: =IF($EA135="","",IF(ISERROR(INDEX(A:EE,EA135,5)),EA135,INDEX(A:EE,EA135,5))) -> 0 | EC135: =IF(ISERROR(SMALL($EB$6:$EB$250,$L135)),"",SMALL($EB$6:$EB$250,$L135)) -> 0 | ED135: =EA135 -> 135 | EE135: =IF($P$2="",EA135,VLOOKUP(EC135,$EB:$EE,3,FALSE)) -> 135 | EG135: =A135 -> HP-1200 | EH135: 0 | EI135: 0 | EJ135: 0 | EK135: 0 | EL135: 0 | EM135: 0 | EN135: 0 | EO135: 0 | EP135: 0 | EQ135: 1 | ER135: 0 | ES135: 1 | ET135: =IF($ET$3="",INDEX($A:$ES,ROW(),137),IF(INDEX($A:$ES,ROW(),$ET$3)=1,INDEX($A:$ES,ROW(),137),"")) -> HP-1200
A136: HPL-393 | B136: 0.22414 | C136: 0.000783 | D136: N/A | E136: =((B136*SQRT($E$3*1000)+C136*$E$3*1000))/30480*Length*(1+'Cable Parameters'!I136/100*('Cable Parameters'!$E$1-25))+('Insertion Loss'!$F$16+'Insertion Loss'!$F$17)*SQRT($E$3) -> 0 | F136: 3 | G136: 125 | H136: -55 | I136: 0.2 | J136: http://www.eimfirst.co.il/wp-content/uploads/2018/09/HPL-CABLES.pdf | K136: 10.92 | L136: 131 | M136: HPL-393 | O136: 136 | P136: 136 | Q136: 136 | R136: 136 | S136: 136 | T136: =EE136 -> 136 | U136: HPL-393 | V136: 3 | W136: 10.92 | X136: 0 | Y136: N/A | Z136: In/Out door | AA136: 57.2 | AC136: HPL-393 | AD136: 1 | AE136: 1 | AF136: 1 | AG136: 1 | AH136: 1 | AI136: 1 | AJ136: 1 | AK136: 1 | AL136: 1 | AM136: 1 | AN136: 1 | AO136: 1 | AP136: 1 | AQ136: 1 | AR136: 1 | AS136: 1 | AT136: 1 | AU136: 1 | AV136: 1 | AW136: 1 | AX136: 1 | AY136: 1 | AZ136: 1 | BA136: 1 | BB136: 1 | BC136: 1 | BD136: 1 | BF136: 1 | BH136: =OR(AND(AD136=0,AE136=0,AF136=0,AG136=0,AH136=0),BF136=0) -> FALSE | BI136: =OR(AND(AI136=0,AJ136=0,AK136=0,AL136=0,AM136=0),BF136=0) -> FALSE | BJ136: =OR(AND(AN136=0,AO136=0,AP136=0,AQ136=0,AR136=0),BF136=0) -> FALSE | BK136: =OR(AND(AS136=0,AT136=0,AU136=0,AV136=0,AW136=0),BF136=0) -> FALSE | BL136: =OR(AND(AX136=0,AY136=0,AZ136=0,BA136=0,BB136=0),BF136=0) -> FALSE | BM136: =OR(AND(BC136=0,BD136=0),BF136=0) -> FALSE | BP136: =ROW() -> 136 | CB136: 27153 | CD136: 13926 | CE136: 9720 | CK136: 2809 | CL136: 2231 | CN136: 1889 | CO136: 1657 | CP136: 1487 | DT136: 57.2 | DU136: =A136 -> HPL-393 | DV136: In/Out door | DW136: In/Out door | DX136: In/Out door | EA136: 136 | EB136: 0 | EC136: 0 | ED136: 136 | EE136: 136 | EG136: HPL-393 | EH136: 0 | EI136: 0 | EJ136: 0 | EK136: 0 | EL136: 0 | EM136: 0 | EN136: 0 | EO136: 0 | EP136: 0 | EQ136: 1 | ER136: 0 | ES136: 1 | ET136: HPL-393
A137: HPL-226 | B137: 0.15766 | C137: 0.000783 | D137: N/A | E137: =((B137*SQRT($E$3*1000)+C137*$E$3*1000))/30480*Length*(1+'Cable Parameters'!I137/100*('Cable Parameters'!$E$1-25))+('Insertion Loss'!$F$16+'Insertion Loss'!$F$17)*SQRT($E$3) -> 0 | F137: 3 | G137: 125 | H137: -55 | I137: 0.2 | J137: http://www.eimfirst.co.il/wp-content/uploads/2018/09/HPL-CABLES.pdf | K137: 13.08 | L137: 132 | M137: HPL-226 | O137: 137 | P137: 137 | Q137: 137 | R137: 137 | S137: 137 | T137: 137 | U137: HPL-226 | V137: 3 | W137: 13.08 | X137: 0 | Y137: N/A | Z137: In/Out door | AA137: 69.9 | AC137: HPL-226 | AD137: 1 | AE137: 1 | AF137: 1 | AG137: 1 | AH137: 1 | AI137: 1 | AJ137: 1 | AK137: 1 | AL137: 1 | AM137: 1 | AN137: 1 | AO137: 1 | AP137: 1 | AQ137: 1 | AR137: 1 | AS137: 1 | AT137: 1 | AU137: 1 | AV137: 1 | AW137: 1 | AX137: 1 | AY137: 1 | AZ137: 1 | BA137: 1 | BB137: 1 | BC137: 1 | BD137: 1 | BF137: 1 | BH137: FALSE | BI137: FALSE | BJ137: FALSE | BK137: FALSE | BL137: FALSE | BM137: FALSE | BP137: =ROW() -> 137 | CB137: 32938 | CD137: 16674 | CE137: 11513 | CK137: 3106 | CL137: 2421 | CN137: 2020 | CO137: 1750 | CP137: 1554 | DT137: 69.9 | DU137: HPL-226 | DV137: In/Out door | DW137: In/Out door | DX137: In/Out door | EA137: 137 | EB137: 0 | EC137: 0 | ED137: 137 | EE137: 137 | EG137: HPL-226 | EH137: 0 | EI137: 0 | EJ137: 0 | EK137: 0 | EL137: 0 | EM137: 0 | EN137: 0 | EO137: 0 | EP137: 0 | EQ137: 1 | ER137: 0 | ES137: 1 | ET137: HPL-226
A138: HPL-600 | B138: 0.13292 | C138: 0.00117 | D138: N/A | E138: =((B138*SQRT($E$3*1000)+C138*$E$3*1000))/30480*Length*(1+'Cable Parameters'!I138/100*('Cable Parameters'!$E$1-25))+('Insertion Loss'!$F$16+'Insertion Loss'!$F$17)*SQRT($E$3) -> 0 | F138: 3 | G138: 125 | H138: -55 | I138: 0.2 | J138: http://www.eimfirst.co.il/wp-content/uploads/2018/09/HPL-CABLES.pdf | K138: 15.49 | L138: 133 | M138: HPL-600 | O138: 138 | P138: 138 | Q138: 138 | R138: 138 | S138: 138 | T138: 138 | U138: HPL-600 | V138: 3 | W138: 15.49 | X138: 0 | Y138: N/A | Z138: In/Out door | AA138: 76.2 | AC138: HPL-600 | AD138: 1 | AE138: 1 | AF138: 1 | AG138: 1 | AH138: 1 | AI138: 1 | AJ138: 1 | AK138: 1 | AL138: 1 | AM138: 1 | AN138: 1 | AO138: 1 | AP138: 1 | AQ138: 1 | AR138: 1 | AS138: 1 | AT138: 1 | AU138: 1 | AV138: 1 | AW138: 1 | AX138: 1 | AY138: 1 | AZ138: 1 | BA138: 1 | BB138: 1 | BC138: 1 | BD138: 1 | BF138: 1 | BH138: FALSE | BI138: FALSE | BJ138: FALSE | BK138: FALSE | BL138: FALSE | BM138: FALSE | BP138: =ROW() -> 138 | CB138: 66034 | CD138: 34170 | CE138: 24030 | CK138: 7306 | CL138: 5891 | CN138: 5049 | CO138: 4476 | CP138: 4053 | DT138: 76.2 | DU138: HPL-600 | DV138: In/Out door | DW138: In/Out door | DX138: In/Out door | EA138: 138 | EB138: 0 | EC138: 0 | ED138: 138 | EE138: 138 | EG138: HPL-600 | EH138: 0 | EI138: 0 | EJ138: 0 | EK138: 0 | EL138: 0 | EM138: 0 | EN138: 0 | EO138: 0 | EP138: 0 | EQ138: 1 | ER138: 0 | ES138: 1 | ET138: HPL-600
A139: HPL-218 | B139: 0.07859 | C139: 0.000146 | D139: N/A | E139: =((B139*SQRT($E$3*1000)+C139*$E$3*1000))/30480*Length*(1+'Cable Parameters'!I139/100*('Cable Parameters'!$E$1-25))+('Insertion Loss'!$F$16+'Insertion Loss'!$F$17)*SQRT($E$3) -> 0 | F139: 3 | G139: 125 | H139: -55 | I139: 0.2 | J139: http://www.eimfirst.co.il/wp-content/uploads/2018/09/HPL-CABLES.pdf | K139: 21.46 | L139: 134 | M139: HPL-218 | O139: 139 | P139: 139 | Q139: 139 | R139: 139 | S139: 139 | T139: 139 | U139: HPL-218 | V139: 3 | W139: 21.46 | X139: 0 | Y139: N/A | Z139: In/Out door | AA139: 108 | AC139: HPL-218 | AD139: 1 | AE139: 1 | AF139: 1 | AG139: 1 | AH139: 1 | AI139: 1 | AJ139: 1 | AK139: 1 | AL139: 1 | AM139: 1 | AN139: 1 | AO139: 1 | AP139: 1 | AQ139: 1 | AR139: 1 | AS139: 1 | AT139: 1 | AU139: 1 | AV139: 1 | AW139: 1 | AX139: 1 | AY139: 1 | AZ139: 1 | BA139: 1 | BB139: 1 | BC139: 1 | BD139: 1 | BF139: 1 | BH139: FALSE | BI139: FALSE | BJ139: FALSE | BK139: FALSE | BL139: FALSE | BM139: FALSE | BP139: =ROW() -> 139 | CB139: 80110 | CD139: 41284 | CE139: 28932 | CK139: 8586 | CL139: 6872 | CN139: 5854 | CO139: 5162 | CP139: 4653 | DT139: 108 | DU139: HPL-218 | DV139: In/Out door | DW139: In/Out door | DX139: In/Out door | EA139: 139 | EB139: 0 | EC139: 0 | ED139: 139 | EE139: 139 | EG139: HPL-218 | EH139: 0 | EI139: 0 | EJ139: 0 | EK139: 0 | EL139: 0 | EM139: 0 | EN139: 0 | EO139: 0 | EP139: 0 | EQ139: 1 | ER139: 0 | ES139: 1 | ET139: HPL-218
A140: HPL-1200 | B140: 0.0671 | C140: 0.000183 | D140: N/A | E140: =((B140*SQRT($E$3*1000)+C140*$E$3*1000))/30480*Length*(1+'Cable Parameters'!I140/100*('Cable Parameters'!$E$1-25))+('Insertion Loss'!$F$16+'Insertion Loss'!$F$17)*SQRT($E$3) -> 0 | F140: 3 | G140: 125 | H140: -55 | I140: 0.2 | J140: http://www.eimfirst.co.il/wp-content/uploads/2018/09/HPL-CABLES.pdf | K140: 30.48 | L140: 135 | M140: HPL-1200 | O140: 140 | P140: 140 | Q140: 140 | R140: 140 | S140: 140 | T140: 140 | U140: HPL-1200 | V140: 3 | W140: 30.48 | X140: 0 | Y140: N/A | Z140: In/Out door | AA140: 228.6 | AC140: HPL-1200 | AD140: 1 | AE140: 1 | AF140: 1 | AG140: 1 | AH140: 1 | AI140: 1 | AJ140: 1 | AK140: 1 | AL140: 1 | AM140: 1 | AN140: 1 | AO140: 1 | AP140: 1 | AQ140: 1 | AR140: 1 | AS140: 1 | AT140: 1 | AU140: 1 | AV140: 1 | AW140: 1 | AX140: 1 | AY140: 1 | AZ140: 1 | BA140: 1 | BB140: 1 | BC140: 1 | BD140: 1 | BF140: 1 | BH140: FALSE | BI140: FALSE | BJ140: FALSE | BK140: FALSE | BL140: FALSE | BM140: FALSE | BP140: =ROW() -> 140 | CB140: 126762 | CD140: 65095 | CE140: 45482 | CK140: 13225 | CL140: 10521 | CN140: 8919 | CO140: 7831 | CP140: 7033 | DT140: 228.6 | DU140: HPL-1200 | DV140: In/Out door | DW140: In/Out door | DX140: In/Out door | EA140: 140 | EB140: 0 | EC140: 0 | ED140: 140 | EE140: 140 | EG140: HPL-1200 | EH140: 0 | EI140: 0 | EJ140: 0 | EK140: 0 | EL140: 0 | EM140: 0 | EN140: 0 | EO140: 0 | EP140: 0 | EQ140: 1 | ER140: 0 | ES140: 1 | ET140: HPL-1200
A141: HP-1200-PUR | B141: 0.041586 | C141: 0.000185 | D141: N/A | E141: =((B141*SQRT($E$3*1000)+C141*$E$3*1000))/30480*Length*(1+'Cable Parameters'!I141/100*('Cable Parameters'!$E$1-25))+('Insertion Loss'!$F$16+'Insertion Loss'!$F$17)*SQRT($E$3) -> 0 | F141: 3 | G141: 105 | H141: -40 | I141: 0.2 | J141: http://www.eimfirst.co.il/wp-content/uploads/2018/09/Some-Other-Cables-1.pdf | K141: 30.48 | L141: 136 | M141: HP-1200-PUR | O141: 141 | P141: 141 | Q141: 141 | R141: 141 | S141: 141 | T141: 141 | U141: HP-1200-PUR | V141: 3 | W141: 30.48 | X141: 0 | Y141: N/A | Z141: In/Out door | AA141: 177.8 | AC141: HP-1200-PUR | AD141: 1 | AE141: 1 | AF141: 1 | AG141: 1 | AH141: 1 | AI141: 1 | AJ141: 1 | AK141: 1 | AL141: 1 | AM141: 1 | AN141: 1 | AO141: 1 | AP141: 1 | AQ141: 1 | AR141: 1 | AS141: 1 | AT141: 1 | AU141: 1 | AV141: 1 | AW141: 1 | AX141: 1 | AY141: 1 | AZ141: 1 | BA141: 1 | BB141: 1 | BC141: 1 | BD141: 1 | BF141: 1 | BH141: FALSE | BI141: FALSE | BJ141: FALSE | BK141: FALSE | BL141: FALSE | BM141: FALSE | BP141: =ROW() -> 141 | CB141: 13663 | CD141: 7039 | CE141: 4932 | CK141: 1463 | CL141: 1171 | CN141: 998 | CO141: 880 | CP141: 793 | DT141: 177.8 | DU141: HP-1200-PUR | DV141: In/Out door | DW141: In/Out door | DX141: In/Out door | EA141: 141 | EB141: 0 | EC141: 0 | ED141: 141 | EE141: 141 | EG141: HP-1200-PUR | EH141: 0 | EI141: 0 | EJ141: 0 | EK141: 0 | EL141: 0 | EM141: 0 | EN141: 0 | EO141: 0 | EP141: 0 | EQ141: 1 | ER141: 0 | ES141: 1 | ET141: HP-1200-PUR
A142: HFlex-142 | B142: 0.429235 | C142: 0.000986 | D142: N/A | E142: =((B142*SQRT($E$3*1000)+C142*$E$3*1000))/30480*Length*(1+'Cable Parameters'!I142/100*('Cable Parameters'!$E$1-25))+('Insertion Loss'!$F$16+'Insertion Loss'!$F$17)*SQRT($E$3) -> 0 | F142: 3 | G142: 200 | H142: -55 | I142: 0.2 | J142: http://www.eimfirst.co.il/wp-content/uploads/2018/09/Some-Other-Cables-1.pdf | K142: 4.32 | L142: 137 | M142: HFlex-142 | O142: 142 | P142: 142 | Q142: 142 | R142: 142 | S142: 142 | T142: 142 | U142: HFlex-142 | V142: 3 | W142: 4.32 | X142: 0 | Y142: N/A | Z142: Indoor Only | AA142: 38.1 | AC142: HFlex-142 | AD142: 1 | AE142: 1 | AF142: 1 | AG142: 1 | AH142: 1 | AI142: 1 | AJ142: 1 | AK142: 1 | AL142: 1 | AM142: 1 | AN142: 1 | AO142: 1 | AP142: 1 | AQ142: 1 | AR142: 1 | AS142: 1 | AT142: 1 | AU142: 1 | AV142: 1 | AW142: 1 | AX142: 1 | AY142: 1 | AZ142: 1 | BA142: 1 | BB142: 1 | BC142: 1 | BD142: 1 | BF142: 1 | BH142: FALSE | BI142: FALSE | BJ142: FALSE | BK142: FALSE | BL142: FALSE | BM142: FALSE | BP142: =ROW() -> 142 | CB142: 19232 | CD142: 9859 | CE142: 6879 | CK142: 1983 | CL142: 1574 | CN142: 1332 | CO142: 1168 | CP142: 1048 | DT142: 38.1 | DU142: HFlex-142 | DV142: Indoor Only | DX142: =DV142 -> Indoor Only | EA142: 142 | EB142: 0 | EC142: 0 | ED142: 142 | EE142: 142 | EG142: HFlex-142 | EH142: 0 | EI142: 0 | EJ142: 0 | EK142: 0 | EL142: 0 | EM142: 0 | EN142: 0 | EO142: 0 | EP142: 0 | EQ142: 0 | ER142: 0 | ES142: 0 | ET142: HFlex-142
A143: SF- 316 | B143: 0.708 | C143: 0.0012 | D143: N/A | E143: =((B143*SQRT($E$3*1000)+C143*$E$3*1000))/30480*Length*(1+'Cable Parameters'!I143/100*('Cable Parameters'!$E$1-25))+('Insertion Loss'!$F$16+'Insertion Loss'!$F$17)*SQRT($E$3) -> 0 | F143: 18 | G143: 200 | H143: -55 | I143: 0.2 | J143: https://www.eimfirst.co.il/wp-content/uploads/2019/01/StripFlex-1.pdf | K143: 2.79 | L143: 138 | M143: SF- 316 | O143: 143 | P143: 143 | Q143: 143 | R143: 143 | S143: 143 | T143: =EE143 -> 143 | U143: =IF(T143="","",INDEX(A:M,T143,1)) -> SF- 316 | V143: =IF(T143="","",INDEX(A:N,T143,6)) -> 18 | W143: =IF(T143="","",INDEX(A:O,T143,11)) -> 2.79 | X143: =IF(T143="","",INDEX(A:P,T143,5)) -> 0 | Y143: =IF(T143="","",INDEX(A:R,T143,4)) -> N/A | Z143: In/Out door | AA143: 12.7 | AC143: SF- 316 | AD143: 1 | AE143: 1 | AF143: 1 | AG143: 1 | AH143: 1 | AI143: 1 | AJ143: 1 | AK143: 1 | AL143: 1 | AM143: 1 | AN143: 1 | AO143: 1 | AP143: 1 | AQ143: 1 | AR143: 1 | AS143: 1 | AT143: 1 | AU143: 1 | AV143: 1 | AW143: 1 | AX143: 1 | AY143: 1 | AZ143: 1 | BA143: 1 | BB143: 1 | BC143: 1 | BD143: 1 | BF143: 1 | BH143: =OR(AND(AD143=0,AE143=0,AF143=0,AG143=0,AH143=0),BF143=0) -> FALSE | BI143: =OR(AND(AI143=0,AJ143=0,AK143=0,AL143=0,AM143=0),BF143=0) -> FALSE | BJ143: =OR(AND(AN143=0,AO143=0,AP143=0,AQ143=0,AR143=0),BF143=0) -> FALSE | BK143: =OR(AND(AS143=0,AT143=0,AU143=0,AV143=0,AW143=0),BF143=0) -> FALSE | BL143: =OR(AND(AX143=0,AY143=0,AZ143=0,BA143=0,BB143=0),BF143=0) -> FALSE | BM143: =OR(AND(BC143=0,BD143=0),BF143=0) -> FALSE | BP143: =ROW() -> 143 | DT143: 12.7 | DU143: SF- 316 | DV143: In/Out door | DW143: In/Out door | DX143: In/Out door | EA143: 143 | EB143: 0 | EC143: 0 | ED143: 143 | EE143: 143 | EG143: SF- 316 | EH143: 1 | EI143: 0 | EJ143: 0 | EK143: 0 | EL143: 0 | EM143: 0 | EN143: 0 | EO143: 0 | EP143: 0 | EQ143: 0 | ER143: 0 | ES143: 0 | ET143: SF- 316
A144: SF- 142 | B144: 0.348 | C144: 0.0012 | D144: N/A | E144: =((B144*SQRT($E$3*1000)+C144*$E$3*1000))/30480*Length*(1+'Cable Parameters'!I144/100*('Cable Parameters'!$E$1-25))+('Insertion Loss'!$F$16+'Insertion Loss'!$F$17)*SQRT($E$3) -> 0 | F144: 18 | G144: 200 | H144: -55 | I144: 0.2 | J144: https://www.eimfirst.co.il/wp-content/uploads/2019/01/StripFlex-1.pdf | K144: 4.95 | L144: 139 | M144: SF- 142 | O144: 144 | P144: =IF(O144="","",IF($P$2="",O144,IF(OR(INDEX(A:M,ROW(),6)=$P$2,INDEX(A:M,ROW(),6)>$P$2),ROW(),""))) -> 144 | Q144: =IF(P144="","",IF($Q$2="",P144,IF(INDEX(DV:DW,ROW(),$Q$2)="","",ROW()))) -> 144 | R144: 144 | S144: =IF(R144="","",IF($S$2="",R144,IF(OR(INDEX(A:N,ROW(),11)>$S$2+1,INDEX(A:N,ROW(),11)<$S$2-1),"",ROW()))) -> 144 | T144: =EE144 -> 144 | U144: =IF(T144="","",INDEX(A:M,T144,1)) -> SF- 142 | V144: =IF(T144="","",INDEX(A:N,T144,6)) -> 18 | W144: =IF(T144="","",INDEX(A:O,T144,11)) -> 4.95 | X144: =IF(T144="","",INDEX(A:P,T144,5)) -> 0 | Y144: =IF(T144="","",INDEX(A:R,T144,4)) -> N/A | Z144: In/Out door | AA144: 25.4 | AC144: SF- 142 | AD144: 1 | AE144: 1 | AF144: 1 | AG144: 1 | AH144: 1 | AI144: 1 | AJ144: 1 | AK144: 1 | AL144: 1 | AM144: 1 | AN144: 1 | AO144: 1 | AP144: 1 | AQ144: 1 | AR144: 1 | AS144: 1 | AT144: 1 | AU144: 1 | AV144: 1 | AW144: 1 | AX144: 1 | AY144: 1 | AZ144: 1 | BA144: 1 | BB144: 1 | BC144: 1 | BD144: 1 | BF144: 1 | BH144: FALSE | BI144: FALSE | BJ144: FALSE | BK144: FALSE | BL144: FALSE | BM144: FALSE | BP144: =ROW() -> 144 | DT144: 25.4 | DU144: SF- 142 | DV144: In/Out door | DW144: In/Out door | DX144: In/Out door | EA144: 144 | EB144: 0 | EC144: 0 | ED144: 144 | EE144: 144 | EG144: SF- 142 | EH144: 1 | EI144: 0 | EJ144: 0 | EK144: 0 | EL144: 0 | EM144: 0 | EN144: 0 | EO144: 0 | EP144: 0 | EQ144: 0 | ER144: 0 | ES144: 0 | ET144: SF- 142
A145: SF- 304 | B145: 0.231 | C145: 0.0012 | D145: N/A | E145: =((B145*SQRT($E$3*1000)+C145*$E$3*1000))/30480*Length*(1+'Cable Parameters'!I145/100*('Cable Parameters'!$E$1-25))+('Insertion Loss'!$F$16+'Insertion Loss'!$F$17)*SQRT($E$3) -> 0 | F145: 18 | G145: 200 | H145: -55 | I145: 0.2 | J145: https://www.eimfirst.co.il/wp-content/uploads/2019/01/StripFlex-1.pdf | K145: 7.37 | L145: 140 | M145: SF- 304 | O145: 145 | P145: 145 | Q145: 145 | R145: 145 | S145: 145 | T145: 145 | U145: SF- 304 | V145: 18 | W145: 7.37 | X145: 0 | Y145: N/A | Z145: In/Out door | AA145: 38.1 | AC145: SF- 304 | AD145: 1 | AE145: 1 | AF145: 1 | AG145: 1 | AH145: 1 | AI145: 1 | AJ145: 1 | AK145: 1 | AL145: 1 | AM145: 1 | AN145: 1 | AO145: 1 | AP145: 1 | AQ145: 1 | AR145: 1 | AS145: 1 | AT145: 1 | AU145: 1 | AV145: 1 | AW145: 1 | AX145: 1 | AY145: 1 | AZ145: 1 | BA145: 1 | BB145: 1 | BC145: 1 | BD145: 1 | BF145: 1 | BH145: FALSE | BI145: FALSE | BJ145: FALSE | BK145: FALSE | BL145: FALSE | BM145: FALSE | BP145: =ROW() -> 145 | DT145: 38.1 | DU145: SF- 304 | DV145: In/Out door | DW145: In/Out door | DX145: In/Out door | EA145: 145 | EB145: 0 | EC145: 0 | ED145: 145 | EE145: 145 | EG145: SF- 304 | EH145: 1 | EI145: 0 | EJ145: 0 | EK145: 0 | EL145: 0 | EM145: 0 | EN145: 0 | EO145: 0 | EP145: 0 | EQ145: 0 | ER145: 0 | ES145: 0 | ET145: SF- 304
A146: SF- 214 | B146: 0.172 | C146: 0.00126 | D146: N/A | E146: =((B146*SQRT($E$3*1000)+C146*$E$3*1000))/30480*Length*(1+'Cable Parameters'!I146/100*('Cable Parameters'!$E$1-25))+('Insertion Loss'!$F$16+'Insertion Loss'!$F$17)*SQRT($E$3) -> 0 | F146: 13.5 | G146: 80 | H146: -40 | I146: 0.2 | J146: https://www.eimfirst.co.il/wp-content/uploads/2019/01/StripFlex-1.pdf | K146: 10.8 | L146: 141 | M146: SF- 214 | O146: 146 | P146: 146 | Q146: 146 | R146: 146 | S146: 146 | T146: 146 | U146: SF- 214 | V146: 13.5 | W146: 10.8 | X146: 0 | Y146: N/A | Z146: In/Out door | AA146: 50.8 | AC146: SF- 214 | AD146: 1 | AE146: 1 | AF146: 1 | AG146: 1 | AH146: 1 | AI146: 1 | AJ146: 1 | AK146: 1 | AL146: 1 | AM146: 1 | AN146: 1 | AO146: 1 | AP146: 1 | AQ146: 1 | AR146: 1 | AS146: 1 | AT146: 1 | AU146: 1 | AV146: 1 | AW146: 1 | AX146: 1 | AY146: 1 | AZ146: 1 | BA146: 1 | BB146: 1 | BC146: 1 | BD146: 1 | BF146: 1 | BH146: FALSE | BI146: FALSE | BJ146: FALSE | BK146: FALSE | BL146: FALSE | BM146: FALSE | BP146: =ROW() -> 146 | DT146: 50.8 | DU146: SF- 214 | DV146: In/Out door | DW146: In/Out door | DX146: In/Out door | EA146: 146 | EB146: 0 | EC146: 0 | ED146: 146 | EE146: 146 | EG146: SF- 214 | EH146: 1 | EI146: 0 | EJ146: 0 | EK146: 0 | EL146: 0 | EM146: 0 | EN146: 0 | EO146: 0 | EP146: 0 | EQ146: 0 | ER146: 0 | ES146: 0 | ET146: SF- 214
A147: SF- 393 | B147: 0.164 | C147: 0.0012 | D147: N/A | E147: =((B147*SQRT($E$3*1000)+C147*$E$3*1000))/30480*Length*(1+'Cable Parameters'!I147/100*('Cable Parameters'!$E$1-25))+('Insertion Loss'!$F$16+'Insertion Loss'!$F$17)*SQRT($E$3) -> 0 | F147: 13.5 | G147: 200 | H147: -55 | I147: 0.2 | J147: https://www.eimfirst.co.il/wp-content/uploads/2019/01/StripFlex-1.pdf | K147: 9.91 | L147: 142 | M147: SF- 393 | O147: 147 | P147: 147 | Q147: 147 | R147: 147 | S147: 147 | T147: 147 | U147: SF- 393 | V147: 13.5 | W147: 9.91 | X147: 0 | Y147: N/A | Z147: In/Out door | AA147: 50.8 | AC147: SF- 393 | AD147: 1 | AE147: 1 | AF147: 1 | AG147: 1 | AH147: 1 | AI147: 1 | AJ147: 1 | AK147: 1 | AL147: 1 | AM147: 1 | AN147: 1 | AO147: 1 | AP147: 1 | AQ147: 1 | AR147: 1 | AS147: 1 | AT147: 1 | AU147: 1 | AV147: 1 | AW147: 1 | AX147: 1 | AY147: 1 | AZ147: 1 | BA147: 1 | BB147: 1 | BC147: 1 | BD147: 1 | BF147: 1 | BH147: FALSE | BI147: FALSE | BJ147: FALSE | BK147: FALSE | BL147: FALSE | BM147: FALSE | BP147: =ROW() -> 147 | DT147: 50.8 | DU147: SF- 393 | DV147: In/Out door | DW147: In/Out door | DX147: In/Out door | EA147: 147 | EB147: 0 | EC147: 0 | ED147: 147 | EE147: 147 | EG147: SF- 393 | EH147: 1 | EI147: 0 | EJ147: 0 | EK147: 0 | EL147: 0 | EM147: 0 | EN147: 0 | EO147: 0 | EP147: 0 | EQ147: 0 | ER147: 0 | ES147: 0 | ET147: SF- 393
A148: TCOM-195 | B148: 0.321011 | C148: 0.000469 | D148: N/A | E148: =((B148*SQRT($E$3*1000)+C148*$E$3*1000))/30480*Length*(1+'Cable Parameters'!I148/100*('Cable Parameters'!$E$1-25))+('Insertion Loss'!$F$16+'Insertion Loss'!$F$17)*SQRT($E$3) -> 0 | F148: 10 | G148: 85 | H148: -40 | I148: 0.2 | J148: https://www.eimfirst.co.il/wp-content/uploads/2019/05/TCOM-195-RF-CABLE.pdf | K148: 4.95 | L148: 143 | M148: TCOM-195 | O148: 148 | P148: 148 | Q148: 148 | R148: 148 | S148: 148 | T148: 148 | U148: TCOM-195 | V148: 10 | W148: 4.95 | X148: 0 | Y148: N/A | Z148: In/Out door | AA148: 12.7 | AC148: TCOM-195 | AD148: 1 | AE148: 1 | AF148: 1 | AG148: 1 | AH148: 1 | AI148: 1 | AJ148: 1 | AK148: 1 | AL148: 1 | AM148: 1 | AN148: 1 | AO148: 1 | AP148: 1 | AQ148: 1 | AR148: 1 | AS148: 1 | AT148: 1 | AU148: 1 | AV148: 1 | AW148: 1 | AX148: 1 | AY148: 1 | AZ148: 1 | BA148: 1 | BB148: 1 | BC148: 1 | BD148: 1 | BF148: 1 | BH148: FALSE | BI148: FALSE | BJ148: FALSE | BK148: FALSE | BL148: FALSE | BM148: FALSE | BP148: =ROW() -> 148 | DT148: 12.7 | DU148: TCOM-195 | DV148: In/Out door | DW148: In/Out door | DX148: In/Out door | EA148: 148 | EB148: 0 | EC148: 0 | ED148: 148 | EE148: 148 | EG148: TCOM-195 | EH148: 0 | EI148: 0 | EJ148: 0 | EK148: 0 | EL148: 0 | EM148: 1 | EN148: 0 | EO148: 0 | EP148: 0 | EQ148: 0 | ER148: 1 | ES148: 0 | ET148: TCOM-195
A149: TCOM-200 | B149: 0.30367 | C149: 0.000331 | D149: N/A | E149: =((B149*SQRT($E$3*1000)+C149*$E$3*1000))/30480*Length*(1+'Cable Parameters'!I149/100*('Cable Parameters'!$E$1-25))+('Insertion Loss'!$F$16+'Insertion Loss'!$F$17)*SQRT($E$3) -> 0 | F149: 10 | G149: 85 | H149: -40 | I149: 0.2 | J149: https://www.eimfirst.co.il/wp-content/uploads/2019/05/TCOM-200-RF-CABLE.pdf | K149: 4.95 | L149: 144 | M149: TCOM-200 | O149: 149 | P149: 149 | Q149: 149 | R149: 149 | S149: 149 | T149: 149 | U149: TCOM-200 | V149: 10 | W149: 4.95 | X149: 0 | Y149: N/A | Z149: In/Out door | AA149: 12.7 | AC149: TCOM-200 | AD149: 1 | AE149: 1 | AF149: 1 | AG149: 1 | AH149: 1 | AI149: 1 | AJ149: 1 | AK149: 1 | AL149: 1 | AM149: 1 | AN149: 1 | AO149: 1 | AP149: 1 | AQ149: 1 | AR149: 1 | AS149: 1 | AT149: 1 | AU149: 1 | AV149: 1 | AW149: 1 | AX149: 1 | AY149: 1 | AZ149: 1 | BA149: 1 | BB149: 1 | BC149: 1 | BD149: 1 | BF149: 1 | BH149: FALSE | BI149: FALSE | BJ149: FALSE | BK149: FALSE | BL149: FALSE | BM149: FALSE | BP149: =ROW() -> 149 | DT149: 12.7 | DU149: TCOM-200 | DV149: In/Out door | DW149: In/Out door | DX149: In/Out door | EA149: 149 | EB149: 0 | EC149: 0 | ED149: 149 | EE149: 149 | EG149: TCOM-200 | EH149: 0 | EI149: 0 | EJ149: 0 | EK149: 0 | EL149: 0 | EM149: 1 | EN149: 0 | EO149: 0 | EP149: 0 | EQ149: 0 | ER149: 1 | ES149: 0 | ET149: TCOM-200
A150: TCOM-240 | B150: 0.229148 | C150: 0.000331 | D150: N/A | E150: =((B150*SQRT($E$3*1000)+C150*$E$3*1000))/30480*Length*(1+'Cable Parameters'!I150/100*('Cable Parameters'!$E$1-25))+('Insertion Loss'!$F$16+'Insertion Loss'!$F$17)*SQRT($E$3) -> 0 | F150: 10 | G150: 85 | H150: -40 | I150: 0.2 | J150: https://www.eimfirst.co.il/wp-content/uploads/2019/05/TCOM-240-RF-CABLE.pdf | K150: 6.1 | L150: 145 | M150: TCOM-240 | O150: 150 | P150: 150 | Q150: 150 | R150: 150 | S150: 150 | T150: 150 | U150: TCOM-240 | V150: 10 | W150: 6.1 | X150: 0 | Y150: N/A | Z150: In/Out door | AA150: 19.1 | AC150: TCOM-240 | AD150: 1 | AE150: 1 | AF150: 1 | AG150: 1 | AH150: 1 | AI150: 1 | AJ150: 1 | AK150: 1 | AL150: 1 | AM150: 1 | AN150: 1 | AO150: 1 | AP150: 1 | AQ150: 1 | AR150: 1 | AS150: 1 | AT150: 1 | AU150: 1 | AV150: 1 | AW150: 1 | AX150: 1 | AY150: 1 | AZ150: 1 | BA150: 1 | BB150: 1 | BC150: 1 | BD150: 1 | BF150: 1 | BH150: FALSE | BI150: FALSE | BJ150: FALSE | BK150: FALSE | BL150: FALSE | BM150: FALSE | BP150: =ROW() -> 150 | DT150: 19.1 | DU150: TCOM-240 | DV150: In/Out door | DW150: In/Out door | DX150: In/Out door | EA150: 150 | EB150: 0 | EC150: 0 | ED150: 150 | EE150: 150 | EG150: TCOM-240 | EH150: 0 | EI150: 0 | EJ150: 0 | EK150: 0 | EL150: 0 | EM150: 1 | EN150: 0 | EO150: 0 | EP150: 0 | EQ150: 0 | ER150: 1 | ES150: 0 | ET150: TCOM-240
A151: TCOM-300 | B151: 0.194337 | C151: 0.000327 | D151: N/A | E151: =((B151*SQRT($E$3*1000)+C151*$E$3*1000))/30480*Length*(1+'Cable Parameters'!I151/100*('Cable Parameters'!$E$1-25))+('Insertion Loss'!$F$16+'Insertion Loss'!$F$17)*SQRT($E$3) -> 0 | F151: 10 | G151: 85 | H151: -40 | I151: 0.2 | J151: https://www.eimfirst.co.il/wp-content/uploads/2019/05/TCOM-300-RF-CABLE.pdf | K151: 7.62 | L151: 146 | M151: TCOM-300 | O151: 151 | P151: 151 | Q151: 151 | R151: 151 | S151: 151 | T151: 151 | U151: TCOM-300 | V151: 10 | W151: 7.62 | X151: 0 | Y151: N/A | Z151: In/Out door | AA151: 22.2 | AC151: TCOM-300 | AD151: 1 | AE151: 1 | AF151: 1 | AG151: 1 | AH151: 1 | AI151: 1 | AJ151: 1 | AK151: 1 | AL151: 1 | AM151: 1 | AN151: 1 | AO151: 1 | AP151: 1 | AQ151: 1 | AR151: 1 | AS151: 1 | AT151: 1 | AU151: 1 | AV151: 1 | AW151: 1 | AX151: 1 | AY151: 1 | AZ151: 1 | BA151: 1 | BB151: 1 | BC151: 1 | BD151: 1 | BF151: 1 | BH151: FALSE | BI151: FALSE | BJ151: FALSE | BK151: FALSE | BL151: FALSE | BM151: FALSE | BP151: =ROW() -> 151 | DT151: 22.2 | DU151: TCOM-300 | DV151: In/Out door | DW151: In/Out door | DX151: In/Out door | EA151: 151 | EB151: 0 | EC151: 0 | ED151: 151 | EE151: 151 | EG151: TCOM-300 | EH151: 0 | EI151: 0 | EJ151: 0 | EK151: 0 | EL151: 0 | EM151: 1 | EN151: 0 | EO151: 0 | EP151: 0 | EQ151: 0 | ER151: 1 | ES151: 0 | ET151: TCOM-300
A152: TCOM-400 | B152: 0.130555 | C152: 0.000262 | D152: N/A | E152: =((B152*SQRT($E$3*1000)+C152*$E$3*1000))/30480*Length*(1+'Cable Parameters'!I152/100*('Cable Parameters'!$E$1-25))+('Insertion Loss'!$F$16+'Insertion Loss'!$F$17)*SQRT($E$3) -> 0 | F152: 10 | G152: 85 | H152: -40 | I152: 0.2 | J152: https://www.eimfirst.co.il/wp-content/uploads/2019/05/TCOM-400-RF-CABLE.pdf | K152: 10.29 | L152: 147 | M152: TCOM-400 | O152: 152 | P152: 152 | Q152: 152 | R152: 152 | S152: 152 | T152: 152 | U152: TCOM-400 | V152: 10 | W152: 10.29 | X152: 0 | Y152: N/A | Z152: In/Out door | AA152: 25.4 | AC152: TCOM-400 | AD152: 1 | AE152: 1 | AF152: 1 | AG152: 1 | AH152: 1 | AI152: 1 | AJ152: 1 | AK152: 1 | AL152: 1 | AM152: 1 | AN152: 1 | AO152: 1 | AP152: 1 | AQ152: 1 | AR152: 1 | AS152: 1 | AT152: 1 | AU152: 1 | AV152: 1 | AW152: 1 | AX152: 1 | AY152: 1 | AZ152: 1 | BA152: 1 | BB152: 1 | BC152: 1 | BD152: 1 | BF152: 1 | BH152: FALSE | BI152: FALSE | BJ152: FALSE | BK152: FALSE | BL152: FALSE | BM152: FALSE | BP152: =ROW() -> 152 | DT152: 25.4 | DU152: TCOM-400 | DV152: In/Out door | DW152: In/Out door | DX152: In/Out door | EA152: 152 | EB152: 0 | EC152: 0 | ED152: 152 | EE152: 152 | EG152: TCOM-400 | EH152: 0 | EI152: 0 | EJ152: 0 | EK152: 0 | EL152: 0 | EM152: 1 | EN152: 0 | EO152: 0 | EP152: 0 | EQ152: 0 | ER152: 1 | ES152: 0 | ET152: TCOM-400
A153: TCOM-500 | B153: 0.100972 | C153: 0.000262 | D153: N/A | E153: =((B153*SQRT($E$3*1000)+C153*$E$3*1000))/30480*Length*(1+'Cable Parameters'!I153/100*('Cable Parameters'!$E$1-25))+('Insertion Loss'!$F$16+'Insertion Loss'!$F$17)*SQRT($E$3) -> 0 | F153: 10 | G153: 85 | H153: -40 | I153: 0.2 | J153: https://www.eimfirst.co.il/wp-content/uploads/2019/05/TCOM-500-RF-CABLE.pdf | K153: 12.7 | L153: 148 | M153: TCOM-500 | O153: 153 | P153: 153 | Q153: 153 | R153: 153 | S153: 153 | T153: 153 | U153: TCOM-500 | V153: 10 | W153: 12.7 | X153: 0 | Y153: N/A | Z153: In/Out door | AA153: 31.8 | AC153: TCOM-500 | AD153: 1 | AE153: 1 | AF153: 1 | AG153: 1 | AH153: 1 | AI153: 1 | AJ153: 1 | AK153: 1 | AL153: 1 | AM153: 1 | AN153: 1 | AO153: 1 | AP153: 1 | AQ153: 1 | AR153: 1 | AS153: 1 | AT153: 1 | AU153: 1 | AV153: 1 | AW153: 1 | AX153: 1 | AY153: 1 | AZ153: 1 | BA153: 1 | BB153: 1 | BC153: 1 | BD153: 1 | BF153: 1 | BH153: FALSE | BI153: FALSE | BJ153: FALSE | BK153: FALSE | BL153: FALSE | BM153: FALSE | BP153: =ROW() -> 153 | DT153: 31.8 | DU153: TCOM-500 | DV153: In/Out door | DW153: In/Out door | DX153: In/Out door | EA153: 153 | EB153: 0 | EC153: 0 | ED153: 153 | EE153: 153 | EG153: TCOM-500 | EH153: 0 | EI153: 0 | EJ153: 0 | EK153: 0 | EL153: 0 | EM153: 1 | EN153: 0 | EO153: 0 | EP153: 0 | EQ153: 0 | ER153: 1 | ES153: 0 | ET153: TCOM-500
A154: TCOM-600 | B154: 0.080075 | C154: 0.000256 | D154: N/A | E154: =((B154*SQRT($E$3*1000)+C154*$E$3*1000))/30480*Length*(1+'Cable Parameters'!I154/100*('Cable Parameters'!$E$1-25))+('Insertion Loss'!$F$16+'Insertion Loss'!$F$17)*SQRT($E$3) -> 0 | F154: 10 | G154: 85 | H154: -40 | I154: 0.2 | J154: https://www.eimfirst.co.il/wp-content/uploads/2019/05/TCOM-600-RF-CABLE.pdf | K154: 14.99 | L154: 149 | M154: TCOM-600 | O154: 154 | P154: 154 | Q154: 154 | R154: 154 | S154: 154 | T154: 154 | U154: TCOM-600 | V154: 10 | W154: 14.99 | X154: 0 | Y154: N/A | Z154: In/Out door | AA154: 38.1 | AC154: TCOM-600 | AD154: 1 | AE154: 1 | AF154: 1 | AG154: 1 | AH154: 1 | AI154: 1 | AJ154: 1 | AK154: 1 | AL154: 1 | AM154: 1 | AN154: 1 | AO154: 1 | AP154: 1 | AQ154: 1 | AR154: 1 | AS154: 1 | AT154: 1 | AU154: 1 | AV154: 1 | AW154: 1 | AX154: 1 | AY154: 1 | AZ154: 1 | BA154: 1 | BB154: 1 | BC154: 1 | BD154: 1 | BF154: 1 | BH154: FALSE | BI154: FALSE | BJ154: FALSE | BK154: FALSE | BL154: FALSE | BM154: FALSE | BP154: =ROW() -> 154 | DT154: 38.1 | DU154: TCOM-600 | DV154: In/Out door | DW154: In/Out door | DX154: In/Out door | EA154: 154 | EB154: 0 | EC154: 0 | ED154: 154 | EE154: 154 | EG154: TCOM-600 | EH154: 0 | EI154: 0 | EJ154: 0 | EK154: 0 | EL154: 0 | EM154: 1 | EN154: 0 | EO154: 0 | EP154: 0 | EQ154: 0 | ER154: 1 | ES154: 0 | ET154: TCOM-600
A155: M17/127-RG 393 | B155: 0.202 | C155: 0.0012 | D155: N/A | E155: =((B155*SQRT($E$3*1000)+C155*$E$3*1000))/30480*Length*(1+'Cable Parameters'!I155/100*('Cable Parameters'!$E$1-25))+('Insertion Loss'!$F$16+'Insertion Loss'!$F$17)*SQRT($E$3) -> 0 | F155: 11 | G155: 200 | H155: -55 | I155: 0.2 | J155: https://www.eimfirst.co.il/wp-content/uploads/2019/02/MIL-C-17-RG-CABLES.pdf | K155: 9.91 | L155: 150 | M155: M17/127-RG 393 | O155: 155 | P155: 155 | Q155: 155 | R155: 155 | S155: 155 | T155: =EE155 -> 155 | U155: =IF(T155="","",INDEX(A:M,T155,1)) -> M17/127-RG 393 | V155: =IF(T155="","",INDEX(A:N,T155,6)) -> 11 | W155: =IF(T155="","",INDEX(A:O,T155,11)) -> 9.91 | X155: =IF(T155="","",INDEX(A:P,T155,5)) -> 0 | Y155: =IF(T155="","",INDEX(A:R,T155,4)) -> N/A | Z155: Indoor Only | AA155: 49.55 | AC155: M17/127-RG 393 | AD155: 1 | AE155: 1 | AF155: 1 | AG155: 1 | AH155: 1 | AI155: 1 | AJ155: 1 | AK155: 1 | AL155: 1 | AM155: 1 | AN155: 1 | AO155: 1 | AP155: 1 | AQ155: 1 | AR155: 1 | AS155: 1 | AT155: 1 | AU155: 1 | AV155: 1 | AW155: 1 | AX155: 1 | AY155: 1 | AZ155: 1 | BA155: 1 | BB155: 1 | BC155: 1 | BD155: 1 | BF155: 1 | BH155: FALSE | BI155: FALSE | BJ155: FALSE | BK155: FALSE | BL155: FALSE | BM155: FALSE | BP155: =ROW() -> 155 | DT155: 49.55 | DU155: M17/127-RG 393 | DV155: Indoor Only | DX155: Indoor Only | EA155: 155 | EB155: 0 | EC155: 0 | ED155: 155 | EE155: 155 | EG155: M17/127-RG 393 | EH155: 1 | EI155: 0 | EJ155: 1 | EK155: 0 | EL155: 1 | EM155: 0 | EN155: 0 | EO155: 0 | EP155: 0 | EQ155: 1 | ER155: 1 | ES155: 1 | ET155: M17/127-RG 393
A156: M17/78-RG 217 | B156: 0.127 | C156: 0.00126 | D156: N/A | E156: =((B156*SQRT($E$3*1000)+C156*$E$3*1000))/30480*Length*(1+'Cable Parameters'!I156/100*('Cable Parameters'!$E$1-25))+('Insertion Loss'!$F$16+'Insertion Loss'!$F$17)*SQRT($E$3) -> 0 | F156: 3 | G156: 85 | H156: -40 | I156: 0.2 | J156: https://www.eimfirst.co.il/wp-content/uploads/2019/02/MIL-C-17-RG-CABLES.pdf | K156: 13.84 | L156: 151 | M156: M17/78-RG 217 | O156: 156 | P156: 156 | Q156: 156 | R156: 156 | S156: 156 | T156: 156 | U156: M17/78-RG 217 | V156: 3 | W156: 13.84 | X156: 0 | Y156: N/A | Z156: Indoor Only | AA156: 69.2 | AC156: M17/78-RG 217 | AD156: 1 | AE156: 1 | AF156: 1 | AG156: 1 | AH156: 1 | AI156: 1 | AJ156: 1 | AK156: 1 | AL156: 1 | AM156: 1 | AN156: 1 | AO156: 1 | AP156: 1 | AQ156: 1 | AR156: 1 | AS156: 1 | AT156: 1 | AU156: 1 | AV156: 1 | AW156: 1 | AX156: 1 | AY156: 1 | AZ156: 1 | BA156: 1 | BB156: 1 | BC156: 1 | BD156: 1 | BF156: 1 | BH156: FALSE | BI156: FALSE | BJ156: FALSE | BK156: FALSE | BL156: FALSE | BM156: FALSE | BP156: =ROW() -> 156 | DT156: 69.2 | DU156: M17/78-RG 217 | DV156: Indoor Only | DX156: Indoor Only | EA156: 156 | EB156: 0 | EC156: 0 | ED156: 156 | EE156: 156 | EG156: M17/78-RG 217 | EH156: 1 | EI156: 0 | EJ156: 1 | EK156: 0 | EL156: 1 | EM156: 0 | EN156: 0 | EO156: 0 | EP156: 0 | EQ156: 1 | ER156: 1 | ES156: 1 | ET156: M17/78-RG 217
A157: M17/67-RG 177 | B157: 0.074 | C157: 0.00126 | D157: N/A | E157: =((B157*SQRT($E$3*1000)+C157*$E$3*1000))/30480*Length*(1+'Cable Parameters'!I157/100*('Cable Parameters'!$E$1-25))+('Insertion Loss'!$F$16+'Insertion Loss'!$F$17)*SQRT($E$3) -> 0 | F157: 5.6 | G157: 85 | H157: -40 | I157: 0.2 | J157: https://www.eimfirst.co.il/wp-content/uploads/2019/02/MIL-C-17-RG-CABLES.pdf | K157: 22.73 | L157: 152 | M157: M17/67-RG 177 | O157: 157 | P157: 157 | Q157: 157 | R157: 157 | S157: 157 | T157: 157 | U157: M17/67-RG 177 | V157: 5.6 | W157: 22.73 | X157: 0 | Y157: N/A | Z157: Indoor Only | AA157: 113.65 | AC157: M17/67-RG 177 | AD157: 1 | AE157: 1 | AF157: 1 | AG157: 1 | AH157: 1 | AI157: 1 | AJ157: 1 | AK157: 1 | AL157: 1 | AM157: 1 | AN157: 1 | AO157: 1 | AP157: 1 | AQ157: 1 | AR157: 1 | AS157: 1 | AT157: 1 | AU157: 1 | AV157: 1 | AW157: 1 | AX157: 1 | AY157: 1 | AZ157: 1 | BA157: 1 | BB157: 1 | BC157: 1 | BD157: 1 | BF157: 1 | BH157: FALSE | BI157: FALSE | BJ157: FALSE | BK157: FALSE | BL157: FALSE | BM157: FALSE | BP157: =ROW() -> 157 | DT157: 113.65 | DU157: M17/67-RG 177 | DV157: Indoor Only | DX157: Indoor Only | EA157: 157 | EB157: 0 | EC157: 0 | ED157: 157 | EE157: 157 | EG157: M17/67-RG 177 | EH157: 1 | EI157: 0 | EJ157: 1 | EK157: 0 | EL157: 1 | EM157: 0 | EN157: 0 | EO157: 0 | EP157: 0 | EQ157: 1 | ER157: 1 | ES157: 1 | ET157: M17/67-RG 177
A158: M17/79-RG 218 | B158: 0.069 | C158: 0.00126 | D158: N/A | E158: =((B158*SQRT($E$3*1000)+C158*$E$3*1000))/30480*Length*(1+'Cable Parameters'!I158/100*('Cable Parameters'!$E$1-25))+('Insertion Loss'!$F$16+'Insertion Loss'!$F$17)*SQRT($E$3) -> 0 | F158: 1 | G158: 85 | H158: -40 | I158: 0.2 | J158: https://www.eimfirst.co.il/wp-content/uploads/2019/02/MIL-C-17-RG-CABLES.pdf | K158: 22.1 | L158: 153 | M158: M17/79-RG 218 | O158: 158 | P158: 158 | Q158: 158 | R158: 158 | S158: 158 | T158: 158 | U158: M17/79-RG 218 | V158: 1 | W158: 22.1 | X158: 0 | Y158: N/A | Z158: Indoor Only | AA158: 110.5 | AC158: M17/79-RG 218 | AD158: 1 | AE158: 1 | AF158: 1 | AG158: 1 | AH158: 1 | AI158: 1 | AJ158: 1 | AK158: 1 | AL158: 1 | AM158: 1 | AN158: 1 | AO158: 1 | AP158: 1 | AQ158: 1 | AR158: 1 | AS158: 1 | AT158: 1 | AU158: 1 | AV158: 1 | AW158: 1 | AX158: 1 | AY158: 1 | AZ158: 1 | BA158: 1 | BB158: 1 | BC158: 1 | BD158: 1 | BF158: 1 | BH158: FALSE | BI158: FALSE | BJ158: FALSE | BK158: FALSE | BL158: FALSE | BM158: FALSE | BP158: =ROW() -> 158 | DT158: 110.5 | DU158: M17/79-RG 218 | DV158: Indoor Only | DX158: Indoor Only | EA158: 158 | EB158: 0 | EC158: 0 | ED158: 158 | EE158: 158 | EG158: M17/79-RG 218 | EH158: 1 | EI158: 0 | EJ158: 1 | EK158: 0 | EL158: 1 | EM158: 0 | EN158: 0 | EO158: 0 | EP158: 0 | EQ158: 1 | ER158: 1 | ES158: 1 | ET158: M17/79-RG 218
A159: M17/28-RG 58 | B159: 0.444 | C159: 0.00126 | D159: N/A | E159: =((B159*SQRT($E$3*1000)+C159*$E$3*1000))/30480*Length*(1+'Cable Parameters'!I159/100*('Cable Parameters'!$E$1-25))+('Insertion Loss'!$F$16+'Insertion Loss'!$F$17)*SQRT($E$3) -> 0 | F159: 1 | G159: 85 | H159: -40 | I159: 0.2 | J159: https://www.eimfirst.co.il/wp-content/uploads/2019/02/MIL-C-17-RG-CABLES.pdf | K159: 4.95 | L159: 154 | M159: M17/28-RG 58 | O159: 159 | P159: =IF(O159="","",IF($P$2="",O159,IF(OR(INDEX(A:M,ROW(),6)=$P$2,INDEX(A:M,ROW(),6)>$P$2),ROW(),""))) -> 159 | Q159: =IF(P159="","",IF($Q$2="",P159,IF(INDEX(DV:DW,ROW(),$Q$2)="","",ROW()))) -> 159 | R159: =IF(Q159="","",IF($R$2="",Q159,IF(OR(INDEX(A:WQ,ROW(),4)=$R$2,INDEX(A:WQ,ROW(),4)>$R$2),ROW(),""))) -> 159 | S159: =IF(R159="","",IF($S$2="",R159,IF(OR(INDEX(A:N,ROW(),11)>$S$2+1,INDEX(A:N,ROW(),11)<$S$2-1),"",ROW()))) -> 159 | T159: 159 | U159: M17/28-RG 58 | V159: 1 | W159: 4.95 | X159: 0 | Y159: N/A | Z159: Indoor Only | AA159: 24.75 | AC159: M17/28-RG 58 | AD159: 1 | AE159: 1 | AF159: 1 | AG159: 1 | AH159: 1 | AI159: 1 | AJ159: 1 | AK159: 1 | AL159: 1 | AM159: 1 | AN159: 1 | AO159: 1 | AP159: 1 | AQ159: 1 | AR159: 1 | AS159: 1 | AT159: 1 | AU159: 1 | AV159: 1 | AW159: 1 | AX159: 1 | AY159: 1 | AZ159: 1 | BA159: 1 | BB159: 1 | BC159: 1 | BD159: 1 | BF159: 1 | BH159: FALSE | BI159: FALSE | BJ159: FALSE | BK159: FALSE | BL159: FALSE | BM159: FALSE | BP159: =ROW() -> 159 | DT159: 24.75 | DU159: M17/28-RG 58 | DV159: Indoor Only | DX159: Indoor Only | EA159: 159 | EB159: 0 | EC159: 0 | ED159: 159 | EE159: 159 | EG159: M17/28-RG 58 | EH159: 1 | EI159: 0 | EJ159: 1 | EK159: 0 | EL159: 1 | EM159: 0 | EN159: 0 | EO159: 0 | EP159: 0 | EQ159: 1 | ER159: 1 | ES159: 1 | ET159: M17/28-RG 58
A160: T-RAD™-400 | B160: 0.1822876 | C160: 0.0004496 | D160: N/A | E160: =((B160*SQRT($E$3*1000)+C160*$E$3*1000))/30480*Length*(1+'Cable Parameters'!I160/100*('Cable Parameters'!$E$1-25))+('Insertion Loss'!$F$16+'Insertion Loss'!$F$17)*SQRT($E$3) -> 0 | F160: 2.5 | G160: 85 | H160: -40 | I160: 0.2 | J160: https://www.eimfirst.co.il/wp-content/uploads/2019/01/Radiating-Cable.pdf | K160: 8.89 | L160: 155 | M160: T-RAD™-400 | O160: 160 | P160: 160 | Q160: 160 | R160: 160 | S160: 160 | T160: 160 | U160: T-RAD™-400 | V160: 2.5 | W160: 8.89 | X160: 0 | Y160: N/A | Z160: In/Out door | AA160: 38 | AC160: T-RAD™-400 | AD160: 1 | AE160: 1 | AF160: 1 | AG160: 1 | AH160: 1 | AI160: 1 | AJ160: 1 | AK160: 1 | AL160: 1 | AM160: 1 | AN160: 1 | AO160: 1 | AP160: 1 | AQ160: 1 | AR160: 1 | AS160: 1 | AT160: 1 | AU160: 1 | AV160: 1 | AW160: 1 | AX160: 1 | AY160: 1 | AZ160: 1 | BA160: 1 | BB160: 1 | BC160: 1 | BD160: 1 | BF160: 1 | BH160: FALSE | BI160: FALSE | BJ160: FALSE | BK160: FALSE | BL160: FALSE | BM160: FALSE | BP160: =ROW() -> 160 | DT160: 38 | DU160: T-RAD™-400 | DV160: In/Out door | DW160: In/Out door | DX160: In/Out door | EA160: 160 | EB160: 0 | EC160: 0 | ED160: 160 | EE160: 160 | EG160: T-RAD™-400 | EH160: 0 | EI160: 0 | EJ160: 1 | EK160: 0 | EL160: 0 | EM160: 0 | EN160: 0 | EO160: 0 | EP160: 0 | EQ160: 0 | ER160: 1 | ES160: 0 | ET160: T-RAD™-400
A161: T-RAD™-600 | B161: 0.104651 | C161: 0.0003886 | D161: N/A | E161: =((B161*SQRT($E$3*1000)+C161*$E$3*1000))/30480*Length*(1+'Cable Parameters'!I161/100*('Cable Parameters'!$E$1-25))+('Insertion Loss'!$F$16+'Insertion Loss'!$F$17)*SQRT($E$3) -> 0 | F161: 2.5 | G161: 85 | H161: -40 | I161: 0.2 | J161: https://www.eimfirst.co.il/wp-content/uploads/2019/01/Radiating-Cable.pdf | K161: 13.46 | L161: 156 | M161: T-RAD™-600 | O161: 161 | P161: 161 | Q161: 161 | R161: 161 | S161: 161 | T161: 161 | U161: T-RAD™-600 | V161: 2.5 | W161: 13.46 | X161: 0 | Y161: N/A | Z161: In/Out door | AA161: 38 | AC161: T-RAD™-600 | AD161: 1 | AE161: 1 | AF161: 1 | AG161: 1 | AH161: 1 | AI161: 1 | AJ161: 1 | AK161: 1 | AL161: 1 | AM161: 1 | AN161: 1 | AO161: 1 | AP161: 1 | AQ161: 1 | AR161: 1 | AS161: 1 | AT161: 1 | AU161: 1 | AV161: 1 | AW161: 1 | AX161: 1 | AY161: 1 | AZ161: 1 | BA161: 1 | BB161: 1 | BC161: 1 | BD161: 1 | BF161: 1 | BH161: FALSE | BI161: FALSE | BJ161: FALSE | BK161: FALSE | BL161: FALSE | BM161: FALSE | BP161: =ROW() -> 161 | DT161: 38 | DU161: T-RAD™-600 | DV161: In/Out door | DW161: In/Out door | DX161: In/Out door | EA161: 161 | EB161: 0 | EC161: 0 | ED161: 161 | EE161: 161 | EG161: T-RAD™-600 | EH161: 0 | EI161: 0 | EJ161: 1 | EK161: 0 | EL161: 0 | EM161: 0 | EN161: 0 | EO161: 0 | EP161: 0 | EQ161: 0 | ER161: 1 | ES161: 0 | ET161: T-RAD™-600
A162: T-RAD™-900 | B162: 0.0703451 | C162: 0.000123 | D162: N/A | E162: =((B162*SQRT($E$3*1000)+C162*$E$3*1000))/30480*Length*(1+'Cable Parameters'!I162/100*('Cable Parameters'!$E$1-25))+('Insertion Loss'!$F$16+'Insertion Loss'!$F$17)*SQRT($E$3) -> 0 | F162: 2.5 | G162: 85 | H162: -40 | I162: 0.2 | J162: https://www.eimfirst.co.il/wp-content/uploads/2019/01/Radiating-Cable.pdf | K162: 22.1 | L162: 157 | M162: T-RAD™-900 | O162: 162 | P162: 162 | Q162: 162 | R162: 162 | S162: 162 | T162: 162 | U162: T-RAD™-900 | V162: 2.5 | W162: 22.1 | X162: 0 | Y162: N/A | Z162: In/Out door | AA162: 76.2 | AC162: T-RAD™-900 | AD162: 1 | AE162: 1 | AF162: 1 | AG162: 1 | AH162: 1 | AI162: 1 | AJ162: 1 | AK162: 1 | AL162: 1 | AM162: 1 | AN162: 1 | AO162: 1 | AP162: 1 | AQ162: 1 | AR162: 1 | AS162: 1 | AT162: 1 | AU162: 1 | AV162: 1 | AW162: 1 | AX162: 1 | AY162: 1 | AZ162: 1 | BA162: 1 | BB162: 1 | BC162: 1 | BD162: 1 | BF162: 1 | BH162: FALSE | BI162: FALSE | BJ162: FALSE | BK162: FALSE | BL162: FALSE | BM162: FALSE | BP162: =ROW() -> 162 | DT162: 76.2 | DU162: T-RAD™-900 | DV162: In/Out door | DW162: In/Out door | DX162: In/Out door | EA162: 162 | EB162: 0 | EC162: 0 | ED162: 162 | EE162: 162 | EG162: T-RAD™-900 | EH162: 0 | EI162: 0 | EJ162: 1 | EK162: 0 | EL162: 0 | EM162: 0 | EN162: 0 | EO162: 0 | EP162: 0 | EQ162: 0 | ER162: 1 | ES162: 0 | ET162: T-RAD™-900
A163: nu-TRAC® TRC-875 | B163: 0.0330508 | C163: 0.0007681 | D163: N/A | E163: =((B163*SQRT($E$3*1000)+C163*$E$3*1000))/30480*Length*(1+'Cable Parameters'!I163/100*('Cable Parameters'!$E$1-25))+('Insertion Loss'!$F$16+'Insertion Loss'!$F$17)*SQRT($E$3) -> 0 | F163: 2.4 | G163: 85 | H163: -40 | I163: 0.2 | J163: https://www.eimfirst.co.il/wp-content/uploads/2019/01/Radiating-Cable.pdf | K163: 30.5 | L163: 158 | M163: nu-TRAC® TRC-875 | O163: 163 | P163: 163 | Q163: 163 | R163: 163 | S163: 163 | T163: 163 | U163: nu-TRAC® TRC-875 | V163: 2.4 | W163: 30.5 | X163: 0 | Y163: N/A | Z163: In/Out door | AA163: 165 | AC163: nu-TRAC® TRC-875 | AD163: 1 | AE163: 1 | AF163: 1 | AG163: 1 | AH163: 1 | AI163: 1 | AJ163: 1 | AK163: 1 | AL163: 1 | AM163: 1 | AN163: 1 | AO163: 1 | AP163: 1 | AQ163: 1 | AR163: 1 | AS163: 1 | AT163: 1 | AU163: 1 | AV163: 1 | AW163: 1 | AX163: 1 | AY163: 1 | AZ163: 1 | BA163: 1 | BB163: 1 | BC163: 1 | BD163: 1 | BF163: 1 | BH163: FALSE | BI163: FALSE | BJ163: FALSE | BK163: FALSE | BL163: FALSE | BM163: FALSE | BP163: =ROW() -> 163 | DT163: 165 | DU163: nu-TRAC® TRC-875 | DV163: In/Out door | DW163: In/Out door | DX163: In/Out door | EA163: 163 | EB163: 0 | EC163: 0 | ED163: 163 | EE163: 163 | EG163: nu-TRAC® TRC-875 | EH163: 0 | EI163: 0 | EJ163: 1 | EK163: 0 | EL163: 0 | EM163: 0 | EN163: 0 | EO163: 0 | EP163: 0 | EQ163: 0 | ER163: 1 | ES163: 0 | ET163: nu-TRAC® TRC-875
A164: nu-TRAC® TRC-1250 | B164: 0.0268052 | C164: 0.0004114 | D164: N/A | E164: =((B164*SQRT($E$3*1000)+C164*$E$3*1000))/30480*Length*(1+'Cable Parameters'!I164/100*('Cable Parameters'!$E$1-25))+('Insertion Loss'!$F$16+'Insertion Loss'!$F$17)*SQRT($E$3) -> 0 | F164: 2.4 | G164: 85 | H164: -40 | I164: 0.2 | J164: https://www.eimfirst.co.il/wp-content/uploads/2019/01/Radiating-Cable.pdf | K164: 42.4 | L164: 159 | M164: nu-TRAC® TRC-1250 | O164: 164 | P164: 164 | Q164: 164 | R164: 164 | S164: 164 | T164: 164 | U164: nu-TRAC® TRC-1250 | V164: 2.4 | W164: 42.4 | X164: 0 | Y164: N/A | Z164: In/Out door | AA164: 342 | AC164: nu-TRAC® TRC-1250 | AD164: 1 | AE164: 1 | AF164: 1 | AG164: 1 | AH164: 1 | AI164: 1 | AJ164: 1 | AK164: 1 | AL164: 1 | AM164: 1 | AN164: 1 | AO164: 1 | AP164: 1 | AQ164: 1 | AR164: 1 | AS164: 1 | AT164: 1 | AU164: 1 | AV164: 1 | AW164: 1 | AX164: 1 | AY164: 1 | AZ164: 1 | BA164: 1 | BB164: 1 | BC164: 1 | BD164: 1 | BF164: 1 | BH164: FALSE | BI164: FALSE | BJ164: FALSE | BK164: FALSE | BL164: FALSE | BM164: FALSE | BP164: =ROW() -> 164 | DT164: 342 | DU164: nu-TRAC® TRC-1250 | DV164: In/Out door | DW164: In/Out door | DX164: In/Out door | EA164: 164 | EB164: 0 | EC164: 0 | ED164: 164 | EE164: 164 | EG164: nu-TRAC® TRC-1250 | EH164: 0 | EI164: 0 | EJ164: 1 | EK164: 0 | EL164: 0 | EM164: 0 | EN164: 0 | EO164: 0 | EP164: 0 | EQ164: 0 | ER164: 1 | ES164: 0 | ET164: nu-TRAC® TRC-1250
A165: SPO-250 | B165: 0.1842493 | C165: 0.0004255 | D165: N/A | E165: =((B165*SQRT($E$3*1000)+C165*$E$3*1000))/30480*Length*(1+'Cable Parameters'!I165/100*('Cable Parameters'!$E$1-25))+('Insertion Loss'!$F$16+'Insertion Loss'!$F$17)*SQRT($E$3) -> 0 | F165: 5.8 | G165: 85 | H165: -40 | I165: 0.2 | J165: https://www.eimfirst.co.il/wp-content/uploads/2019/01/SPO-CABLE-ASSEMBLY.pdf | K165: 7.7 | L165: 160 | M165: SPO-250 | O165: 165 | P165: 165 | Q165: 165 | R165: 165 | S165: 165 | T165: 165 | U165: SPO-250 | V165: 5.8 | W165: 7.7 | X165: 0 | Y165: N/A | Z165: In/Out door | AA165: 25 | AC165: SPO-250 | AD165: 1 | AE165: 1 | AF165: 1 | AG165: 1 | AH165: 1 | AI165: 1 | AJ165: 1 | AK165: 1 | AL165: 1 | AM165: 1 | AN165: 1 | AO165: 1 | AP165: 1 | AQ165: 1 | AR165: 1 | AS165: 1 | AT165: 1 | AU165: 1 | AV165: 1 | AW165: 1 | AX165: 1 | AY165: 1 | AZ165: 1 | BA165: 1 | BB165: 1 | BC165: 1 | BD165: 1 | BF165: 1 | BH165: FALSE | BI165: FALSE | BJ165: FALSE | BK165: FALSE | BL165: FALSE | BM165: FALSE | BP165: =ROW() -> 165 | DT165: 25 | DU165: SPO-250 | DV165: In/Out door | DW165: In/Out door | DX165: In/Out door | EA165: 165 | EB165: 0 | EC165: 0 | ED165: 165 | EE165: 165 | EG165: SPO-250 | EH165: 0 | EI165: 0 | EJ165: 0 | EK165: 0 | EL165: 0 | EM165: 0 | EN165: 0 | EO165: 0 | EP165: 0 | EQ165: 0 | ER165: 1 | ES165: 1 | ET165: SPO-250
A166: SPO-375 | B166: 0.1241472 | C166: 0.0003699 | D166: N/A | E166: =((B166*SQRT($E$3*1000)+C166*$E$3*1000))/30480*Length*(1+'Cable Parameters'!I166/100*('Cable Parameters'!$E$1-25))+('Insertion Loss'!$F$16+'Insertion Loss'!$F$17)*SQRT($E$3) -> 0 | F166: 5.8 | G166: 85 | H166: -40 | I166: 0.2 | J166: https://www.eimfirst.co.il/wp-content/uploads/2019/01/SPO-CABLE-ASSEMBLY.pdf | K166: 10.8 | L166: 161 | M166: SPO-375 | O166: 166 | P166: 166 | Q166: 166 | R166: =IF(Q166="","",IF($R$2="",Q166,IF(OR(INDEX(A:WQ,ROW(),4)=$R$2,INDEX(A:WQ,ROW(),4)>$R$2),ROW(),""))) -> 166 | S166: 166 | T166: 166 | U166: SPO-375 | V166: 5.8 | W166: 10.8 | X166: 0 | Y166: N/A | Z166: =IF(ISERROR(IF($Q$2="",INDEX(A:WQ,T166,128),IF($Q$2=1,INDEX(A:WQ,T166,126),INDEX(A:WQ,T166,127)))),"",IF($Q$2="",INDEX(A:WQ,T166,128),IF($Q$2=1,INDEX(A:WQ,T166,126),INDEX(A:WQ,T166,127)))) -> In/Out door | AA166: =IF(T166="","",INDEX(A:WQ,T166,124)) -> 2.3 | AC166: SPO-375 | AD166: 1 | AE166: 1 | AF166: 1 | AG166: 1 | AH166: 1 | AI166: 1 | AJ166: 1 | AK166: 1 | AL166: 1 | AM166: 1 | AN166: 1 | AO166: 1 | AP166: 1 | AQ166: 1 | AR166: 1 | AS166: 1 | AT166: 1 | AU166: 1 | AV166: 1 | AW166: 1 | AX166: 1 | AY166: 1 | AZ166: 1 | BA166: 1 | BB166: 1 | BC166: 1 | BD166: 1 | BF166: 1 | BH166: FALSE | BI166: FALSE | BJ166: FALSE | BK166: FALSE | BL166: FALSE | BM166: FALSE | BP166: =ROW() -> 166 | DT166: 2.3 | DU166: SPO-375 | DV166: In/Out door | DW166: In/Out door | DX166: In/Out door | EA166: 166 | EB166: 0 | EC166: 0 | ED166: 166 | EE166: 166 | EG166: SPO-375 | EH166: 0 | EI166: 0 | EJ166: 0 | EK166: 0 | EL166: 0 | EM166: 0 | EN166: 0 | EO166: 0 | EP166: 0 | EQ166: 0 | ER166: 1 | ES166: 1 | ET166: SPO-375
A167: SPO-500 | B167: 0.0884915 | C167: 0.0007174 | D167: N/A | E167: =((B167*SQRT($E$3*1000)+C167*$E$3*1000))/30480*Length*(1+'Cable Parameters'!I167/100*('Cable Parameters'!$E$1-25))+('Insertion Loss'!$F$16+'Insertion Loss'!$F$17)*SQRT($E$3) -> 0 | F167: 5.8 | G167: 85 | H167: -40 | I167: 0.2 | J167: https://www.eimfirst.co.il/wp-content/uploads/2019/01/SPO-CABLE-ASSEMBLY.pdf | K167: 13.4 | L167: 162 | M167: SPO-500 | O167: 167 | P167: 167 | Q167: 167 | R167: 167 | S167: 167 | T167: 167 | U167: SPO-500 | V167: 5.8 | W167: 13.4 | X167: 0 | Y167: N/A | Z167: In/Out door | AA167: 51 | AC167: SPO-500 | AD167: 1 | AE167: 1 | AF167: 1 | AG167: 1 | AH167: 1 | AI167: 1 | AJ167: 1 | AK167: 1 | AL167: 1 | AM167: 1 | AN167: 1 | AO167: 1 | AP167: 1 | AQ167: 1 | AR167: 1 | AS167: 1 | AT167: 1 | AU167: 1 | AV167: 1 | AW167: 1 | AX167: 1 | AY167: 1 | AZ167: 1 | BA167: 1 | BB167: 1 | BC167: 1 | BD167: 1 | BF167: 1 | BH167: FALSE | BI167: FALSE | BJ167: FALSE | BK167: FALSE | BL167: FALSE | BM167: FALSE | BP167: =ROW() -> 167 | DT167: 51 | DU167: SPO-500 | DV167: In/Out door | DW167: In/Out door | DX167: In/Out door | EA167: 167 | EB167: 0 | EC167: 0 | ED167: 167 | EE167: 167 | EG167: SPO-500 | EH167: 0 | EI167: 0 | EJ167: 0 | EK167: 0 | EL167: 0 | EM167: 0 | EN167: 0 | EO167: 0 | EP167: 0 | EQ167: 0 | ER167: 1 | ES167: 1 | ET167: SPO-500
A168: SPF-250 | B168: 0.1842493 | C168: 0.0004255 | D168: N/A | E168: =((B168*SQRT($E$3*1000)+C168*$E$3*1000))/30480*Length*(1+'Cable Parameters'!I168/100*('Cable Parameters'!$E$1-25))+('Insertion Loss'!$F$16+'Insertion Loss'!$F$17)*SQRT($E$3) -> 0 | F168: 5.8 | G168: 85 | H168: -40 | I168: 0.2 | J168: https://www.eimfirst.co.il/wp-content/uploads/2019/01/SPF.pdf | K168: 7.7 | L168: 163 | M168: SPF-250 | O168: 168 | P168: 168 | Q168: 168 | R168: 168 | S168: 168 | T168: 168 | U168: SPF-250 | V168: 5.8 | W168: 7.7 | X168: 0 | Y168: N/A | Z168: Indoor Only | AA168: 25 | AC168: SPF-250 | AD168: 1 | AE168: 1 | AF168: 1 | AG168: 1 | AH168: 1 | AI168: 1 | AJ168: 1 | AK168: 1 | AL168: 1 | AM168: 1 | AN168: 1 | AO168: 1 | AP168: 1 | AQ168: 1 | AR168: 1 | AS168: 1 | AT168: 1 | AU168: 1 | AV168: 1 | AW168: 1 | AX168: 1 | AY168: 1 | AZ168: 1 | BA168: 1 | BB168: 1 | BC168: 1 | BD168: 1 | BF168: 1 | BH168: FALSE | BI168: FALSE | BJ168: FALSE | BK168: FALSE | BL168: FALSE | BM168: FALSE | BP168: =ROW() -> 168 | DT168: 25 | DU168: SPF-250 | DV168: Indoor Only | DX168: Indoor Only | EA168: 168 | EB168: 0 | EC168: 0 | ED168: 168 | EE168: 168 | EG168: SPF-250 | EH168: 0 | EI168: 0 | EJ168: 0 | EK168: 0 | EL168: 0 | EM168: 0 | EN168: 0 | EO168: 0 | EP168: 0 | EQ168: 0 | ER168: 1 | ES168: 0 | ET168: SPF-250
A169: SPF-375 | B169: 0.1241472 | C169: 0.0003699 | D169: N/A | E169: =((B169*SQRT($E$3*1000)+C169*$E$3*1000))/30480*Length*(1+'Cable Parameters'!I169/100*('Cable Parameters'!$E$1-25))+('Insertion Loss'!$F$16+'Insertion Loss'!$F$17)*SQRT($E$3) -> 0 | F169: 5.8 | G169: 85 | H169: -40 | I169: 0.2 | J169: https://www.eimfirst.co.il/wp-content/uploads/2019/01/SPF.pdf | K169: 10.8 | L169: 164 | M169: SPF-375 | O169: 169 | P169: 169 | Q169: 169 | R169: 169 | S169: 169 | T169: 169 | U169: SPF-375 | V169: 5.8 | W169: 10.8 | X169: 0 | Y169: N/A | Z169: Indoor Only | AA169: 2.3 | AC169: SPF-375 | AD169: 1 | AE169: 1 | AF169: 1 | AG169: 1 | AH169: 1 | AI169: 1 | AJ169: 1 | AK169: 1 | AL169: 1 | AM169: 1 | AN169: 1 | AO169: 1 | AP169: 1 | AQ169: 1 | AR169: 1 | AS169: 1 | AT169: 1 | AU169: 1 | AV169: 1 | AW169: 1 | AX169: 1 | AY169: 1 | AZ169: 1 | BA169: 1 | BB169: 1 | BC169: 1 | BD169: 1 | BF169: 1 | BH169: FALSE | BI169: FALSE | BJ169: FALSE | BK169: FALSE | BL169: FALSE | BM169: FALSE | BP169: =ROW() -> 169 | DT169: 2.3 | DU169: SPF-375 | DV169: Indoor Only | DX169: Indoor Only | EA169: 169 | EB169: 0 | EC169: 0 | ED169: 169 | EE169: 169 | EG169: SPF-375 | EH169: 0 | EI169: 0 | EJ169: 0 | EK169: 0 | EL169: 0 | EM169: 0 | EN169: 0 | EO169: 0 | EP169: 0 | EQ169: 0 | ER169: 1 | ES169: 0 | ET169: SPF-375
A170: SPF-500 | B170: 0.0884915 | C170: 0.0007174 | D170: N/A | E170: =((B170*SQRT($E$3*1000)+C170*$E$3*1000))/30480*Length*(1+'Cable Parameters'!I170/100*('Cable Parameters'!$E$1-25))+('Insertion Loss'!$F$16+'Insertion Loss'!$F$17)*SQRT($E$3) -> 0 | F170: 5.8 | G170: 85 | H170: -40 | I170: 0.2 | J170: https://www.eimfirst.co.il/wp-content/uploads/2019/01/SPF.pdf | K170: 13.4 | L170: 165 | M170: SPF-500 | O170: 170 | P170: 170 | Q170: 170 | R170: 170 | S170: 170 | T170: 170 | U170: SPF-500 | V170: 5.8 | W170: 13.4 | X170: 0 | Y170: N/A | Z170: Indoor Only | AA170: 51 | AC170: SPF-500 | AD170: 1 | AE170: 1 | AF170: 1 | AG170: 1 | AH170: 1 | AI170: 1 | AJ170: 1 | AK170: 1 | AL170: 1 | AM170: 1 | AN170: 1 | AO170: 1 | AP170: 1 | AQ170: 1 | AR170: 1 | AS170: 1 | AT170: 1 | AU170: 1 | AV170: 1 | AW170: 1 | AX170: 1 | AY170: 1 | AZ170: 1 | BA170: 1 | BB170: 1 | BC170: 1 | BD170: 1 | BF170: 1 | BH170: FALSE | BI170: FALSE | BJ170: FALSE | BK170: FALSE | BL170: FALSE | BM170: FALSE | BP170: =ROW() -> 170 | DT170: 51 | DU170: SPF-500 | DV170: Indoor Only | DX170: Indoor Only | EA170: 170 | EB170: 0 | EC170: 0 | ED170: 170 | EE170: 170 | EG170: SPF-500 | EH170: 0 | EI170: 0 | EJ170: 0 | EK170: 0 | EL170: 0 | EM170: 0 | EN170: 0 | EO170: 0 | EP170: 0 | EQ170: 0 | ER170: 1 | ES170: 0 | ET170: SPF-500
A171: SPP-250-LLPL | B171: 0.1732653 | C171: 0.0002766 | D171: N/A | E171: =((B171*SQRT($E$3*1000)+C171*$E$3*1000))/30480*Length*(1+'Cable Parameters'!I171/100*('Cable Parameters'!$E$1-25))+('Insertion Loss'!$F$16+'Insertion Loss'!$F$17)*SQRT($E$3) -> 0 | F171: 5.8 | G171: 200 | H171: -55 | I171: 0.2 | J171: https://www.eimfirst.co.il/wp-content/uploads/2019/01/SPP.pdf | K171: 7.1 | L171: 166 | M171: SPP-250-LLPL | O171: 171 | P171: 171 | Q171: 171 | R171: 171 | S171: 171 | T171: 171 | U171: SPP-250-LLPL | V171: 5.8 | W171: 7.1 | X171: 0 | Y171: N/A | Z171: In/Out door | AA171: 32 | AC171: SPP-250-LLPL | AD171: 1 | AE171: 1 | AF171: 1 | AG171: 1 | AH171: 1 | AI171: 1 | AJ171: 1 | AK171: 1 | AL171: 1 | AM171: 1 | AN171: 1 | AO171: 1 | AP171: 1 | AQ171: 1 | AR171: 1 | AS171: 1 | AT171: 1 | AU171: 1 | AV171: 1 | AW171: 1 | AX171: 1 | AY171: 1 | AZ171: 1 | BA171: 1 | BB171: 1 | BC171: 1 | BD171: 1 | BF171: 1 | BH171: FALSE | BI171: FALSE | BJ171: FALSE | BK171: FALSE | BL171: FALSE | BM171: FALSE | BP171: =ROW() -> 171 | DT171: 32 | DU171: SPP-250-LLPL | DV171: In/Out door | DW171: In/Out door | DX171: In/Out door | EA171: 171 | EB171: 0 | EC171: 0 | ED171: 171 | EE171: 171 | EG171: SPP-250-LLPL | EH171: 0 | EI171: 0 | EJ171: 0 | EK171: 0 | EL171: 0 | EM171: 0 | EN171: 0 | EO171: 0 | EP171: 0 | EQ171: 0 | ER171: 1 | ES171: 1 | ET171: SPP-250-LLPL
A172: SPP-375-LLPL | B172: 0.1111354 | C172: 0.0003166 | D172: N/A | E172: =((B172*SQRT($E$3*1000)+C172*$E$3*1000))/30480*Length*(1+'Cable Parameters'!I172/100*('Cable Parameters'!$E$1-25))+('Insertion Loss'!$F$16+'Insertion Loss'!$F$17)*SQRT($E$3) -> 0 | F172: 5.8 | G172: 200 | H172: -55 | I172: 0.2 | J172: https://www.eimfirst.co.il/wp-content/uploads/2019/01/SPP.pdf | K172: 10.2 | L172: 167 | M172: SPP-375-LLPL | O172: 172 | P172: 172 | Q172: 172 | R172: 172 | S172: 172 | T172: 172 | U172: SPP-375-LLPL | V172: 5.8 | W172: 10.2 | X172: 0 | Y172: N/A | Z172: In/Out door | AA172: 35 | AC172: SPP-375-LLPL | AD172: 1 | AE172: 1 | AF172: 1 | AG172: 1 | AH172: 1 | AI172: 1 | AJ172: 1 | AK172: 1 | AL172: 1 | AM172: 1 | AN172: 1 | AO172: 1 | AP172: 1 | AQ172: 1 | AR172: 1 | AS172: 1 | AT172: 1 | AU172: 1 | AV172: 1 | AW172: 1 | AX172: 1 | AY172: 1 | AZ172: 1 | BA172: 1 | BB172: 1 | BC172: 1 | BD172: 1 | BF172: 1 | BH172: FALSE | BI172: FALSE | BJ172: FALSE | BK172: FALSE | BL172: FALSE | BM172: FALSE | BP172: =ROW() -> 172 | DT172: 35 | DU172: SPP-375-LLPL | DV172: In/Out door | DW172: In/Out door | DX172: In/Out door | EA172: 172 | EB172: 0 | EC172: 0 | ED172: 172 | EE172: 172 | EG172: SPP-375-LLPL | EH172: 0 | EI172: 0 | EJ172: 0 | EK172: 0 | EL172: 0 | EM172: 0 | EN172: 0 | EO172: 0 | EP172: 0 | EQ172: 0 | ER172: 1 | ES172: 1 | ET172: SPP-375-LLPL
A173: SPP-500-LLPL | B173: 0.1036438 | C173: 0.0002253 | D173: N/A | E173: =((B173*SQRT($E$3*1000)+C173*$E$3*1000))/30480*Length*(1+'Cable Parameters'!I173/100*('Cable Parameters'!$E$1-25))+('Insertion Loss'!$F$16+'Insertion Loss'!$F$17)*SQRT($E$3) -> 0 | F173: 5.8 | G173: 200 | H173: -55 | I173: 0.2 | J173: https://www.eimfirst.co.il/wp-content/uploads/2019/01/SPP.pdf | K173: 13.4 | L173: 168 | M173: SPP-500-LLPL | O173: 173 | P173: 173 | Q173: 173 | R173: 173 | S173: 173 | T173: 173 | U173: SPP-500-LLPL | V173: 5.8 | W173: 13.4 | X173: 0 | Y173: N/A | Z173: In/Out door | AA173: 38 | AC173: SPP-500-LLPL | AD173: 1 | AE173: 1 | AF173: 1 | AG173: 1 | AH173: 1 | AI173: 1 | AJ173: 1 | AK173: 1 | AL173: 1 | AM173: 1 | AN173: 1 | AO173: 1 | AP173: 1 | AQ173: 1 | AR173: 1 | AS173: 1 | AT173: 1 | AU173: 1 | AV173: 1 | AW173: 1 | AX173: 1 | AY173: 1 | AZ173: 1 | BA173: 1 | BB173: 1 | BC173: 1 | BD173: 1 | BF173: 1 | BH173: FALSE | BI173: FALSE | BJ173: FALSE | BK173: FALSE | BL173: FALSE | BM173: FALSE | BP173: =ROW() -> 173 | DT173: 38 | DU173: SPP-500-LLPL | DV173: In/Out door | DW173: In/Out door | DX173: In/Out door | EA173: 173 | EB173: 0 | EC173: 0 | ED173: 173 | EE173: 173 | EG173: SPP-500-LLPL | EH173: 0 | EI173: 0 | EJ173: 0 | EK173: 0 | EL173: 0 | EM173: 0 | EN173: 0 | EO173: 0 | EP173: 0 | EQ173: 0 | ER173: 1 | ES173: 1 | ET173: SPP-500-LLPL
A174: TFT-401 | B174: 0.2137652 | C174: 0.0005897 | D174: N/A | E174: =((B174*SQRT($E$3*1000)+C174*$E$3*1000))/30480*Length*(1+'Cable Parameters'!I174/100*('Cable Parameters'!$E$1-25))+('Insertion Loss'!$F$16+'Insertion Loss'!$F$17)*SQRT($E$3) -> 0 | F174: 5.8 | G174: 150 | H174: -55 | I174: 0.2 | J174: https://www.eimfirst.co.il/wp-content/uploads/2019/01/TFT.pdf | K174: 6.73 | L174: 169 | M174: TFT-401 | O174: 174 | P174: 174 | Q174: 174 | R174: 174 | S174: 174 | T174: 174 | U174: TFT-401 | V174: 5.8 | W174: 6.73 | X174: 0 | Y174: N/A | Z174: In/Out door | AA174: 19.05 | AC174: TFT-401 | AD174: 1 | AE174: 1 | AF174: 1 | AG174: 1 | AH174: 1 | AI174: 1 | AJ174: 1 | AK174: 1 | AL174: 1 | AM174: 1 | AN174: 1 | AO174: 1 | AP174: 1 | AQ174: 1 | AR174: 1 | AS174: 1 | AT174: 1 | AU174: 1 | AV174: 1 | AW174: 1 | AX174: 1 | AY174: 1 | AZ174: 1 | BA174: 1 | BB174: 1 | BC174: 1 | BD174: 1 | BF174: 1 | BH174: FALSE | BI174: FALSE | BJ174: FALSE | BK174: FALSE | BL174: FALSE | BM174: FALSE | BP174: =ROW() -> 174 | DT174: 19.05 | DU174: TFT-401 | DV174: In/Out door | DW174: In/Out door | DX174: In/Out door | EA174: 174 | EB174: 0 | EC174: 0 | ED174: 174 | EE174: 174 | EG174: TFT-401 | EH174: 0 | EI174: 0 | EJ174: 0 | EK174: 0 | EL174: 0 | EM174: 0 | EN174: 0 | EO174: 0 | EP174: 0 | EQ174: 0 | ER174: 1 | ES174: 1 | ET174: TFT-401
A175: TFT-402 | B175: 0.3451224 | C175: 0.0001752 | D175: N/A | E175: =((B175*SQRT($E$3*1000)+C175*$E$3*1000))/30480*Length*(1+'Cable Parameters'!I175/100*('Cable Parameters'!$E$1-25))+('Insertion Loss'!$F$16+'Insertion Loss'!$F$17)*SQRT($E$3) -> 0 | F175: 5.8 | G175: 150 | H175: -55 | I175: 0.2 | J175: https://www.eimfirst.co.il/wp-content/uploads/2019/01/TFT.pdf | K175: 4.06 | L175: 170 | M175: TFT-402 | O175: 175 | P175: 175 | Q175: 175 | R175: 175 | S175: 175 | T175: 175 | U175: TFT-402 | V175: 5.8 | W175: 4.06 | X175: 0 | Y175: N/A | Z175: In/Out door | AA175: 19.05 | AC175: TFT-402 | AD175: 1 | AE175: 1 | AF175: 1 | AG175: 1 | AH175: 1 | AI175: 1 | AJ175: 1 | AK175: 1 | AL175: 1 | AM175: 1 | AN175: 1 | AO175: 1 | AP175: 1 | AQ175: 1 | AR175: 1 | AS175: 1 | AT175: 1 | AU175: 1 | AV175: 1 | AW175: 1 | AX175: 1 | AY175: 1 | AZ175: 1 | BA175: 1 | BB175: 1 | BC175: 1 | BD175: 1 | BF175: 1 | BH175: FALSE | BI175: FALSE | BJ175: FALSE | BK175: FALSE | BL175: FALSE | BM175: FALSE | BP175: =ROW() -> 175 | DT175: 19.05 | DU175: TFT-402 | DV175: In/Out door | DW175: In/Out door | DX175: In/Out door | EA175: 175 | EB175: 0 | EC175: 0 | ED175: 175 | EE175: 175 | EG175: TFT-402 | EH175: 0 | EI175: 0 | EJ175: 0 | EK175: 0 | EL175: 0 | EM175: 0 | EN175: 0 | EO175: 0 | EP175: 0 | EQ175: 0 | ER175: 1 | ES175: 1 | ET175: TFT-402
A176: Silverline Standard | B176: 0.348 | C176: 0.0012 | D176: N/A | E176: =((B176*SQRT($E$3*1000)+C176*$E$3*1000))/30480*Length*(1+'Cable Parameters'!I176/100*('Cable Parameters'!$E$1-25))+('Insertion Loss'!$F$16+'Insertion Loss'!$F$17)*SQRT($E$3) -> 0 | F176: 26.5 | G176: 105 | H176: -55 | I176: 0.2 | J176: https://www.eimfirst.co.il/wp-content/uploads/2018/07/silverline-product-brochure-r.pdf | K176: 4.95 | L176: 171 | M176: Silverline Standard | O176: 176 | P176: 176 | Q176: 176 | R176: 176 | S176: 176 | T176: 176 | U176: Silverline Standard | V176: =IF(T176="","",INDEX(A:N,T176,6)) -> 26.5 | W176: =IF(T176="","",INDEX(A:O,T176,11)) -> 4.95 | X176: =IF(T176="","",INDEX(A:P,T176,5)) -> 0 | Y176: =IF(T176="","",INDEX(A:R,T176,4)) -> N/A | Z176: =IF(ISERROR(IF($Q$2="",INDEX(A:WQ,T176,128),IF($Q$2=1,INDEX(A:WQ,T176,126),INDEX(A:WQ,T176,127)))),"",IF($Q$2="",INDEX(A:WQ,T176,128),IF($Q$2=1,INDEX(A:WQ,T176,126),INDEX(A:WQ,T176,127)))) -> In/Out door | AA176: =IF(T176="","",INDEX(A:WQ,T176,124)) -> 25 | AC176: Silverline Standard | AD176: 1 | AE176: 1 | AF176: 1 | AG176: 1 | AH176: 1 | AI176: 1 | AJ176: 1 | AK176: 1 | AL176: 1 | AM176: 1 | AN176: 1 | AO176: 1 | AP176: 1 | AQ176: 1 | AR176: 1 | AS176: 1 | AT176: 1 | AU176: 1 | AV176: 1 | AW176: 1 | AX176: 1 | AY176: 1 | AZ176: 1 | BA176: 1 | BB176: 1 | BC176: 1 | BD176: 1 | BF176: 1 | BH176: =OR(AND(AD176=0,AE176=0,AF176=0,AG176=0,AH176=0),BF176=0) -> FALSE | BI176: =OR(AND(AI176=0,AJ176=0,AK176=0,AL176=0,AM176=0),BF176=0) -> FALSE | BJ176: =OR(AND(AN176=0,AO176=0,AP176=0,AQ176=0,AR176=0),BF176=0) -> FALSE | BK176: =OR(AND(AS176=0,AT176=0,AU176=0,AV176=0,AW176=0),BF176=0) -> FALSE | BL176: =OR(AND(AX176=0,AY176=0,AZ176=0,BA176=0,BB176=0),BF176=0) -> FALSE | BM176: =OR(AND(BC176=0,BD176=0),BF176=0) -> FALSE | BP176: =ROW() -> 176 | DT176: 25 | DU176: Silverline Standard | DV176: In/Out door | DW176: In/Out door | DX176: In/Out door | EA176: 176 | EB176: 0 | EC176: 0 | ED176: 176 | EE176: 176 | EG176: Silverline Standard | EH176: 0 | EI176: 0 | EJ176: 0 | EK176: 0 | EL176: 0 | EM176: 0 | EN176: 0 | EO176: 0 | EP176: 1 | EQ176: 0 | ER176: 0 | ES176: 0 | ET176: Silverline Standard
A177: Silverline SF (Super Flex) | B177: 0.340194 | C177: 0.0012421 | D177: N/A | E177: =((B177*SQRT($E$3*1000)+C177*$E$3*1000))/30480*Length*(1+'Cable Parameters'!I177/100*('Cable Parameters'!$E$1-25))+('Insertion Loss'!$F$16+'Insertion Loss'!$F$17)*SQRT($E$3) -> 0 | F177: 18 | G177: 85 | H177: -55 | I177: 0.2 | J177: https://www.eimfirst.co.il/wp-content/uploads/2018/07/silverline-product-brochure-r.pdf | K177: 4.95 | L177: 172 | M177: Silverline SF (Super Flex) | O177: 177 | P177: 177 | Q177: 177 | R177: 177 | S177: 177 | T177: 177 | U177: Silverline SF (Super Flex) | V177: 18 | W177: 4.95 | X177: 0 | Y177: N/A | Z177: In/Out door | AA177: 25 | AC177: Silverline SF (Super Flex) | AD177: 1 | AE177: 1 | AF177: 1 | AG177: 1 | AH177: 1 | AI177: 1 | AJ177: 1 | AK177: 1 | AL177: 1 | AM177: 1 | AN177: 1 | AO177: 1 | AP177: 1 | AQ177: 1 | AR177: 1 | AS177: 1 | AT177: 1 | AU177: 1 | AV177: 1 | AW177: 1 | AX177: 1 | AY177: 1 | AZ177: 1 | BA177: 1 | BB177: 1 | BC177: 1 | BD177: 1 | BF177: 1 | BH177: FALSE | BI177: FALSE | BJ177: FALSE | BK177: FALSE | BL177: FALSE | BM177: FALSE | BP177: =ROW() -> 177 | DT177: 25 | DU177: Silverline SF (Super Flex) | DV177: In/Out door | DW177: In/Out door | DX177: In/Out door | EA177: 177 | EB177: 0 | EC177: 0 | ED177: 177 | EE177: 177 | EG177: Silverline SF (Super Flex) | EH177: 0 | EI177: 0 | EJ177: 0 | EK177: 0 | EL177: 0 | EM177: 0 | EN177: 0 | EO177: 0 | EP177: 1 | EQ177: 0 | ER177: 0 | ES177: 0 | ET177: Silverline SF (Super Flex)
A178: Silverline LL (Low Loss) | B178: 0.340194 | C178: 0.0012421 | D178: N/A | E178: =((B178*SQRT($E$3*1000)+C178*$E$3*1000))/30480*Length*(1+'Cable Parameters'!I178/100*('Cable Parameters'!$E$1-25))+('Insertion Loss'!$F$16+'Insertion Loss'!$F$17)*SQRT($E$3) -> 0 | F178: 18 | G178: 85 | H178: -55 | I178: 0.2 | J178: https://www.eimfirst.co.il/wp-content/uploads/2018/07/silverline-product-brochure-r.pdf | K178: 4.95 | L178: 173 | M178: Silverline LL (Low Loss) | O178: 178 | P178: =IF(O178="","",IF($P$2="",O178,IF(OR(INDEX(A:M,ROW(),6)=$P$2,INDEX(A:M,ROW(),6)>$P$2),ROW(),""))) -> 178 | Q178: =IF(P178="","",IF($Q$2="",P178,IF(INDEX(DV:DW,ROW(),$Q$2)="","",ROW()))) -> 178 | R178: =IF(Q178="","",IF($R$2="",Q178,IF(OR(INDEX(A:WQ,ROW(),4)=$R$2,INDEX(A:WQ,ROW(),4)>$R$2),ROW(),""))) -> 178 | S178: =IF(R178="","",IF($S$2="",R178,IF(OR(INDEX(A:N,ROW(),11)>$S$2+1,INDEX(A:N,ROW(),11)<$S$2-1),"",ROW()))) -> 178 | T178: 178 | U178: Silverline LL (Low Loss) | V178: 18 | W178: 4.95 | X178: 0 | Y178: N/A | Z178: In/Out door | AA178: 25 | AC178: Silverline LL (Low Loss) | AD178: 1 | AE178: 1 | AF178: 1 | AG178: 1 | AH178: 1 | AI178: 1 | AJ178: 1 | AK178: 1 | AL178: 1 | AM178: 1 | AN178: 1 | AO178: 1 | AP178: 1 | AQ178: 1 | AR178: 1 | AS178: 1 | AT178: 1 | AU178: 1 | AV178: 1 | AW178: 1 | AX178: 1 | AY178: 1 | AZ178: 1 | BA178: 1 | BB178: 1 | BC178: 1 | BD178: 1 | BF178: 1 | BH178: FALSE | BI178: FALSE | BJ178: FALSE | BK178: FALSE | BL178: FALSE | BM178: FALSE | BP178: =ROW() -> 178 | DT178: 25 | DU178: Silverline LL (Low Loss) | DV178: In/Out door | DW178: In/Out door | DX178: In/Out door | EA178: 178 | EB178: 0 | EC178: 0 | ED178: 178 | EE178: 178 | EG178: Silverline LL (Low Loss) | EH178: 0 | EI178: 0 | EJ178: 0 | EK178: 0 | EL178: 0 | EM178: 0 | EN178: 0 | EO178: 0 | EP178: 1 | EQ178: 0 | ER178: 0 | ES178: 0 | ET178: Silverline LL (Low Loss)
A179: Silverline TT (TempTrack) | B179: 0.3378954 | C179: 0.0013148 | D179: N/A | E179: =((B179*SQRT($E$3*1000)+C179*$E$3*1000))/30480*Length*(1+'Cable Parameters'!I179/100*('Cable Parameters'!$E$1-25))+('Insertion Loss'!$F$16+'Insertion Loss'!$F$17)*SQRT($E$3) -> 0 | F179: 18 | G179: 125 | H179: -55 | I179: 0.2 | J179: https://www.eimfirst.co.il/wp-content/uploads/2018/07/silverline-product-brochure-r.pdf | K179: 4.95 | L179: 174 | M179: Silverline TT (TempTrack) | O179: 179 | P179: 179 | Q179: 179 | R179: 179 | S179: 179 | T179: 179 | U179: Silverline TT (TempTrack) | V179: 18 | W179: 4.95 | X179: 0 | Y179: N/A | Z179: In/Out door | AA179: 25 | AC179: Silverline TT (TempTrack) | AD179: 1 | AE179: 1 | AF179: 1 | AG179: 1 | AH179: 1 | AI179: 1 | AJ179: 1 | AK179: 1 | AL179: 1 | AM179: 1 | AN179: 1 | AO179: 1 | AP179: 1 | AQ179: 1 | AR179: 1 | AS179: 1 | AT179: 1 | AU179: 1 | AV179: 1 | AW179: 1 | AX179: 1 | AY179: 1 | AZ179: 1 | BA179: 1 | BB179: 1 | BC179: 1 | BD179: 1 | BF179: 1 | BH179: FALSE | BI179: FALSE | BJ179: FALSE | BK179: FALSE | BL179: FALSE | BM179: FALSE | BP179: =ROW() -> 179 | DT179: 25 | DU179: Silverline TT (TempTrack) | DV179: In/Out door | DW179: In/Out door | DX179: In/Out door | EA179: 179 | EB179: 0 | EC179: 0 | ED179: 179 | EE179: 179 | EG179: Silverline TT (TempTrack) | EH179: 0 | EI179: 0 | EJ179: 0 | EK179: 0 | EL179: 0 | EM179: 0 | EN179: 0 | EO179: 0 | EP179: 1 | EQ179: 0 | ER179: 0 | ES179: 0 | ET179: Silverline TT (TempTrack)
A180: Silverline TT (Extra Flex) | B180: 0.49656 | C180: 0.0007989 | D180: N/A | E180: =((B180*SQRT($E$3*1000)+C180*$E$3*1000))/30480*Length*(1+'Cable Parameters'!I180/100*('Cable Parameters'!$E$1-25))+('Insertion Loss'!$F$16+'Insertion Loss'!$F$17)*SQRT($E$3) -> 0 | F180: 18 | G180: 85 | H180: -55 | I180: 0.2 | J180: https://www.eimfirst.co.il/wp-content/uploads/2018/07/silverline-product-brochure-r.pdf | K180: 3.8 | L180: 175 | M180: Silverline TT (Extra Flex) | O180: 180 | P180: 180 | Q180: 180 | R180: 180 | S180: 180 | T180: 180 | U180: Silverline TT (Extra Flex) | V180: 18 | W180: 3.8 | X180: 0 | Y180: N/A | Z180: In/Out door | AA180: 19 | AC180: Silverline TT (Extra Flex) | AD180: 1 | AE180: 1 | AF180: 1 | AG180: 1 | AH180: 1 | AI180: 1 | AJ180: 1 | AK180: 1 | AL180: 1 | AM180: 1 | AN180: 1 | AO180: 1 | AP180: 1 | AQ180: 1 | AR180: 1 | AS180: 1 | AT180: 1 | AU180: 1 | AV180: 1 | AW180: 1 | AX180: 1 | AY180: 1 | AZ180: 1 | BA180: 1 | BB180: 1 | BC180: 1 | BD180: 1 | BF180: 1 | BH180: FALSE | BI180: FALSE | BJ180: FALSE | BK180: FALSE | BL180: FALSE | BM180: FALSE | BP180: =ROW() -> 180 | DT180: 19 | DU180: Silverline TT (Extra Flex) | DV180: In/Out door | DW180: In/Out door | DX180: In/Out door | EA180: 180 | EB180: 0 | EC180: 0 | ED180: 180 | EE180: 180 | EG180: Silverline TT (Extra Flex) | EH180: 0 | EI180: 0 | EJ180: 0 | EK180: 0 | EL180: 0 | EM180: 0 | EN180: 0 | EO180: 0 | EP180: 1 | EQ180: 0 | ER180: 0 | ES180: 0 | ET180: Silverline TT (Extra Flex)
A181: Silverline 75 (75 Ohm) | B181: 0.3489024 | C181: 0.0011966 | D181: N/A | E181: =((B181*SQRT($E$3*1000)+C181*$E$3*1000))/30480*Length*(1+'Cable Parameters'!I181/100*('Cable Parameters'!$E$1-25))+('Insertion Loss'!$F$16+'Insertion Loss'!$F$17)*SQRT($E$3) -> 0 | F181: 3 | G181: 125 | H181: -55 | I181: 0.2 | J181: https://www.eimfirst.co.il/wp-content/uploads/2018/07/silverline-product-brochure-r.pdf | K181: 4.95 | L181: 176 | M181: Silverline 75 (75 Ohm) | O181: 181 | P181: 181 | Q181: 181 | R181: 181 | S181: 181 | T181: 181 | U181: Silverline 75 (75 Ohm) | V181: 3 | W181: 4.95 | X181: 0 | Y181: N/A | Z181: In/Out door | AA181: 25 | AC181: Silverline 75 (75 Ohm) | AD181: 1 | AE181: 1 | AF181: 1 | AG181: 1 | AH181: 1 | AI181: 1 | AJ181: 1 | AK181: 1 | AL181: 1 | AM181: 1 | AN181: 1 | AO181: 1 | AP181: 1 | AQ181: 1 | AR181: 1 | AS181: 1 | AT181: 1 | AU181: 1 | AV181: 1 | AW181: 1 | AX181: 1 | AY181: 1 | AZ181: 1 | BA181: 1 | BB181: 1 | BC181: 1 | BD181: 1 | BF181: 1 | BH181: FALSE | BI181: FALSE | BJ181: FALSE | BK181: FALSE | BL181: FALSE | BM181: FALSE | BP181: =ROW() -> 181 | DT181: 25 | DU181: Silverline 75 (75 Ohm) | DV181: In/Out door | DW181: In/Out door | DX181: In/Out door | EA181: 181 | EB181: 0 | EC181: 0 | ED181: 181 | EE181: 181 | EG181: Silverline 75 (75 Ohm) | EH181: 0 | EI181: 0 | EJ181: 0 | EK181: 0 | EL181: 0 | EM181: 0 | EN181: 0 | EO181: 0 | EP181: 1 | EQ181: 0 | ER181: 0 | ES181: 0 | ET181: Silverline 75 (75 Ohm)
A182: Silverline VNA | B182: 0.3361783 | C182: 0.0003691 | D182: N/A | E182: =((B182*SQRT($E$3*1000)+C182*$E$3*1000))/30480*Length*(1+'Cable Parameters'!I182/100*('Cable Parameters'!$E$1-25))+('Insertion Loss'!$F$16+'Insertion Loss'!$F$17)*SQRT($E$3) -> 0 | F182: 40 | G182: 25 | H182: 25 | I182: 0.2 | J182: https://www.eimfirst.co.il/wp-content/uploads/2018/07/silverline-product-brochure-r.pdf | K182: 10.8 | L182: 177 | M182: Silverline VNA | O182: 182 | P182: 182 | Q182: 182 | R182: 182 | S182: 182 | T182: 182 | U182: Silverline VNA | V182: 40 | W182: 10.8 | X182: 0 | Y182: N/A | Z182: Indoor Only | AA182: 63.5 | AC182: Silverline VNA | AD182: 1 | AE182: 1 | AF182: 1 | AG182: 1 | AH182: 1 | AI182: 1 | AJ182: 1 | AK182: 1 | AL182: 1 | AM182: 1 | AN182: 1 | AO182: 1 | AP182: 1 | AQ182: 1 | AR182: 1 | AS182: 1 | AT182: 1 | AU182: 1 | AV182: 1 | AW182: 1 | AX182: 1 | AY182: 1 | AZ182: 1 | BA182: 1 | BB182: 1 | BC182: 1 | BD182: 1 | BF182: 1 | BH182: FALSE | BI182: FALSE | BJ182: FALSE | BK182: FALSE | BL182: FALSE | BM182: FALSE | BP182: =ROW() -> 182 | DT182: 63.5 | DU182: Silverline VNA | DV182: Indoor Only | DX182: Indoor Only | EA182: 182 | EB182: 0 | EC182: 0 | ED182: 182 | EE182: 182 | EG182: Silverline VNA | EH182: 0 | EI182: 0 | EJ182: 0 | EK182: 0 | EL182: 0 | EM182: 0 | EN182: 0 | EO182: 0 | EP182: 1 | EQ182: 0 | ER182: 0 | ES182: 0 | ET182: Silverline VNA
A183: Clarity™ Series | B183: 0.319264 | C183: 0.0004537 | D183: N/A | E183: =((B183*SQRT($E$3*1000)+C183*$E$3*1000))/30480*Length*(1+'Cable Parameters'!I183/100*('Cable Parameters'!$E$1-25))+('Insertion Loss'!$F$16+'Insertion Loss'!$F$17)*SQRT($E$3) -> 0 | F183: 40 | G183: 25 | H183: 25 | I183: 0.2 | J183: https://www.eimfirst.co.il/wp-content/uploads/2019/01/Clarity-Series-test-cables-R.pdf | K183: 5.5 | L183: 178 | M183: Clarity™ Series | O183: 183 | P183: 183 | Q183: 183 | R183: 183 | S183: 183 | T183: 183 | U183: Clarity™ Series | V183: 40 | W183: 5.5 | X183: 0 | Y183: N/A | Z183: Indoor Only | AA183: 50 | AC183: Clarity™ Series | AD183: 1 | AE183: 1 | AF183: 1 | AG183: 1 | AH183: 1 | AI183: 1 | AJ183: 1 | AK183: 1 | AL183: 1 | AM183: 1 | AN183: 1 | AO183: 1 | AP183: 1 | AQ183: 1 | AR183: 1 | AS183: 1 | AT183: 1 | AU183: 1 | AV183: 1 | AW183: 1 | AX183: 1 | AY183: 1 | AZ183: 1 | BA183: 1 | BB183: 1 | BC183: 1 | BD183: 1 | BF183: 1 | BH183: FALSE | BI183: FALSE | BJ183: FALSE | BK183: FALSE | BL183: FALSE | BM183: FALSE | BP183: =ROW() -> 183 | DT183: 50 | DU183: Clarity™ Series | DV183: Indoor Only | DX183: Indoor Only | EA183: 183 | EB183: =IF($EA183="","",IF(ISERROR(INDEX(A:EE,EA183,5)),EA183,INDEX(A:EE,EA183,5))) -> 0 | EC183: 0 | ED183: =EA183 -> 183 | EE183: =IF($P$2="",EA183,VLOOKUP(EC183,$EB:$EE,3,FALSE)) -> 183 | EG183: Clarity™ Series | EH183: 0 | EI183: 0 | EJ183: 0 | EK183: 0 | EL183: 0 | EM183: 0 | EN183: 0 | EO183: 0 | EP183: 1 | EQ183: 0 | ER183: 0 | ES183: 0 | ET183: Clarity™ Series
A184: LMR100A | B184: 0.70914 | C184: 0.00174 | D184: N/A | E184: =((B184*SQRT($E$3*1000)+C184*$E$3*1000))/30480*Length*(1+'Cable Parameters'!I184/100*('Cable Parameters'!$E$1-25))+('Insertion Loss'!$F$16+'Insertion Loss'!$F$17)*SQRT($E$3) -> 0 | F184: 8 | G184: 85 | H184: -40 | I184: 0.2 | J184: https://www.eimfirst.co.il/wp-content/uploads/2019/02/LMR-100A.pdf | K184: 2.79 | L184: 179 | M184: LMR100A | O184: 184 | P184: 184 | Q184: 184 | R184: 184 | S184: 184 | T184: 184 | U184: LMR100A | V184: 8 | W184: 2.79 | X184: 0 | Y184: N/A | Z184: In/Out door | AA184: 6.4 | AC184: LMR100A | AD184: 1 | AE184: 1 | AF184: 1 | AG184: 1 | AH184: 1 | AI184: 1 | AJ184: 1 | AK184: 1 | AL184: 1 | AM184: 1 | AN184: 1 | AO184: 1 | AP184: 1 | AQ184: 1 | AR184: 1 | AS184: 1 | AT184: 1 | AU184: 1 | AV184: 1 | AW184: 1 | AX184: 1 | AY184: 1 | AZ184: 1 | BA184: 1 | BB184: 1 | BC184: 1 | BD184: 1 | BF184: 1 | BH184: FALSE | BI184: FALSE | BJ184: FALSE | BK184: FALSE | BL184: FALSE | BM184: FALSE | BP184: =ROW() -> 184 | DT184: 6.4 | DU184: LMR100A | DV184: In/Out door | DW184: In/Out door | DX184: In/Out door | EA184: 184 | EB184: =IF($EA184="","",IF(ISERROR(INDEX(A:EE,EA184,5)),EA184,INDEX(A:EE,EA184,5))) -> 0 | EC184: 0 | ED184: =EA184 -> 184 | EE184: =IF($P$2="",EA184,VLOOKUP(EC184,$EB:$EE,3,FALSE)) -> 184 | EG184: LMR100A | EH184: 0 | EI184: 0 | EJ184: 0 | EK184: 0 | EL184: 1 | EM184: 1 | EN184: 1 | EO184: 0 | EP184: 0 | EQ184: 0 | ER184: 1 | ES184: 1 | ET184: LMR100A
A185: LMR195 | B185: 0.356859 | C185: 0.00047 | D185: N/A | E185: =((B185*SQRT($E$3*1000)+C185*$E$3*1000))/30480*Length*(1+'Cable Parameters'!I185/100*('Cable Parameters'!$E$1-25))+('Insertion Loss'!$F$16+'Insertion Loss'!$F$17)*SQRT($E$3) -> 0 | F185: 8 | G185: 85 | H185: -40 | I185: 0.2 | J185: https://www.eimfirst.co.il/wp-content/uploads/2019/02/LMR-195.pdf | K185: 4.95 | L185: 180 | M185: LMR195 | O185: 185 | P185: 185 | Q185: 185 | R185: =IF(Q185="","",IF($R$2="",Q185,IF(OR(INDEX(A:WQ,ROW(),4)=$R$2,INDEX(A:WQ,ROW(),4)>$R$2),ROW(),""))) -> 185 | S185: =IF(R185="","",IF($S$2="",R185,IF(OR(INDEX(A:N,ROW(),11)>$S$2+1,INDEX(A:N,ROW(),11)<$S$2-1),"",ROW()))) -> 185 | T185: =EE185 -> 185 | U185: =IF(T185="","",INDEX(A:M,T185,1)) -> LMR195 | V185: =IF(T185="","",INDEX(A:N,T185,6)) -> 8 | W185: =IF(T185="","",INDEX(A:O,T185,11)) -> 4.95 | X185: =IF(T185="","",INDEX(A:P,T185,5)) -> 0 | Y185: =IF(T185="","",INDEX(A:R,T185,4)) -> N/A | Z185: =IF(ISERROR(IF($Q$2="",INDEX(A:WQ,T185,128),IF($Q$2=1,INDEX(A:WQ,T185,126),INDEX(A:WQ,T185,127)))),"",IF($Q$2="",INDEX(A:WQ,T185,128),IF($Q$2=1,INDEX(A:WQ,T185,126),INDEX(A:WQ,T185,127)))) -> In/Out door | AA185: =IF(T185="","",INDEX(A:WQ,T185,124)) -> 12.7 | AC185: LMR195 | AD185: 1 | AE185: 1 | AF185: 1 | AG185: 1 | AH185: 1 | AI185: 1 | AJ185: 1 | AK185: 1 | AL185: 1 | AM185: 1 | AN185: 1 | AO185: 1 | AP185: 1 | AQ185: 1 | AR185: 1 | AS185: 1 | AT185: 1 | AU185: 1 | AV185: 1 | AW185: 1 | AX185: 1 | AY185: 1 | AZ185: 1 | BA185: 1 | BB185: 1 | BC185: 1 | BD185: 1 | BF185: 1 | BH185: FALSE | BI185: FALSE | BJ185: FALSE | BK185: FALSE | BL185: FALSE | BM185: FALSE | BP185: =ROW() -> 185 | DT185: 12.7 | DU185: LMR195 | DV185: In/Out door | DW185: In/Out door | DX185: In/Out door | EA185: 185 | EB185: 0 | EC185: 0 | ED185: 185 | EE185: 185 | EG185: LMR195 | EH185: 0 | EI185: 0 | EJ185: 0 | EK185: 0 | EL185: 1 | EM185: 1 | EN185: 1 | EO185: 0 | EP185: 0 | EQ185: 0 | ER185: 1 | ES185: 1 | ET185: LMR195
A186: LMR 200 | B186: 0.3209 | C186: 0.00033 | D186: N/A | E186: =((B186*SQRT($E$3*1000)+C186*$E$3*1000))/30480*Length*(1+'Cable Parameters'!I186/100*('Cable Parameters'!$E$1-25))+('Insertion Loss'!$F$16+'Insertion Loss'!$F$17)*SQRT($E$3) -> 0 | F186: 8 | G186: 85 | H186: -40 | I186: 0.2 | J186: https://www.eimfirst.co.il/wp-content/uploads/2019/02/LMR-200.pdf | K186: 4.95 | L186: 181 | M186: LMR 200 | O186: 186 | P186: 186 | Q186: 186 | R186: 186 | S186: 186 | T186: 186 | U186: LMR 200 | V186: 8 | W186: 4.95 | X186: 0 | Y186: N/A | Z186: In/Out door | AA186: 12.7 | AC186: LMR 200 | AD186: 1 | AE186: 1 | AF186: 1 | AG186: 1 | AH186: 1 | AI186: 1 | AJ186: 1 | AK186: 1 | AL186: 1 | AM186: 1 | AN186: 1 | AO186: 1 | AP186: 1 | AQ186: 1 | AR186: 1 | AS186: 1 | AT186: 1 | AU186: 1 | AV186: 1 | AW186: 1 | AX186: 1 | AY186: 1 | AZ186: 1 | BA186: 1 | BB186: 1 | BC186: 1 | BD186: 1 | BF186: 1 | BH186: FALSE | BI186: FALSE | BJ186: FALSE | BK186: FALSE | BL186: FALSE | BM186: FALSE | BP186: =ROW() -> 186 | DT186: 12.7 | DU186: LMR 200 | DV186: In/Out door | DW186: In/Out door | DX186: In/Out door | EA186: 186 | EB186: 0 | EC186: 0 | ED186: 186 | EE186: 186 | EG186: LMR 200 | EH186: 0 | EI186: 0 | EJ186: 0 | EK186: 0 | EL186: 1 | EM186: 1 | EN186: 1 | EO186: 0 | EP186: 0 | EQ186: 0 | ER186: 1 | ES186: 1 | ET186: LMR 200
A187: LMR 240 | B187: 0.24208 | C187: 0.00033 | D187: N/A | E187: =((B187*SQRT($E$3*1000)+C187*$E$3*1000))/30480*Length*(1+'Cable Parameters'!I187/100*('Cable Parameters'!$E$1-25))+('Insertion Loss'!$F$16+'Insertion Loss'!$F$17)*SQRT($E$3) -> 0 | F187: 8 | G187: 85 | H187: -40 | I187: 0.2 | J187: https://www.eimfirst.co.il/wp-content/uploads/2019/02/LMR-240.pdf | K187: 6.1 | L187: 182 | M187: LMR 240 | O187: 187 | P187: 187 | Q187: 187 | R187: 187 | S187: 187 | T187: 187 | U187: LMR 240 | V187: 8 | W187: 6.1 | X187: 0 | Y187: N/A | Z187: In/Out door | AA187: 19.1 | AC187: LMR 240 | AD187: 1 | AE187: 1 | AF187: 1 | AG187: 1 | AH187: 1 | AI187: 1 | AJ187: 1 | AK187: 1 | AL187: 1 | AM187: 1 | AN187: 1 | AO187: 1 | AP187: 1 | AQ187: 1 | AR187: 1 | AS187: 1 | AT187: 1 | AU187: 1 | AV187: 1 | AW187: 1 | AX187: 1 | AY187: 1 | AZ187: 1 | BA187: 1 | BB187: 1 | BC187: 1 | BD187: 1 | BF187: 1 | BH187: FALSE | BI187: FALSE | BJ187: FALSE | BK187: FALSE | BL187: FALSE | BM187: FALSE | BP187: =ROW() -> 187 | DT187: 19.1 | DU187: LMR 240 | DV187: In/Out door | DW187: In/Out door | DX187: In/Out door | EA187: 187 | EB187: 0 | EC187: 0 | ED187: 187 | EE187: 187 | EG187: LMR 240 | EH187: 0 | EI187: 0 | EJ187: 0 | EK187: 0 | EL187: 1 | EM187: 1 | EN187: 1 | EO187: 0 | EP187: 0 | EQ187: 0 | ER187: 1 | ES187: 1 | ET187: LMR 240
A188: LMR 300 | B188: 0.19193 | C188: 0.00033 | D188: N/A | E188: =((B188*SQRT($E$3*1000)+C188*$E$3*1000))/30480*Length*(1+'Cable Parameters'!I188/100*('Cable Parameters'!$E$1-25))+('Insertion Loss'!$F$16+'Insertion Loss'!$F$17)*SQRT($E$3) -> 0 | F188: 8 | G188: 85 | H188: -40 | I188: 0.2 | J188: https://www.eimfirst.co.il/wp-content/uploads/2019/02/LMR-300.pdf | K188: 7.62 | L188: 183 | M188: LMR 300 | O188: 188 | P188: 188 | Q188: 188 | R188: 188 | S188: 188 | T188: 188 | U188: LMR 300 | V188: 8 | W188: 7.62 | X188: 0 | Y188: N/A | Z188: In/Out door | AA188: 22.2 | AC188: LMR 300 | AD188: 1 | AE188: 1 | AF188: 1 | AG188: 1 | AH188: 1 | AI188: 1 | AJ188: 1 | AK188: 1 | AL188: 1 | AM188: 1 | AN188: 1 | AO188: 1 | AP188: 1 | AQ188: 1 | AR188: 1 | AS188: 1 | AT188: 1 | AU188: 1 | AV188: 1 | AW188: 1 | AX188: 1 | AY188: 1 | AZ188: 1 | BA188: 1 | BB188: 1 | BC188: 1 | BD188: 1 | BF188: 1 | BH188: FALSE | BI188: FALSE | BJ188: FALSE | BK188: FALSE | BL188: FALSE | BM188: FALSE | BP188: =ROW() -> 188 | DT188: 22.2 | DU188: LMR 300 | DV188: In/Out door | DW188: In/Out door | DX188: In/Out door | EA188: 188 | EB188: 0 | EC188: 0 | ED188: 188 | EE188: 188 | EG188: LMR 300 | EH188: 0 | EI188: 0 | EJ188: 0 | EK188: 0 | EL188: 1 | EM188: 1 | EN188: 1 | EO188: 0 | EP188: 0 | EQ188: 0 | ER188: 1 | ES188: 1 | ET188: LMR 300
A189: M17/113-RG316 | B189: 0.787 | C189: 0.0012 | D189: N/A | E189: =((B189*SQRT($E$3*1000)+C189*$E$3*1000))/30480*Length*(1+'Cable Parameters'!I189/100*('Cable Parameters'!$E$1-25))+('Insertion Loss'!$F$16+'Insertion Loss'!$F$17)*SQRT($E$3) -> 0 | F189: 3 | G189: 200 | H189: -55 | I189: 0.2 | J189: https://www.eimfirst.co.il/wp-content/uploads/2019/02/MIL-C-17-RG-CABLES.pdf | K189: 2.49 | L189: 184 | M189: M17/113-RG316 | O189: 189 | P189: 189 | Q189: 189 | R189: 189 | S189: 189 | T189: 189 | U189: M17/113-RG316 | V189: 3 | W189: 2.49 | X189: 0 | Y189: N/A | Z189: Indoor Only | AA189: 12.45 | AC189: M17/113-RG316 | AD189: 1 | AE189: 1 | AF189: 1 | AG189: 1 | AH189: 1 | AI189: 1 | AJ189: 1 | AK189: 1 | AL189: 1 | AM189: 1 | AN189: 1 | AO189: 1 | AP189: 1 | AQ189: 1 | AR189: 1 | AS189: 1 | AT189: 1 | AU189: 1 | AV189: 1 | AW189: 1 | AX189: 1 | AY189: 1 | AZ189: 1 | BA189: 1 | BB189: 1 | BC189: 1 | BD189: 1 | BF189: 1 | BH189: FALSE | BI189: FALSE | BJ189: FALSE | BK189: FALSE | BL189: FALSE | BM189: FALSE | BP189: =ROW() -> 189 | DT189: 12.45 | DU189: M17/113-RG316 | DV189: Indoor Only | DX189: Indoor Only | EA189: 189 | EB189: 0 | EC189: 0 | ED189: 189 | EE189: 189 | EG189: M17/113-RG316 | EH189: 1 | EI189: 0 | EJ189: 1 | EK189: 0 | EL189: 1 | EM189: 0 | EN189: 0 | EO189: 0 | EP189: 0 | EQ189: 1 | ER189: 1 | ES189: 1 | ET189: M17/113-RG316
A190: M17/119-RG174 | B190: 0.826 | C190: 0.00126 | D190: N/A | E190: =((B190*SQRT($E$3*1000)+C190*$E$3*1000))/30480*Length*(1+'Cable Parameters'!I190/100*('Cable Parameters'!$E$1-25))+('Insertion Loss'!$F$16+'Insertion Loss'!$F$17)*SQRT($E$3) -> 0 | F190: 1 | G190: 85 | H190: -40 | I190: 0.2 | J190: https://www.eimfirst.co.il/wp-content/uploads/2019/02/MIL-C-17-RG-CABLES.pdf | K190: 2.79 | L190: 185 | M190: M17/119-RG174 | O190: 190 | P190: 190 | Q190: 190 | R190: 190 | S190: 190 | T190: 190 | U190: M17/119-RG174 | V190: 1 | W190: 2.79 | X190: 0 | Y190: N/A | Z190: Indoor Only | AA190: 13.95 | AC190: M17/119-RG174 | AD190: 1 | AE190: 1 | AF190: 1 | AG190: 1 | AH190: 1 | AI190: 1 | AJ190: 1 | AK190: 1 | AL190: 1 | AM190: 1 | AN190: 1 | AO190: 1 | AP190: 1 | AQ190: 1 | AR190: 1 | AS190: 1 | AT190: 1 | AU190: 1 | AV190: 1 | AW190: 1 | AX190: 1 | AY190: 1 | AZ190: 1 | BA190: 1 | BB190: 1 | BC190: 1 | BD190: 1 | BF190: 1 | BH190: FALSE | BI190: FALSE | BJ190: FALSE | BK190: FALSE | BL190: FALSE | BM190: FALSE | BP190: =ROW() -> 190 | DT190: 13.95 | DU190: M17/119-RG174 | DV190: Indoor Only | DX190: Indoor Only | EA190: 190 | EB190: 0 | EC190: 0 | ED190: 190 | EE190: 190 | EG190: M17/119-RG174 | EH190: 1 | EI190: 0 | EJ190: 1 | EK190: 0 | EL190: 1 | EM190: 0 | EN190: 0 | EO190: 0 | EP190: 0 | EQ190: 1 | ER190: 1 | ES190: 1 | ET190: M17/119-RG174
A191: M17/84-RG223 | B191: 0.384 | C191: 0.00126 | D191: N/A | E191: =((B191*SQRT($E$3*1000)+C191*$E$3*1000))/30480*Length*(1+'Cable Parameters'!I191/100*('Cable Parameters'!$E$1-25))+('Insertion Loss'!$F$16+'Insertion Loss'!$F$17)*SQRT($E$3) -> 0 | F191: 12.4 | G191: 85 | H191: -40 | I191: 0.2 | J191: https://www.eimfirst.co.il/wp-content/uploads/2019/02/MIL-C-17-RG-CABLES.pdf | K191: 5.38 | L191: 186 | M191: M17/84-RG223 | O191: 191 | P191: 191 | Q191: 191 | R191: 191 | S191: 191 | T191: 191 | U191: M17/84-RG223 | V191: 12.4 | W191: 5.38 | X191: 0 | Y191: N/A | Z191: Indoor Only | AA191: 26.9 | AC191: M17/84-RG223 | AD191: 1 | AE191: 1 | AF191: 1 | AG191: 1 | AH191: 1 | AI191: 1 | AJ191: 1 | AK191: 1 | AL191: 1 | AM191: 1 | AN191: 1 | AO191: 1 | AP191: 1 | AQ191: 1 | AR191: 1 | AS191: 1 | AT191: 1 | AU191: 1 | AV191: 1 | AW191: 1 | AX191: 1 | AY191: 1 | AZ191: 1 | BA191: 1 | BB191: 1 | BC191: 1 | BD191: 1 | BF191: 1 | BH191: FALSE | BI191: FALSE | BJ191: FALSE | BK191: FALSE | BL191: FALSE | BM191: FALSE | BP191: =ROW() -> 191 | DT191: 26.9 | DU191: M17/84-RG223 | DV191: Indoor Only | DX191: Indoor Only | EA191: 191 | EB191: 0 | EC191: 0 | ED191: 191 | EE191: 191 | EG191: M17/84-RG223 | EH191: 1 | EI191: 0 | EJ191: 1 | EK191: 0 | EL191: 1 | EM191: 0 | EN191: 0 | EO191: 0 | EP191: 0 | EQ191: 1 | ER191: 1 | ES191: 1 | ET191: M17/84-RG223
D192: N/A | E192: =((B192*SQRT($E$3*1000)+C192*$E$3*1000))/30480*Length*(1+'Cable Parameters'!I192/100*('Cable Parameters'!$E$1-25))+('Insertion Loss'!$F$16+'Insertion Loss'!$F$17)*SQRT($E$3) -> 0 | L192: 187 | M192: 0 | O192: 192 | P192: 192 | Q192: 192 | R192: 192 | S192: 192 | T192: 192 | U192: 0 | V192: 0 | W192: 0 | X192: 0 | Y192: N/A | Z192: ? | AA192: 0 | AC192: =A159 -> M17/28-RG 58 | AD192: 1 | AE192: 1 | AF192: 1 | AG192: 1 | AH192: 1 | AI192: 1 | AJ192: 1 | AK192: 1 | AL192: 1 | AM192: 1 | AN192: 1 | AO192: 1 | AP192: 1 | AQ192: 1 | AR192: 1 | AS192: 1 | AT192: 1 | AU192: 1 | AV192: 1 | AW192: 1 | AX192: 1 | AY192: 1 | AZ192: 1 | BA192: 1 | BB192: 1 | BC192: 1 | BD192: 1 | BF192: 1 | BH192: FALSE | BI192: FALSE | BJ192: FALSE | BK192: FALSE | BL192: FALSE | BM192: FALSE | BP192: =ROW() -> 192 | DU192: 0 | DV192: ? | DW192: ? | DX192: ? | EA192: 192 | EB192: 0 | EC192: 0 | ED192: 192 | EE192: 192 | EG192: 0 | ET192: 0
D193: N/A | E193: =((B193*SQRT($E$3*1000)+C193*$E$3*1000))/30480*Length*(1+'Cable Parameters'!I193/100*('Cable Parameters'!$E$1-25))+('Insertion Loss'!$F$16+'Insertion Loss'!$F$17)*SQRT($E$3) -> 0 | L193: 188 | M193: 0 | O193: 193 | P193: 193 | Q193: 193 | R193: 193 | S193: 193 | T193: 193 | U193: 0 | V193: 0 | W193: 0 | X193: 0 | Y193: N/A | Z193: ? | AA193: ? | AC193: 0 | AD193: 1 | AE193: 1 | AF193: 1 | AG193: 1 | AH193: 1 | AI193: 1 | AJ193: 1 | AK193: 1 | AL193: 1 | AM193: 1 | AN193: 1 | AO193: 1 | AP193: 1 | AQ193: 1 | AR193: 1 | AS193: 1 | AT193: 1 | AU193: 1 | AV193: 1 | AW193: 1 | AX193: 1 | AY193: 1 | AZ193: 1 | BA193: 1 | BB193: 1 | BC193: 1 | BD193: 1 | BF193: 1 | BH193: FALSE | BI193: FALSE | BJ193: FALSE | BK193: FALSE | BL193: FALSE | BM193: FALSE | BP193: =ROW() -> 193 | DT193: ? | DU193: 0 | DV193: ? | DW193: ? | DX193: ? | EA193: 193 | EB193: 0 | EC193: 0 | ED193: 193 | EE193: 193 | EG193: 0 | ET193: 0
D194: N/A | E194: =((B194*SQRT($E$3*1000)+C194*$E$3*1000))/30480*Length*(1+'Cable Parameters'!I194/100*('Cable Parameters'!$E$1-25))+('Insertion Loss'!$F$16+'Insertion Loss'!$F$17)*SQRT($E$3) -> 0 | L194: 189 | M194: 0 | O194: 194 | P194: 194 | Q194: 194 | R194: 194 | S194: 194 | T194: 194 | U194: 0 | V194: 0 | W194: 0 | X194: 0 | Y194: N/A | Z194: ? | AA194: ? | AC194: 0 | AD194: 1 | AE194: 1 | AF194: 1 | AG194: 1 | AH194: 1 | AI194: 1 | AJ194: 1 | AK194: 1 | AL194: 1 | AM194: 1 | AN194: 1 | AO194: 1 | AP194: 1 | AQ194: 1 | AR194: 1 | AS194: 1 | AT194: 1 | AU194: 1 | AV194: 1 | AW194: 1 | AX194: 1 | AY194: 1 | AZ194: 1 | BA194: 1 | BB194: 1 | BC194: 1 | BD194: 1 | BF194: 1 | BH194: FALSE | BI194: FALSE | BJ194: FALSE | BK194: FALSE | BL194: FALSE | BM194: FALSE | BP194: =ROW() -> 194 | DT194: ? | DU194: 0 | DV194: ? | DW194: ? | DX194: ? | EA194: 194 | EB194: 0 | EC194: 0 | ED194: 194 | EE194: 194 | EG194: 0 | ET194: 0
D195: N/A | E195: =((B195*SQRT($E$3*1000)+C195*$E$3*1000))/30480*Length*(1+'Cable Parameters'!I195/100*('Cable Parameters'!$E$1-25))+('Insertion Loss'!$F$16+'Insertion Loss'!$F$17)*SQRT($E$3) -> 0 | L195: 190 | M195: 0 | O195: 195 | P195: 195 | Q195: 195 | R195: 195 | S195: 195 | T195: 195 | U195: 0 | V195: 0 | W195: 0 | X195: 0 | Y195: N/A | Z195: ? | AA195: ? | AC195: 0 | AD195: 1 | AE195: 1 | AF195: 1 | AG195: 1 | AH195: 1 | AI195: 1 | AJ195: 1 | AK195: 1 | AL195: 1 | AM195: 1 | AN195: 1 | AO195: 1 | AP195: 1 | AQ195: 1 | AR195: 1 | AS195: 1 | AT195: 1 | AU195: 1 | AV195: 1 | AW195: 1 | AX195: 1 | AY195: 1 | AZ195: 1 | BA195: 1 | BB195: 1 | BC195: 1 | BD195: 1 | BF195: 1 | BH195: FALSE | BI195: FALSE | BJ195: FALSE | BK195: FALSE | BL195: FALSE | BM195: FALSE | BP195: =ROW() -> 195 | DT195: ? | DU195: 0 | DV195: ? | DW195: ? | DX195: ? | EA195: 195 | EB195: 0 | EC195: 0 | ED195: 195 | EE195: 195 | EG195: 0 | ET195: 0
D196: N/A | E196: =((B196*SQRT($E$3*1000)+C196*$E$3*1000))/30480*Length*(1+'Cable Parameters'!I196/100*('Cable Parameters'!$E$1-25))+('Insertion Loss'!$F$16+'Insertion Loss'!$F$17)*SQRT($E$3) -> 0 | L196: 191 | M196: 0 | O196: 196 | P196: =IF(O196="","",IF($P$2="",O196,IF(OR(INDEX(A:M,ROW(),6)=$P$2,INDEX(A:M,ROW(),6)>$P$2),ROW(),""))) -> 196 | Q196: =IF(P196="","",IF($Q$2="",P196,IF(INDEX(DV:DW,ROW(),$Q$2)="","",ROW()))) -> 196 | R196: 196 | S196: 196 | T196: 196 | U196: 0 | V196: 0 | W196: 0 | X196: 0 | Y196: N/A | Z196: ? | AA196: ? | AC196: 0 | AD196: 1 | AE196: 1 | AF196: 1 | AG196: 1 | AH196: 1 | AI196: 1 | AJ196: 1 | AK196: 1 | AL196: 1 | AM196: 1 | AN196: 1 | AO196: 1 | AP196: 1 | AQ196: 1 | AR196: 1 | AS196: 1 | AT196: 1 | AU196: 1 | AV196: 1 | AW196: 1 | AX196: 1 | AY196: 1 | AZ196: 1 | BA196: 1 | BB196: 1 | BC196: 1 | BD196: 1 | BF196: 2 | BH196: =OR(AND(AD196=0,AE196=0,AF196=0,AG196=0,AH196=0),BF196=0) -> FALSE | BI196: =OR(AND(AI196=0,AJ196=0,AK196=0,AL196=0,AM196=0),BF196=0) -> FALSE | BJ196: =OR(AND(AN196=0,AO196=0,AP196=0,AQ196=0,AR196=0),BF196=0) -> FALSE | BK196: =OR(AND(AS196=0,AT196=0,AU196=0,AV196=0,AW196=0),BF196=0) -> FALSE | BL196: =OR(AND(AX196=0,AY196=0,AZ196=0,BA196=0,BB196=0),BF196=0) -> FALSE | BM196: =OR(AND(BC196=0,BD196=0),BF196=0) -> FALSE | BP196: =ROW() -> 196 | DT196: ? | DU196: 0 | DV196: ? | DW196: ? | DX196: ? | EA196: 196 | EB196: 0 | EC196: 0 | ED196: 196 | EE196: 196 | EG196: 0 | ET196: 0
D197: N/A | E197: =((B197*SQRT($E$3*1000)+C197*$E$3*1000))/30480*Length*(1+'Cable Parameters'!I197/100*('Cable Parameters'!$E$1-25))+('Insertion Loss'!$F$16+'Insertion Loss'!$F$17)*SQRT($E$3) -> 0 | L197: 192 | M197: 0 | O197: 197 | P197: 197 | Q197: 197 | R197: 197 | S197: 197 | T197: 197 | U197: 0 | V197: 0 | W197: 0 | X197: 0 | Y197: N/A | Z197: ? | AA197: ? | AC197: 0 | AD197: 1 | AE197: 1 | AF197: 1 | AG197: 1 | AH197: 1 | AI197: 1 | AJ197: 1 | AK197: 1 | AL197: 1 | AM197: 1 | AN197: 1 | AO197: 1 | AP197: 1 | AQ197: 1 | AR197: 1 | AS197: 1 | AT197: 1 | AU197: 1 | AV197: 1 | AW197: 1 | AX197: 1 | AY197: 1 | AZ197: 1 | BA197: 1 | BB197: 1 | BC197: 1 | BD197: 1 | BF197: 3 | BH197: FALSE | BI197: FALSE | BJ197: FALSE | BK197: FALSE | BL197: FALSE | BM197: FALSE | BP197: =ROW() -> 197 | DT197: ? | DU197: 0 | DV197: ? | DW197: ? | DX197: ? | EA197: 197 | EB197: 0 | EC197: 0 | ED197: 197 | EE197: 197 | EG197: 0 | ET197: 0
D198: N/A | E198: =((B198*SQRT($E$3*1000)+C198*$E$3*1000))/30480*Length*(1+'Cable Parameters'!I198/100*('Cable Parameters'!$E$1-25))+('Insertion Loss'!$F$16+'Insertion Loss'!$F$17)*SQRT($E$3) -> 0 | L198: 193 | M198: 0 | O198: 198 | P198: 198 | Q198: 198 | R198: 198 | S198: 198 | T198: 198 | U198: 0 | V198: 0 | W198: 0 | X198: 0 | Y198: N/A | Z198: ? | AA198: ? | AC198: 0 | AD198: 1 | AE198: 1 | AF198: 1 | AG198: 1 | AH198: 1 | AI198: 1 | AJ198: 1 | AK198: 1 | AL198: 1 | AM198: 1 | AN198: 1 | AO198: 1 | AP198: 1 | AQ198: 1 | AR198: 1 | AS198: 1 | AT198: 1 | AU198: 1 | AV198: 1 | AW198: 1 | AX198: 1 | AY198: 1 | AZ198: 1 | BA198: 1 | BB198: 1 | BC198: 1 | BD198: 1 | BF198: 4 | BH198: FALSE | BI198: FALSE | BJ198: FALSE | BK198: FALSE | BL198: FALSE | BM198: FALSE | BP198: =ROW() -> 198 | DT198: ? | DU198: 0 | DV198: ? | DW198: ? | DX198: ? | EA198: 198 | EB198: 0 | EC198: 0 | ED198: 198 | EE198: 198 | EG198: 0 | ET198: 0
D199: N/A | E199: =((B199*SQRT($E$3*1000)+C199*$E$3*1000))/30480*Length*(1+'Cable Parameters'!I199/100*('Cable Parameters'!$E$1-25))+('Insertion Loss'!$F$16+'Insertion Loss'!$F$17)*SQRT($E$3) -> 0 | L199: 194 | M199: =ET199 -> 0 | O199: =IF(M199="","", IF($M$4=0,ROW(), IF(ISERROR(FIND($N$4,UPPER(A199))),"",ROW()))) -> 199 | P199: 199 | Q199: 199 | R199: 199 | S199: 199 | T199: 199 | U199: 0 | V199: 0 | W199: 0 | X199: 0 | Y199: N/A | Z199: ? | AA199: ? | AC199: =A199 -> 0 | AD199: 1 | AE199: 1 | AF199: 1 | AG199: 1 | AH199: 1 | AI199: 1 | AJ199: 1 | AK199: 1 | AL199: 1 | AM199: 1 | AN199: 1 | AO199: 1 | AP199: 1 | AQ199: 1 | AR199: 1 | AS199: 1 | AT199: 1 | AU199: 1 | AV199: 1 | AW199: 1 | AX199: 1 | AY199: 1 | AZ199: 1 | BA199: 1 | BB199: 1 | BC199: 1 | BD199: 1 | BF199: 5 | BH199: FALSE | BI199: FALSE | BJ199: FALSE | BK199: FALSE | BL199: FALSE | BM199: FALSE | BP199: =ROW() -> 199 | DT199: ? | DU199: 0 | DV199: ? | DW199: ? | DX199: ? | EA199: =IF(ISERROR(SMALL($S$6:$S$250,$L199)),"",SMALL($S$6:$S$250,$L199)) -> 199 | EB199: 0 | EC199: =IF(ISERROR(SMALL($EB$6:$EB$250,$L199)),"",SMALL($EB$6:$EB$250,$L199)) -> 0 | ED199: 199 | EE199: 199 | EG199: =A199 -> 0 | ET199: =IF($ET$3="",INDEX($A:$ES,ROW(),137),IF(INDEX($A:$ES,ROW(),$ET$3)=1,INDEX($A:$ES,ROW(),137),"")) -> 0
D200: N/A | E200: =((B200*SQRT($E$3*1000)+C200*$E$3*1000))/30480*Length*(1+'Cable Parameters'!I200/100*('Cable Parameters'!$E$1-25))+('Insertion Loss'!$F$16+'Insertion Loss'!$F$17)*SQRT($E$3) -> 0 | L200: 195 | M200: 0 | N200: =UPPER(LEFT(M200,$M$4)) ->  | O200: 200 | P200: 200 | Q200: 200 | R200: 200 | S200: 200 | T200: 200 | U200: 0 | V200: 0 | W200: 0 | X200: 0 | Y200: N/A | Z200: ? | AA200: ? | AC200: 0 | AD200: 1 | AE200: 1 | AF200: 1 | AG200: 1 | AH200: 1 | AI200: 1 | AJ200: 1 | AK200: 1 | AL200: 1 | AM200: 1 | AN200: 1 | AO200: 1 | AP200: 1 | AQ200: 1 | AR200: 1 | AS200: 1 | AT200: 1 | AU200: 1 | AV200: 1 | AW200: 1 | AX200: 1 | AY200: 1 | AZ200: 1 | BA200: 1 | BB200: 1 | BC200: 1 | BD200: 1 | BF200: 6 | BH200: FALSE | BI200: FALSE | BJ200: FALSE | BK200: FALSE | BL200: FALSE | BM200: FALSE | BP200: =ROW() -> 200 | DT200: ? | DU200: =A200 -> 0 | DV200: ? | DW200: ? | DX200: ? | EA200: 200 | EB200: 0 | EC200: 0 | ED200: 200 | EE200: 200 | EG200: 0 | ET200: 0
... 20 more rows

Sheet filter
Y1: 1
B2: Select a Cable and Click Here | N2: Number of cables: | S2: Indoor | T2: 0
N3: =COUNTA(G9:G194)-COUNTIF(G9:G194,"") -> 186 | S3: Outdoor | EU3: Outdoor Flexible Installation
B4: Min. Bend Radius | C4: Thick. Max. | D4: In/Out door | E4: CW Power Max. | F4: Insertion Loss | G4: Cable Type | K4: Filter Parameters | N4: =CONCATENATE(N3," / ",N5) -> 186 / 186 | S4: All
N5: =COUNTA('Cable Parameters'!A6:A300) -> 186
C6: =IF(K18="","",K18) ->  | D6: =IF(K12="","",K12) -> All | E6: N/A | F6: ="At :" & K14 & ", " &'Insertion Loss'!D39 -> At :?, 25 °C | G6: =N4 -> 186 / 186 | H6: Number of cables:
B8: mm | C8: mm | F8: ="db" -> db | G8: =K10 ->  | K8: =Length& " mm" -> 1000 mm | L8: Length
B9: ='Cable Parameters'!AA6 -> 9.52 | C9: ='Cable Parameters'!W6 -> 3 | D9: ='Cable Parameters'!Z6 -> Indoor Only | E9: ='Cable Parameters'!Y6 -> N/A | F9: =IF(ISERROR('Cable Parameters'!X6),"",'Cable Parameters'!X6) -> 0 | G9: ='Cable Parameters'!U6 -> EZ_118_TP
B10: ='Cable Parameters'!AA7 -> 6.35 | C10: ='Cable Parameters'!W7 -> 3.5 | D10: ='Cable Parameters'!Z7 -> Indoor Only | E10: ='Cable Parameters'!Y7 -> N/A | F10: =IF(ISERROR('Cable Parameters'!X7),"",'Cable Parameters'!X7) -> 0 | G10: ='Cable Parameters'!U7 -> EZ_141_TP_M17 | K10: =IF('Cable Parameters'!EU3="","", 'Cable Parameters'!EU3) ->  | L10: Application
B11: ='Cable Parameters'!AA8 -> 19.1 | C11: ='Cable Parameters'!W8 -> 6.4 | D11: ='Cable Parameters'!Z8 -> Indoor Only | E11: ='Cable Parameters'!Y8 -> N/A | F11: =IF(ISERROR('Cable Parameters'!X8),"",'Cable Parameters'!X8) -> 0 | G11: ='Cable Parameters'!U8 -> EZ_250_AL_TP
B12: ='Cable Parameters'!AA9 -> 9.25 | C12: ='Cable Parameters'!W9 -> 6.4 | D12: ='Cable Parameters'!Z9 -> Indoor Only | E12: ='Cable Parameters'!Y9 -> N/A | F12: =IF(ISERROR('Cable Parameters'!X9),"",'Cable Parameters'!X9) -> 0 | G12: ='Cable Parameters'!U9 -> EZ_250_TP_M17 | K12: =IF('Cable Parameters'!Q2="","All",IF('Cable Parameters'!Q2=1,"Indoor","Outdoor")) -> All | L12: In/Out door
B13: ='Cable Parameters'!AA10 -> 1.27 | C13: ='Cable Parameters'!W10 -> 1.2 | D13: ='Cable Parameters'!Z10 -> Indoor Only | E13: ='Cable Parameters'!Y10 -> N/A | F13: =IF(ISERROR('Cable Parameters'!X10),"",'Cable Parameters'!X10) -> 0 | G13: ='Cable Parameters'!U10 -> EZ_47_AL_TP
B14: ='Cable Parameters'!AA11 -> 3.18 | C14: ='Cable Parameters'!W11 -> 1.2 | D14: ='Cable Parameters'!Z11 -> Indoor Only | E14: ='Cable Parameters'!Y11 -> N/A | F14: =IF(ISERROR('Cable Parameters'!X11),"",'Cable Parameters'!X11) -> 0 | G14: ='Cable Parameters'!U11 -> EZ_47_TP_M17 | K14: =IF( 'Cable Parameters'!P2="","?", 'Cable Parameters'!P2& " GHz") -> ? | L14: Freq. Max.
B15: ='Cable Parameters'!AA12 -> 1.77 | C15: ='Cable Parameters'!W12 -> 2.2 | D15: ='Cable Parameters'!Z12 -> Indoor Only | E15: ='Cable Parameters'!Y12 -> N/A | F15: =IF(ISERROR('Cable Parameters'!X12),"",'Cable Parameters'!X12) -> 0 | G15: ='Cable Parameters'!U12 -> EZ_86_AL_TP_M17
B16: ='Cable Parameters'!AA13 -> 1.27 | C16: ='Cable Parameters'!W13 -> 2.2 | D16: ='Cable Parameters'!Z13 -> Indoor Only | E16: ='Cable Parameters'!Y13 -> N/A | F16: =IF(ISERROR('Cable Parameters'!X13),"",'Cable Parameters'!X13) -> 0 | G16: ='Cable Parameters'!U13 -> EZ_86_TP_M17 | K16: =IF('Cable Parameters'!R2="","", 'Cable Parameters'!R2) -> N/A | L16: CW Power Max.
B17: ='Cable Parameters'!AA14 -> 3.17 | C17: ='Cable Parameters'!W14 -> 4 | D17: ='Cable Parameters'!Z14 -> Indoor Only | E17: ='Cable Parameters'!Y14 -> N/A | F17: =IF(ISERROR('Cable Parameters'!X14),"",'Cable Parameters'!X14) -> 0 | G17: ='Cable Parameters'!U14 -> EZ141_AL_TP_M17
B18: ='Cable Parameters'!AA15 -> 9.65 | C18: ='Cable Parameters'!W15 -> 2.21 | D18: ='Cable Parameters'!Z15 -> In/Out door | E18: ='Cable Parameters'!Y15 -> N/A | F18: =IF(ISERROR('Cable Parameters'!X15),"",'Cable Parameters'!X15) -> 0 | G18: ='Cable Parameters'!U15 -> HF HeliFoil 090 | K18: =IF('Cable Parameters'!S2="","",'Cable Parameters'!S2 & " " & " ±1 mm") ->  | L18: Thick. Max.
B19: ='Cable Parameters'!AA16 -> 19.05 | C19: ='Cable Parameters'!W16 -> 3.81 | D19: ='Cable Parameters'!Z16 -> In/Out door | E19: ='Cable Parameters'!Y16 -> N/A | F19: =IF(ISERROR('Cable Parameters'!X16),"",'Cable Parameters'!X16) -> 0 | G19: ='Cable Parameters'!U16 -> HF HeliFoil 160
B20: ='Cable Parameters'!AA17 -> 25.4 | C20: ='Cable Parameters'!W17 -> 5 | D20: ='Cable Parameters'!Z17 -> In/Out door | E20: ='Cable Parameters'!Y17 -> N/A | F20: =IF(ISERROR('Cable Parameters'!X17),"",'Cable Parameters'!X17) -> 0 | G20: ='Cable Parameters'!U17 -> HF HeliFoil 190
B21: ='Cable Parameters'!AA18 -> 38.1 | C21: ='Cable Parameters'!W18 -> 7.6 | D21: ='Cable Parameters'!Z18 -> In/Out door | E21: ='Cable Parameters'!Y18 -> N/A | F21: =IF(ISERROR('Cable Parameters'!X18),"",'Cable Parameters'!X18) -> 0 | G21: ='Cable Parameters'!U18 -> HF HeliFoil 290
B22: ='Cable Parameters'!AA19 -> 50.8 | C22: ='Cable Parameters'!W19 -> 9 | D22: ='Cable Parameters'!Z19 -> In/Out door | E22: ='Cable Parameters'!Y19 -> N/A | F22: =IF(ISERROR('Cable Parameters'!X19),"",'Cable Parameters'!X19) -> 0 | G22: ='Cable Parameters'!U19 -> HF HeliFoil 290PUR
B23: ='Cable Parameters'!AA20 -> 279.4 | C23: ='Cable Parameters'!W20 -> 30.48 | D23: ='Cable Parameters'!Z20 -> In/Out door | E23: ='Cable Parameters'!Y20 -> N/A | F23: =IF(ISERROR('Cable Parameters'!X20),"",'Cable Parameters'!X20) -> 0 | G23: ='Cable Parameters'!U20 -> LLSB-1200
B24: ='Cable Parameters'!AA21 -> 101.6 | C24: ='Cable Parameters'!W21 -> 10.2 | D24: ='Cable Parameters'!Z21 -> In/Out door | E24: ='Cable Parameters'!Y21 -> N/A | F24: =IF(ISERROR('Cable Parameters'!X21),"",'Cable Parameters'!X21) -> 0 | G24: ='Cable Parameters'!U21 -> LLSB-400
B25: ='Cable Parameters'!AA22 -> 152.4 | C25: ='Cable Parameters'!W22 -> 15 | D25: ='Cable Parameters'!Z22 -> In/Out door | E25: ='Cable Parameters'!Y22 -> N/A | F25: =IF(ISERROR('Cable Parameters'!X22),"",'Cable Parameters'!X22) -> 0 | G25: ='Cable Parameters'!U22 -> LLSB-600 | K25: Filter By Name
B26: ='Cable Parameters'!AA23 -> 228.6 | C26: ='Cable Parameters'!W23 -> 22.1 | D26: ='Cable Parameters'!Z23 -> In/Out door | E26: ='Cable Parameters'!Y23 -> N/A | F26: =IF(ISERROR('Cable Parameters'!X23),"",'Cable Parameters'!X23) -> 0 | G26: ='Cable Parameters'!U23 -> LLSB-900
B27: ='Cable Parameters'!AA24 -> 101.6 | C27: ='Cable Parameters'!W24 -> 10 | D27: ='Cable Parameters'!Z24 -> In/Out door | E27: ='Cable Parameters'!Y24 -> N/A | F27: =IF(ISERROR('Cable Parameters'!X24),"",'Cable Parameters'!X24) -> 0 | G27: ='Cable Parameters'!U24 -> LMR 400
B28: ='Cable Parameters'!AA25 -> 101.6 | C28: ='Cable Parameters'!W25 -> 10 | D28: ='Cable Parameters'!Z25 -> In/Out door | E28: ='Cable Parameters'!Y25 -> N/A | F28: =IF(ISERROR('Cable Parameters'!X25),"",'Cable Parameters'!X25) -> 0 | G28: ='Cable Parameters'!U25 -> LMR 400 UF
B29: ='Cable Parameters'!AA26 -> 152.4 | C29: ='Cable Parameters'!W26 -> 15 | D29: ='Cable Parameters'!Z26 -> In/Out door | E29: ='Cable Parameters'!Y26 -> N/A | F29: =IF(ISERROR('Cable Parameters'!X26),"",'Cable Parameters'!X26) -> 0 | G29: ='Cable Parameters'!U26 -> LMR 600
B30: ='Cable Parameters'!AA27 -> 152.4 | C30: ='Cable Parameters'!W27 -> 15 | D30: ='Cable Parameters'!Z27 -> In/Out door | E30: ='Cable Parameters'!Y27 -> N/A | F30: =IF(ISERROR('Cable Parameters'!X27),"",'Cable Parameters'!X27) -> 0 | G30: ='Cable Parameters'!U27 -> LMR 600 UF
B31: ='Cable Parameters'!AA28 -> 228.6 | C31: ='Cable Parameters'!W28 -> 22 | D31: ='Cable Parameters'!Z28 -> In/Out door | E31: ='Cable Parameters'!Y28 -> N/A | F31: =IF(ISERROR('Cable Parameters'!X28),"",'Cable Parameters'!X28) -> 0 | G31: ='Cable Parameters'!U28 -> LMR 900
B32: ='Cable Parameters'!AA29 -> 279.4 | C32: ='Cable Parameters'!W29 -> 30 | D32: ='Cable Parameters'!Z29 -> In/Out door | E32: ='Cable Parameters'!Y29 -> N/A | F32: =IF(ISERROR('Cable Parameters'!X29),"",'Cable Parameters'!X29) -> 0 | G32: ='Cable Parameters'!U29 -> LMR 1200
B33: ='Cable Parameters'!AA30 -> 25.4 | C33: ='Cable Parameters'!W30 -> 10.29 | D33: ='Cable Parameters'!Z30 -> In/Out door | E33: ='Cable Parameters'!Y30 -> N/A | F33: =IF(ISERROR('Cable Parameters'!X30),"",'Cable Parameters'!X30) -> 0 | G33: ='Cable Parameters'!U30 -> LMR-400-FR
B34: ='Cable Parameters'!AA31 -> 31.8 | C34: ='Cable Parameters'!W31 -> 12.7 | D34: ='Cable Parameters'!Z31 -> In/Out door | E34: ='Cable Parameters'!Y31 -> N/A | F34: =IF(ISERROR('Cable Parameters'!X31),"",'Cable Parameters'!X31) -> 0 | G34: ='Cable Parameters'!U31 -> LMR-500-FR
B35: ='Cable Parameters'!AA32 -> 38.1 | C35: ='Cable Parameters'!W32 -> 15 | D35: ='Cable Parameters'!Z32 -> In/Out door | E35: ='Cable Parameters'!Y32 -> N/A | F35: =IF(ISERROR('Cable Parameters'!X32),"",'Cable Parameters'!X32) -> 0 | G35: ='Cable Parameters'!U32 -> LMR-600-FR
B36: ='Cable Parameters'!AA33 -> 76.2 | C36: ='Cable Parameters'!W33 -> 22.1 | D36: ='Cable Parameters'!Z33 -> In/Out door | E36: ='Cable Parameters'!Y33 -> N/A | F36: =IF(ISERROR('Cable Parameters'!X33),"",'Cable Parameters'!X33) -> 0 | G36: ='Cable Parameters'!U33 -> LMR-900-FR
B37: ='Cable Parameters'!AA34 -> 165.1 | C37: ='Cable Parameters'!W34 -> 30.48 | D37: ='Cable Parameters'!Z34 -> In/Out door | E37: ='Cable Parameters'!Y34 -> N/A | F37: =IF(ISERROR('Cable Parameters'!X34),"",'Cable Parameters'!X34) -> 0 | G37: ='Cable Parameters'!U34 -> LMR-1200-FR
B38: ='Cable Parameters'!AA35 -> 101.6 | C38: ='Cable Parameters'!W35 -> 10.28 | D38: ='Cable Parameters'!Z35 -> In/Out door | E38: ='Cable Parameters'!Y35 -> N/A | F38: =IF(ISERROR('Cable Parameters'!X35),"",'Cable Parameters'!X35) -> 0 | G38: ='Cable Parameters'!U35 -> LMR-400-LLPL
B39: ='Cable Parameters'!AA36 -> 127 | C39: ='Cable Parameters'!W36 -> 12.7 | D39: ='Cable Parameters'!Z36 -> In/Out door | E39: ='Cable Parameters'!Y36 -> N/A | F39: =IF(ISERROR('Cable Parameters'!X36),"",'Cable Parameters'!X36) -> 0 | G39: ='Cable Parameters'!U36 -> LMR-500-LLPL
